Workbook

Sheet 공통(사업장수)
A1: 규모 | B1: 업종(소) | C1: 고용지청 | D1: 사업장수
D2: 2019년 12월 | E2: 2020년 12월 | F2: 2021년 09월
A3: 50인 미만 | B3: 음식및숙박업 | C3: 합계 | D3: 321,210 | E3: 332,622 | F3: 335,528
C4: 서 울 청 | D4: 15,960 | E4: 15,492 | F4: 15,024
C5: 서울강남 | D5: 9,233 | E5: 9,181 | F5: 9,325
C6: 서울동부 | D6: 11,748 | E6: 11,656 | F6: 12,051
C7: 서울서부 | D7: 12,233 | E7: 12,432 | F7: 12,521
C8: 서울남부 | D8: 9,488 | E8: 10,024 | F8: 9,672
C9: 서울북부 | D9: 9,058 | E9: 8,371 | F9: 8,277
C10: 서울관악 | D10: 8,340 | E10: 8,454 | F10: 8,566
C11: 의 정 부 | D11: 8,916 | E11: 9,911 | F11: 10,124
C12: 강 원 | D12: 3,810 | E12: 4,150 | F12: 4,153
C13: 태 백 | D13: 759 | E13: 764 | F13: 783
C14: 강 릉 | D14: 3,875 | E14: 4,251 | F14: 4,410
C15: 원 주 | D15: 2,537 | E15: 2,719 | F15: 2,914
C16: 영 월 | D16: 942 | E16: 983 | F16: 944
C17: 부 산 청 | D17: 9,445 | E17: 9,718 | F17: 9,926
C18: 부산동부 | D18: 7,459 | E18: 7,843 | F18: 8,229
C19: 부산북부 | D19: 3,342 | E19: 3,459 | F19: 3,548
C20: 창 원 | D20: 6,875 | E20: 7,017 | F20: 6,686
C21: 울 산 | D21: 6,141 | E21: 6,636 | F21: 6,691
C22: 양 산 | D22: 6,019 | E22: 6,412 | F22: 6,245
C23: 진 주 | D23: 3,979 | E23: 4,295 | F23: 4,123
C24: 통 영 | D24: 2,216 | E24: 2,441 | F24: 2,435
C25: 대 구 청 | D25: 10,675 | E25: 10,379 | F25: 10,235
C26: 대구서부 | D26: 6,576 | E26: 6,602 | F26: 6,436
C27: 포 항 | D27: 5,252 | E27: 5,495 | F27: 5,299
C28: 구 미 | D28: 2,781 | E28: 2,883 | F28: 2,980
C29: 영 주 | D29: 1,276 | E29: 1,359 | F29: 1,345
C30: 안 동 | D30: 1,368 | E30: 1,332 | F30: 1,359
C31: 중 부 청 | D31: 9,280 | E31: 9,983 | F31: 9,916
C32: 인천북부 | D32: 7,085 | E32: 7,039 | F32: 7,354
C33: 경 기 | D33: 17,115 | E33: 18,768 | F33: 19,304
C34: 부 천 | D34: 7,283 | E34: 7,590 | F34: 7,441
C35: 안 양 | D35: 7,591 | E35: 7,442 | F35: 7,505
C36: 안 산 | D36: 7,850 | E36: 8,341 | F36: 8,560
C37: 성 남 | D37: 13,516 | E37: 14,145 | F37: 13,999
C38: 평 택 | D38: 5,358 | E38: 5,589 | F38: 6,038
C39: 고 양 | D39: 8,586 | E39: 8,973 | F39: 9,064
C40: 광 주 청 | D40: 9,036 | E40: 9,606 | F40: 9,910
C41: 전 주 | D41: 6,378 | E41: 6,594 | F41: 6,860
C42: 익 산 | D42: 1,543 | E42: 1,669 | F42: 1,723
C43: 군 산 | D43: 1,824 | E43: 1,836 | F43: 1,962
C44: 목 포 | D44: 2,779 | E44: 2,983 | F44: 2,760
C45: 여 수 | D45: 4,136 | E45: 4,415 | F45: 4,508
C46: 제 주 | D46: 7,470 | E46: 7,489 | F46: 7,856
C47: 대 전 청 | D47: 13,235 | E47: 14,436 | F47: 14,696
C48: 청 주 | D48: 6,814 | E48: 7,020 | F48: 7,067
C49: 충 주 | D49: 2,757 | E49: 3,086 | F49: 3,169
C50: 천 안 | D50: 8,132 | E50: 7,981 | F50: 8,198
C51: 보 령 | D51: 1,618 | E51: 1,734 | F51: 1,743
C52: 서 산 | D52: 1,521 | E52: 1,644 | F52: 1,594

Sheet 서울
A1: 업종(소) | B1: 고용지청 | C1: 기준년월 | D1: 2019년 12월 | P1: 2020년 12월 | AB1: 2021년 9월
C2: 규모(소) | D2: 규모별 합계 | F2: 5인 미만 | H2: 5인 ~ 9인 | J2: 10인 ~ 19인 | L2: 20인 ~ 29인 | N2: 30인 ~ 49인 | P2: 규모별 합계 | R2: 5인 미만 | T2: 5인 ~ 9인 | V2: 10인 ~ 19인 | X2: 20인 ~ 29인 | Z2: 30인 ~ 49인 | AB2: 규모별 합계 | AD2: 5인 미만 | AF2: 5인 ~ 9인 | AH2: 10인 ~ 19인 | AJ2: 20인 ~ 29인 | AL2: 30인 ~ 49인
C3: 발생형태(중) | D3: 사고재해자수 합계 | E3: 사고사망자수 합계 | F3: 사고재해자수 | G3: 사고사망자수 | H3: 사고재해자수 | I3: 사고사망자수 | J3: 사고재해자수 | K3: 사고사망자수 | L3: 사고재해자수 | M3: 사고사망자수 | N3: 사고재해자수 | O3: 사고사망자수 | P3: 사고재해자수 합계 | Q3: 사고사망자수 합계 | R3: 사고재해자수 | S3: 사고사망자수 | T3: 사고재해자수 | U3: 사고사망자수 | V3: 사고재해자수 | W3: 사고사망자수 | X3: 사고재해자수 | Y3: 사고사망자수 | Z3: 사고재해자수 | AA3: 사고사망자수 | AB3: 사고재해자수 합계 | AC3: 사고사망자수 합계 | AD3: 사고재해자수 | AE3: 사고사망자수 | AF3: 사고재해자수 | AG3: 사고사망자수 | AH3: 사고재해자수 | AI3: 사고사망자수 | AJ3: 사고재해자수 | AK3: 사고사망자수 | AL3: 사고재해자수 | AM3: 사고사망자수
A4: 음식 및 숙박업 | B4: 합계 | D4: =SUM(D5,D30,D51,D73,D95,D114,D133,D151,D168,D181,D198,D215) -> 3216 | E4: =SUM(E5,E30,E51,E73,E95,E114,E133,E151,E168,E181,E198,E215) -> 4 | F4: 1515 | G4: 3 | H4: 701 | I4: 1 | J4: 532 | K4: 0 | L4: 270 | M4: 0 | N4: 198 | O4: 0 | P4: 2770 | Q4: 3 | R4: 1304 | S4: 0 | T4: 596 | U4: 3 | V4: 502 | W4: 0 | X4: 196 | Y4: 0 | Z4: 172 | AA4: 0 | AB4: 2000 | AC4: 3 | AD4: 978 | AE4: 0 | AF4: 429 | AG4: 0 | AH4: 371 | AI4: 1 | AJ4: 123 | AK4: 1 | AL4: 99 | AM4: 1
B5: 서 울 청 | C5: 합계 | D5: =SUM(F5,H5,J5,L5,N5) -> 600 | E5: =SUM(G5,I5,K5,M5,O5) -> 1 | F5: 233 | G5: 1 | H5: 132 | I5: 0 | J5: 127 | K5: 0 | L5: 69 | M5: 0 | N5: 39 | O5: 0 | P5: =SUM(R5,T5,V5,X5,Z5) -> 496 | Q5: =SUM(S5,U5,W5,Y5,AA5) -> 0 | R5: 203 | S5: 0 | T5: 94 | U5: 0 | V5: 102 | W5: 0 | X5: 53 | Y5: 0 | Z5: 44 | AA5: 0 | AB5: =SUM(AD5,AF5,AH5,AJ5,AL5) -> 359 | AC5: =SUM(AE5,AG5,AI5,AK5,AM5) -> 0 | AD5: 146 | AE5: 0 | AF5: 88 | AG5: 0 | AH5: 78 | AI5: 0 | AJ5: 34 | AK5: 0 | AL5: 13 | AM5: 0
C6: 떨어짐(높이가 있는 곳에서 사람이 떨어짐) | D6: =SUM(F6,H6,J6,L6,N6) -> 9 | E6: =SUM(G6,I6,K6,M6,O6) -> 0 | F6: 2 | G6: 0 | H6: 3 | I6: 0 | J6: 1 | K6: 0 | L6: 3 | M6: 0 | N6: 0 | O6: 0 | P6: =SUM(R6,T6,V6,X6,Z6) -> 11 | Q6: =SUM(S6,U6,W6,Y6,AA6) -> 0 | R6: 3 | S6: 0 | T6: 1 | U6: 0 | V6: 1 | W6: 0 | X6: 2 | Y6: 0 | Z6: 4 | AA6: 0 | AB6: =SUM(AD6,AF6,AH6,AJ6,AL6) -> 4 | AC6: =SUM(AE6,AG6,AI6,AK6,AM6) -> 0 | AD6: 2 | AE6: 0 | AF6: 1 | AG6: 0 | AH6: 1 | AI6: 0 | AJ6: 0 | AK6: 0 | AL6: 0 | AM6: 0
C7: 넘어짐(사람이 미끄러지거나 넘어짐) | D7: 157 | E7: 0 | F7: 62 | G7: 0 | H7: 26 | I7: 0 | J7: 33 | K7: 0 | L7: 21 | M7: 0 | N7: 15 | O7: 0 | P7: 147 | Q7: 0 | R7: 62 | S7: 0 | T7: 26 | U7: 0 | V7: 30 | W7: 0 | X7: 17 | Y7: 0 | Z7: 12 | AA7: 0 | AB7: 102 | AC7: 0 | AD7: 46 | AE7: 0 | AF7: 21 | AG7: 0 | AH7: 22 | AI7: 0 | AJ7: 9 | AK7: 0 | AL7: 4 | AM7: 0
C8: 깔림·뒤집힘(물체의 쓰러짐이나 뒤집힘) | D8: 3 | E8: 0 | F8: 2 | G8: 0 | H8: 0 | I8: 0 | J8: 0 | K8: 0 | L8: 0 | M8: 0 | N8: 1 | O8: 0 | P8: 1 | Q8: 0 | R8: 0 | S8: 0 | T8: 0 | U8: 0 | V8: 1 | W8: 0 | X8: 0 | Y8: 0 | Z8: 0 | AA8: 0 | AB8: 0 | AC8: 0 | AD8: 0 | AE8: 0 | AF8: 0 | AG8: 0 | AH8: 0 | AI8: 0 | AJ8: 0 | AK8: 0 | AL8: 0 | AM8: 0
C9: 부딪힘(물체에 부딪힘) | D9: 25 | E9: 0 | F9: 6 | G9: 0 | H9: 6 | I9: 0 | J9: 8 | K9: 0 | L9: 2 | M9: 0 | N9: 3 | O9: 0 | P9: 14 | Q9: 0 | R9: 6 | S9: 0 | T9: 4 | U9: 0 | V9: 1 | W9: 0 | X9: 2 | Y9: 0 | Z9: 1 | AA9: 0 | AB9: 12 | AC9: 0 | AD9: 5 | AE9: 0 | AF9: 1 | AG9: 0 | AH9: 1 | AI9: 0 | AJ9: 5 | AK9: 0 | AL9: 0 | AM9: 0
C10: 물체에 맞음(날아오거나 떨어진 물체에 맞음) | D10: 23 | E10: 0 | F10: 8 | G10: 0 | H10: 2 | I10: 0 | J10: 7 | K10: 0 | L10: 6 | M10: 0 | N10: 0 | O10: 0 | P10: 15 | Q10: 0 | R10: 7 | S10: 0 | T10: 3 | U10: 0 | V10: 4 | W10: 0 | X10: 1 | Y10: 0 | Z10: 0 | AA10: 0 | AB10: 10 | AC10: 0 | AD10: 2 | AE10: 0 | AF10: 4 | AG10: 0 | AH10: 2 | AI10: 0 | AJ10: 2 | AK10: 0 | AL10: 0 | AM10: 0
C11: 무너짐(건축물이나 쌓여진 물체가 무너짐) | D11: 0 | E11: 0 | F11: 0 | G11: 0 | H11: 0 | I11: 0 | J11: 0 | K11: 0 | L11: 0 | M11: 0 | N11: 0 | O11: 0 | P11: 0 | Q11: 0 | R11: 0 | S11: 0 | T11: 0 | U11: 0 | V11: 0 | W11: 0 | X11: 0 | Y11: 0 | Z11: 0 | AA11: 0 | AB11: 1 | AC11: 0 | AD11: 0 | AE11: 0 | AF11: 0 | AG11: 0 | AH11: 1 | AI11: 0 | AJ11: 0 | AK11: 0 | AL11: 0 | AM11: 0
C12: 끼임(기계설비에 끼이거나 감김) | D12: 29 | E12: 0 | F12: 10 | G12: 0 | H12: 10 | I12: 0 | J12: 5 | K12: 0 | L12: 2 | M12: 0 | N12: 2 | O12: 0 | P12: 37 | Q12: 0 | R12: 18 | S12: 0 | T12: 9 | U12: 0 | V12: 3 | W12: 0 | X12: 4 | Y12: 0 | Z12: 3 | AA12: 0 | AB12: 28 | AC12: 0 | AD12: 14 | AE12: 0 | AF12: 5 | AG12: 0 | AH12: 6 | AI12: 0 | AJ12: 3 | AK12: 0 | AL12: 0 | AM12: 0
C13: 절단·베임·찔림 | D13: 136 | E13: 0 | F13: 56 | G13: 0 | H13: 32 | I13: 0 | J13: 27 | K13: 0 | L13: 13 | M13: 0 | N13: 8 | O13: 0 | P13: 114 | Q13: 0 | R13: 39 | S13: 0 | T13: 23 | U13: 0 | V13: 29 | W13: 0 | X13: 13 | Y13: 0 | Z13: 10 | AA13: 0 | AB13: 102 | AC13: 0 | AD13: 37 | AE13: 0 | AF13: 24 | AG13: 0 | AH13: 29 | AI13: 0 | AJ13: 9 | AK13: 0 | AL13: 3 | AM13: 0
C14: 감전 | D14: 0 | E14: 0 | F14: 0 | G14: 0 | H14: 0 | I14: 0 | J14: 0 | K14: 0 | L14: 0 | M14: 0 | N14: 0 | O14: 0 | P14: 0 | Q14: 0 | R14: 0 | S14: 0 | T14: 0 | U14: 0 | V14: 0 | W14: 0 | X14: 0 | Y14: 0 | Z14: 0 | AA14: 0 | AB14: 1 | AC14: 0 | AD14: 0 | AE14: 0 | AF14: 0 | AG14: 0 | AH14: 0 | AI14: 0 | AJ14: 0 | AK14: 0 | AL14: 1 | AM14: 0
C15: 폭발·파열 | D15: 1 | E15: 0 | F15: 1 | G15: 0 | H15: 0 | I15: 0 | J15: 0 | K15: 0 | L15: 0 | M15: 0 | N15: 0 | O15: 0 | P15: 0 | Q15: 0 | R15: 0 | S15: 0 | T15: 0 | U15: 0 | V15: 0 | W15: 0 | X15: 0 | Y15: 0 | Z15: 0 | AA15: 0 | AB15: 0 | AC15: 0 | AD15: 0 | AE15: 0 | AF15: 0 | AG15: 0 | AH15: 0 | AI15: 0 | AJ15: 0 | AK15: 0 | AL15: 0 | AM15: 0
C16: 화재 | D16: 1 | E16: 0 | F16: 0 | G16: 0 | H16: 1 | I16: 0 | J16: 0 | K16: 0 | L16: 0 | M16: 0 | N16: 0 | O16: 0 | P16: 1 | Q16: 0 | R16: 0 | S16: 0 | T16: 0 | U16: 0 | V16: 1 | W16: 0 | X16: 0 | Y16: 0 | Z16: 0 | AA16: 0 | AB16: 0 | AC16: 0 | AD16: 0 | AE16: 0 | AF16: 0 | AG16: 0 | AH16: 0 | AI16: 0 | AJ16: 0 | AK16: 0 | AL16: 0 | AM16: 0
C17: 불균형 및 무리한 동작 | D17: 28 | E17: 0 | F17: 9 | G17: 0 | H17: 9 | I17: 0 | J17: 5 | K17: 0 | L17: 4 | M17: 0 | N17: 1 | O17: 0 | P17: 14 | Q17: 0 | R17: 5 | S17: 0 | T17: 2 | U17: 0 | V17: 3 | W17: 0 | X17: 3 | Y17: 0 | Z17: 1 | AA17: 0 | AB17: 11 | AC17: 0 | AD17: 3 | AE17: 0 | AF17: 5 | AG17: 0 | AH17: 3 | AI17: 0 | AJ17: 0 | AK17: 0 | AL17: 0 | AM17: 0
C18: 이상온도 접촉 | D18: 146 | E18: 0 | F18: 51 | G18: 0 | H18: 38 | I18: 0 | J18: 32 | K18: 0 | L18: 17 | M18: 0 | N18: 8 | O18: 0 | P18: 107 | Q18: 0 | R18: 46 | S18: 0 | T18: 21 | U18: 0 | V18: 19 | W18: 0 | X18: 10 | Y18: 0 | Z18: 11 | AA18: 0 | AB18: 64 | AC18: 0 | AD18: 21 | AE18: 0 | AF18: 24 | AG18: 0 | AH18: 11 | AI18: 0 | AJ18: 5 | AK18: 0 | AL18: 3 | AM18: 0
C19: 화학물질누출·접촉 | D19: 3 | E19: 0 | F19: 0 | G19: 0 | H19: 0 | I19: 0 | J19: 2 | K19: 0 | L19: 1 | M19: 0 | N19: 0 | O19: 0 | P19: 0 | Q19: 0 | R19: 0 | S19: 0 | T19: 0 | U19: 0 | V19: 0 | W19: 0 | X19: 0 | Y19: 0 | Z19: 0 | AA19: 0 | AB19: 0 | AC19: 0 | AD19: 0 | AE19: 0 | AF19: 0 | AG19: 0 | AH19: 0 | AI19: 0 | AJ19: 0 | AK19: 0 | AL19: 0 | AM19: 0
C20: 사업장외 교통사고 | D20: 34 | E20: 1 | F20: 24 | G20: 1 | H20: 5 | I20: 0 | J20: 4 | K20: 0 | L20: 0 | M20: 0 | N20: 1 | O20: 0 | P20: 30 | Q20: 0 | R20: 16 | S20: 0 | T20: 5 | U20: 0 | V20: 8 | W20: 0 | X20: 1 | Y20: 0 | Z20: 0 | AA20: 0 | AB20: 23 | AC20: 0 | AD20: 15 | AE20: 0 | AF20: 3 | AG20: 0 | AH20: 2 | AI20: 0 | AJ20: 1 | AK20: 0 | AL20: 2 | AM20: 0
C21: 체육행사 등의 사고 | D21: 2 | E21: 0 | F21: 1 | G21: 0 | H21: 0 | I21: 0 | J21: 1 | K21: 0 | L21: 0 | M21: 0 | N21: 0 | O21: 0 | P21: 2 | Q21: 0 | R21: 0 | S21: 0 | T21: 0 | U21: 0 | V21: 1 | W21: 0 | X21: 0 | Y21: 0 | Z21: 1 | AA21: 0 | AB21: 0 | AC21: 0 | AD21: 0 | AE21: 0 | AF21: 0 | AG21: 0 | AH21: 0 | AI21: 0 | AJ21: 0 | AK21: 0 | AL21: 0 | AM21: 0
C22: 폭력행위 | D22: 2 | E22: 0 | F22: 1 | G22: 0 | H22: 0 | I22: 0 | J22: 1 | K22: 0 | L22: 0 | M22: 0 | N22: 0 | O22: 0 | P22: 3 | Q22: 0 | R22: 1 | S22: 0 | T22: 0 | U22: 0 | V22: 1 | W22: 0 | X22: 0 | Y22: 0 | Z22: 1 | AA22: 0 | AB22: 1 | AC22: 0 | AD22: 1 | AE22: 0 | AF22: 0 | AG22: 0 | AH22: 0 | AI22: 0 | AJ22: 0 | AK22: 0 | AL22: 0 | AM22: 0
C23: 동물상해 | D23: 1 | E23: 0 | F23: 0 | G23: 0 | H23: 0 | I23: 0 | J23: 1 | K23: 0 | L23: 0 | M23: 0 | N23: 0 | O23: 0 | P23: 0 | Q23: 0 | R23: 0 | S23: 0 | T23: 0 | U23: 0 | V23: 0 | W23: 0 | X23: 0 | Y23: 0 | Z23: 0 | AA23: 0 | AB23: 0 | AC23: 0 | AD23: 0 | AE23: 0 | AF23: 0 | AG23: 0 | AH23: 0 | AI23: 0 | AJ23: 0 | AK23: 0 | AL23: 0 | AM23: 0
C24: 물리적인자 | D24: 0 | E24: 0 | F24: 0 | G24: 0 | H24: 0 | I24: 0 | J24: 0 | K24: 0 | L24: 0 | M24: 0 | N24: 0 | O24: 0 | P24: 0 | Q24: 0 | R24: 0 | S24: 0 | T24: 0 | U24: 0 | V24: 0 | W24: 0 | X24: 0 | Y24: 0 | Z24: 0 | AA24: 0 | AB24: 0 | AC24: 0 | AD24: 0 | AE24: 0 | AF24: 0 | AG24: 0 | AH24: 0 | AI24: 0 | AJ24: 0 | AK24: 0 | AL24: 0 | AM24: 0
C25: 화학적인자 | D25: 0 | E25: 0 | F25: 0 | G25: 0 | H25: 0 | I25: 0 | J25: 0 | K25: 0 | L25: 0 | M25: 0 | N25: 0 | O25: 0 | P25: 0 | Q25: 0 | R25: 0 | S25: 0 | T25: 0 | U25: 0 | V25: 0 | W25: 0 | X25: 0 | Y25: 0 | Z25: 0 | AA25: 0 | AB25: 0 | AC25: 0 | AD25: 0 | AE25: 0 | AF25: 0 | AG25: 0 | AH25: 0 | AI25: 0 | AJ25: 0 | AK25: 0 | AL25: 0 | AM25: 0
C26: 생물학적인자 | D26: 0 | E26: 0 | F26: 0 | G26: 0 | H26: 0 | I26: 0 | J26: 0 | K26: 0 | L26: 0 | M26: 0 | N26: 0 | O26: 0 | P26: 0 | Q26: 0 | R26: 0 | S26: 0 | T26: 0 | U26: 0 | V26: 0 | W26: 0 | X26: 0 | Y26: 0 | Z26: 0 | AA26: 0 | AB26: 0 | AC26: 0 | AD26: 0 | AE26: 0 | AF26: 0 | AG26: 0 | AH26: 0 | AI26: 0 | AJ26: 0 | AK26: 0 | AL26: 0 | AM26: 0
C27: 뇌심혈관질환 | D27: 0 | E27: 0 | F27: 0 | G27: 0 | H27: 0 | I27: 0 | J27: 0 | K27: 0 | L27: 0 | M27: 0 | N27: 0 | O27: 0 | P27: 0 | Q27: 0 | R27: 0 | S27: 0 | T27: 0 | U27: 0 | V27: 0 | W27: 0 | X27: 0 | Y27: 0 | Z27: 0 | AA27: 0 | AB27: 0 | AC27: 0 | AD27: 0 | AE27: 0 | AF27: 0 | AG27: 0 | AH27: 0 | AI27: 0 | AJ27: 0 | AK27: 0 | AL27: 0 | AM27: 0
C28: 근골격계질환 | D28: 0 | E28: 0 | F28: 0 | G28: 0 | H28: 0 | I28: 0 | J28: 0 | K28: 0 | L28: 0 | M28: 0 | N28: 0 | O28: 0 | P28: 0 | Q28: 0 | R28: 0 | S28: 0 | T28: 0 | U28: 0 | V28: 0 | W28: 0 | X28: 0 | Y28: 0 | Z28: 0 | AA28: 0 | AB28: 0 | AC28: 0 | AD28: 0 | AE28: 0 | AF28: 0 | AG28: 0 | AH28: 0 | AI28: 0 | AJ28: 0 | AK28: 0 | AL28: 0 | AM28: 0
C29: 작업관련성질환 기타 | D29: 0 | E29: 0 | F29: 0 | G29: 0 | H29: 0 | I29: 0 | J29: 0 | K29: 0 | L29: 0 | M29: 0 | N29: 0 | O29: 0 | P29: 0 | Q29: 0 | R29: 0 | S29: 0 | T29: 0 | U29: 0 | V29: 0 | W29: 0 | X29: 0 | Y29: 0 | Z29: 0 | AA29: 0 | AB29: 0 | AC29: 0 | AD29: 0 | AE29: 0 | AF29: 0 | AG29: 0 | AH29: 0 | AI29: 0 | AJ29: 0 | AK29: 0 | AL29: 0 | AM29: 0
B30: 서울강남 | C30: 합계 | D30: 414 | E30: 0 | F30: 158 | G30: 0 | H30: 116 | I30: 0 | J30: 86 | K30: 0 | L30: 33 | M30: 0 | N30: 21 | O30: 0 | P30: 376 | Q30: 0 | R30: 148 | S30: 0 | T30: 95 | U30: 0 | V30: 75 | W30: 0 | X30: 36 | Y30: 0 | Z30: 22 | AA30: 0 | AB30: 276 | AC30: 0 | AD30: 101 | AE30: 0 | AF30: 68 | AG30: 0 | AH30: 73 | AI30: 0 | AJ30: 18 | AK30: 0 | AL30: 16 | AM30: 0
C31: 떨어짐(높이가 있는 곳에서 사람이 떨어짐) | D31: 8 | E31: 0 | F31: 5 | G31: 0 | H31: 3 | I31: 0 | J31: 0 | K31: 0 | L31: 0 | M31: 0 | N31: 0 | O31: 0 | P31: 4 | Q31: 0 | R31: 2 | S31: 0 | T31: 0 | U31: 0 | V31: 2 | W31: 0 | X31: 0 | Y31: 0 | Z31: 0 | AA31: 0 | AB31: 7 | AC31: 0 | AD31: 0 | AE31: 0 | AF31: 3 | AG31: 0 | AH31: 1 | AI31: 0 | AJ31: 2 | AK31: 0 | AL31: 1 | AM31: 0
C32: 넘어짐(사람이 미끄러지거나 넘어짐) | D32: 84 | E32: 0 | F32: 29 | G32: 0 | H32: 25 | I32: 0 | J32: 15 | K32: 0 | L32: 9 | M32: 0 | N32: 6 | O32: 0 | P32: 81 | Q32: 0 | R32: 26 | S32: 0 | T32: 28 | U32: 0 | V32: 14 | W32: 0 | X32: 11 | Y32: 0 | Z32: 2 | AA32: 0 | AB32: 69 | AC32: 0 | AD32: 24 | AE32: 0 | AF32: 15 | AG32: 0 | AH32: 26 | AI32: 0 | AJ32: 2 | AK32: 0 | AL32: 2 | AM32: 0
C33: 깔림·뒤집힘(물체의 쓰러짐이나 뒤집힘) | D33: 1 | E33: 0 | F33: 0 | G33: 0 | H33: 0 | I33: 0 | J33: 0 | K33: 0 | L33: 1 | M33: 0 | N33: 0 | O33: 0 | P33: 2 | Q33: 0 | R33: 0 | S33: 0 | T33: 0 | U33: 0 | V33: 1 | W33: 0 | X33: 0 | Y33: 0 | Z33: 1 | AA33: 0 | AB33: 0 | AC33: 0 | AD33: 0 | AE33: 0 | AF33: 0 | AG33: 0 | AH33: 0 | AI33: 0 | AJ33: 0 | AK33: 0 | AL33: 0 | AM33: 0
C34: 부딪힘(물체에 부딪힘) | D34: 14 | E34: 0 | F34: 4 | G34: 0 | H34: 4 | I34: 0 | J34: 4 | K34: 0 | L34: 0 | M34: 0 | N34: 2 | O34: 0 | P34: 14 | Q34: 0 | R34: 4 | S34: 0 | T34: 4 | U34: 0 | V34: 0 | W34: 0 | X34: 3 | Y34: 0 | Z34: 3 | AA34: 0 | AB34: 11 | AC34: 0 | AD34: 1 | AE34: 0 | AF34: 6 | AG34: 0 | AH34: 4 | AI34: 0 | AJ34: 0 | AK34: 0 | AL34: 0 | AM34: 0
C35: 물체에 맞음(날아오거나 떨어진 물체에 맞음) | D35: 10 | E35: 0 | F35: 6 | G35: 0 | H35: 1 | I35: 0 | J35: 2 | K35: 0 | L35: 1 | M35: 0 | N35: 0 | O35: 0 | P35: 13 | Q35: 0 | R35: 6 | S35: 0 | T35: 3 | U35: 0 | V35: 2 | W35: 0 | X35: 2 | Y35: 0 | Z35: 0 | AA35: 0 | AB35: 8 | AC35: 0 | AD35: 2 | AE35: 0 | AF35: 0 | AG35: 0 | AH35: 3 | AI35: 0 | AJ35: 2 | AK35: 0 | AL35: 1 | AM35: 0
C36: 끼임(기계설비에 끼이거나 감김) | D36: 32 | E36: 0 | F36: 17 | G36: 0 | H36: 9 | I36: 0 | J36: 5 | K36: 0 | L36: 0 | M36: 0 | N36: 1 | O36: 0 | P36: 15 | Q36: 0 | R36: 4 | S36: 0 | T36: 4 | U36: 0 | V36: 4 | W36: 0 | X36: 1 | Y36: 0 | Z36: 2 | AA36: 0 | AB36: 16 | AC36: 0 | AD36: 8 | AE36: 0 | AF36: 3 | AG36: 0 | AH36: 4 | AI36: 0 | AJ36: 1 | AK36: 0 | AL36: 0 | AM36: 0
C37: 절단·베임·찔림 | D37: 112 | E37: 0 | F37: 42 | G37: 0 | H37: 30 | I37: 0 | J37: 24 | K37: 0 | L37: 10 | M37: 0 | N37: 6 | O37: 0 | P37: 101 | Q37: 0 | R37: 40 | S37: 0 | T37: 22 | U37: 0 | V37: 27 | W37: 0 | X37: 8 | Y37: 0 | Z37: 4 | AA37: 0 | AB37: 78 | AC37: 0 | AD37: 25 | AE37: 0 | AF37: 24 | AG37: 0 | AH37: 19 | AI37: 0 | AJ37: 6 | AK37: 0 | AL37: 4 | AM37: 0
C38: 감전 | D38: 0 | E38: 0 | F38: 0 | G38: 0 | H38: 0 | I38: 0 | J38: 0 | K38: 0 | L38: 0 | M38: 0 | N38: 0 | O38: 0 | P38: 0 | Q38: 0 | R38: 0 | S38: 0 | T38: 0 | U38: 0 | V38: 0 | W38: 0 | X38: 0 | Y38: 0 | Z38: 0 | AA38: 0 | AB38: 1 | AC38: 0 | AD38: 0 | AE38: 0 | AF38: 0 | AG38: 0 | AH38: 0 | AI38: 0 | AJ38: 0 | AK38: 0 | AL38: 1 | AM38: 0
C39: 화재 | D39: 1 | E39: 0 | F39: 0 | G39: 0 | H39: 1 | I39: 0 | J39: 0 | K39: 0 | L39: 0 | M39: 0 | N39: 0 | O39: 0 | P39: 0 | Q39: 0 | R39: 0 | S39: 0 | T39: 0 | U39: 0 | V39: 0 | W39: 0 | X39: 0 | Y39: 0 | Z39: 0 | AA39: 0 | AB39: 0 | AC39: 0 | AD39: 0 | AE39: 0 | AF39: 0 | AG39: 0 | AH39: 0 | AI39: 0 | AJ39: 0 | AK39: 0 | AL39: 0 | AM39: 0
C40: 불균형 및 무리한 동작 | D40: 16 | E40: 0 | F40: 6 | G40: 0 | H40: 6 | I40: 0 | J40: 2 | K40: 0 | L40: 1 | M40: 0 | N40: 1 | O40: 0 | P40: 15 | Q40: 0 | R40: 8 | S40: 0 | T40: 3 | U40: 0 | V40: 2 | W40: 0 | X40: 0 | Y40: 0 | Z40: 2 | AA40: 0 | AB40: 6 | AC40: 0 | AD40: 3 | AE40: 0 | AF40: 1 | AG40: 0 | AH40: 1 | AI40: 0 | AJ40: 1 | AK40: 0 | AL40: 0 | AM40: 0
C41: 이상온도 접촉 | D41: 104 | E41: 0 | F41: 33 | G41: 0 | H41: 31 | I41: 0 | J41: 26 | K41: 0 | L41: 9 | M41: 0 | N41: 5 | O41: 0 | P41: 104 | Q41: 0 | R41: 40 | S41: 0 | T41: 27 | U41: 0 | V41: 22 | W41: 0 | X41: 9 | Y41: 0 | Z41: 6 | AA41: 0 | AB41: 62 | AC41: 0 | AD41: 31 | AE41: 0 | AF41: 10 | AG41: 0 | AH41: 12 | AI41: 0 | AJ41: 4 | AK41: 0 | AL41: 5 | AM41: 0
C42: 화학물질누출·접촉 | D42: 1 | E42: 0 | F42: 1 | G42: 0 | H42: 0 | I42: 0 | J42: 0 | K42: 0 | L42: 0 | M42: 0 | N42: 0 | O42: 0 | P42: 0 | Q42: 0 | R42: 0 | S42: 0 | T42: 0 | U42: 0 | V42: 0 | W42: 0 | X42: 0 | Y42: 0 | Z42: 0 | AA42: 0 | AB42: 0 | AC42: 0 | AD42: 0 | AE42: 0 | AF42: 0 | AG42: 0 | AH42: 0 | AI42: 0 | AJ42: 0 | AK42: 0 | AL42: 0 | AM42: 0
C43: 사업장외 교통사고 | D43: 27 | E43: 0 | F43: 14 | G43: 0 | H43: 4 | I43: 0 | J43: 8 | K43: 0 | L43: 1 | M43: 0 | N43: 0 | O43: 0 | P43: 25 | Q43: 0 | R43: 17 | S43: 0 | T43: 4 | U43: 0 | V43: 1 | W43: 0 | X43: 1 | Y43: 0 | Z43: 2 | AA43: 0 | AB43: 17 | AC43: 0 | AD43: 7 | AE43: 0 | AF43: 5 | AG43: 0 | AH43: 3 | AI43: 0 | AJ43: 0 | AK43: 0 | AL43: 2 | AM43: 0
C44: 체육행사 등의 사고 | D44: 3 | E44: 0 | F44: 0 | G44: 0 | H44: 2 | I44: 0 | J44: 0 | K44: 0 | L44: 1 | M44: 0 | N44: 0 | O44: 0 | P44: 2 | Q44: 0 | R44: 1 | S44: 0 | T44: 0 | U44: 0 | V44: 0 | W44: 0 | X44: 1 | Y44: 0 | Z44: 0 | AA44: 0 | AB44: 0 | AC44: 0 | AD44: 0 | AE44: 0 | AF44: 0 | AG44: 0 | AH44: 0 | AI44: 0 | AJ44: 0 | AK44: 0 | AL44: 0 | AM44: 0
C45: 폭력행위 | D45: 1 | E45: 0 | F45: 1 | G45: 0 | H45: 0 | I45: 0 | J45: 0 | K45: 0 | L45: 0 | M45: 0 | N45: 0 | O45: 0 | P45: 0 | Q45: 0 | R45: 0 | S45: 0 | T45: 0 | U45: 0 | V45: 0 | W45: 0 | X45: 0 | Y45: 0 | Z45: 0 | AA45: 0 | AB45: 0 | AC45: 0 | AD45: 0 | AE45: 0 | AF45: 0 | AG45: 0 | AH45: 0 | AI45: 0 | AJ45: 0 | AK45: 0 | AL45: 0 | AM45: 0
C46: 기타 | D46: 0 | E46: 0 | F46: 0 | G46: 0 | H46: 0 | I46: 0 | J46: 0 | K46: 0 | L46: 0 | M46: 0 | N46: 0 | O46: 0 | P46: 0 | Q46: 0 | R46: 0 | S46: 0 | T46: 0 | U46: 0 | V46: 0 | W46: 0 | X46: 0 | Y46: 0 | Z46: 0 | AA46: 0 | AB46: 1 | AC46: 0 | AD46: 0 | AE46: 0 | AF46: 1 | AG46: 0 | AH46: 0 | AI46: 0 | AJ46: 0 | AK46: 0 | AL46: 0 | AM46: 0
C47: 생물학적인자 | D47: 0 | E47: 0 | F47: 0 | G47: 0 | H47: 0 | I47: 0 | J47: 0 | K47: 0 | L47: 0 | M47: 0 | N47: 0 | O47: 0 | P47: 0 | Q47: 0 | R47: 0 | S47: 0 | T47: 0 | U47: 0 | V47: 0 | W47: 0 | X47: 0 | Y47: 0 | Z47: 0 | AA47: 0 | AB47: 0 | AC47: 0 | AD47: 0 | AE47: 0 | AF47: 0 | AG47: 0 | AH47: 0 | AI47: 0 | AJ47: 0 | AK47: 0 | AL47: 0 | AM47: 0
C48: 뇌심혈관질환 | D48: 0 | E48: 0 | F48: 0 | G48: 0 | H48: 0 | I48: 0 | J48: 0 | K48: 0 | L48: 0 | M48: 0 | N48: 0 | O48: 0 | P48: 0 | Q48: 0 | R48: 0 | S48: 0 | T48: 0 | U48: 0 | V48: 0 | W48: 0 | X48: 0 | Y48: 0 | Z48: 0 | AA48: 0 | AB48: 0 | AC48: 0 | AD48: 0 | AE48: 0 | AF48: 0 | AG48: 0 | AH48: 0 | AI48: 0 | AJ48: 0 | AK48: 0 | AL48: 0 | AM48: 0
C49: 근골격계질환 | D49: 0 | E49: 0 | F49: 0 | G49: 0 | H49: 0 | I49: 0 | J49: 0 | K49: 0 | L49: 0 | M49: 0 | N49: 0 | O49: 0 | P49: 0 | Q49: 0 | R49: 0 | S49: 0 | T49: 0 | U49: 0 | V49: 0 | W49: 0 | X49: 0 | Y49: 0 | Z49: 0 | AA49: 0 | AB49: 0 | AC49: 0 | AD49: 0 | AE49: 0 | AF49: 0 | AG49: 0 | AH49: 0 | AI49: 0 | AJ49: 0 | AK49: 0 | AL49: 0 | AM49: 0
C50: 작업관련성질환 기타 | D50: 0 | E50: 0 | F50: 0 | G50: 0 | H50: 0 | I50: 0 | J50: 0 | K50: 0 | L50: 0 | M50: 0 | N50: 0 | O50: 0 | P50: 0 | Q50: 0 | R50: 0 | S50: 0 | T50: 0 | U50: 0 | V50: 0 | W50: 0 | X50: 0 | Y50: 0 | Z50: 0 | AA50: 0 | AB50: 0 | AC50: 0 | AD50: 0 | AE50: 0 | AF50: 0 | AG50: 0 | AH50: 0 | AI50: 0 | AJ50: 0 | AK50: 0 | AL50: 0 | AM50: 0
B51: 서울동부 | C51: 합계 | D51: 489 | E51: 1 | F51: 239 | G51: 1 | H51: 94 | I51: 0 | J51: 80 | K51: 0 | L51: 43 | M51: 0 | N51: 33 | O51: 0 | P51: 361 | Q51: 0 | R51: 178 | S51: 0 | T51: 78 | U51: 0 | V51: 67 | W51: 0 | X51: 20 | Y51: 0 | Z51: 18 | AA51: 0 | AB51: 253 | AC51: 1 | AD51: 115 | AE51: 0 | AF51: 49 | AG51: 0 | AH51: 54 | AI51: 1 | AJ51: 18 | AK51: 0 | AL51: 17 | AM51: 0
C52: 떨어짐(높이가 있는 곳에서 사람이 떨어짐) | D52: 11 | E52: 0 | F52: 8 | G52: 0 | H52: 1 | I52: 0 | J52: 1 | K52: 0 | L52: 1 | M52: 0 | N52: 0 | O52: 0 | P52: 6 | Q52: 0 | R52: 2 | S52: 0 | T52: 1 | U52: 0 | V52: 2 | W52: 0 | X52: 1 | Y52: 0 | Z52: 0 | AA52: 0 | AB52: 1 | AC52: 0 | AD52: 0 | AE52: 0 | AF52: 0 | AG52: 0 | AH52: 0 | AI52: 0 | AJ52: 0 | AK52: 0 | AL52: 1 | AM52: 0
C53: 넘어짐(사람이 미끄러지거나 넘어짐) | D53: 118 | E53: 0 | F53: 61 | G53: 0 | H53: 24 | I53: 0 | J53: 17 | K53: 0 | L53: 7 | M53: 0 | N53: 9 | O53: 0 | P53: 85 | Q53: 0 | R53: 41 | S53: 0 | T53: 19 | U53: 0 | V53: 17 | W53: 0 | X53: 3 | Y53: 0 | Z53: 5 | AA53: 0 | AB53: 59 | AC53: 0 | AD53: 32 | AE53: 0 | AF53: 7 | AG53: 0 | AH53: 13 | AI53: 0 | AJ53: 5 | AK53: 0 | AL53: 2 | AM53: 0
C54: 깔림·뒤집힘(물체의 쓰러짐이나 뒤집힘) | D54: 1 | E54: 0 | F54: 1 | G54: 0 | H54: 0 | I54: 0 | J54: 0 | K54: 0 | L54: 0 | M54: 0 | N54: 0 | O54: 0 | P54: 2 | Q54: 0 | R54: 1 | S54: 0 | T54: 0 | U54: 0 | V54: 1 | W54: 0 | X54: 0 | Y54: 0 | Z54: 0 | AA54: 0 | AB54: 0 | AC54: 0 | AD54: 0 | AE54: 0 | AF54: 0 | AG54: 0 | AH54: 0 | AI54: 0 | AJ54: 0 | AK54: 0 | AL54: 0 | AM54: 0
C55: 부딪힘(물체에 부딪힘) | D55: 21 | E55: 0 | F55: 6 | G55: 0 | H55: 2 | I55: 0 | J55: 6 | K55: 0 | L55: 6 | M55: 0 | N55: 1 | O55: 0 | P55: 13 | Q55: 0 | R55: 10 | S55: 0 | T55: 0 | U55: 0 | V55: 2 | W55: 0 | X55: 1 | Y55: 0 | Z55: 0 | AA55: 0 | AB55: 7 | AC55: 0 | AD55: 1 | AE55: 0 | AF55: 0 | AG55: 0 | AH55: 2 | AI55: 0 | AJ55: 1 | AK55: 0 | AL55: 3 | AM55: 0
C56: 물체에 맞음(날아오거나 떨어진 물체에 맞음) | D56: 13 | E56: 0 | F56: 6 | G56: 0 | H56: 5 | I56: 0 | J56: 1 | K56: 0 | L56: 1 | M56: 0 | N56: 0 | O56: 0 | P56: 19 | Q56: 0 | R56: 7 | S56: 0 | T56: 5 | U56: 0 | V56: 4 | W56: 0 | X56: 2 | Y56: 0 | Z56: 1 | AA56: 0 | AB56: 5 | AC56: 0 | AD56: 2 | AE56: 0 | AF56: 0 | AG56: 0 | AH56: 2 | AI56: 0 | AJ56: 0 | AK56: 0 | AL56: 1 | AM56: 0
C57: 무너짐(건축물이나 쌓여진 물체가 무너짐) | D57: 0 | E57: 0 | F57: 0 | G57: 0 | H57: 0 | I57: 0 | J57: 0 | K57: 0 | L57: 0 | M57: 0 | N57: 0 | O57: 0 | P57: 0 | Q57: 0 | R57: 0 | S57: 0 | T57: 0 | U57: 0 | V57: 0 | W57: 0 | X57: 0 | Y57: 0 | Z57: 0 | AA57: 0 | AB57: 1 | AC57: 0 | AD57: 0 | AE57: 0 | AF57: 0 | AG57: 0 | AH57: 1 | AI57: 0 | AJ57: 0 | AK57: 0 | AL57: 0 | AM57: 0
C58: 끼임(기계설비에 끼이거나 감김) | D58: 34 | E58: 0 | F58: 15 | G58: 0 | H58: 6 | I58: 0 | J58: 7 | K58: 0 | L58: 3 | M58: 0 | N58: 3 | O58: 0 | P58: 21 | Q58: 0 | R58: 12 | S58: 0 | T58: 5 | U58: 0 | V58: 1 | W58: 0 | X58: 1 | Y58: 0 | Z58: 2 | AA58: 0 | AB58: 14 | AC58: 1 | AD58: 7 | AE58: 0 | AF58: 2 | AG58: 0 | AH58: 2 | AI58: 1 | AJ58: 1 | AK58: 0 | AL58: 2 | AM58: 0
C59: 절단·베임·찔림 | D59: 107 | E59: 0 | F59: 47 | G59: 0 | H59: 22 | I59: 0 | J59: 16 | K59: 0 | L59: 10 | M59: 0 | N59: 12 | O59: 0 | P59: 91 | Q59: 0 | R59: 42 | S59: 0 | T59: 19 | U59: 0 | V59: 20 | W59: 0 | X59: 8 | Y59: 0 | Z59: 2 | AA59: 0 | AB59: 73 | AC59: 0 | AD59: 34 | AE59: 0 | AF59: 16 | AG59: 0 | AH59: 17 | AI59: 0 | AJ59: 3 | AK59: 0 | AL59: 3 | AM59: 0
C60: 폭발·파열 | D60: 1 | E60: 0 | F60: 1 | G60: 0 | H60: 0 | I60: 0 | J60: 0 | K60: 0 | L60: 0 | M60: 0 | N60: 0 | O60: 0 | P60: 0 | Q60: 0 | R60: 0 | S60: 0 | T60: 0 | U60: 0 | V60: 0 | W60: 0 | X60: 0 | Y60: 0 | Z60: 0 | AA60: 0 | AB60: 0 | AC60: 0 | AD60: 0 | AE60: 0 | AF60: 0 | AG60: 0 | AH60: 0 | AI60: 0 | AJ60: 0 | AK60: 0 | AL60: 0 | AM60: 0
C61: 화재 | D61: 1 | E61: 0 | F61: 1 | G61: 0 | H61: 0 | I61: 0 | J61: 0 | K61: 0 | L61: 0 | M61: 0 | N61: 0 | O61: 0 | P61: 1 | Q61: 0 | R61: 1 | S61: 0 | T61: 0 | U61: 0 | V61: 0 | W61: 0 | X61: 0 | Y61: 0 | Z61: 0 | AA61: 0 | AB61: 1 | AC61: 0 | AD61: 1 | AE61: 0 | AF61: 0 | AG61: 0 | AH61: 0 | AI61: 0 | AJ61: 0 | AK61: 0 | AL61: 0 | AM61: 0
C62: 불균형 및 무리한 동작 | D62: 16 | E62: 0 | F62: 6 | G62: 0 | H62: 4 | I62: 0 | J62: 4 | K62: 0 | L62: 1 | M62: 0 | N62: 1 | O62: 0 | P62: 12 | Q62: 0 | R62: 5 | S62: 0 | T62: 4 | U62: 0 | V62: 1 | W62: 0 | X62: 0 | Y62: 0 | Z62: 2 | AA62: 0 | AB62: 10 | AC62: 0 | AD62: 7 | AE62: 0 | AF62: 2 | AG62: 0 | AH62: 1 | AI62: 0 | AJ62: 0 | AK62: 0 | AL62: 0 | AM62: 0
C63: 이상온도 접촉 | D63: 107 | E63: 0 | F63: 52 | G63: 0 | H63: 15 | I63: 0 | J63: 22 | K63: 0 | L63: 12 | M63: 0 | N63: 6 | O63: 0 | P63: 72 | Q63: 0 | R63: 33 | S63: 0 | T63: 20 | U63: 0 | V63: 13 | W63: 0 | X63: 3 | Y63: 0 | Z63: 3 | AA63: 0 | AB63: 54 | AC63: 0 | AD63: 17 | AE63: 0 | AF63: 13 | AG63: 0 | AH63: 13 | AI63: 0 | AJ63: 8 | AK63: 0 | AL63: 3 | AM63: 0
C64: 화학물질누출·접촉 | D64: 0 | E64: 0 | F64: 0 | G64: 0 | H64: 0 | I64: 0 | J64: 0 | K64: 0 | L64: 0 | M64: 0 | N64: 0 | O64: 0 | P64: 3 | Q64: 0 | R64: 1 | S64: 0 | T64: 0 | U64: 0 | V64: 1 | W64: 0 | X64: 0 | Y64: 0 | Z64: 1 | AA64: 0 | AB64: 1 | AC64: 0 | AD64: 1 | AE64: 0 | AF64: 0 | AG64: 0 | AH64: 0 | AI64: 0 | AJ64: 0 | AK64: 0 | AL64: 0 | AM64: 0
C65: 사업장외 교통사고 | D65: 56 | E65: 1 | F65: 33 | G65: 1 | H65: 15 | I65: 0 | J65: 5 | K65: 0 | L65: 2 | M65: 0 | N65: 1 | O65: 0 | P65: 35 | Q65: 0 | R65: 23 | S65: 0 | T65: 5 | U65: 0 | V65: 5 | W65: 0 | X65: 0 | Y65: 0 | Z65: 2 | AA65: 0 | AB65: 27 | AC65: 0 | AD65: 13 | AE65: 0 | AF65: 9 | AG65: 0 | AH65: 3 | AI65: 0 | AJ65: 0 | AK65: 0 | AL65: 2 | AM65: 0
C66: 체육행사 등의 사고 | D66: 1 | E66: 0 | F66: 1 | G66: 0 | H66: 0 | I66: 0 | J66: 0 | K66: 0 | L66: 0 | M66: 0 | N66: 0 | O66: 0 | P66: 0 | Q66: 0 | R66: 0 | S66: 0 | T66: 0 | U66: 0 | V66: 0 | W66: 0 | X66: 0 | Y66: 0 | Z66: 0 | AA66: 0 | AB66: 0 | AC66: 0 | AD66: 0 | AE66: 0 | AF66: 0 | AG66: 0 | AH66: 0 | AI66: 0 | AJ66: 0 | AK66: 0 | AL66: 0 | AM66: 0
C67: 폭력행위 | D67: 1 | E67: 0 | F67: 0 | G67: 0 | H67: 0 | I67: 0 | J67: 1 | K67: 0 | L67: 0 | M67: 0 | N67: 0 | O67: 0 | P67: 1 | Q67: 0 | R67: 0 | S67: 0 | T67: 0 | U67: 0 | V67: 0 | W67: 0 | X67: 1 | Y67: 0 | Z67: 0 | AA67: 0 | AB67: 0 | AC67: 0 | AD67: 0 | AE67: 0 | AF67: 0 | AG67: 0 | AH67: 0 | AI67: 0 | AJ67: 0 | AK67: 0 | AL67: 0 | AM67: 0
C68: 동물상해 | D68: 1 | E68: 0 | F68: 1 | G68: 0 | H68: 0 | I68: 0 | J68: 0 | K68: 0 | L68: 0 | M68: 0 | N68: 0 | O68: 0 | P68: 0 | Q68: 0 | R68: 0 | S68: 0 | T68: 0 | U68: 0 | V68: 0 | W68: 0 | X68: 0 | Y68: 0 | Z68: 0 | AA68: 0 | AB68: 0 | AC68: 0 | AD68: 0 | AE68: 0 | AF68: 0 | AG68: 0 | AH68: 0 | AI68: 0 | AJ68: 0 | AK68: 0 | AL68: 0 | AM68: 0
C69: 생물학적인자 | D69: 0 | E69: 0 | F69: 0 | G69: 0 | H69: 0 | I69: 0 | J69: 0 | K69: 0 | L69: 0 | M69: 0 | N69: 0 | O69: 0 | P69: 0 | Q69: 0 | R69: 0 | S69: 0 | T69: 0 | U69: 0 | V69: 0 | W69: 0 | X69: 0 | Y69: 0 | Z69: 0 | AA69: 0 | AB69: 0 | AC69: 0 | AD69: 0 | AE69: 0 | AF69: 0 | AG69: 0 | AH69: 0 | AI69: 0 | AJ69: 0 | AK69: 0 | AL69: 0 | AM69: 0
C70: 뇌심혈관질환 | D70: =SUM(F70,H70,J70,L70,N70) -> 0 | E70: =SUM(G70,I70,K70,M70,O70) -> 0 | F70: 0 | G70: 0 | H70: 0 | I70: 0 | J70: 0 | K70: 0 | L70: 0 | M70: 0 | N70: 0 | O70: 0 | P70: =SUM(R70,T70,V70,X70,Z70) -> 0 | Q70: =SUM(S70,U70,W70,Y70,AA70) -> 0 | R70: 0 | S70: 0 | T70: 0 | U70: 0 | V70: 0 | W70: 0 | X70: 0 | Y70: 0 | Z70: 0 | AA70: 0 | AB70: =SUM(AD70,AF70,AH70,AJ70,AL70) -> 0 | AC70: =SUM(AE70,AG70,AI70,AK70,AM70) -> 0 | AD70: 0 | AE70: 0 | AF70: 0 | AG70: 0 | AH70: 0 | AI70: 0 | AJ70: 0 | AK70: 0 | AL70: 0 | AM70: 0
C71: 근골격계질환 | D71: 0 | E71: 0 | F71: 0 | G71: 0 | H71: 0 | I71: 0 | J71: 0 | K71: 0 | L71: 0 | M71: 0 | N71: 0 | O71: 0 | P71: 0 | Q71: 0 | R71: 0 | S71: 0 | T71: 0 | U71: 0 | V71: 0 | W71: 0 | X71: 0 | Y71: 0 | Z71: 0 | AA71: 0 | AB71: 0 | AC71: 0 | AD71: 0 | AE71: 0 | AF71: 0 | AG71: 0 | AH71: 0 | AI71: 0 | AJ71: 0 | AK71: 0 | AL71: 0 | AM71: 0
C72: 작업관련성질환 기타 | D72: 0 | E72: 0 | F72: 0 | G72: 0 | H72: 0 | I72: 0 | J72: 0 | K72: 0 | L72: 0 | M72: 0 | N72: 0 | O72: 0 | P72: 0 | Q72: 0 | R72: 0 | S72: 0 | T72: 0 | U72: 0 | V72: 0 | W72: 0 | X72: 0 | Y72: 0 | Z72: 0 | AA72: 0 | AB72: 0 | AC72: 0 | AD72: 0 | AE72: 0 | AF72: 0 | AG72: 0 | AH72: 0 | AI72: 0 | AJ72: 0 | AK72: 0 | AL72: 0 | AM72: 0
B73: 서울서부 | C73: 합계 | D73: 428 | E73: 0 | F73: 189 | G73: 0 | H73: 100 | I73: 0 | J73: 81 | K73: 0 | L73: 28 | M73: 0 | N73: 30 | O73: 0 | P73: 372 | Q73: 1 | R73: 176 | S73: 0 | T73: 78 | U73: 1 | V73: 68 | W73: 0 | X73: 26 | Y73: 0 | Z73: 24 | AA73: 0 | AB73: 268 | AC73: 0 | AD73: 131 | AE73: 0 | AF73: 75 | AG73: 0 | AH73: 42 | AI73: 0 | AJ73: 10 | AK73: 0 | AL73: 10 | AM73: 0
C74: 떨어짐(높이가 있는 곳에서 사람이 떨어짐) | D74: 3 | E74: 0 | F74: 2 | G74: 0 | H74: 1 | I74: 0 | J74: 0 | K74: 0 | L74: 0 | M74: 0 | N74: 0 | O74: 0 | P74: 7 | Q74: 0 | R74: 4 | S74: 0 | T74: 0 | U74: 0 | V74: 2 | W74: 0 | X74: 0 | Y74: 0 | Z74: 1 | AA74: 0 | AB74: 8 | AC74: 0 | AD74: 6 | AE74: 0 | AF74: 1 | AG74: 0 | AH74: 1 | AI74: 0 | AJ74: 0 | AK74: 0 | AL74: 0 | AM74: 0
C75: 넘어짐(사람이 미끄러지거나 넘어짐) | D75: 104 | E75: 0 | F75: 47 | G75: 0 | H75: 20 | I75: 0 | J75: 21 | K75: 0 | L75: 8 | M75: 0 | N75: 8 | O75: 0 | P75: 78 | Q75: 0 | R75: 32 | S75: 0 | T75: 20 | U75: 0 | V75: 16 | W75: 0 | X75: 4 | Y75: 0 | Z75: 6 | AA75: 0 | AB75: 48 | AC75: 0 | AD75: 22 | AE75: 0 | AF75: 12 | AG75: 0 | AH75: 9 | AI75: 0 | AJ75: 1 | AK75: 0 | AL75: 4 | AM75: 0
C76: 깔림·뒤집힘(물체의 쓰러짐이나 뒤집힘) | D76: 2 | E76: 0 | F76: 0 | G76: 0 | H76: 2 | I76: 0 | J76: 0 | K76: 0 | L76: 0 | M76: 0 | N76: 0 | O76: 0 | P76: 2 | Q76: 0 | R76: 1 | S76: 0 | T76: 1 | U76: 0 | V76: 0 | W76: 0 | X76: 0 | Y76: 0 | Z76: 0 | AA76: 0 | AB76: 1 | AC76: 0 | AD76: 0 | AE76: 0 | AF76: 1 | AG76: 0 | AH76: 0 | AI76: 0 | AJ76: 0 | AK76: 0 | AL76: 0 | AM76: 0
C77: 부딪힘(물체에 부딪힘) | D77: 11 | E77: 0 | F77: 2 | G77: 0 | H77: 2 | I77: 0 | J77: 5 | K77: 0 | L77: 2 | M77: 0 | N77: 0 | O77: 0 | P77: 10 | Q77: 0 | R77: 4 | S77: 0 | T77: 1 | U77: 0 | V77: 3 | W77: 0 | X77: 1 | Y77: 0 | Z77: 1 | AA77: 0 | AB77: 8 | AC77: 0 | AD77: 3 | AE77: 0 | AF77: 2 | AG77: 0 | AH77: 2 | AI77: 0 | AJ77: 0 | AK77: 0 | AL77: 1 | AM77: 0
C78: 물체에 맞음(날아오거나 떨어진 물체에 맞음) | D78: 9 | E78: 0 | F78: 6 | G78: 0 | H78: 0 | I78: 0 | J78: 2 | K78: 0 | L78: 1 | M78: 0 | N78: 0 | O78: 0 | P78: 7 | Q78: 0 | R78: 2 | S78: 0 | T78: 2 | U78: 0 | V78: 1 | W78: 0 | X78: 1 | Y78: 0 | Z78: 1 | AA78: 0 | AB78: 5 | AC78: 0 | AD78: 1 | AE78: 0 | AF78: 1 | AG78: 0 | AH78: 2 | AI78: 0 | AJ78: 0 | AK78: 0 | AL78: 1 | AM78: 0
C79: 끼임(기계설비에 끼이거나 감김) | D79: 35 | E79: 0 | F79: 17 | G79: 0 | H79: 10 | I79: 0 | J79: 6 | K79: 0 | L79: 1 | M79: 0 | N79: 1 | O79: 0 | P79: 32 | Q79: 0 | R79: 18 | S79: 0 | T79: 5 | U79: 0 | V79: 6 | W79: 0 | X79: 3 | Y79: 0 | Z79: 0 | AA79: 0 | AB79: 18 | AC79: 0 | AD79: 10 | AE79: 0 | AF79: 4 | AG79: 0 | AH79: 2 | AI79: 0 | AJ79: 2 | AK79: 0 | AL79: 0 | AM79: 0
C80: 절단·베임·찔림 | D80: 133 | E80: 0 | F80: 60 | G80: 0 | H80: 32 | I80: 0 | J80: 23 | K80: 0 | L80: 7 | M80: 0 | N80: 11 | O80: 0 | P80: 125 | Q80: 0 | R80: 69 | S80: 0 | T80: 20 | U80: 0 | V80: 21 | W80: 0 | X80: 11 | Y80: 0 | Z80: 4 | AA80: 0 | AB80: 82 | AC80: 0 | AD80: 37 | AE80: 0 | AF80: 29 | AG80: 0 | AH80: 12 | AI80: 0 | AJ80: 2 | AK80: 0 | AL80: 2 | AM80: 0
C81: 감전 | D81: 1 | E81: 0 | F81: 0 | G81: 0 | H81: 1 | I81: 0 | J81: 0 | K81: 0 | L81: 0 | M81: 0 | N81: 0 | O81: 0 | P81: 0 | Q81: 0 | R81: 0 | S81: 0 | T81: 0 | U81: 0 | V81: 0 | W81: 0 | X81: 0 | Y81: 0 | Z81: 0 | AA81: 0 | AB81: 0 | AC81: 0 | AD81: 0 | AE81: 0 | AF81: 0 | AG81: 0 | AH81: 0 | AI81: 0 | AJ81: 0 | AK81: 0 | AL81: 0 | AM81: 0
C82: 폭발·파열 | D82: 1 | E82: 0 | F82: 0 | G82: 0 | H82: 1 | I82: 0 | J82: 0 | K82: 0 | L82: 0 | M82: 0 | N82: 0 | O82: 0 | P82: 0 | Q82: 0 | R82: 0 | S82: 0 | T82: 0 | U82: 0 | V82: 0 | W82: 0 | X82: 0 | Y82: 0 | Z82: 0 | AA82: 0 | AB82: 0 | AC82: 0 | AD82: 0 | AE82: 0 | AF82: 0 | AG82: 0 | AH82: 0 | AI82: 0 | AJ82: 0 | AK82: 0 | AL82: 0 | AM82: 0
C83: 화재 | D83: 0 | E83: 0 | F83: 0 | G83: 0 | H83: 0 | I83: 0 | J83: 0 | K83: 0 | L83: 0 | M83: 0 | N83: 0 | O83: 0 | P83: 1 | Q83: 0 | R83: 0 | S83: 0 | T83: 0 | U83: 0 | V83: 1 | W83: 0 | X83: 0 | Y83: 0 | Z83: 0 | AA83: 0 | AB83: 1 | AC83: 0 | AD83: 1 | AE83: 0 | AF83: 0 | AG83: 0 | AH83: 0 | AI83: 0 | AJ83: 0 | AK83: 0 | AL83: 0 | AM83: 0
C84: 불균형 및 무리한 동작 | D84: 13 | E84: 0 | F84: 5 | G84: 0 | H84: 2 | I84: 0 | J84: 3 | K84: 0 | L84: 1 | M84: 0 | N84: 2 | O84: 0 | P84: 9 | Q84: 0 | R84: 4 | S84: 0 | T84: 1 | U84: 0 | V84: 1 | W84: 0 | X84: 1 | Y84: 0 | Z84: 2 | AA84: 0 | AB84: 11 | AC84: 0 | AD84: 6 | AE84: 0 | AF84: 2 | AG84: 0 | AH84: 1 | AI84: 0 | AJ84: 1 | AK84: 0 | AL84: 1 | AM84: 0
C85: 이상온도 접촉 | D85: 83 | E85: 0 | F85: 32 | G85: 0 | H85: 27 | I85: 0 | J85: 13 | K85: 0 | L85: 5 | M85: 0 | N85: 6 | O85: 0 | P85: 67 | Q85: 0 | R85: 29 | S85: 0 | T85: 18 | U85: 0 | V85: 13 | W85: 0 | X85: 4 | Y85: 0 | Z85: 3 | AA85: 0 | AB85: 62 | AC85: 0 | AD85: 29 | AE85: 0 | AF85: 17 | AG85: 0 | AH85: 11 | AI85: 0 | AJ85: 4 | AK85: 0 | AL85: 1 | AM85: 0
C86: 화학물질누출·접촉 | D86: 1 | E86: 0 | F86: 1 | G86: 0 | H86: 0 | I86: 0 | J86: 0 | K86: 0 | L86: 0 | M86: 0 | N86: 0 | O86: 0 | P86: 1 | Q86: 0 | R86: 1 | S86: 0 | T86: 0 | U86: 0 | V86: 0 | W86: 0 | X86: 0 | Y86: 0 | Z86: 0 | AA86: 0 | AB86: 0 | AC86: 0 | AD86: 0 | AE86: 0 | AF86: 0 | AG86: 0 | AH86: 0 | AI86: 0 | AJ86: 0 | AK86: 0 | AL86: 0 | AM86: 0
C87: 사업장외 교통사고 | D87: 29 | E87: 0 | F87: 16 | G87: 0 | H87: 1 | I87: 0 | J87: 7 | K87: 0 | L87: 3 | M87: 0 | N87: 2 | O87: 0 | P87: 26 | Q87: 1 | R87: 10 | S87: 0 | T87: 6 | U87: 1 | V87: 4 | W87: 0 | X87: 1 | Y87: 0 | Z87: 5 | AA87: 0 | AB87: 23 | AC87: 0 | AD87: 16 | AE87: 0 | AF87: 5 | AG87: 0 | AH87: 2 | AI87: 0 | AJ87: 0 | AK87: 0 | AL87: 0 | AM87: 0
C88: 체육행사 등의 사고 | D88: 1 | E88: 0 | F88: 0 | G88: 0 | H88: 0 | I88: 0 | J88: 1 | K88: 0 | L88: 0 | M88: 0 | N88: 0 | O88: 0 | P88: 1 | Q88: 0 | R88: 0 | S88: 0 | T88: 1 | U88: 0 | V88: 0 | W88: 0 | X88: 0 | Y88: 0 | Z88: 0 | AA88: 0 | AB88: 0 | AC88: 0 | AD88: 0 | AE88: 0 | AF88: 0 | AG88: 0 | AH88: 0 | AI88: 0 | AJ88: 0 | AK88: 0 | AL88: 0 | AM88: 0
C89: 폭력행위 | D89: 1 | E89: 0 | F89: 1 | G89: 0 | H89: 0 | I89: 0 | J89: 0 | K89: 0 | L89: 0 | M89: 0 | N89: 0 | O89: 0 | P89: 3 | Q89: 0 | R89: 0 | S89: 0 | T89: 2 | U89: 0 | V89: 0 | W89: 0 | X89: 0 | Y89: 0 | Z89: 1 | AA89: 0 | AB89: 0 | AC89: 0 | AD89: 0 | AE89: 0 | AF89: 0 | AG89: 0 | AH89: 0 | AI89: 0 | AJ89: 0 | AK89: 0 | AL89: 0 | AM89: 0
C90: 동물상해 | D90: 1 | E90: 0 | F90: 0 | G90: 0 | H90: 1 | I90: 0 | J90: 0 | K90: 0 | L90: 0 | M90: 0 | N90: 0 | O90: 0 | P90: 3 | Q90: 0 | R90: 2 | S90: 0 | T90: 1 | U90: 0 | V90: 0 | W90: 0 | X90: 0 | Y90: 0 | Z90: 0 | AA90: 0 | AB90: 1 | AC90: 0 | AD90: 0 | AE90: 0 | AF90: 1 | AG90: 0 | AH90: 0 | AI90: 0 | AJ90: 0 | AK90: 0 | AL90: 0 | AM90: 0
C91: 직업병기타 | D91: 0 | E91: 0 | F91: 0 | G91: 0 | H91: 0 | I91: 0 | J91: 0 | K91: 0 | L91: 0 | M91: 0 | N91: 0 | O91: 0 | P91: 0 | Q91: 0 | R91: 0 | S91: 0 | T91: 0 | U91: 0 | V91: 0 | W91: 0 | X91: 0 | Y91: 0 | Z91: 0 | AA91: 0 | AB91: 0 | AC91: 0 | AD91: 0 | AE91: 0 | AF91: 0 | AG91: 0 | AH91: 0 | AI91: 0 | AJ91: 0 | AK91: 0 | AL91: 0 | AM91: 0
C92: 뇌심혈관질환 | D92: 0 | E92: 0 | F92: 0 | G92: 0 | H92: 0 | I92: 0 | J92: 0 | K92: 0 | L92: 0 | M92: 0 | N92: 0 | O92: 0 | P92: 0 | Q92: 0 | R92: 0 | S92: 0 | T92: 0 | U92: 0 | V92: 0 | W92: 0 | X92: 0 | Y92: 0 | Z92: 0 | AA92: 0 | AB92: 0 | AC92: 0 | AD92: 0 | AE92: 0 | AF92: 0 | AG92: 0 | AH92: 0 | AI92: 0 | AJ92: 0 | AK92: 0 | AL92: 0 | AM92: 0
C93: 근골격계질환 | D93: 0 | E93: 0 | F93: 0 | G93: 0 | H93: 0 | I93: 0 | J93: 0 | K93: 0 | L93: 0 | M93: 0 | N93: 0 | O93: 0 | P93: 0 | Q93: 0 | R93: 0 | S93: 0 | T93: 0 | U93: 0 | V93: 0 | W93: 0 | X93: 0 | Y93: 0 | Z93: 0 | AA93: 0 | AB93: 0 | AC93: 0 | AD93: 0 | AE93: 0 | AF93: 0 | AG93: 0 | AH93: 0 | AI93: 0 | AJ93: 0 | AK93: 0 | AL93: 0 | AM93: 0
C94: 작업관련성질환 기타 | D94: 0 | E94: 0 | F94: 0 | G94: 0 | H94: 0 | I94: 0 | J94: 0 | K94: 0 | L94: 0 | M94: 0 | N94: 0 | O94: 0 | P94: 0 | Q94: 0 | R94: 0 | S94: 0 | T94: 0 | U94: 0 | V94: 0 | W94: 0 | X94: 0 | Y94: 0 | Z94: 0 | AA94: 0 | AB94: 0 | AC94: 0 | AD94: 0 | AE94: 0 | AF94: 0 | AG94: 0 | AH94: 0 | AI94: 0 | AJ94: 0 | AK94: 0 | AL94: 0 | AM94: 0
B95: 서울남부 | C95: 합계 | D95: 381 | E95: 1 | F95: 182 | G95: 0 | H95: 71 | I95: 1 | J95: 61 | K95: 0 | L95: 33 | M95: 0 | N95: 34 | O95: 0 | P95: 343 | Q95: 0 | R95: 155 | S95: 0 | T95: 75 | U95: 0 | V95: 63 | W95: 0 | X95: 27 | Y95: 0 | Z95: 23 | AA95: 0 | AB95: 248 | AC95: 0 | AD95: 131 | AE95: 0 | AF95: 41 | AG95: 0 | AH95: 45 | AI95: 0 | AJ95: 16 | AK95: 0 | AL95: 15 | AM95: 0
C96: 떨어짐(높이가 있는 곳에서 사람이 떨어짐) | D96: 9 | E96: 0 | F96: 4 | G96: 0 | H96: 4 | I96: 0 | J96: 1 | K96: 0 | L96: 0 | M96: 0 | N96: 0 | O96: 0 | P96: 8 | Q96: 0 | R96: 6 | S96: 0 | T96: 0 | U96: 0 | V96: 1 | W96: 0 | X96: 1 | Y96: 0 | Z96: 0 | AA96: 0 | AB96: 4 | AC96: 0 | AD96: 3 | AE96: 0 | AF96: 0 | AG96: 0 | AH96: 1 | AI96: 0 | AJ96: 0 | AK96: 0 | AL96: 0 | AM96: 0
C97: 넘어짐(사람이 미끄러지거나 넘어짐) | D97: 97 | E97: 0 | F97: 51 | G97: 0 | H97: 15 | I97: 0 | J97: 13 | K97: 0 | L97: 9 | M97: 0 | N97: 9 | O97: 0 | P97: 89 | Q97: 0 | R97: 35 | S97: 0 | T97: 18 | U97: 0 | V97: 20 | W97: 0 | X97: 8 | Y97: 0 | Z97: 8 | AA97: 0 | AB97: 61 | AC97: 0 | AD97: 32 | AE97: 0 | AF97: 11 | AG97: 0 | AH97: 10 | AI97: 0 | AJ97: 4 | AK97: 0 | AL97: 4 | AM97: 0
C98: 깔림·뒤집힘(물체의 쓰러짐이나 뒤집힘) | D98: 1 | E98: 0 | F98: 0 | G98: 0 | H98: 0 | I98: 0 | J98: 1 | K98: 0 | L98: 0 | M98: 0 | N98: 0 | O98: 0 | P98: 0 | Q98: 0 | R98: 0 | S98: 0 | T98: 0 | U98: 0 | V98: 0 | W98: 0 | X98: 0 | Y98: 0 | Z98: 0 | AA98: 0 | AB98: 0 | AC98: 0 | AD98: 0 | AE98: 0 | AF98: 0 | AG98: 0 | AH98: 0 | AI98: 0 | AJ98: 0 | AK98: 0 | AL98: 0 | AM98: 0
C99: 부딪힘(물체에 부딪힘) | D99: 15 | E99: 0 | F99: 3 | G99: 0 | H99: 5 | I99: 0 | J99: 4 | K99: 0 | L99: 2 | M99: 0 | N99: 1 | O99: 0 | P99: 12 | Q99: 0 | R99: 8 | S99: 0 | T99: 0 | U99: 0 | V99: 3 | W99: 0 | X99: 0 | Y99: 0 | Z99: 1 | AA99: 0 | AB99: 6 | AC99: 0 | AD99: 2 | AE99: 0 | AF99: 1 | AG99: 0 | AH99: 2 | AI99: 0 | AJ99: 1 | AK99: 0 | AL99: 0 | AM99: 0
C100: 물체에 맞음(날아오거나 떨어진 물체에 맞음) | D100: 18 | E100: 0 | F100: 8 | G100: 0 | H100: 1 | I100: 0 | J100: 3 | K100: 0 | L100: 2 | M100: 0 | N100: 4 | O100: 0 | P100: 14 | Q100: 0 | R100: 6 | S100: 0 | T100: 2 | U100: 0 | V100: 2 | W100: 0 | X100: 2 | Y100: 0 | Z100: 2 | AA100: 0 | AB100: 1 | AC100: 0 | AD100: 0 | AE100: 0 | AF100: 1 | AG100: 0 | AH100: 0 | AI100: 0 | AJ100: 0 | AK100: 0 | AL100: 0 | AM100: 0
C101: 끼임(기계설비에 끼이거나 감김) | D101: 25 | E101: 0 | F101: 13 | G101: 0 | H101: 6 | I101: 0 | J101: 6 | K101: 0 | L101: 0 | M101: 0 | N101: 0 | O101: 0 | P101: 16 | Q101: 0 | R101: 8 | S101: 0 | T101: 4 | U101: 0 | V101: 3 | W101: 0 | X101: 1 | Y101: 0 | Z101: 0 | AA101: 0 | AB101: 16 | AC101: 0 | AD101: 11 | AE101: 0 | AF101: 3 | AG101: 0 | AH101: 2 | AI101: 0 | AJ101: 0 | AK101: 0 | AL101: 0 | AM101: 0
C102: 절단·베임·찔림 | D102: 81 | E102: 0 | F102: 37 | G102: 0 | H102: 17 | I102: 0 | J102: 10 | K102: 0 | L102: 9 | M102: 0 | N102: 8 | O102: 0 | P102: 78 | Q102: 0 | R102: 37 | S102: 0 | T102: 17 | U102: 0 | V102: 10 | W102: 0 | X102: 9 | Y102: 0 | Z102: 5 | AA102: 0 | AB102: 64 | AC102: 0 | AD102: 32 | AE102: 0 | AF102: 10 | AG102: 0 | AH102: 14 | AI102: 0 | AJ102: 6 | AK102: 0 | AL102: 2 | AM102: 0
C103: 불균형 및 무리한 동작 | D103: 10 | E103: 0 | F103: 6 | G103: 0 | H103: 2 | I103: 0 | J103: 0 | K103: 0 | L103: 2 | M103: 0 | N103: 0 | O103: 0 | P103: 8 | Q103: 0 | R103: 1 | S103: 0 | T103: 4 | U103: 0 | V103: 3 | W103: 0 | X103: 0 | Y103: 0 | Z103: 0 | AA103: 0 | AB103: 8 | AC103: 0 | AD103: 3 | AE103: 0 | AF103: 1 | AG103: 0 | AH103: 2 | AI103: 0 | AJ103: 0 | AK103: 0 | AL103: 2 | AM103: 0
C104: 이상온도 접촉 | D104: 75 | E104: 0 | F104: 32 | G104: 0 | H104: 17 | I104: 0 | J104: 14 | K104: 0 | L104: 7 | M104: 0 | N104: 5 | O104: 0 | P104: 85 | Q104: 0 | R104: 39 | S104: 0 | T104: 24 | U104: 0 | V104: 15 | W104: 0 | X104: 3 | Y104: 0 | Z104: 4 | AA104: 0 | AB104: 65 | AC104: 0 | AD104: 33 | AE104: 0 | AF104: 13 | AG104: 0 | AH104: 12 | AI104: 0 | AJ104: 4 | AK104: 0 | AL104: 3 | AM104: 0
C105: 화학물질누출·접촉 | D105: 0 | E105: 0 | F105: 0 | G105: 0 | H105: 0 | I105: 0 | J105: 0 | K105: 0 | L105: 0 | M105: 0 | N105: 0 | O105: 0 | P105: 1 | Q105: 0 | R105: 0 | S105: 0 | T105: 1 | U105: 0 | V105: 0 | W105: 0 | X105: 0 | Y105: 0 | Z105: 0 | AA105: 0 | AB105: 0 | AC105: 0 | AD105: 0 | AE105: 0 | AF105: 0 | AG105: 0 | AH105: 0 | AI105: 0 | AJ105: 0 | AK105: 0 | AL105: 0 | AM105: 0
C106: 사업장외 교통사고 | D106: 44 | E106: 1 | F106: 24 | G106: 0 | H106: 4 | I106: 1 | J106: 7 | K106: 0 | L106: 2 | M106: 0 | N106: 7 | O106: 0 | P106: 30 | Q106: 0 | R106: 14 | S106: 0 | T106: 5 | U106: 0 | V106: 5 | W106: 0 | X106: 3 | Y106: 0 | Z106: 3 | AA106: 0 | AB106: 21 | AC106: 0 | AD106: 15 | AE106: 0 | AF106: 1 | AG106: 0 | AH106: 2 | AI106: 0 | AJ106: 1 | AK106: 0 | AL106: 2 | AM106: 0
C107: 체육행사 등의 사고 | D107: 2 | E107: 0 | F107: 1 | G107: 0 | H107: 0 | I107: 0 | J107: 1 | K107: 0 | L107: 0 | M107: 0 | N107: 0 | O107: 0 | P107: 0 | Q107: 0 | R107: 0 | S107: 0 | T107: 0 | U107: 0 | V107: 0 | W107: 0 | X107: 0 | Y107: 0 | Z107: 0 | AA107: 0 | AB107: 1 | AC107: 0 | AD107: 0 | AE107: 0 | AF107: 0 | AG107: 0 | AH107: 0 | AI107: 0 | AJ107: 0 | AK107: 0 | AL107: 1 | AM107: 0
C108: 폭력행위 | D108: 3 | E108: 0 | F108: 3 | G108: 0 | H108: 0 | I108: 0 | J108: 0 | K108: 0 | L108: 0 | M108: 0 | N108: 0 | O108: 0 | P108: 1 | Q108: 0 | R108: 0 | S108: 0 | T108: 0 | U108: 0 | V108: 1 | W108: 0 | X108: 0 | Y108: 0 | Z108: 0 | AA108: 0 | AB108: 1 | AC108: 0 | AD108: 0 | AE108: 0 | AF108: 0 | AG108: 0 | AH108: 0 | AI108: 0 | AJ108: 0 | AK108: 0 | AL108: 1 | AM108: 0
C109: 기타 | D109: 1 | E109: 0 | F109: 0 | G109: 0 | H109: 0 | I109: 0 | J109: 1 | K109: 0 | L109: 0 | M109: 0 | N109: 0 | O109: 0 | P109: 1 | Q109: 0 | R109: 1 | S109: 0 | T109: 0 | U109: 0 | V109: 0 | W109: 0 | X109: 0 | Y109: 0 | Z109: 0 | AA109: 0 | AB109: 0 | AC109: 0 | AD109: 0 | AE109: 0 | AF109: 0 | AG109: 0 | AH109: 0 | AI109: 0 | AJ109: 0 | AK109: 0 | AL109: 0 | AM109: 0
C110: 직업병기타 | D110: 0 | E110: 0 | F110: 0 | G110: 0 | H110: 0 | I110: 0 | J110: 0 | K110: 0 | L110: 0 | M110: 0 | N110: 0 | O110: 0 | P110: 0 | Q110: 0 | R110: 0 | S110: 0 | T110: 0 | U110: 0 | V110: 0 | W110: 0 | X110: 0 | Y110: 0 | Z110: 0 | AA110: 0 | AB110: 0 | AC110: 0 | AD110: 0 | AE110: 0 | AF110: 0 | AG110: 0 | AH110: 0 | AI110: 0 | AJ110: 0 | AK110: 0 | AL110: 0 | AM110: 0
C111: 뇌심혈관질환 | D111: 0 | E111: 0 | F111: 0 | G111: 0 | H111: 0 | I111: 0 | J111: 0 | K111: 0 | L111: 0 | M111: 0 | N111: 0 | O111: 0 | P111: 0 | Q111: 0 | R111: 0 | S111: 0 | T111: 0 | U111: 0 | V111: 0 | W111: 0 | X111: 0 | Y111: 0 | Z111: 0 | AA111: 0 | AB111: 0 | AC111: 0 | AD111: 0 | AE111: 0 | AF111: 0 | AG111: 0 | AH111: 0 | AI111: 0 | AJ111: 0 | AK111: 0 | AL111: 0 | AM111: 0
C112: 근골격계질환 | D112: 0 | E112: 0 | F112: 0 | G112: 0 | H112: 0 | I112: 0 | J112: 0 | K112: 0 | L112: 0 | M112: 0 | N112: 0 | O112: 0 | P112: 0 | Q112: 0 | R112: 0 | S112: 0 | T112: 0 | U112: 0 | V112: 0 | W112: 0 | X112: 0 | Y112: 0 | Z112: 0 | AA112: 0 | AB112: 0 | AC112: 0 | AD112: 0 | AE112: 0 | AF112: 0 | AG112: 0 | AH112: 0 | AI112: 0 | AJ112: 0 | AK112: 0 | AL112: 0 | AM112: 0
C113: 작업관련성질환 기타 | D113: 0 | E113: 0 | F113: 0 | G113: 0 | H113: 0 | I113: 0 | J113: 0 | K113: 0 | L113: 0 | M113: 0 | N113: 0 | O113: 0 | P113: 0 | Q113: 0 | R113: 0 | S113: 0 | T113: 0 | U113: 0 | V113: 0 | W113: 0 | X113: 0 | Y113: 0 | Z113: 0 | AA113: 0 | AB113: 0 | AC113: 0 | AD113: 0 | AE113: 0 | AF113: 0 | AG113: 0 | AH113: 0 | AI113: 0 | AJ113: 0 | AK113: 0 | AL113: 0 | AM113: 0
B114: 서울북부 | C114: 합계 | D114: 309 | E114: 1 | F114: 178 | G114: 1 | H114: 55 | I114: 0 | J114: 35 | K114: 0 | L114: 26 | M114: 0 | N114: 15 | O114: 0 | P114: 258 | Q114: 0 | R114: 131 | S114: 0 | T114: 56 | U114: 0 | V114: 42 | W114: 0 | X114: 18 | Y114: 0 | Z114: 11 | AA114: 0 | AB114: 187 | AC114: 0 | AD114: 108 | AE114: 0 | AF114: 27 | AG114: 0 | AH114: 29 | AI114: 0 | AJ114: 12 | AK114: 0 | AL114: 11 | AM114: 0
C115: 떨어짐(높이가 있는 곳에서 사람이 떨어짐) | D115: 4 | E115: 0 | F115: 3 | G115: 0 | H115: 0 | I115: 0 | J115: 0 | K115: 0 | L115: 0 | M115: 0 | N115: 1 | O115: 0 | P115: 8 | Q115: 0 | R115: 2 | S115: 0 | T115: 2 | U115: 0 | V115: 4 | W115: 0 | X115: 0 | Y115: 0 | Z115: 0 | AA115: 0 | AB115: 5 | AC115: 0 | AD115: 4 | AE115: 0 | AF115: 0 | AG115: 0 | AH115: 1 | AI115: 0 | AJ115: 0 | AK115: 0 | AL115: 0 | AM115: 0
C116: 넘어짐(사람이 미끄러지거나 넘어짐) | D116: 81 | E116: 0 | F116: 51 | G116: 0 | H116: 11 | I116: 0 | J116: 8 | K116: 0 | L116: 10 | M116: 0 | N116: 1 | O116: 0 | P116: 75 | Q116: 0 | R116: 33 | S116: 0 | T116: 19 | U116: 0 | V116: 13 | W116: 0 | X116: 6 | Y116: 0 | Z116: 4 | AA116: 0 | AB116: 52 | AC116: 0 | AD116: 30 | AE116: 0 | AF116: 6 | AG116: 0 | AH116: 11 | AI116: 0 | AJ116: 2 | AK116: 0 | AL116: 3 | AM116: 0
C117: 깔림·뒤집힘(물체의 쓰러짐이나 뒤집힘) | D117: 2 | E117: 0 | F117: 1 | G117: 0 | H117: 0 | I117: 0 | J117: 0 | K117: 0 | L117: 0 | M117: 0 | N117: 1 | O117: 0 | P117: 0 | Q117: 0 | R117: 0 | S117: 0 | T117: 0 | U117: 0 | V117: 0 | W117: 0 | X117: 0 | Y117: 0 | Z117: 0 | AA117: 0 | AB117: 0 | AC117: 0 | AD117: 0 | AE117: 0 | AF117: 0 | AG117: 0 | AH117: 0 | AI117: 0 | AJ117: 0 | AK117: 0 | AL117: 0 | AM117: 0
C118: 부딪힘(물체에 부딪힘) | D118: 6 | E118: 0 | F118: 4 | G118: 0 | H118: 2 | I118: 0 | J118: 0 | K118: 0 | L118: 0 | M118: 0 | N118: 0 | O118: 0 | P118: 10 | Q118: 0 | R118: 7 | S118: 0 | T118: 0 | U118: 0 | V118: 2 | W118: 0 | X118: 1 | Y118: 0 | Z118: 0 | AA118: 0 | AB118: 7 | AC118: 0 | AD118: 2 | AE118: 0 | AF118: 0 | AG118: 0 | AH118: 2 | AI118: 0 | AJ118: 2 | AK118: 0 | AL118: 1 | AM118: 0
C119: 물체에 맞음(날아오거나 떨어진 물체에 맞음) | D119: 10 | E119: 0 | F119: 4 | G119: 0 | H119: 4 | I119: 0 | J119: 1 | K119: 0 | L119: 1 | M119: 0 | N119: 0 | O119: 0 | P119: 6 | Q119: 0 | R119: 4 | S119: 0 | T119: 1 | U119: 0 | V119: 1 | W119: 0 | X119: 0 | Y119: 0 | Z119: 0 | AA119: 0 | AB119: 10 | AC119: 0 | AD119: 6 | AE119: 0 | AF119: 1 | AG119: 0 | AH119: 1 | AI119: 0 | AJ119: 0 | AK119: 0 | AL119: 2 | AM119: 0
C120: 끼임(기계설비에 끼이거나 감김) | D120: 18 | E120: 0 | F120: 11 | G120: 0 | H120: 3 | I120: 0 | J120: 1 | K120: 0 | L120: 1 | M120: 0 | N120: 2 | O120: 0 | P120: 16 | Q120: 0 | R120: 10 | S120: 0 | T120: 2 | U120: 0 | V120: 2 | W120: 0 | X120: 1 | Y120: 0 | Z120: 1 | AA120: 0 | AB120: 10 | AC120: 0 | AD120: 8 | AE120: 0 | AF120: 0 | AG120: 0 | AH120: 2 | AI120: 0 | AJ120: 0 | AK120: 0 | AL120: 0 | AM120: 0
C121: 절단·베임·찔림 | D121: 71 | E121: 0 | F121: 36 | G121: 0 | H121: 18 | I121: 0 | J121: 7 | K121: 0 | L121: 8 | M121: 0 | N121: 2 | O121: 0 | P121: 49 | Q121: 0 | R121: 20 | S121: 0 | T121: 16 | U121: 0 | V121: 9 | W121: 0 | X121: 4 | Y121: 0 | Z121: 0 | AA121: 0 | AB121: 42 | AC121: 0 | AD121: 23 | AE121: 0 | AF121: 11 | AG121: 0 | AH121: 5 | AI121: 0 | AJ121: 2 | AK121: 0 | AL121: 1 | AM121: 0
C122: 폭발·파열 | D122: 0 | E122: 0 | F122: 0 | G122: 0 | H122: 0 | I122: 0 | J122: 0 | K122: 0 | L122: 0 | M122: 0 | N122: 0 | O122: 0 | P122: 0 | Q122: 0 | R122: 0 | S122: 0 | T122: 0 | U122: 0 | V122: 0 | W122: 0 | X122: 0 | Y122: 0 | Z122: 0 | AA122: 0 | AB122: 1 | AC122: 0 | AD122: 1 | AE122: 0 | AF122: 0 | AG122: 0 | AH122: 0 | AI122: 0 | AJ122: 0 | AK122: 0 | AL122: 0 | AM122: 0
C123: 불균형 및 무리한 동작 | D123: 12 | E123: 0 | F123: 7 | G123: 0 | H123: 2 | I123: 0 | J123: 1 | K123: 0 | L123: 0 | M123: 0 | N123: 2 | O123: 0 | P123: 8 | Q123: 0 | R123: 4 | S123: 0 | T123: 0 | U123: 0 | V123: 3 | W123: 0 | X123: 0 | Y123: 0 | Z123: 1 | AA123: 0 | AB123: 8 | AC123: 0 | AD123: 5 | AE123: 0 | AF123: 1 | AG123: 0 | AH123: 1 | AI123: 0 | AJ123: 0 | AK123: 0 | AL123: 1 | AM123: 0
C124: 이상온도 접촉 | D124: 73 | E124: 0 | F124: 34 | G124: 0 | H124: 11 | I124: 0 | J124: 17 | K124: 0 | L124: 5 | M124: 0 | N124: 6 | O124: 0 | P124: 53 | Q124: 0 | R124: 27 | S124: 0 | T124: 10 | U124: 0 | V124: 6 | W124: 0 | X124: 6 | Y124: 0 | Z124: 4 | AA124: 0 | AB124: 29 | AC124: 0 | AD124: 13 | AE124: 0 | AF124: 4 | AG124: 0 | AH124: 5 | AI124: 0 | AJ124: 4 | AK124: 0 | AL124: 3 | AM124: 0
C125: 사업장외 교통사고 | D125: 29 | E125: 1 | F125: 26 | G125: 1 | H125: 3 | I125: 0 | J125: 0 | K125: 0 | L125: 0 | M125: 0 | N125: 0 | O125: 0 | P125: 31 | Q125: 0 | R125: 23 | S125: 0 | T125: 6 | U125: 0 | V125: 2 | W125: 0 | X125: 0 | Y125: 0 | Z125: 0 | AA125: 0 | AB125: 22 | AC125: 0 | AD125: 16 | AE125: 0 | AF125: 3 | AG125: 0 | AH125: 1 | AI125: 0 | AJ125: 2 | AK125: 0 | AL125: 0 | AM125: 0
C126: 체육행사 등의 사고 | D126: 2 | E126: 0 | F126: 1 | G126: 0 | H126: 0 | I126: 0 | J126: 0 | K126: 0 | L126: 1 | M126: 0 | N126: 0 | O126: 0 | P126: 1 | Q126: 0 | R126: 0 | S126: 0 | T126: 0 | U126: 0 | V126: 0 | W126: 0 | X126: 0 | Y126: 0 | Z126: 1 | AA126: 0 | AB126: 0 | AC126: 0 | AD126: 0 | AE126: 0 | AF126: 0 | AG126: 0 | AH126: 0 | AI126: 0 | AJ126: 0 | AK126: 0 | AL126: 0 | AM126: 0
C127: 폭력행위 | D127: 0 | E127: 0 | F127: 0 | G127: 0 | H127: 0 | I127: 0 | J127: 0 | K127: 0 | L127: 0 | M127: 0 | N127: 0 | O127: 0 | P127: 1 | Q127: 0 | R127: 1 | S127: 0 | T127: 0 | U127: 0 | V127: 0 | W127: 0 | X127: 0 | Y127: 0 | Z127: 0 | AA127: 0 | AB127: 1 | AC127: 0 | AD127: 0 | AE127: 0 | AF127: 1 | AG127: 0 | AH127: 0 | AI127: 0 | AJ127: 0 | AK127: 0 | AL127: 0 | AM127: 0
C128: 기타 | D128: 1 | E128: 0 | F128: 0 | G128: 0 | H128: 1 | I128: 0 | J128: 0 | K128: 0 | L128: 0 | M128: 0 | N128: 0 | O128: 0 | P128: 0 | Q128: 0 | R128: 0 | S128: 0 | T128: 0 | U128: 0 | V128: 0 | W128: 0 | X128: 0 | Y128: 0 | Z128: 0 | AA128: 0 | AB128: 0 | AC128: 0 | AD128: 0 | AE128: 0 | AF128: 0 | AG128: 0 | AH128: 0 | AI128: 0 | AJ128: 0 | AK128: 0 | AL128: 0 | AM128: 0
C129: 생물학적인자 | D129: 0 | E129: 0 | F129: 0 | G129: 0 | H129: 0 | I129: 0 | J129: 0 | K129: 0 | L129: 0 | M129: 0 | N129: 0 | O129: 0 | P129: 0 | Q129: 0 | R129: 0 | S129: 0 | T129: 0 | U129: 0 | V129: 0 | W129: 0 | X129: 0 | Y129: 0 | Z129: 0 | AA129: 0 | AB129: 0 | AC129: 0 | AD129: 0 | AE129: 0 | AF129: 0 | AG129: 0 | AH129: 0 | AI129: 0 | AJ129: 0 | AK129: 0 | AL129: 0 | AM129: 0
C130: 직업병기타 | D130: 0 | E130: 0 | F130: 0 | G130: 0 | H130: 0 | I130: 0 | J130: 0 | K130: 0 | L130: 0 | M130: 0 | N130: 0 | O130: 0 | P130: 0 | Q130: 0 | R130: 0 | S130: 0 | T130: 0 | U130: 0 | V130: 0 | W130: 0 | X130: 0 | Y130: 0 | Z130: 0 | AA130: 0 | AB130: 0 | AC130: 0 | AD130: 0 | AE130: 0 | AF130: 0 | AG130: 0 | AH130: 0 | AI130: 0 | AJ130: 0 | AK130: 0 | AL130: 0 | AM130: 0
C131: 뇌심혈관질환 | D131: 0 | E131: 0 | F131: 0 | G131: 0 | H131: 0 | I131: 0 | J131: 0 | K131: 0 | L131: 0 | M131: 0 | N131: 0 | O131: 0 | P131: 0 | Q131: 0 | R131: 0 | S131: 0 | T131: 0 | U131: 0 | V131: 0 | W131: 0 | X131: 0 | Y131: 0 | Z131: 0 | AA131: 0 | AB131: 0 | AC131: 0 | AD131: 0 | AE131: 0 | AF131: 0 | AG131: 0 | AH131: 0 | AI131: 0 | AJ131: 0 | AK131: 0 | AL131: 0 | AM131: 0
C132: 근골격계질환 | D132: 0 | E132: 0 | F132: 0 | G132: 0 | H132: 0 | I132: 0 | J132: 0 | K132: 0 | L132: 0 | M132: 0 | N132: 0 | O132: 0 | P132: 0 | Q132: 0 | R132: 0 | S132: 0 | T132: 0 | U132: 0 | V132: 0 | W132: 0 | X132: 0 | Y132: 0 | Z132: 0 | AA132: 0 | AB132: 0 | AC132: 0 | AD132: 0 | AE132: 0 | AF132: 0 | AG132: 0 | AH132: 0 | AI132: 0 | AJ132: 0 | AK132: 0 | AL132: 0 | AM132: 0
B133: 서울관악 | C133: 합계 | D133: 305 | E133: 0 | F133: 160 | G133: 0 | H133: 66 | I133: 0 | J133: 39 | K133: 0 | L133: 25 | M133: 0 | N133: 15 | O133: 0 | P133: 304 | Q133: 0 | R133: 165 | S133: 0 | T133: 67 | U133: 0 | V133: 47 | W133: 0 | X133: 9 | Y133: 0 | Z133: 16 | AA133: 0 | AB133: 194 | AC133: 1 | AD133: 109 | AE133: 0 | AF133: 49 | AG133: 0 | AH133: 20 | AI133: 0 | AJ133: 10 | AK133: 1 | AL133: 6 | AM133: 0
C134: 떨어짐(높이가 있는 곳에서 사람이 떨어짐) | D134: =SUM(F134,H134,J134,L134,N134) -> 4 | E134: =SUM(G134,I134,K134,M134,O134) -> 0 | F134: 3 | G134: 0 | H134: 0 | I134: 0 | J134: 0 | K134: 0 | L134: 1 | M134: 0 | N134: 0 | O134: 0 | P134: =SUM(R134,T134,V134,X134,Z134) -> 5 | Q134: =SUM(S134,U134,W134,Y134,AA134) -> 0 | R134: 3 | S134: 0 | T134: 1 | U134: 0 | V134: 1 | W134: 0 | X134: 0 | Y134: 0 | Z134: 0 | AA134: 0 | AB134: =SUM(AD134,AF134,AH134,AJ134,AL134) -> 0 | AC134: =SUM(AE134,AG134,AI134,AK134,AM134) -> 0 | AD134: 0 | AE134: 0 | AF134: 0 | AG134: 0 | AH134: 0 | AI134: 0 | AJ134: 0 | AK134: 0 | AL134: 0 | AM134: 0
C135: 넘어짐(사람이 미끄러지거나 넘어짐) | D135: 87 | E135: 0 | F135: 46 | G135: 0 | H135: 15 | I135: 0 | J135: 12 | K135: 0 | L135: 10 | M135: 0 | N135: 4 | O135: 0 | P135: 71 | Q135: 0 | R135: 33 | S135: 0 | T135: 20 | U135: 0 | V135: 13 | W135: 0 | X135: 2 | Y135: 0 | Z135: 3 | AA135: 0 | AB135: 51 | AC135: 0 | AD135: 31 | AE135: 0 | AF135: 13 | AG135: 0 | AH135: 4 | AI135: 0 | AJ135: 1 | AK135: 0 | AL135: 2 | AM135: 0
C136: 깔림·뒤집힘(물체의 쓰러짐이나 뒤집힘) | D136: 1 | E136: 0 | F136: 0 | G136: 0 | H136: 1 | I136: 0 | J136: 0 | K136: 0 | L136: 0 | M136: 0 | N136: 0 | O136: 0 | P136: 0 | Q136: 0 | R136: 0 | S136: 0 | T136: 0 | U136: 0 | V136: 0 | W136: 0 | X136: 0 | Y136: 0 | Z136: 0 | AA136: 0 | AB136: 2 | AC136: 0 | AD136: 1 | AE136: 0 | AF136: 1 | AG136: 0 | AH136: 0 | AI136: 0 | AJ136: 0 | AK136: 0 | AL136: 0 | AM136: 0
C137: 부딪힘(물체에 부딪힘) | D137: 6 | E137: 0 | F137: 3 | G137: 0 | H137: 1 | I137: 0 | J137: 2 | K137: 0 | L137: 0 | M137: 0 | N137: 0 | O137: 0 | P137: 13 | Q137: 0 | R137: 5 | S137: 0 | T137: 2 | U137: 0 | V137: 2 | W137: 0 | X137: 2 | Y137: 0 | Z137: 2 | AA137: 0 | AB137: 5 | AC137: 0 | AD137: 2 | AE137: 0 | AF137: 2 | AG137: 0 | AH137: 1 | AI137: 0 | AJ137: 0 | AK137: 0 | AL137: 0 | AM137: 0
C138: 물체에 맞음(날아오거나 떨어진 물체에 맞음) | D138: 4 | E138: 0 | F138: 2 | G138: 0 | H138: 1 | I138: 0 | J138: 1 | K138: 0 | L138: 0 | M138: 0 | N138: 0 | O138: 0 | P138: 5 | Q138: 0 | R138: 4 | S138: 0 | T138: 1 | U138: 0 | V138: 0 | W138: 0 | X138: 0 | Y138: 0 | Z138: 0 | AA138: 0 | AB138: 3 | AC138: 0 | AD138: 0 | AE138: 0 | AF138: 2 | AG138: 0 | AH138: 0 | AI138: 0 | AJ138: 1 | AK138: 0 | AL138: 0 | AM138: 0
C139: 끼임(기계설비에 끼이거나 감김) | D139: 24 | E139: 0 | F139: 15 | G139: 0 | H139: 3 | I139: 0 | J139: 4 | K139: 0 | L139: 1 | M139: 0 | N139: 1 | O139: 0 | P139: 20 | Q139: 0 | R139: 12 | S139: 0 | T139: 5 | U139: 0 | V139: 2 | W139: 0 | X139: 0 | Y139: 0 | Z139: 1 | AA139: 0 | AB139: 9 | AC139: 0 | AD139: 6 | AE139: 0 | AF139: 3 | AG139: 0 | AH139: 0 | AI139: 0 | AJ139: 0 | AK139: 0 | AL139: 0 | AM139: 0
C140: 절단·베임·찔림 | D140: 56 | E140: 0 | F140: 29 | G140: 0 | H140: 12 | I140: 0 | J140: 4 | K140: 0 | L140: 3 | M140: 0 | N140: 8 | O140: 0 | P140: 71 | Q140: 0 | R140: 36 | S140: 0 | T140: 12 | U140: 0 | V140: 16 | W140: 0 | X140: 4 | Y140: 0 | Z140: 3 | AA140: 0 | AB140: 43 | AC140: 0 | AD140: 20 | AE140: 0 | AF140: 10 | AG140: 0 | AH140: 8 | AI140: 0 | AJ140: 4 | AK140: 0 | AL140: 1 | AM140: 0
C141: 불균형 및 무리한 동작 | D141: 11 | E141: 0 | F141: 9 | G141: 0 | H141: 1 | I141: 0 | J141: 1 | K141: 0 | L141: 0 | M141: 0 | N141: 0 | O141: 0 | P141: 4 | Q141: 0 | R141: 1 | S141: 0 | T141: 2 | U141: 0 | V141: 1 | W141: 0 | X141: 0 | Y141: 0 | Z141: 0 | AA141: 0 | AB141: 11 | AC141: 0 | AD141: 8 | AE141: 0 | AF141: 1 | AG141: 0 | AH141: 1 | AI141: 0 | AJ141: 1 | AK141: 0 | AL141: 0 | AM141: 0
C142: 이상온도 접촉 | D142: 61 | E142: 0 | F142: 23 | G142: 0 | H142: 19 | I142: 0 | J142: 12 | K142: 0 | L142: 7 | M142: 0 | N142: 0 | O142: 0 | P142: 62 | Q142: 0 | R142: 38 | S142: 0 | T142: 15 | U142: 0 | V142: 6 | W142: 0 | X142: 1 | Y142: 0 | Z142: 2 | AA142: 0 | AB142: 35 | AC142: 0 | AD142: 19 | AE142: 0 | AF142: 12 | AG142: 0 | AH142: 2 | AI142: 0 | AJ142: 1 | AK142: 0 | AL142: 1 | AM142: 0
C143: 화학물질누출·접촉 | D143: 2 | E143: 0 | F143: 1 | G143: 0 | H143: 0 | I143: 0 | J143: 1 | K143: 0 | L143: 0 | M143: 0 | N143: 0 | O143: 0 | P143: 0 | Q143: 0 | R143: 0 | S143: 0 | T143: 0 | U143: 0 | V143: 0 | W143: 0 | X143: 0 | Y143: 0 | Z143: 0 | AA143: 0 | AB143: 2 | AC143: 0 | AD143: 0 | AE143: 0 | AF143: 1 | AG143: 0 | AH143: 1 | AI143: 0 | AJ143: 0 | AK143: 0 | AL143: 0 | AM143: 0
C144: 사업장외 교통사고 | D144: 48 | E144: 0 | F144: 29 | G144: 0 | H144: 13 | I144: 0 | J144: 1 | K144: 0 | L144: 3 | M144: 0 | N144: 2 | O144: 0 | P144: 52 | Q144: 0 | R144: 33 | S144: 0 | T144: 9 | U144: 0 | V144: 5 | W144: 0 | X144: 0 | Y144: 0 | Z144: 5 | AA144: 0 | AB144: 31 | AC144: 1 | AD144: 20 | AE144: 0 | AF144: 4 | AG144: 0 | AH144: 3 | AI144: 0 | AJ144: 2 | AK144: 1 | AL144: 2 | AM144: 0
C145: 체육행사 등의 사고 | D145: 0 | E145: 0 | F145: 0 | G145: 0 | H145: 0 | I145: 0 | J145: 0 | K145: 0 | L145: 0 | M145: 0 | N145: 0 | O145: 0 | P145: 1 | Q145: 0 | R145: 0 | S145: 0 | T145: 0 | U145: 0 | V145: 1 | W145: 0 | X145: 0 | Y145: 0 | Z145: 0 | AA145: 0 | AB145: 0 | AC145: 0 | AD145: 0 | AE145: 0 | AF145: 0 | AG145: 0 | AH145: 0 | AI145: 0 | AJ145: 0 | AK145: 0 | AL145: 0 | AM145: 0
C146: 폭력행위 | D146: 1 | E146: 0 | F146: 0 | G146: 0 | H146: 0 | I146: 0 | J146: 1 | K146: 0 | L146: 0 | M146: 0 | N146: 0 | O146: 0 | P146: 0 | Q146: 0 | R146: 0 | S146: 0 | T146: 0 | U146: 0 | V146: 0 | W146: 0 | X146: 0 | Y146: 0 | Z146: 0 | AA146: 0 | AB146: 1 | AC146: 0 | AD146: 1 | AE146: 0 | AF146: 0 | AG146: 0 | AH146: 0 | AI146: 0 | AJ146: 0 | AK146: 0 | AL146: 0 | AM146: 0
C147: 기타 | D147: 0 | E147: 0 | F147: 0 | G147: 0 | H147: 0 | I147: 0 | J147: 0 | K147: 0 | L147: 0 | M147: 0 | N147: 0 | O147: 0 | P147: 0 | Q147: 0 | R147: 0 | S147: 0 | T147: 0 | U147: 0 | V147: 0 | W147: 0 | X147: 0 | Y147: 0 | Z147: 0 | AA147: 0 | AB147: 1 | AC147: 0 | AD147: 1 | AE147: 0 | AF147: 0 | AG147: 0 | AH147: 0 | AI147: 0 | AJ147: 0 | AK147: 0 | AL147: 0 | AM147: 0
C148: 생물학적인자 | D148: 0 | E148: 0 | F148: 0 | G148: 0 | H148: 0 | I148: 0 | J148: 0 | K148: 0 | L148: 0 | M148: 0 | N148: 0 | O148: 0 | P148: 0 | Q148: 0 | R148: 0 | S148: 0 | T148: 0 | U148: 0 | V148: 0 | W148: 0 | X148: 0 | Y148: 0 | Z148: 0 | AA148: 0 | AB148: 0 | AC148: 0 | AD148: 0 | AE148: 0 | AF148: 0 | AG148: 0 | AH148: 0 | AI148: 0 | AJ148: 0 | AK148: 0 | AL148: 0 | AM148: 0
C149: 뇌심혈관질환 | D149: 0 | E149: 0 | F149: 0 | G149: 0 | H149: 0 | I149: 0 | J149: 0 | K149: 0 | L149: 0 | M149: 0 | N149: 0 | O149: 0 | P149: 0 | Q149: 0 | R149: 0 | S149: 0 | T149: 0 | U149: 0 | V149: 0 | W149: 0 | X149: 0 | Y149: 0 | Z149: 0 | AA149: 0 | AB149: 0 | AC149: 0 | AD149: 0 | AE149: 0 | AF149: 0 | AG149: 0 | AH149: 0 | AI149: 0 | AJ149: 0 | AK149: 0 | AL149: 0 | AM149: 0
C150: 근골격계질환 | D150: 0 | E150: 0 | F150: 0 | G150: 0 | H150: 0 | I150: 0 | J150: 0 | K150: 0 | L150: 0 | M150: 0 | N150: 0 | O150: 0 | P150: 0 | Q150: 0 | R150: 0 | S150: 0 | T150: 0 | U150: 0 | V150: 0 | W150: 0 | X150: 0 | Y150: 0 | Z150: 0 | AA150: 0 | AB150: 0 | AC150: 0 | AD150: 0 | AE150: 0 | AF150: 0 | AG150: 0 | AH150: 0 | AI150: 0 | AJ150: 0 | AK150: 0 | AL150: 0 | AM150: 0
B151: 강 원 | C151: 합계 | D151: 84 | E151: 0 | F151: 41 | G151: 0 | H151: 23 | I151: 0 | J151: 11 | K151: 0 | L151: 5 | M151: 0 | N151: 4 | O151: 0 | P151: 70 | Q151: 1 | R151: 33 | S151: 0 | T151: 20 | U151: 1 | V151: 12 | W151: 0 | X151: 1 | Y151: 0 | Z151: 4 | AA151: 0 | AB151: 56 | AC151: 0 | AD151: 32 | AE151: 0 | AF151: 7 | AG151: 0 | AH151: 11 | AI151: 0 | AJ151: 0 | AK151: 0 | AL151: 6 | AM151: 0
C152: 떨어짐(높이가 있는 곳에서 사람이 떨어짐) | D152: 6 | E152: 0 | F152: 3 | G152: 0 | H152: 2 | I152: 0 | J152: 1 | K152: 0 | L152: 0 | M152: 0 | N152: 0 | O152: 0 | P152: 2 | Q152: 0 | R152: 0 | S152: 0 | T152: 0 | U152: 0 | V152: 1 | W152: 0 | X152: 0 | Y152: 0 | Z152: 1 | AA152: 0 | AB152: 2 | AC152: 0 | AD152: 1 | AE152: 0 | AF152: 0 | AG152: 0 | AH152: 0 | AI152: 0 | AJ152: 0 | AK152: 0 | AL152: 1 | AM152: 0
C153: 넘어짐(사람이 미끄러지거나 넘어짐) | D153: 30 | E153: 0 | F153: 16 | G153: 0 | H153: 8 | I153: 0 | J153: 5 | K153: 0 | L153: 0 | M153: 0 | N153: 1 | O153: 0 | P153: 27 | Q153: 0 | R153: 13 | S153: 0 | T153: 8 | U153: 0 | V153: 5 | W153: 0 | X153: 0 | Y153: 0 | Z153: 1 | AA153: 0 | AB153: 17 | AC153: 0 | AD153: 9 | AE153: 0 | AF153: 3 | AG153: 0 | AH153: 4 | AI153: 0 | AJ153: 0 | AK153: 0 | AL153: 1 | AM153: 0
C154: 깔림·뒤집힘(물체의 쓰러짐이나 뒤집힘) | D154: 0 | E154: 0 | F154: 0 | G154: 0 | H154: 0 | I154: 0 | J154: 0 | K154: 0 | L154: 0 | M154: 0 | N154: 0 | O154: 0 | P154: 0 | Q154: 0 | R154: 0 | S154: 0 | T154: 0 | U154: 0 | V154: 0 | W154: 0 | X154: 0 | Y154: 0 | Z154: 0 | AA154: 0 | AB154: 2 | AC154: 0 | AD154: 1 | AE154: 0 | AF154: 0 | AG154: 0 | AH154: 0 | AI154: 0 | AJ154: 0 | AK154: 0 | AL154: 1 | AM154: 0
C155: 부딪힘(물체에 부딪힘) | D155: 5 | E155: 0 | F155: 1 | G155: 0 | H155: 4 | I155: 0 | J155: 0 | K155: 0 | L155: 0 | M155: 0 | N155: 0 | O155: 0 | P155: 1 | Q155: 0 | R155: 1 | S155: 0 | T155: 0 | U155: 0 | V155: 0 | W155: 0 | X155: 0 | Y155: 0 | Z155: 0 | AA155: 0 | AB155: 2 | AC155: 0 | AD155: 0 | AE155: 0 | AF155: 0 | AG155: 0 | AH155: 2 | AI155: 0 | AJ155: 0 | AK155: 0 | AL155: 0 | AM155: 0
C156: 물체에 맞음(날아오거나 떨어진 물체에 맞음) | D156: 1 | E156: 0 | F156: 1 | G156: 0 | H156: 0 | I156: 0 | J156: 0 | K156: 0 | L156: 0 | M156: 0 | N156: 0 | O156: 0 | P156: 0 | Q156: 0 | R156: 0 | S156: 0 | T156: 0 | U156: 0 | V156: 0 | W156: 0 | X156: 0 | Y156: 0 | Z156: 0 | AA156: 0 | AB156: 2 | AC156: 0 | AD156: 2 | AE156: 0 | AF156: 0 | AG156: 0 | AH156: 0 | AI156: 0 | AJ156: 0 | AK156: 0 | AL156: 0 | AM156: 0
C157: 끼임(기계설비에 끼이거나 감김) | D157: 4 | E157: 0 | F157: 2 | G157: 0 | H157: 1 | I157: 0 | J157: 0 | K157: 0 | L157: 1 | M157: 0 | N157: 0 | O157: 0 | P157: 3 | Q157: 0 | R157: 0 | S157: 0 | T157: 3 | U157: 0 | V157: 0 | W157: 0 | X157: 0 | Y157: 0 | Z157: 0 | AA157: 0 | AB157: 4 | AC157: 0 | AD157: 4 | AE157: 0 | AF157: 0 | AG157: 0 | AH157: 0 | AI157: 0 | AJ157: 0 | AK157: 0 | AL157: 0 | AM157: 0
C158: 절단·베임·찔림 | D158: 15 | E158: 0 | F158: 5 | G158: 0 | H158: 4 | I158: 0 | J158: 4 | K158: 0 | L158: 1 | M158: 0 | N158: 1 | O158: 0 | P158: 10 | Q158: 0 | R158: 4 | S158: 0 | T158: 3 | U158: 0 | V158: 2 | W158: 0 | X158: 0 | Y158: 0 | Z158: 1 | AA158: 0 | AB158: 10 | AC158: 0 | AD158: 4 | AE158: 0 | AF158: 2 | AG158: 0 | AH158: 4 | AI158: 0 | AJ158: 0 | AK158: 0 | AL158: 0 | AM158: 0
C159: 불균형 및 무리한 동작 | D159: 6 | E159: 0 | F159: 0 | G159: 0 | H159: 2 | I159: 0 | J159: 1 | K159: 0 | L159: 1 | M159: 0 | N159: 2 | O159: 0 | P159: 2 | Q159: 0 | R159: 0 | S159: 0 | T159: 1 | U159: 0 | V159: 1 | W159: 0 | X159: 0 | Y159: 0 | Z159: 0 | AA159: 0 | AB159: 1 | AC159: 0 | AD159: 1 | AE159: 0 | AF159: 0 | AG159: 0 | AH159: 0 | AI159: 0 | AJ159: 0 | AK159: 0 | AL159: 0 | AM159: 0
C160: 이상온도 접촉 | D160: 7 | E160: 0 | F160: 5 | G160: 0 | H160: 1 | I160: 0 | J160: 0 | K160: 0 | L160: 1 | M160: 0 | N160: 0 | O160: 0 | P160: 8 | Q160: 0 | R160: 4 | S160: 0 | T160: 2 | U160: 0 | V160: 1 | W160: 0 | X160: 1 | Y160: 0 | Z160: 0 | AA160: 0 | AB160: 5 | AC160: 0 | AD160: 2 | AE160: 0 | AF160: 1 | AG160: 0 | AH160: 0 | AI160: 0 | AJ160: 0 | AK160: 0 | AL160: 2 | AM160: 0
C161: 화학물질누출·접촉 | D161: 1 | E161: 0 | F161: 0 | G161: 0 | H161: 0 | I161: 0 | J161: 0 | K161: 0 | L161: 1 | M161: 0 | N161: 0 | O161: 0 | P161: 0 | Q161: 0 | R161: 0 | S161: 0 | T161: 0 | U161: 0 | V161: 0 | W161: 0 | X161: 0 | Y161: 0 | Z161: 0 | AA161: 0 | AB161: 0 | AC161: 0 | AD161: 0 | AE161: 0 | AF161: 0 | AG161: 0 | AH161: 0 | AI161: 0 | AJ161: 0 | AK161: 0 | AL161: 0 | AM161: 0
C162: 사업장외 교통사고 | D162: 8 | E162: 0 | F162: 7 | G162: 0 | H162: 1 | I162: 0 | J162: 0 | K162: 0 | L162: 0 | M162: 0 | N162: 0 | O162: 0 | P162: 16 | Q162: 0 | R162: 11 | S162: 0 | T162: 2 | U162: 0 | V162: 2 | W162: 0 | X162: 0 | Y162: 0 | Z162: 1 | AA162: 0 | AB162: 10 | AC162: 0 | AD162: 7 | AE162: 0 | AF162: 1 | AG162: 0 | AH162: 1 | AI162: 0 | AJ162: 0 | AK162: 0 | AL162: 1 | AM162: 0
C163: 폭력행위 | D163: 1 | E163: 0 | F163: 1 | G163: 0 | H163: 0 | I163: 0 | J163: 0 | K163: 0 | L163: 0 | M163: 0 | N163: 0 | O163: 0 | P163: 0 | Q163: 0 | R163: 0 | S163: 0 | T163: 0 | U163: 0 | V163: 0 | W163: 0 | X163: 0 | Y163: 0 | Z163: 0 | AA163: 0 | AB163: 0 | AC163: 0 | AD163: 0 | AE163: 0 | AF163: 0 | AG163: 0 | AH163: 0 | AI163: 0 | AJ163: 0 | AK163: 0 | AL163: 0 | AM163: 0
C164: 동물상해 | D164: 0 | E164: 0 | F164: 0 | G164: 0 | H164: 0 | I164: 0 | J164: 0 | K164: 0 | L164: 0 | M164: 0 | N164: 0 | O164: 0 | P164: 0 | Q164: 0 | R164: 0 | S164: 0 | T164: 0 | U164: 0 | V164: 0 | W164: 0 | X164: 0 | Y164: 0 | Z164: 0 | AA164: 0 | AB164: 1 | AC164: 0 | AD164: 1 | AE164: 0 | AF164: 0 | AG164: 0 | AH164: 0 | AI164: 0 | AJ164: 0 | AK164: 0 | AL164: 0 | AM164: 0
C165: 뇌심혈관질환 | D165: 0 | E165: 0 | F165: 0 | G165: 0 | H165: 0 | I165: 0 | J165: 0 | K165: 0 | L165: 0 | M165: 0 | N165: 0 | O165: 0 | P165: 0 | Q165: 0 | R165: 0 | S165: 0 | T165: 0 | U165: 0 | V165: 0 | W165: 0 | X165: 0 | Y165: 0 | Z165: 0 | AA165: 0 | AB165: 0 | AC165: 0 | AD165: 0 | AE165: 0 | AF165: 0 | AG165: 0 | AH165: 0 | AI165: 0 | AJ165: 0 | AK165: 0 | AL165: 0 | AM165: 0
C166: 근골격계질환 | D166: 0 | E166: 0 | F166: 0 | G166: 0 | H166: 0 | I166: 0 | J166: 0 | K166: 0 | L166: 0 | M166: 0 | N166: 0 | O166: 0 | P166: 0 | Q166: 0 | R166: 0 | S166: 0 | T166: 0 | U166: 0 | V166: 0 | W166: 0 | X166: 0 | Y166: 0 | Z166: 0 | AA166: 0 | AB166: 0 | AC166: 0 | AD166: 0 | AE166: 0 | AF166: 0 | AG166: 0 | AH166: 0 | AI166: 0 | AJ166: 0 | AK166: 0 | AL166: 0 | AM166: 0
C167: 분류불능 | D167: 0 | E167: 0 | F167: 0 | G167: 0 | H167: 0 | I167: 0 | J167: 0 | K167: 0 | L167: 0 | M167: 0 | N167: 0 | O167: 0 | P167: 1 | Q167: 1 | R167: 0 | S167: 0 | T167: 1 | U167: 1 | V167: 0 | W167: 0 | X167: 0 | Y167: 0 | Z167: 0 | AA167: 0 | AB167: 0 | AC167: 0 | AD167: 0 | AE167: 0 | AF167: 0 | AG167: 0 | AH167: 0 | AI167: 0 | AJ167: 0 | AK167: 0 | AL167: 0 | AM167: 0
B168: 태 백 | C168: 합계 | D168: 15 | E168: 0 | F168: 9 | G168: 0 | H168: 3 | I168: 0 | J168: 1 | K168: 0 | L168: 2 | M168: 0 | N168: 0 | O168: 0 | P168: 10 | Q168: 0 | R168: 10 | S168: 0 | T168: 0 | U168: 0 | V168: 0 | W168: 0 | X168: 0 | Y168: 0 | Z168: 0 | AA168: 0 | AB168: 16 | AC168: 0 | AD168: 13 | AE168: 0 | AF168: 1 | AG168: 0 | AH168: 1 | AI168: 0 | AJ168: 0 | AK168: 0 | AL168: 1 | AM168: 0
C169: 떨어짐(높이가 있는 곳에서 사람이 떨어짐) | D169: 0 | E169: 0 | F169: 0 | G169: 0 | H169: 0 | I169: 0 | J169: 0 | K169: 0 | L169: 0 | M169: 0 | N169: 0 | O169: 0 | P169: 0 | Q169: 0 | R169: 0 | S169: 0 | T169: 0 | U169: 0 | V169: 0 | W169: 0 | X169: 0 | Y169: 0 | Z169: 0 | AA169: 0 | AB169: 1 | AC169: 0 | AD169: 1 | AE169: 0 | AF169: 0 | AG169: 0 | AH169: 0 | AI169: 0 | AJ169: 0 | AK169: 0 | AL169: 0 | AM169: 0
C170: 넘어짐(사람이 미끄러지거나 넘어짐) | D170: 6 | E170: 0 | F170: 3 | G170: 0 | H170: 2 | I170: 0 | J170: 0 | K170: 0 | L170: 1 | M170: 0 | N170: 0 | O170: 0 | P170: 4 | Q170: 0 | R170: 4 | S170: 0 | T170: 0 | U170: 0 | V170: 0 | W170: 0 | X170: 0 | Y170: 0 | Z170: 0 | AA170: 0 | AB170: 11 | AC170: 0 | AD170: 9 | AE170: 0 | AF170: 1 | AG170: 0 | AH170: 1 | AI170: 0 | AJ170: 0 | AK170: 0 | AL170: 0 | AM170: 0
C171: 깔림·뒤집힘(물체의 쓰러짐이나 뒤집힘) | D171: 0 | E171: 0 | F171: 0 | G171: 0 | H171: 0 | I171: 0 | J171: 0 | K171: 0 | L171: 0 | M171: 0 | N171: 0 | O171: 0 | P171: 0 | Q171: 0 | R171: 0 | S171: 0 | T171: 0 | U171: 0 | V171: 0 | W171: 0 | X171: 0 | Y171: 0 | Z171: 0 | AA171: 0 | AB171: 1 | AC171: 0 | AD171: 0 | AE171: 0 | AF171: 0 | AG171: 0 | AH171: 0 | AI171: 0 | AJ171: 0 | AK171: 0 | AL171: 1 | AM171: 0
C172: 부딪힘(물체에 부딪힘) | D172: 1 | E172: 0 | F172: 1 | G172: 0 | H172: 0 | I172: 0 | J172: 0 | K172: 0 | L172: 0 | M172: 0 | N172: 0 | O172: 0 | P172: 0 | Q172: 0 | R172: 0 | S172: 0 | T172: 0 | U172: 0 | V172: 0 | W172: 0 | X172: 0 | Y172: 0 | Z172: 0 | AA172: 0 | AB172: 0 | AC172: 0 | AD172: 0 | AE172: 0 | AF172: 0 | AG172: 0 | AH172: 0 | AI172: 0 | AJ172: 0 | AK172: 0 | AL172: 0 | AM172: 0
C173: 물체에 맞음(날아오거나 떨어진 물체에 맞음) | D173: 1 | E173: 0 | F173: 1 | G173: 0 | H173: 0 | I173: 0 | J173: 0 | K173: 0 | L173: 0 | M173: 0 | N173: 0 | O173: 0 | P173: 1 | Q173: 0 | R173: 1 | S173: 0 | T173: 0 | U173: 0 | V173: 0 | W173: 0 | X173: 0 | Y173: 0 | Z173: 0 | AA173: 0 | AB173: 1 | AC173: 0 | AD173: 1 | AE173: 0 | AF173: 0 | AG173: 0 | AH173: 0 | AI173: 0 | AJ173: 0 | AK173: 0 | AL173: 0 | AM173: 0
C174: 끼임(기계설비에 끼이거나 감김) | D174: 1 | E174: 0 | F174: 1 | G174: 0 | H174: 0 | I174: 0 | J174: 0 | K174: 0 | L174: 0 | M174: 0 | N174: 0 | O174: 0 | P174: 1 | Q174: 0 | R174: 1 | S174: 0 | T174: 0 | U174: 0 | V174: 0 | W174: 0 | X174: 0 | Y174: 0 | Z174: 0 | AA174: 0 | AB174: 0 | AC174: 0 | AD174: 0 | AE174: 0 | AF174: 0 | AG174: 0 | AH174: 0 | AI174: 0 | AJ174: 0 | AK174: 0 | AL174: 0 | AM174: 0
C175: 절단·베임·찔림 | D175: 0 | E175: 0 | F175: 0 | G175: 0 | H175: 0 | I175: 0 | J175: 0 | K175: 0 | L175: 0 | M175: 0 | N175: 0 | O175: 0 | P175: 2 | Q175: 0 | R175: 2 | S175: 0 | T175: 0 | U175: 0 | V175: 0 | W175: 0 | X175: 0 | Y175: 0 | Z175: 0 | AA175: 0 | AB175: 1 | AC175: 0 | AD175: 1 | AE175: 0 | AF175: 0 | AG175: 0 | AH175: 0 | AI175: 0 | AJ175: 0 | AK175: 0 | AL175: 0 | AM175: 0
C176: 불균형 및 무리한 동작 | D176: 0 | E176: 0 | F176: 0 | G176: 0 | H176: 0 | I176: 0 | J176: 0 | K176: 0 | L176: 0 | M176: 0 | N176: 0 | O176: 0 | P176: 0 | Q176: 0 | R176: 0 | S176: 0 | T176: 0 | U176: 0 | V176: 0 | W176: 0 | X176: 0 | Y176: 0 | Z176: 0 | AA176: 0 | AB176: 1 | AC176: 0 | AD176: 1 | AE176: 0 | AF176: 0 | AG176: 0 | AH176: 0 | AI176: 0 | AJ176: 0 | AK176: 0 | AL176: 0 | AM176: 0
C177: 이상온도 접촉 | D177: 2 | E177: 0 | F177: 0 | G177: 0 | H177: 1 | I177: 0 | J177: 0 | K177: 0 | L177: 1 | M177: 0 | N177: 0 | O177: 0 | P177: 0 | Q177: 0 | R177: 0 | S177: 0 | T177: 0 | U177: 0 | V177: 0 | W177: 0 | X177: 0 | Y177: 0 | Z177: 0 | AA177: 0 | AB177: 0 | AC177: 0 | AD177: 0 | AE177: 0 | AF177: 0 | AG177: 0 | AH177: 0 | AI177: 0 | AJ177: 0 | AK177: 0 | AL177: 0 | AM177: 0
C178: 사업장외 교통사고 | D178: 4 | E178: 0 | F178: 3 | G178: 0 | H178: 0 | I178: 0 | J178: 1 | K178: 0 | L178: 0 | M178: 0 | N178: 0 | O178: 0 | P178: 2 | Q178: 0 | R178: 2 | S178: 0 | T178: 0 | U178: 0 | V178: 0 | W178: 0 | X178: 0 | Y178: 0 | Z178: 0 | AA178: 0 | AB178: 0 | AC178: 0 | AD178: 0 | AE178: 0 | AF178: 0 | AG178: 0 | AH178: 0 | AI178: 0 | AJ178: 0 | AK178: 0 | AL178: 0 | AM178: 0
C179: 뇌심혈관질환 | D179: 0 | E179: 0 | F179: 0 | G179: 0 | H179: 0 | I179: 0 | J179: 0 | K179: 0 | L179: 0 | M179: 0 | N179: 0 | O179: 0 | P179: 0 | Q179: 0 | R179: 0 | S179: 0 | T179: 0 | U179: 0 | V179: 0 | W179: 0 | X179: 0 | Y179: 0 | Z179: 0 | AA179: 0 | AB179: 0 | AC179: 0 | AD179: 0 | AE179: 0 | AF179: 0 | AG179: 0 | AH179: 0 | AI179: 0 | AJ179: 0 | AK179: 0 | AL179: 0 | AM179: 0
C180: 근골격계질환 | D180: 0 | E180: 0 | F180: 0 | G180: 0 | H180: 0 | I180: 0 | J180: 0 | K180: 0 | L180: 0 | M180: 0 | N180: 0 | O180: 0 | P180: 0 | Q180: 0 | R180: 0 | S180: 0 | T180: 0 | U180: 0 | V180: 0 | W180: 0 | X180: 0 | Y180: 0 | Z180: 0 | AA180: 0 | AB180: 0 | AC180: 0 | AD180: 0 | AE180: 0 | AF180: 0 | AG180: 0 | AH180: 0 | AI180: 0 | AJ180: 0 | AK180: 0 | AL180: 0 | AM180: 0
B181: 강 릉 | C181: 합계 | D181: 92 | E181: 0 | F181: 63 | G181: 0 | H181: 18 | I181: 0 | J181: 4 | K181: 0 | L181: 4 | M181: 0 | N181: 3 | O181: 0 | P181: 93 | Q181: 1 | R181: 57 | S181: 0 | T181: 12 | U181: 1 | V181: 13 | W181: 0 | X181: 2 | Y181: 0 | Z181: 9 | AA181: 0 | AB181: 60 | AC181: 1 | AD181: 32 | AE181: 0 | AF181: 9 | AG181: 0 | AH181: 11 | AI181: 0 | AJ181: 4 | AK181: 0 | AL181: 4 | AM181: 1
C182: 떨어짐(높이가 있는 곳에서 사람이 떨어짐) | D182: 5 | E182: 0 | F182: 4 | G182: 0 | H182: 1 | I182: 0 | J182: 0 | K182: 0 | L182: 0 | M182: 0 | N182: 0 | O182: 0 | P182: 6 | Q182: 0 | R182: 4 | S182: 0 | T182: 1 | U182: 0 | V182: 0 | W182: 0 | X182: 0 | Y182: 0 | Z182: 1 | AA182: 0 | AB182: 3 | AC182: 0 | AD182: 1 | AE182: 0 | AF182: 0 | AG182: 0 | AH182: 1 | AI182: 0 | AJ182: 1 | AK182: 0 | AL182: 0 | AM182: 0
C183: 넘어짐(사람이 미끄러지거나 넘어짐) | D183: 30 | E183: 0 | F183: 19 | G183: 0 | H183: 9 | I183: 0 | J183: 0 | K183: 0 | L183: 1 | M183: 0 | N183: 1 | O183: 0 | P183: 30 | Q183: 0 | R183: 22 | S183: 0 | T183: 4 | U183: 0 | V183: 1 | W183: 0 | X183: 1 | Y183: 0 | Z183: 2 | AA183: 0 | AB183: 16 | AC183: 0 | AD183: 8 | AE183: 0 | AF183: 2 | AG183: 0 | AH183: 3 | AI183: 0 | AJ183: 3 | AK183: 0 | AL183: 0 | AM183: 0
C184: 깔림·뒤집힘(물체의 쓰러짐이나 뒤집힘) | D184: 1 | E184: 0 | F184: 1 | G184: 0 | H184: 0 | I184: 0 | J184: 0 | K184: 0 | L184: 0 | M184: 0 | N184: 0 | O184: 0 | P184: 1 | Q184: 0 | R184: 0 | S184: 0 | T184: 0 | U184: 0 | V184: 0 | W184: 0 | X184: 0 | Y184: 0 | Z184: 1 | AA184: 0 | AB184: 0 | AC184: 0 | AD184: 0 | AE184: 0 | AF184: 0 | AG184: 0 | AH184: 0 | AI184: 0 | AJ184: 0 | AK184: 0 | AL184: 0 | AM184: 0
C185: 부딪힘(물체에 부딪힘) | D185: 2 | E185: 0 | F185: 2 | G185: 0 | H185: 0 | I185: 0 | J185: 0 | K185: 0 | L185: 0 | M185: 0 | N185: 0 | O185: 0 | P185: 4 | Q185: 0 | R185: 3 | S185: 0 | T185: 0 | U185: 0 | V185: 1 | W185: 0 | X185: 0 | Y185: 0 | Z185: 0 | AA185: 0 | AB185: 4 | AC185: 0 | AD185: 3 | AE185: 0 | AF185: 1 | AG185: 0 | AH185: 0 | AI185: 0 | AJ185: 0 | AK185: 0 | AL185: 0 | AM185: 0
C186: 물체에 맞음(날아오거나 떨어진 물체에 맞음) | D186: 2 | E186: 0 | F186: 2 | G186: 0 | H186: 0 | I186: 0 | J186: 0 | K186: 0 | L186: 0 | M186: 0 | N186: 0 | O186: 0 | P186: 5 | Q186: 0 | R186: 3 | S186: 0 | T186: 2 | U186: 0 | V186: 0 | W186: 0 | X186: 0 | Y186: 0 | Z186: 0 | AA186: 0 | AB186: 2 | AC186: 0 | AD186: 2 | AE186: 0 | AF186: 0 | AG186: 0 | AH186: 0 | AI186: 0 | AJ186: 0 | AK186: 0 | AL186: 0 | AM186: 0
C187: 끼임(기계설비에 끼이거나 감김) | D187: 4 | E187: 0 | F187: 2 | G187: 0 | H187: 2 | I187: 0 | J187: 0 | K187: 0 | L187: 0 | M187: 0 | N187: 0 | O187: 0 | P187: 9 | Q187: 0 | R187: 7 | S187: 0 | T187: 1 | U187: 0 | V187: 0 | W187: 0 | X187: 0 | Y187: 0 | Z187: 1 | AA187: 0 | AB187: 6 | AC187: 0 | AD187: 5 | AE187: 0 | AF187: 0 | AG187: 0 | AH187: 0 | AI187: 0 | AJ187: 0 | AK187: 0 | AL187: 1 | AM187: 0
C188: 절단·베임·찔림 | D188: 17 | E188: 0 | F188: 10 | G188: 0 | H188: 2 | I188: 0 | J188: 2 | K188: 0 | L188: 2 | M188: 0 | N188: 1 | O188: 0 | P188: 8 | Q188: 0 | R188: 5 | S188: 0 | T188: 1 | U188: 0 | V188: 1 | W188: 0 | X188: 0 | Y188: 0 | Z188: 1 | AA188: 0 | AB188: 7 | AC188: 0 | AD188: 3 | AE188: 0 | AF188: 3 | AG188: 0 | AH188: 1 | AI188: 0 | AJ188: 0 | AK188: 0 | AL188: 0 | AM188: 0
C189: 감전 | D189: 0 | E189: 0 | F189: 0 | G189: 0 | H189: 0 | I189: 0 | J189: 0 | K189: 0 | L189: 0 | M189: 0 | N189: 0 | O189: 0 | P189: 1 | Q189: 0 | R189: 0 | S189: 0 | T189: 0 | U189: 0 | V189: 1 | W189: 0 | X189: 0 | Y189: 0 | Z189: 0 | AA189: 0 | AB189: 0 | AC189: 0 | AD189: 0 | AE189: 0 | AF189: 0 | AG189: 0 | AH189: 0 | AI189: 0 | AJ189: 0 | AK189: 0 | AL189: 0 | AM189: 0
C190: 폭발·파열 | D190: 0 | E190: 0 | F190: 0 | G190: 0 | H190: 0 | I190: 0 | J190: 0 | K190: 0 | L190: 0 | M190: 0 | N190: 0 | O190: 0 | P190: 1 | Q190: 0 | R190: 0 | S190: 0 | T190: 0 | U190: 0 | V190: 1 | W190: 0 | X190: 0 | Y190: 0 | Z190: 0 | AA190: 0 | AB190: 0 | AC190: 0 | AD190: 0 | AE190: 0 | AF190: 0 | AG190: 0 | AH190: 0 | AI190: 0 | AJ190: 0 | AK190: 0 | AL190: 0 | AM190: 0
C191: 불균형 및 무리한 동작 | D191: 9 | E191: 0 | F191: 7 | G191: 0 | H191: 2 | I191: 0 | J191: 0 | K191: 0 | L191: 0 | M191: 0 | N191: 0 | O191: 0 | P191: 3 | Q191: 0 | R191: 3 | S191: 0 | T191: 0 | U191: 0 | V191: 0 | W191: 0 | X191: 0 | Y191: 0 | Z191: 0 | AA191: 0 | AB191: 4 | AC191: 0 | AD191: 0 | AE191: 0 | AF191: 1 | AG191: 0 | AH191: 2 | AI191: 0 | AJ191: 0 | AK191: 0 | AL191: 1 | AM191: 0
C192: 이상온도 접촉 | D192: 13 | E192: 0 | F192: 9 | G192: 0 | H192: 1 | I192: 0 | J192: 2 | K192: 0 | L192: 1 | M192: 0 | N192: 0 | O192: 0 | P192: 15 | Q192: 0 | R192: 7 | S192: 0 | T192: 1 | U192: 0 | V192: 4 | W192: 0 | X192: 1 | Y192: 0 | Z192: 2 | AA192: 0 | AB192: 14 | AC192: 0 | AD192: 9 | AE192: 0 | AF192: 1 | AG192: 0 | AH192: 3 | AI192: 0 | AJ192: 0 | AK192: 0 | AL192: 1 | AM192: 0
C193: 사업장외 교통사고 | D193: 9 | E193: 0 | F193: 7 | G193: 0 | H193: 1 | I193: 0 | J193: 0 | K193: 0 | L193: 0 | M193: 0 | N193: 1 | O193: 0 | P193: 9 | Q193: 1 | R193: 2 | S193: 0 | T193: 2 | U193: 1 | V193: 4 | W193: 0 | X193: 0 | Y193: 0 | Z193: 1 | AA193: 0 | AB193: 3 | AC193: 1 | AD193: 1 | AE193: 0 | AF193: 1 | AG193: 0 | AH193: 0 | AI193: 0 | AJ193: 0 | AK193: 0 | AL193: 1 | AM193: 1
C194: 체육행사 등의 사고 | D194: 0 | E194: 0 | F194: 0 | G194: 0 | H194: 0 | I194: 0 | J194: 0 | K194: 0 | L194: 0 | M194: 0 | N194: 0 | O194: 0 | P194: 1 | Q194: 0 | R194: 1 | S194: 0 | T194: 0 | U194: 0 | V194: 0 | W194: 0 | X194: 0 | Y194: 0 | Z194: 0 | AA194: 0 | AB194: 1 | AC194: 0 | AD194: 0 | AE194: 0 | AF194: 0 | AG194: 0 | AH194: 1 | AI194: 0 | AJ194: 0 | AK194: 0 | AL194: 0 | AM194: 0
C195: 직업병기타 | D195: 0 | E195: 0 | F195: 0 | G195: 0 | H195: 0 | I195: 0 | J195: 0 | K195: 0 | L195: 0 | M195: 0 | N195: 0 | O195: 0 | P195: 0 | Q195: 0 | R195: 0 | S195: 0 | T195: 0 | U195: 0 | V195: 0 | W195: 0 | X195: 0 | Y195: 0 | Z195: 0 | AA195: 0 | AB195: 0 | AC195: 0 | AD195: 0 | AE195: 0 | AF195: 0 | AG195: 0 | AH195: 0 | AI195: 0 | AJ195: 0 | AK195: 0 | AL195: 0 | AM195: 0
C196: 뇌심혈관질환 | D196: 0 | E196: 0 | F196: 0 | G196: 0 | H196: 0 | I196: 0 | J196: 0 | K196: 0 | L196: 0 | M196: 0 | N196: 0 | O196: 0 | P196: 0 | Q196: 0 | R196: 0 | S196: 0 | T196: 0 | U196: 0 | V196: 0 | W196: 0 | X196: 0 | Y196: 0 | Z196: 0 | AA196: 0 | AB196: 0 | AC196: 0 | AD196: 0 | AE196: 0 | AF196: 0 | AG196: 0 | AH196: 0 | AI196: 0 | AJ196: 0 | AK196: 0 | AL196: 0 | AM196: 0
C197: 근골격계질환 | D197: 0 | E197: 0 | F197: 0 | G197: 0 | H197: 0 | I197: 0 | J197: 0 | K197: 0 | L197: 0 | M197: 0 | N197: 0 | O197: 0 | P197: 0 | Q197: 0 | R197: 0 | S197: 0 | T197: 0 | U197: 0 | V197: 0 | W197: 0 | X197: 0 | Y197: 0 | Z197: 0 | AA197: 0 | AB197: 0 | AC197: 0 | AD197: 0 | AE197: 0 | AF197: 0 | AG197: 0 | AH197: 0 | AI197: 0 | AJ197: 0 | AK197: 0 | AL197: 0 | AM197: 0
B198: 원 주 | C198: 합계 | D198: =SUM(F198,H198,J198,L198,N198) -> 87 | E198: =SUM(G198,I198,K198,M198,O198) -> 0 | F198: 58 | G198: 0 | H198: 19 | I198: 0 | J198: 6 | K198: 0 | L198: 2 | M198: 0 | N198: 2 | O198: 0 | P198: =SUM(R198,T198,V198,X198,Z198) -> 70 | Q198: =SUM(S198,U198,W198,Y198,AA198) -> 0 | R198: 38 | S198: 0 | T198: 20 | U198: 0 | V198: 10 | W198: 0 | X198: 2 | Y198: 0 | Z198: 0 | AA198: 0 | AB198: =SUM(AD198,AF198,AH198,AJ198,AL198) -> 65 | AC198: =SUM(AE198,AG198,AI198,AK198,AM198) -> 0 | AD198: 44 | AE198: 0 | AF198: 13 | AG198: 0 | AH198: 7 | AI198: 0 | AJ198: 1 | AK198: 0 | AL198: 0 | AM198: 0
C199: 떨어짐(높이가 있는 곳에서 사람이 떨어짐) | D199: 2 | E199: 0 | F199: 2 | G199: 0 | H199: 0 | I199: 0 | J199: 0 | K199: 0 | L199: 0 | M199: 0 | N199: 0 | O199: 0 | P199: 3 | Q199: 0 | R199: 2 | S199: 0 | T199: 1 | U199: 0 | V199: 0 | W199: 0 | X199: 0 | Y199: 0 | Z199: 0 | AA199: 0 | AB199: 1 | AC199: 0 | AD199: 1 | AE199: 0 | AF199: 0 | AG199: 0 | AH199: 0 | AI199: 0 | AJ199: 0 | AK199: 0 | AL199: 0 | AM199: 0
C200: 넘어짐(사람이 미끄러지거나 넘어짐) | D200: 21 | E200: 0 | F200: 15 | G200: 0 | H200: 5 | I200: 0 | J200: 1 | K200: 0 | L200: 0 | M200: 0 | N200: 0 | O200: 0 | P200: 22 | Q200: 0 | R200: 9 | S200: 0 | T200: 7 | U200: 0 | V200: 4 | W200: 0 | X200: 2 | Y200: 0 | Z200: 0 | AA200: 0 | AB200: 18 | AC200: 0 | AD200: 12 | AE200: 0 | AF200: 3 | AG200: 0 | AH200: 2 | AI200: 0 | AJ200: 1 | AK200: 0 | AL200: 0 | AM200: 0
... 28 more rows

Sheet 부산
A1: 업종(소) | B1: 고용지청 | C1: 기준년월 | D1: 2019년 12월 | P1: 2020년 12월 | AB1: 2021년 9월
C2: 규모(소) | D2: 규모별 합계 | F2: 5인 미만 | H2: 5인 ~ 9인 | J2: 10인 ~ 19인 | L2: 20인 ~ 29인 | N2: 30인 ~ 49인 | P2: 규모별 합계 | R2: 5인 미만 | T2: 5인 ~ 9인 | V2: 10인 ~ 19인 | X2: 20인 ~ 29인 | Z2: 30인 ~ 49인 | AB2: 규모별 합계 | AD2: 5인 미만 | AF2: 5인 ~ 9인 | AH2: 10인 ~ 19인 | AJ2: 20인 ~ 29인 | AL2: 30인 ~ 49인
C3: 발생형태(중) | D3: 사고재해자수 합계 | E3: 사고사망자수 합계 | F3: 사고재해자수 | G3: 사고사망자수 | H3: 사고재해자수 | I3: 사고사망자수 | J3: 사고재해자수 | K3: 사고사망자수 | L3: 사고재해자수 | M3: 사고사망자수 | N3: 사고재해자수 | O3: 사고사망자수 | P3: 사고재해자수 합계 | Q3: 사고사망자수 합계 | R3: 사고재해자수 | S3: 사고사망자수 | T3: 사고재해자수 | U3: 사고사망자수 | V3: 사고재해자수 | W3: 사고사망자수 | X3: 사고재해자수 | Y3: 사고사망자수 | Z3: 사고재해자수 | AA3: 사고사망자수 | AB3: 사고재해자수 합계 | AC3: 사고사망자수 합계 | AD3: 사고재해자수 | AE3: 사고사망자수 | AF3: 사고재해자수 | AG3: 사고사망자수 | AH3: 사고재해자수 | AI3: 사고사망자수 | AJ3: 사고재해자수 | AK3: 사고사망자수 | AL3: 사고재해자수 | AM3: 사고사망자수
A4: 음식및숙박업 | B4: 합계 | D4: =SUM(D5,D27,D47,D63,D77,D96,D113,D128) -> 1341 | E4: =SUM(E5,E27,E47,E63,E77,E96,E113,E128) -> 1 | F4: 709 | G4: 1 | H4: 252 | I4: 0 | J4: 217 | K4: 0 | L4: 80 | M4: 0 | N4: 83 | O4: 0 | P4: 1130 | Q4: 2 | R4: 601 | S4: 2 | T4: 232 | U4: 0 | V4: 167 | W4: 0 | X4: 58 | Y4: 0 | Z4: 72 | AA4: 0 | AB4: 847 | AC4: 1 | AD4: 436 | AE4: 0 | AF4: 191 | AG4: 1 | AH4: 118 | AI4: 0 | AJ4: 45 | AK4: 0 | AL4: 57 | AM4: 0
B5: 부 산 청 | C5: 합계 | D5: =SUM(F5,H5,J5,L5,N5) -> 315 | E5: =SUM(G5,I5,K5,M5,O5) -> 0 | F5: 148 | G5: 0 | H5: 69 | I5: 0 | J5: 57 | K5: 0 | L5: 20 | M5: 0 | N5: 21 | O5: 0 | P5: =SUM(R5,T5,V5,X5,Z5) -> 237 | Q5: =SUM(S5,U5,W5,Y5,AA5) -> 0 | R5: 107 | S5: 0 | T5: 67 | U5: 0 | V5: 36 | W5: 0 | X5: 11 | Y5: 0 | Z5: 16 | AA5: 0 | AB5: =SUM(AD5,AF5,AH5,AJ5,AL5) -> 186 | AC5: =SUM(AE5,AG5,AI5,AK5,AM5) -> 0 | AD5: 92 | AE5: 0 | AF5: 37 | AG5: 0 | AH5: 36 | AI5: 0 | AJ5: 11 | AK5: 0 | AL5: 10 | AM5: 0
C6: 떨어짐(높이가 있는 곳에서 사람이 떨어짐) | D6: =SUM(F6,H6,J6,L6,N6) -> 2 | E6: =SUM(G6,I6,K6,M6,O6) -> 0 | F6: 2 | G6: 0 | H6: 0 | I6: 0 | J6: 0 | K6: 0 | L6: 0 | M6: 0 | N6: 0 | O6: 0 | P6: =SUM(R6,T6,V6,X6,Z6) -> 3 | Q6: =SUM(S6,U6,W6,Y6,AA6) -> 0 | R6: 1 | S6: 0 | T6: 1 | U6: 0 | V6: 0 | W6: 0 | X6: 0 | Y6: 0 | Z6: 1 | AA6: 0 | AB6: =SUM(AD6,AF6,AH6,AJ6,AL6) -> 3 | AC6: =SUM(AE6,AG6,AI6,AK6,AM6) -> 0 | AD6: 2 | AE6: 0 | AF6: 1 | AG6: 0 | AH6: 0 | AI6: 0 | AJ6: 0 | AK6: 0 | AL6: 0 | AM6: 0
C7: 넘어짐(사람이 미끄러지거나 넘어짐) | D7: 77 | E7: 0 | F7: 37 | G7: 0 | H7: 16 | I7: 0 | J7: 13 | K7: 0 | L7: 2 | M7: 0 | N7: 9 | O7: 0 | P7: 59 | Q7: 0 | R7: 32 | S7: 0 | T7: 13 | U7: 0 | V7: 11 | W7: 0 | X7: 1 | Y7: 0 | Z7: 2 | AA7: 0 | AB7: 37 | AC7: 0 | AD7: 17 | AE7: 0 | AF7: 5 | AG7: 0 | AH7: 8 | AI7: 0 | AJ7: 3 | AK7: 0 | AL7: 4 | AM7: 0
C8: 깔림·뒤집힘(물체의 쓰러짐이나 뒤집힘) | D8: 1 | E8: 0 | F8: 0 | G8: 0 | H8: 0 | I8: 0 | J8: 1 | K8: 0 | L8: 0 | M8: 0 | N8: 0 | O8: 0 | P8: 0 | Q8: 0 | R8: 0 | S8: 0 | T8: 0 | U8: 0 | V8: 0 | W8: 0 | X8: 0 | Y8: 0 | Z8: 0 | AA8: 0 | AB8: 0 | AC8: 0 | AD8: 0 | AE8: 0 | AF8: 0 | AG8: 0 | AH8: 0 | AI8: 0 | AJ8: 0 | AK8: 0 | AL8: 0 | AM8: 0
C9: 부딪힘(물체에 부딪힘) | D9: 7 | E9: 0 | F9: 2 | G9: 0 | H9: 2 | I9: 0 | J9: 2 | K9: 0 | L9: 1 | M9: 0 | N9: 0 | O9: 0 | P9: 10 | Q9: 0 | R9: 4 | S9: 0 | T9: 3 | U9: 0 | V9: 1 | W9: 0 | X9: 0 | Y9: 0 | Z9: 2 | AA9: 0 | AB9: 11 | AC9: 0 | AD9: 2 | AE9: 0 | AF9: 2 | AG9: 0 | AH9: 6 | AI9: 0 | AJ9: 0 | AK9: 0 | AL9: 1 | AM9: 0
C10: 물체에 맞음(날아오거나 떨어진 물체에 맞음) | D10: 8 | E10: 0 | F10: 4 | G10: 0 | H10: 2 | I10: 0 | J10: 1 | K10: 0 | L10: 1 | M10: 0 | N10: 0 | O10: 0 | P10: 5 | Q10: 0 | R10: 2 | S10: 0 | T10: 2 | U10: 0 | V10: 1 | W10: 0 | X10: 0 | Y10: 0 | Z10: 0 | AA10: 0 | AB10: 3 | AC10: 0 | AD10: 0 | AE10: 0 | AF10: 2 | AG10: 0 | AH10: 0 | AI10: 0 | AJ10: 1 | AK10: 0 | AL10: 0 | AM10: 0
C11: 끼임(기계설비에 끼이거나 감김) | D11: 27 | E11: 0 | F11: 12 | G11: 0 | H11: 7 | I11: 0 | J11: 4 | K11: 0 | L11: 2 | M11: 0 | N11: 2 | O11: 0 | P11: 11 | Q11: 0 | R11: 5 | S11: 0 | T11: 3 | U11: 0 | V11: 2 | W11: 0 | X11: 1 | Y11: 0 | Z11: 0 | AA11: 0 | AB11: 15 | AC11: 0 | AD11: 4 | AE11: 0 | AF11: 4 | AG11: 0 | AH11: 4 | AI11: 0 | AJ11: 2 | AK11: 0 | AL11: 1 | AM11: 0
C12: 절단·베임·찔림 | D12: 87 | E12: 0 | F12: 37 | G12: 0 | H12: 18 | I12: 0 | J12: 20 | K12: 0 | L12: 5 | M12: 0 | N12: 7 | O12: 0 | P12: 67 | Q12: 0 | R12: 29 | S12: 0 | T12: 18 | U12: 0 | V12: 9 | W12: 0 | X12: 8 | Y12: 0 | Z12: 3 | AA12: 0 | AB12: 43 | AC12: 0 | AD12: 26 | AE12: 0 | AF12: 10 | AG12: 0 | AH12: 5 | AI12: 0 | AJ12: 2 | AK12: 0 | AL12: 0 | AM12: 0
C13: 감전 | D13: 0 | E13: 0 | F13: 0 | G13: 0 | H13: 0 | I13: 0 | J13: 0 | K13: 0 | L13: 0 | M13: 0 | N13: 0 | O13: 0 | P13: 0 | Q13: 0 | R13: 0 | S13: 0 | T13: 0 | U13: 0 | V13: 0 | W13: 0 | X13: 0 | Y13: 0 | Z13: 0 | AA13: 0 | AB13: 1 | AC13: 0 | AD13: 0 | AE13: 0 | AF13: 0 | AG13: 0 | AH13: 0 | AI13: 0 | AJ13: 1 | AK13: 0 | AL13: 0 | AM13: 0
C14: 폭발·파열 | D14: 2 | E14: 0 | F14: 0 | G14: 0 | H14: 2 | I14: 0 | J14: 0 | K14: 0 | L14: 0 | M14: 0 | N14: 0 | O14: 0 | P14: 0 | Q14: 0 | R14: 0 | S14: 0 | T14: 0 | U14: 0 | V14: 0 | W14: 0 | X14: 0 | Y14: 0 | Z14: 0 | AA14: 0 | AB14: 0 | AC14: 0 | AD14: 0 | AE14: 0 | AF14: 0 | AG14: 0 | AH14: 0 | AI14: 0 | AJ14: 0 | AK14: 0 | AL14: 0 | AM14: 0
C15: 화재 | D15: 1 | E15: 0 | F15: 0 | G15: 0 | H15: 0 | I15: 0 | J15: 0 | K15: 0 | L15: 1 | M15: 0 | N15: 0 | O15: 0 | P15: 0 | Q15: 0 | R15: 0 | S15: 0 | T15: 0 | U15: 0 | V15: 0 | W15: 0 | X15: 0 | Y15: 0 | Z15: 0 | AA15: 0 | AB15: 0 | AC15: 0 | AD15: 0 | AE15: 0 | AF15: 0 | AG15: 0 | AH15: 0 | AI15: 0 | AJ15: 0 | AK15: 0 | AL15: 0 | AM15: 0
C16: 불균형 및 무리한 동작 | D16: 9 | E16: 0 | F16: 5 | G16: 0 | H16: 0 | I16: 0 | J16: 3 | K16: 0 | L16: 0 | M16: 0 | N16: 1 | O16: 0 | P16: 10 | Q16: 0 | R16: 1 | S16: 0 | T16: 3 | U16: 0 | V16: 5 | W16: 0 | X16: 0 | Y16: 0 | Z16: 1 | AA16: 0 | AB16: 8 | AC16: 0 | AD16: 5 | AE16: 0 | AF16: 1 | AG16: 0 | AH16: 1 | AI16: 0 | AJ16: 0 | AK16: 0 | AL16: 1 | AM16: 0
C17: 이상온도 접촉 | D17: 77 | E17: 0 | F17: 37 | G17: 0 | H17: 21 | I17: 0 | J17: 11 | K17: 0 | L17: 6 | M17: 0 | N17: 2 | O17: 0 | P17: 51 | Q17: 0 | R17: 19 | S17: 0 | T17: 20 | U17: 0 | V17: 6 | W17: 0 | X17: 1 | Y17: 0 | Z17: 5 | AA17: 0 | AB17: 55 | AC17: 0 | AD17: 29 | AE17: 0 | AF17: 12 | AG17: 0 | AH17: 10 | AI17: 0 | AJ17: 2 | AK17: 0 | AL17: 2 | AM17: 0
C18: 화학물질누출·접촉 | D18: 0 | E18: 0 | F18: 0 | G18: 0 | H18: 0 | I18: 0 | J18: 0 | K18: 0 | L18: 0 | M18: 0 | N18: 0 | O18: 0 | P18: 2 | Q18: 0 | R18: 1 | S18: 0 | T18: 0 | U18: 0 | V18: 1 | W18: 0 | X18: 0 | Y18: 0 | Z18: 0 | AA18: 0 | AB18: 2 | AC18: 0 | AD18: 1 | AE18: 0 | AF18: 0 | AG18: 0 | AH18: 1 | AI18: 0 | AJ18: 0 | AK18: 0 | AL18: 0 | AM18: 0
C19: 사업장외 교통사고 | D19: 13 | E19: 0 | F19: 10 | G19: 0 | H19: 1 | I19: 0 | J19: 0 | K19: 0 | L19: 2 | M19: 0 | N19: 0 | O19: 0 | P19: 17 | Q19: 0 | R19: 12 | S19: 0 | T19: 3 | U19: 0 | V19: 0 | W19: 0 | X19: 0 | Y19: 0 | Z19: 2 | AA19: 0 | AB19: 6 | AC19: 0 | AD19: 4 | AE19: 0 | AF19: 0 | AG19: 0 | AH19: 1 | AI19: 0 | AJ19: 0 | AK19: 0 | AL19: 1 | AM19: 0
C20: 체육행사 등의 사고 | D20: 2 | E20: 0 | F20: 1 | G20: 0 | H20: 0 | I20: 0 | J20: 1 | K20: 0 | L20: 0 | M20: 0 | N20: 0 | O20: 0 | P20: 1 | Q20: 0 | R20: 0 | S20: 0 | T20: 1 | U20: 0 | V20: 0 | W20: 0 | X20: 0 | Y20: 0 | Z20: 0 | AA20: 0 | AB20: 1 | AC20: 0 | AD20: 1 | AE20: 0 | AF20: 0 | AG20: 0 | AH20: 0 | AI20: 0 | AJ20: 0 | AK20: 0 | AL20: 0 | AM20: 0
C21: 폭력행위 | D21: 0 | E21: 0 | F21: 0 | G21: 0 | H21: 0 | I21: 0 | J21: 0 | K21: 0 | L21: 0 | M21: 0 | N21: 0 | O21: 0 | P21: 1 | Q21: 0 | R21: 1 | S21: 0 | T21: 0 | U21: 0 | V21: 0 | W21: 0 | X21: 0 | Y21: 0 | Z21: 0 | AA21: 0 | AB21: 1 | AC21: 0 | AD21: 1 | AE21: 0 | AF21: 0 | AG21: 0 | AH21: 0 | AI21: 0 | AJ21: 0 | AK21: 0 | AL21: 0 | AM21: 0
C22: 기타 | D22: 2 | E22: 0 | F22: 1 | G22: 0 | H22: 0 | I22: 0 | J22: 1 | K22: 0 | L22: 0 | M22: 0 | N22: 0 | O22: 0 | P22: 0 | Q22: 0 | R22: 0 | S22: 0 | T22: 0 | U22: 0 | V22: 0 | W22: 0 | X22: 0 | Y22: 0 | Z22: 0 | AA22: 0 | AB22: 0 | AC22: 0 | AD22: 0 | AE22: 0 | AF22: 0 | AG22: 0 | AH22: 0 | AI22: 0 | AJ22: 0 | AK22: 0 | AL22: 0 | AM22: 0
C23: 생물학적인자 | D23: 0 | E23: 0 | F23: 0 | G23: 0 | H23: 0 | I23: 0 | J23: 0 | K23: 0 | L23: 0 | M23: 0 | N23: 0 | O23: 0 | P23: 0 | Q23: 0 | R23: 0 | S23: 0 | T23: 0 | U23: 0 | V23: 0 | W23: 0 | X23: 0 | Y23: 0 | Z23: 0 | AA23: 0 | AB23: 0 | AC23: 0 | AD23: 0 | AE23: 0 | AF23: 0 | AG23: 0 | AH23: 0 | AI23: 0 | AJ23: 0 | AK23: 0 | AL23: 0 | AM23: 0
C24: 뇌심혈관질환 | D24: 0 | E24: 0 | F24: 0 | G24: 0 | H24: 0 | I24: 0 | J24: 0 | K24: 0 | L24: 0 | M24: 0 | N24: 0 | O24: 0 | P24: 0 | Q24: 0 | R24: 0 | S24: 0 | T24: 0 | U24: 0 | V24: 0 | W24: 0 | X24: 0 | Y24: 0 | Z24: 0 | AA24: 0 | AB24: 0 | AC24: 0 | AD24: 0 | AE24: 0 | AF24: 0 | AG24: 0 | AH24: 0 | AI24: 0 | AJ24: 0 | AK24: 0 | AL24: 0 | AM24: 0
C25: 근골격계질환 | D25: 0 | E25: 0 | F25: 0 | G25: 0 | H25: 0 | I25: 0 | J25: 0 | K25: 0 | L25: 0 | M25: 0 | N25: 0 | O25: 0 | P25: 0 | Q25: 0 | R25: 0 | S25: 0 | T25: 0 | U25: 0 | V25: 0 | W25: 0 | X25: 0 | Y25: 0 | Z25: 0 | AA25: 0 | AB25: 0 | AC25: 0 | AD25: 0 | AE25: 0 | AF25: 0 | AG25: 0 | AH25: 0 | AI25: 0 | AJ25: 0 | AK25: 0 | AL25: 0 | AM25: 0
C26: 작업관련성질환 기타 | D26: 0 | E26: 0 | F26: 0 | G26: 0 | H26: 0 | I26: 0 | J26: 0 | K26: 0 | L26: 0 | M26: 0 | N26: 0 | O26: 0 | P26: 0 | Q26: 0 | R26: 0 | S26: 0 | T26: 0 | U26: 0 | V26: 0 | W26: 0 | X26: 0 | Y26: 0 | Z26: 0 | AA26: 0 | AB26: 0 | AC26: 0 | AD26: 0 | AE26: 0 | AF26: 0 | AG26: 0 | AH26: 0 | AI26: 0 | AJ26: 0 | AK26: 0 | AL26: 0 | AM26: 0
B27: 부산동부 | C27: 합계 | D27: 251 | E27: 0 | F27: 103 | G27: 0 | H27: 53 | I27: 0 | J27: 58 | K27: 0 | L27: 15 | M27: 0 | N27: 22 | O27: 0 | P27: 230 | Q27: 0 | R27: 112 | S27: 0 | T27: 40 | U27: 0 | V27: 44 | W27: 0 | X27: 18 | Y27: 0 | Z27: 16 | AA27: 0 | AB27: 193 | AC27: 1 | AD27: 77 | AE27: 0 | AF27: 56 | AG27: 1 | AH27: 35 | AI27: 0 | AJ27: 14 | AK27: 0 | AL27: 11 | AM27: 0
C28: 떨어짐(높이가 있는 곳에서 사람이 떨어짐) | D28: 9 | E28: 0 | F28: 5 | G28: 0 | H28: 0 | I28: 0 | J28: 3 | K28: 0 | L28: 0 | M28: 0 | N28: 1 | O28: 0 | P28: 4 | Q28: 0 | R28: 1 | S28: 0 | T28: 2 | U28: 0 | V28: 0 | W28: 0 | X28: 0 | Y28: 0 | Z28: 1 | AA28: 0 | AB28: 5 | AC28: 1 | AD28: 3 | AE28: 0 | AF28: 2 | AG28: 1 | AH28: 0 | AI28: 0 | AJ28: 0 | AK28: 0 | AL28: 0 | AM28: 0
C29: 넘어짐(사람이 미끄러지거나 넘어짐) | D29: 84 | E29: 0 | F29: 36 | G29: 0 | H29: 12 | I29: 0 | J29: 18 | K29: 0 | L29: 8 | M29: 0 | N29: 10 | O29: 0 | P29: 64 | Q29: 0 | R29: 35 | S29: 0 | T29: 12 | U29: 0 | V29: 8 | W29: 0 | X29: 7 | Y29: 0 | Z29: 2 | AA29: 0 | AB29: 46 | AC29: 0 | AD29: 19 | AE29: 0 | AF29: 17 | AG29: 0 | AH29: 6 | AI29: 0 | AJ29: 4 | AK29: 0 | AL29: 0 | AM29: 0
C30: 깔림·뒤집힘(물체의 쓰러짐이나 뒤집힘) | D30: 1 | E30: 0 | F30: 0 | G30: 0 | H30: 1 | I30: 0 | J30: 0 | K30: 0 | L30: 0 | M30: 0 | N30: 0 | O30: 0 | P30: 0 | Q30: 0 | R30: 0 | S30: 0 | T30: 0 | U30: 0 | V30: 0 | W30: 0 | X30: 0 | Y30: 0 | Z30: 0 | AA30: 0 | AB30: 1 | AC30: 0 | AD30: 1 | AE30: 0 | AF30: 0 | AG30: 0 | AH30: 0 | AI30: 0 | AJ30: 0 | AK30: 0 | AL30: 0 | AM30: 0
C31: 부딪힘(물체에 부딪힘) | D31: 4 | E31: 0 | F31: 2 | G31: 0 | H31: 0 | I31: 0 | J31: 1 | K31: 0 | L31: 0 | M31: 0 | N31: 1 | O31: 0 | P31: 8 | Q31: 0 | R31: 3 | S31: 0 | T31: 2 | U31: 0 | V31: 2 | W31: 0 | X31: 0 | Y31: 0 | Z31: 1 | AA31: 0 | AB31: 7 | AC31: 0 | AD31: 4 | AE31: 0 | AF31: 0 | AG31: 0 | AH31: 3 | AI31: 0 | AJ31: 0 | AK31: 0 | AL31: 0 | AM31: 0
C32: 물체에 맞음(날아오거나 떨어진 물체에 맞음) | D32: 6 | E32: 0 | F32: 0 | G32: 0 | H32: 3 | I32: 0 | J32: 1 | K32: 0 | L32: 0 | M32: 0 | N32: 2 | O32: 0 | P32: 6 | Q32: 0 | R32: 2 | S32: 0 | T32: 1 | U32: 0 | V32: 1 | W32: 0 | X32: 1 | Y32: 0 | Z32: 1 | AA32: 0 | AB32: 1 | AC32: 0 | AD32: 0 | AE32: 0 | AF32: 1 | AG32: 0 | AH32: 0 | AI32: 0 | AJ32: 0 | AK32: 0 | AL32: 0 | AM32: 0
C33: 끼임(기계설비에 끼이거나 감김) | D33: 20 | E33: 0 | F33: 8 | G33: 0 | H33: 2 | I33: 0 | J33: 7 | K33: 0 | L33: 1 | M33: 0 | N33: 2 | O33: 0 | P33: 17 | Q33: 0 | R33: 11 | S33: 0 | T33: 0 | U33: 0 | V33: 3 | W33: 0 | X33: 2 | Y33: 0 | Z33: 1 | AA33: 0 | AB33: 17 | AC33: 0 | AD33: 4 | AE33: 0 | AF33: 7 | AG33: 0 | AH33: 3 | AI33: 0 | AJ33: 2 | AK33: 0 | AL33: 1 | AM33: 0
C34: 절단·베임·찔림 | D34: 53 | E34: 0 | F34: 20 | G34: 0 | H34: 13 | I34: 0 | J34: 14 | K34: 0 | L34: 3 | M34: 0 | N34: 3 | O34: 0 | P34: 48 | Q34: 0 | R34: 22 | S34: 0 | T34: 10 | U34: 0 | V34: 11 | W34: 0 | X34: 3 | Y34: 0 | Z34: 2 | AA34: 0 | AB34: 50 | AC34: 0 | AD34: 17 | AE34: 0 | AF34: 14 | AG34: 0 | AH34: 10 | AI34: 0 | AJ34: 5 | AK34: 0 | AL34: 4 | AM34: 0
C35: 폭발·파열 | D35: 0 | E35: 0 | F35: 0 | G35: 0 | H35: 0 | I35: 0 | J35: 0 | K35: 0 | L35: 0 | M35: 0 | N35: 0 | O35: 0 | P35: 3 | Q35: 0 | R35: 0 | S35: 0 | T35: 0 | U35: 0 | V35: 3 | W35: 0 | X35: 0 | Y35: 0 | Z35: 0 | AA35: 0 | AB35: 0 | AC35: 0 | AD35: 0 | AE35: 0 | AF35: 0 | AG35: 0 | AH35: 0 | AI35: 0 | AJ35: 0 | AK35: 0 | AL35: 0 | AM35: 0
C36: 화재 | D36: 0 | E36: 0 | F36: 0 | G36: 0 | H36: 0 | I36: 0 | J36: 0 | K36: 0 | L36: 0 | M36: 0 | N36: 0 | O36: 0 | P36: 0 | Q36: 0 | R36: 0 | S36: 0 | T36: 0 | U36: 0 | V36: 0 | W36: 0 | X36: 0 | Y36: 0 | Z36: 0 | AA36: 0 | AB36: 1 | AC36: 0 | AD36: 1 | AE36: 0 | AF36: 0 | AG36: 0 | AH36: 0 | AI36: 0 | AJ36: 0 | AK36: 0 | AL36: 0 | AM36: 0
C37: 불균형 및 무리한 동작 | D37: 7 | E37: 0 | F37: 2 | G37: 0 | H37: 2 | I37: 0 | J37: 2 | K37: 0 | L37: 1 | M37: 0 | N37: 0 | O37: 0 | P37: 10 | Q37: 0 | R37: 2 | S37: 0 | T37: 2 | U37: 0 | V37: 3 | W37: 0 | X37: 1 | Y37: 0 | Z37: 2 | AA37: 0 | AB37: 7 | AC37: 0 | AD37: 1 | AE37: 0 | AF37: 1 | AG37: 0 | AH37: 1 | AI37: 0 | AJ37: 2 | AK37: 0 | AL37: 2 | AM37: 0
C38: 이상온도 접촉 | D38: 57 | E38: 0 | F38: 26 | G38: 0 | H38: 16 | I38: 0 | J38: 10 | K38: 0 | L38: 2 | M38: 0 | N38: 3 | O38: 0 | P38: 51 | Q38: 0 | R38: 28 | S38: 0 | T38: 9 | U38: 0 | V38: 9 | W38: 0 | X38: 4 | Y38: 0 | Z38: 1 | AA38: 0 | AB38: 48 | AC38: 0 | AD38: 22 | AE38: 0 | AF38: 12 | AG38: 0 | AH38: 10 | AI38: 0 | AJ38: 1 | AK38: 0 | AL38: 3 | AM38: 0
C39: 화학물질누출·접촉 | D39: 1 | E39: 0 | F39: 0 | G39: 0 | H39: 0 | I39: 0 | J39: 1 | K39: 0 | L39: 0 | M39: 0 | N39: 0 | O39: 0 | P39: 2 | Q39: 0 | R39: 0 | S39: 0 | T39: 0 | U39: 0 | V39: 2 | W39: 0 | X39: 0 | Y39: 0 | Z39: 0 | AA39: 0 | AB39: 0 | AC39: 0 | AD39: 0 | AE39: 0 | AF39: 0 | AG39: 0 | AH39: 0 | AI39: 0 | AJ39: 0 | AK39: 0 | AL39: 0 | AM39: 0
C40: 사업장외 교통사고 | D40: 9 | E40: 0 | F40: 4 | G40: 0 | H40: 4 | I40: 0 | J40: 1 | K40: 0 | L40: 0 | M40: 0 | N40: 0 | O40: 0 | P40: 16 | Q40: 0 | R40: 8 | S40: 0 | T40: 2 | U40: 0 | V40: 2 | W40: 0 | X40: 0 | Y40: 0 | Z40: 4 | AA40: 0 | AB40: 9 | AC40: 0 | AD40: 5 | AE40: 0 | AF40: 2 | AG40: 0 | AH40: 2 | AI40: 0 | AJ40: 0 | AK40: 0 | AL40: 0 | AM40: 0
C41: 폭력행위 | D41: 0 | E41: 0 | F41: 0 | G41: 0 | H41: 0 | I41: 0 | J41: 0 | K41: 0 | L41: 0 | M41: 0 | N41: 0 | O41: 0 | P41: 1 | Q41: 0 | R41: 0 | S41: 0 | T41: 0 | U41: 0 | V41: 0 | W41: 0 | X41: 0 | Y41: 0 | Z41: 1 | AA41: 0 | AB41: 1 | AC41: 0 | AD41: 0 | AE41: 0 | AF41: 0 | AG41: 0 | AH41: 0 | AI41: 0 | AJ41: 0 | AK41: 0 | AL41: 1 | AM41: 0
C42: 화학적인자 | D42: 0 | E42: 0 | F42: 0 | G42: 0 | H42: 0 | I42: 0 | J42: 0 | K42: 0 | L42: 0 | M42: 0 | N42: 0 | O42: 0 | P42: 0 | Q42: 0 | R42: 0 | S42: 0 | T42: 0 | U42: 0 | V42: 0 | W42: 0 | X42: 0 | Y42: 0 | Z42: 0 | AA42: 0 | AB42: 0 | AC42: 0 | AD42: 0 | AE42: 0 | AF42: 0 | AG42: 0 | AH42: 0 | AI42: 0 | AJ42: 0 | AK42: 0 | AL42: 0 | AM42: 0
C43: 생물학적인자 | D43: 0 | E43: 0 | F43: 0 | G43: 0 | H43: 0 | I43: 0 | J43: 0 | K43: 0 | L43: 0 | M43: 0 | N43: 0 | O43: 0 | P43: 0 | Q43: 0 | R43: 0 | S43: 0 | T43: 0 | U43: 0 | V43: 0 | W43: 0 | X43: 0 | Y43: 0 | Z43: 0 | AA43: 0 | AB43: 0 | AC43: 0 | AD43: 0 | AE43: 0 | AF43: 0 | AG43: 0 | AH43: 0 | AI43: 0 | AJ43: 0 | AK43: 0 | AL43: 0 | AM43: 0
C44: 직업병기타 | D44: 0 | E44: 0 | F44: 0 | G44: 0 | H44: 0 | I44: 0 | J44: 0 | K44: 0 | L44: 0 | M44: 0 | N44: 0 | O44: 0 | P44: 0 | Q44: 0 | R44: 0 | S44: 0 | T44: 0 | U44: 0 | V44: 0 | W44: 0 | X44: 0 | Y44: 0 | Z44: 0 | AA44: 0 | AB44: 0 | AC44: 0 | AD44: 0 | AE44: 0 | AF44: 0 | AG44: 0 | AH44: 0 | AI44: 0 | AJ44: 0 | AK44: 0 | AL44: 0 | AM44: 0
C45: 뇌심혈관질환 | D45: 0 | E45: 0 | F45: 0 | G45: 0 | H45: 0 | I45: 0 | J45: 0 | K45: 0 | L45: 0 | M45: 0 | N45: 0 | O45: 0 | P45: 0 | Q45: 0 | R45: 0 | S45: 0 | T45: 0 | U45: 0 | V45: 0 | W45: 0 | X45: 0 | Y45: 0 | Z45: 0 | AA45: 0 | AB45: 0 | AC45: 0 | AD45: 0 | AE45: 0 | AF45: 0 | AG45: 0 | AH45: 0 | AI45: 0 | AJ45: 0 | AK45: 0 | AL45: 0 | AM45: 0
C46: 근골격계질환 | D46: 0 | E46: 0 | F46: 0 | G46: 0 | H46: 0 | I46: 0 | J46: 0 | K46: 0 | L46: 0 | M46: 0 | N46: 0 | O46: 0 | P46: 0 | Q46: 0 | R46: 0 | S46: 0 | T46: 0 | U46: 0 | V46: 0 | W46: 0 | X46: 0 | Y46: 0 | Z46: 0 | AA46: 0 | AB46: 0 | AC46: 0 | AD46: 0 | AE46: 0 | AF46: 0 | AG46: 0 | AH46: 0 | AI46: 0 | AJ46: 0 | AK46: 0 | AL46: 0 | AM46: 0
B47: 부산북부 | C47: 합계 | D47: 92 | E47: 0 | F47: 49 | G47: 0 | H47: 14 | I47: 0 | J47: 16 | K47: 0 | L47: 7 | M47: 0 | N47: 6 | O47: 0 | P47: 93 | Q47: 0 | R47: 54 | S47: 0 | T47: 18 | U47: 0 | V47: 14 | W47: 0 | X47: 2 | Y47: 0 | Z47: 5 | AA47: 0 | AB47: 55 | AC47: 0 | AD47: 30 | AE47: 0 | AF47: 13 | AG47: 0 | AH47: 1 | AI47: 0 | AJ47: 0 | AK47: 0 | AL47: 11 | AM47: 0
C48: 떨어짐(높이가 있는 곳에서 사람이 떨어짐) | D48: 1 | E48: 0 | F48: 0 | G48: 0 | H48: 1 | I48: 0 | J48: 0 | K48: 0 | L48: 0 | M48: 0 | N48: 0 | O48: 0 | P48: 1 | Q48: 0 | R48: 1 | S48: 0 | T48: 0 | U48: 0 | V48: 0 | W48: 0 | X48: 0 | Y48: 0 | Z48: 0 | AA48: 0 | AB48: 0 | AC48: 0 | AD48: 0 | AE48: 0 | AF48: 0 | AG48: 0 | AH48: 0 | AI48: 0 | AJ48: 0 | AK48: 0 | AL48: 0 | AM48: 0
C49: 넘어짐(사람이 미끄러지거나 넘어짐) | D49: 23 | E49: 0 | F49: 10 | G49: 0 | H49: 4 | I49: 0 | J49: 5 | K49: 0 | L49: 3 | M49: 0 | N49: 1 | O49: 0 | P49: 18 | Q49: 0 | R49: 12 | S49: 0 | T49: 3 | U49: 0 | V49: 1 | W49: 0 | X49: 0 | Y49: 0 | Z49: 2 | AA49: 0 | AB49: 14 | AC49: 0 | AD49: 7 | AE49: 0 | AF49: 3 | AG49: 0 | AH49: 0 | AI49: 0 | AJ49: 0 | AK49: 0 | AL49: 4 | AM49: 0
C50: 깔림·뒤집힘(물체의 쓰러짐이나 뒤집힘) | D50: 1 | E50: 0 | F50: 0 | G50: 0 | H50: 0 | I50: 0 | J50: 0 | K50: 0 | L50: 1 | M50: 0 | N50: 0 | O50: 0 | P50: 1 | Q50: 0 | R50: 1 | S50: 0 | T50: 0 | U50: 0 | V50: 0 | W50: 0 | X50: 0 | Y50: 0 | Z50: 0 | AA50: 0 | AB50: 1 | AC50: 0 | AD50: 0 | AE50: 0 | AF50: 0 | AG50: 0 | AH50: 0 | AI50: 0 | AJ50: 0 | AK50: 0 | AL50: 1 | AM50: 0
C51: 부딪힘(물체에 부딪힘) | D51: 5 | E51: 0 | F51: 1 | G51: 0 | H51: 2 | I51: 0 | J51: 2 | K51: 0 | L51: 0 | M51: 0 | N51: 0 | O51: 0 | P51: 4 | Q51: 0 | R51: 1 | S51: 0 | T51: 1 | U51: 0 | V51: 1 | W51: 0 | X51: 1 | Y51: 0 | Z51: 0 | AA51: 0 | AB51: 1 | AC51: 0 | AD51: 1 | AE51: 0 | AF51: 0 | AG51: 0 | AH51: 0 | AI51: 0 | AJ51: 0 | AK51: 0 | AL51: 0 | AM51: 0
C52: 물체에 맞음(날아오거나 떨어진 물체에 맞음) | D52: 3 | E52: 0 | F52: 1 | G52: 0 | H52: 1 | I52: 0 | J52: 0 | K52: 0 | L52: 0 | M52: 0 | N52: 1 | O52: 0 | P52: 0 | Q52: 0 | R52: 0 | S52: 0 | T52: 0 | U52: 0 | V52: 0 | W52: 0 | X52: 0 | Y52: 0 | Z52: 0 | AA52: 0 | AB52: 1 | AC52: 0 | AD52: 1 | AE52: 0 | AF52: 0 | AG52: 0 | AH52: 0 | AI52: 0 | AJ52: 0 | AK52: 0 | AL52: 0 | AM52: 0
C53: 끼임(기계설비에 끼이거나 감김) | D53: 11 | E53: 0 | F53: 7 | G53: 0 | H53: 2 | I53: 0 | J53: 1 | K53: 0 | L53: 1 | M53: 0 | N53: 0 | O53: 0 | P53: 4 | Q53: 0 | R53: 2 | S53: 0 | T53: 1 | U53: 0 | V53: 0 | W53: 0 | X53: 0 | Y53: 0 | Z53: 1 | AA53: 0 | AB53: 4 | AC53: 0 | AD53: 2 | AE53: 0 | AF53: 1 | AG53: 0 | AH53: 0 | AI53: 0 | AJ53: 0 | AK53: 0 | AL53: 1 | AM53: 0
C54: 절단·베임·찔림 | D54: 14 | E54: 0 | F54: 10 | G54: 0 | H54: 1 | I54: 0 | J54: 2 | K54: 0 | L54: 1 | M54: 0 | N54: 0 | O54: 0 | P54: 17 | Q54: 0 | R54: 8 | S54: 0 | T54: 5 | U54: 0 | V54: 4 | W54: 0 | X54: 0 | Y54: 0 | Z54: 0 | AA54: 0 | AB54: 12 | AC54: 0 | AD54: 5 | AE54: 0 | AF54: 6 | AG54: 0 | AH54: 0 | AI54: 0 | AJ54: 0 | AK54: 0 | AL54: 1 | AM54: 0
C55: 폭발·파열 | D55: 0 | E55: 0 | F55: 0 | G55: 0 | H55: 0 | I55: 0 | J55: 0 | K55: 0 | L55: 0 | M55: 0 | N55: 0 | O55: 0 | P55: 1 | Q55: 0 | R55: 0 | S55: 0 | T55: 0 | U55: 0 | V55: 1 | W55: 0 | X55: 0 | Y55: 0 | Z55: 0 | AA55: 0 | AB55: 0 | AC55: 0 | AD55: 0 | AE55: 0 | AF55: 0 | AG55: 0 | AH55: 0 | AI55: 0 | AJ55: 0 | AK55: 0 | AL55: 0 | AM55: 0
C56: 불균형 및 무리한 동작 | D56: 3 | E56: 0 | F56: 1 | G56: 0 | H56: 0 | I56: 0 | J56: 0 | K56: 0 | L56: 0 | M56: 0 | N56: 2 | O56: 0 | P56: 5 | Q56: 0 | R56: 4 | S56: 0 | T56: 0 | U56: 0 | V56: 1 | W56: 0 | X56: 0 | Y56: 0 | Z56: 0 | AA56: 0 | AB56: 1 | AC56: 0 | AD56: 1 | AE56: 0 | AF56: 0 | AG56: 0 | AH56: 0 | AI56: 0 | AJ56: 0 | AK56: 0 | AL56: 0 | AM56: 0
C57: 이상온도 접촉 | D57: 22 | E57: 0 | F57: 14 | G57: 0 | H57: 3 | I57: 0 | J57: 3 | K57: 0 | L57: 1 | M57: 0 | N57: 1 | O57: 0 | P57: 38 | Q57: 0 | R57: 23 | S57: 0 | T57: 7 | U57: 0 | V57: 5 | W57: 0 | X57: 1 | Y57: 0 | Z57: 2 | AA57: 0 | AB57: 17 | AC57: 0 | AD57: 10 | AE57: 0 | AF57: 3 | AG57: 0 | AH57: 1 | AI57: 0 | AJ57: 0 | AK57: 0 | AL57: 3 | AM57: 0
C58: 화학물질누출·접촉 | D58: 0 | E58: 0 | F58: 0 | G58: 0 | H58: 0 | I58: 0 | J58: 0 | K58: 0 | L58: 0 | M58: 0 | N58: 0 | O58: 0 | P58: 1 | Q58: 0 | R58: 0 | S58: 0 | T58: 1 | U58: 0 | V58: 0 | W58: 0 | X58: 0 | Y58: 0 | Z58: 0 | AA58: 0 | AB58: 0 | AC58: 0 | AD58: 0 | AE58: 0 | AF58: 0 | AG58: 0 | AH58: 0 | AI58: 0 | AJ58: 0 | AK58: 0 | AL58: 0 | AM58: 0
C59: 사업장외 교통사고 | D59: 9 | E59: 0 | F59: 5 | G59: 0 | H59: 0 | I59: 0 | J59: 3 | K59: 0 | L59: 0 | M59: 0 | N59: 1 | O59: 0 | P59: 3 | Q59: 0 | R59: 2 | S59: 0 | T59: 0 | U59: 0 | V59: 1 | W59: 0 | X59: 0 | Y59: 0 | Z59: 0 | AA59: 0 | AB59: 3 | AC59: 0 | AD59: 2 | AE59: 0 | AF59: 0 | AG59: 0 | AH59: 0 | AI59: 0 | AJ59: 0 | AK59: 0 | AL59: 1 | AM59: 0
C60: 동물상해 | D60: 0 | E60: 0 | F60: 0 | G60: 0 | H60: 0 | I60: 0 | J60: 0 | K60: 0 | L60: 0 | M60: 0 | N60: 0 | O60: 0 | P60: 0 | Q60: 0 | R60: 0 | S60: 0 | T60: 0 | U60: 0 | V60: 0 | W60: 0 | X60: 0 | Y60: 0 | Z60: 0 | AA60: 0 | AB60: 1 | AC60: 0 | AD60: 1 | AE60: 0 | AF60: 0 | AG60: 0 | AH60: 0 | AI60: 0 | AJ60: 0 | AK60: 0 | AL60: 0 | AM60: 0
C61: 뇌심혈관질환 | D61: 0 | E61: 0 | F61: 0 | G61: 0 | H61: 0 | I61: 0 | J61: 0 | K61: 0 | L61: 0 | M61: 0 | N61: 0 | O61: 0 | P61: 0 | Q61: 0 | R61: 0 | S61: 0 | T61: 0 | U61: 0 | V61: 0 | W61: 0 | X61: 0 | Y61: 0 | Z61: 0 | AA61: 0 | AB61: 0 | AC61: 0 | AD61: 0 | AE61: 0 | AF61: 0 | AG61: 0 | AH61: 0 | AI61: 0 | AJ61: 0 | AK61: 0 | AL61: 0 | AM61: 0
C62: 근골격계질환 | D62: 0 | E62: 0 | F62: 0 | G62: 0 | H62: 0 | I62: 0 | J62: 0 | K62: 0 | L62: 0 | M62: 0 | N62: 0 | O62: 0 | P62: 0 | Q62: 0 | R62: 0 | S62: 0 | T62: 0 | U62: 0 | V62: 0 | W62: 0 | X62: 0 | Y62: 0 | Z62: 0 | AA62: 0 | AB62: 0 | AC62: 0 | AD62: 0 | AE62: 0 | AF62: 0 | AG62: 0 | AH62: 0 | AI62: 0 | AJ62: 0 | AK62: 0 | AL62: 0 | AM62: 0
B63: 창 원 | C63: 합계 | D63: 205 | E63: 0 | F63: 124 | G63: 0 | H63: 37 | I63: 0 | J63: 22 | K63: 0 | L63: 10 | M63: 0 | N63: 12 | O63: 0 | P63: 153 | Q63: 0 | R63: 86 | S63: 0 | T63: 31 | U63: 0 | V63: 20 | W63: 0 | X63: 9 | Y63: 0 | Z63: 7 | AA63: 0 | AB63: 120 | AC63: 0 | AD63: 70 | AE63: 0 | AF63: 22 | AG63: 0 | AH63: 19 | AI63: 0 | AJ63: 5 | AK63: 0 | AL63: 4 | AM63: 0
C64: 떨어짐(높이가 있는 곳에서 사람이 떨어짐) | D64: 8 | E64: 0 | F64: 2 | G64: 0 | H64: 3 | I64: 0 | J64: 1 | K64: 0 | L64: 1 | M64: 0 | N64: 1 | O64: 0 | P64: 8 | Q64: 0 | R64: 4 | S64: 0 | T64: 1 | U64: 0 | V64: 1 | W64: 0 | X64: 2 | Y64: 0 | Z64: 0 | AA64: 0 | AB64: 2 | AC64: 0 | AD64: 2 | AE64: 0 | AF64: 0 | AG64: 0 | AH64: 0 | AI64: 0 | AJ64: 0 | AK64: 0 | AL64: 0 | AM64: 0
C65: 넘어짐(사람이 미끄러지거나 넘어짐) | D65: 74 | E65: 0 | F65: 52 | G65: 0 | H65: 10 | I65: 0 | J65: 7 | K65: 0 | L65: 3 | M65: 0 | N65: 2 | O65: 0 | P65: 53 | Q65: 0 | R65: 31 | S65: 0 | T65: 8 | U65: 0 | V65: 9 | W65: 0 | X65: 2 | Y65: 0 | Z65: 3 | AA65: 0 | AB65: 34 | AC65: 0 | AD65: 25 | AE65: 0 | AF65: 4 | AG65: 0 | AH65: 1 | AI65: 0 | AJ65: 2 | AK65: 0 | AL65: 2 | AM65: 0
C66: 깔림·뒤집힘(물체의 쓰러짐이나 뒤집힘) | D66: 1 | E66: 0 | F66: 1 | G66: 0 | H66: 0 | I66: 0 | J66: 0 | K66: 0 | L66: 0 | M66: 0 | N66: 0 | O66: 0 | P66: 1 | Q66: 0 | R66: 0 | S66: 0 | T66: 0 | U66: 0 | V66: 1 | W66: 0 | X66: 0 | Y66: 0 | Z66: 0 | AA66: 0 | AB66: 0 | AC66: 0 | AD66: 0 | AE66: 0 | AF66: 0 | AG66: 0 | AH66: 0 | AI66: 0 | AJ66: 0 | AK66: 0 | AL66: 0 | AM66: 0
C67: 부딪힘(물체에 부딪힘) | D67: 7 | E67: 0 | F67: 5 | G67: 0 | H67: 1 | I67: 0 | J67: 1 | K67: 0 | L67: 0 | M67: 0 | N67: 0 | O67: 0 | P67: 6 | Q67: 0 | R67: 4 | S67: 0 | T67: 2 | U67: 0 | V67: 0 | W67: 0 | X67: 0 | Y67: 0 | Z67: 0 | AA67: 0 | AB67: 7 | AC67: 0 | AD67: 3 | AE67: 0 | AF67: 1 | AG67: 0 | AH67: 0 | AI67: 0 | AJ67: 2 | AK67: 0 | AL67: 1 | AM67: 0
C68: 물체에 맞음(날아오거나 떨어진 물체에 맞음) | D68: 2 | E68: 0 | F68: 0 | G68: 0 | H68: 0 | I68: 0 | J68: 1 | K68: 0 | L68: 0 | M68: 0 | N68: 1 | O68: 0 | P68: 2 | Q68: 0 | R68: 2 | S68: 0 | T68: 0 | U68: 0 | V68: 0 | W68: 0 | X68: 0 | Y68: 0 | Z68: 0 | AA68: 0 | AB68: 5 | AC68: 0 | AD68: 1 | AE68: 0 | AF68: 2 | AG68: 0 | AH68: 1 | AI68: 0 | AJ68: 0 | AK68: 0 | AL68: 1 | AM68: 0
C69: 무너짐(건축물이나 쌓여진 물체가 무너짐) | D69: 1 | E69: 0 | F69: 1 | G69: 0 | H69: 0 | I69: 0 | J69: 0 | K69: 0 | L69: 0 | M69: 0 | N69: 0 | O69: 0 | P69: 0 | Q69: 0 | R69: 0 | S69: 0 | T69: 0 | U69: 0 | V69: 0 | W69: 0 | X69: 0 | Y69: 0 | Z69: 0 | AA69: 0 | AB69: 0 | AC69: 0 | AD69: 0 | AE69: 0 | AF69: 0 | AG69: 0 | AH69: 0 | AI69: 0 | AJ69: 0 | AK69: 0 | AL69: 0 | AM69: 0
C70: 끼임(기계설비에 끼이거나 감김) | D70: =SUM(F70,H70,J70,L70,N70) -> 11 | E70: =SUM(G70,I70,K70,M70,O70) -> 0 | F70: 6 | G70: 0 | H70: 2 | I70: 0 | J70: 1 | K70: 0 | L70: 2 | M70: 0 | N70: 0 | O70: 0 | P70: =SUM(R70,T70,V70,X70,Z70) -> 8 | Q70: =SUM(S70,U70,W70,Y70,AA70) -> 0 | R70: 4 | S70: 0 | T70: 2 | U70: 0 | V70: 2 | W70: 0 | X70: 0 | Y70: 0 | Z70: 0 | AA70: 0 | AB70: =SUM(AD70,AF70,AH70,AJ70,AL70) -> 11 | AC70: =SUM(AE70,AG70,AI70,AK70,AM70) -> 0 | AD70: 5 | AE70: 0 | AF70: 3 | AG70: 0 | AH70: 3 | AI70: 0 | AJ70: 0 | AK70: 0 | AL70: 0 | AM70: 0
C71: 절단·베임·찔림 | D71: 28 | E71: 0 | F71: 15 | G71: 0 | H71: 8 | I71: 0 | J71: 4 | K71: 0 | L71: 0 | M71: 0 | N71: 1 | O71: 0 | P71: 24 | Q71: 0 | R71: 7 | S71: 0 | T71: 7 | U71: 0 | V71: 5 | W71: 0 | X71: 2 | Y71: 0 | Z71: 3 | AA71: 0 | AB71: 17 | AC71: 0 | AD71: 8 | AE71: 0 | AF71: 3 | AG71: 0 | AH71: 6 | AI71: 0 | AJ71: 0 | AK71: 0 | AL71: 0 | AM71: 0
C72: 불균형 및 무리한 동작 | D72: 7 | E72: 0 | F72: 2 | G72: 0 | H72: 1 | I72: 0 | J72: 1 | K72: 0 | L72: 1 | M72: 0 | N72: 2 | O72: 0 | P72: 3 | Q72: 0 | R72: 3 | S72: 0 | T72: 0 | U72: 0 | V72: 0 | W72: 0 | X72: 0 | Y72: 0 | Z72: 0 | AA72: 0 | AB72: 5 | AC72: 0 | AD72: 2 | AE72: 0 | AF72: 1 | AG72: 0 | AH72: 1 | AI72: 0 | AJ72: 1 | AK72: 0 | AL72: 0 | AM72: 0
C73: 이상온도 접촉 | D73: 45 | E73: 0 | F73: 25 | G73: 0 | H73: 11 | I73: 0 | J73: 5 | K73: 0 | L73: 3 | M73: 0 | N73: 1 | O73: 0 | P73: 36 | Q73: 0 | R73: 24 | S73: 0 | T73: 8 | U73: 0 | V73: 1 | W73: 0 | X73: 2 | Y73: 0 | Z73: 1 | AA73: 0 | AB73: 34 | AC73: 0 | AD73: 21 | AE73: 0 | AF73: 7 | AG73: 0 | AH73: 6 | AI73: 0 | AJ73: 0 | AK73: 0 | AL73: 0 | AM73: 0
C74: 사업장외 교통사고 | D74: 21 | E74: 0 | F74: 15 | G74: 0 | H74: 1 | I74: 0 | J74: 1 | K74: 0 | L74: 0 | M74: 0 | N74: 4 | O74: 0 | P74: 12 | Q74: 0 | R74: 7 | S74: 0 | T74: 3 | U74: 0 | V74: 1 | W74: 0 | X74: 1 | Y74: 0 | Z74: 0 | AA74: 0 | AB74: 5 | AC74: 0 | AD74: 3 | AE74: 0 | AF74: 1 | AG74: 0 | AH74: 1 | AI74: 0 | AJ74: 0 | AK74: 0 | AL74: 0 | AM74: 0
C75: 근골격계질환 | D75: 0 | E75: 0 | F75: 0 | G75: 0 | H75: 0 | I75: 0 | J75: 0 | K75: 0 | L75: 0 | M75: 0 | N75: 0 | O75: 0 | P75: 0 | Q75: 0 | R75: 0 | S75: 0 | T75: 0 | U75: 0 | V75: 0 | W75: 0 | X75: 0 | Y75: 0 | Z75: 0 | AA75: 0 | AB75: 0 | AC75: 0 | AD75: 0 | AE75: 0 | AF75: 0 | AG75: 0 | AH75: 0 | AI75: 0 | AJ75: 0 | AK75: 0 | AL75: 0 | AM75: 0
C76: 작업관련성질환 기타 | D76: 0 | E76: 0 | F76: 0 | G76: 0 | H76: 0 | I76: 0 | J76: 0 | K76: 0 | L76: 0 | M76: 0 | N76: 0 | O76: 0 | P76: 0 | Q76: 0 | R76: 0 | S76: 0 | T76: 0 | U76: 0 | V76: 0 | W76: 0 | X76: 0 | Y76: 0 | Z76: 0 | AA76: 0 | AB76: 0 | AC76: 0 | AD76: 0 | AE76: 0 | AF76: 0 | AG76: 0 | AH76: 0 | AI76: 0 | AJ76: 0 | AK76: 0 | AL76: 0 | AM76: 0
B77: 울 산 | C77: 합계 | D77: 186 | E77: 0 | F77: 96 | G77: 0 | H77: 33 | I77: 0 | J77: 33 | K77: 0 | L77: 13 | M77: 0 | N77: 11 | O77: 0 | P77: 151 | Q77: 0 | R77: 77 | S77: 0 | T77: 31 | U77: 0 | V77: 22 | W77: 0 | X77: 13 | Y77: 0 | Z77: 8 | AA77: 0 | AB77: 113 | AC77: 0 | AD77: 63 | AE77: 0 | AF77: 26 | AG77: 0 | AH77: 12 | AI77: 0 | AJ77: 3 | AK77: 0 | AL77: 9 | AM77: 0
C78: 떨어짐(높이가 있는 곳에서 사람이 떨어짐) | D78: 2 | E78: 0 | F78: 0 | G78: 0 | H78: 0 | I78: 0 | J78: 0 | K78: 0 | L78: 0 | M78: 0 | N78: 2 | O78: 0 | P78: 3 | Q78: 0 | R78: 1 | S78: 0 | T78: 0 | U78: 0 | V78: 0 | W78: 0 | X78: 1 | Y78: 0 | Z78: 1 | AA78: 0 | AB78: 3 | AC78: 0 | AD78: 3 | AE78: 0 | AF78: 0 | AG78: 0 | AH78: 0 | AI78: 0 | AJ78: 0 | AK78: 0 | AL78: 0 | AM78: 0
C79: 넘어짐(사람이 미끄러지거나 넘어짐) | D79: 53 | E79: 0 | F79: 27 | G79: 0 | H79: 12 | I79: 0 | J79: 10 | K79: 0 | L79: 1 | M79: 0 | N79: 3 | O79: 0 | P79: 46 | Q79: 0 | R79: 21 | S79: 0 | T79: 10 | U79: 0 | V79: 8 | W79: 0 | X79: 4 | Y79: 0 | Z79: 3 | AA79: 0 | AB79: 43 | AC79: 0 | AD79: 26 | AE79: 0 | AF79: 7 | AG79: 0 | AH79: 4 | AI79: 0 | AJ79: 2 | AK79: 0 | AL79: 4 | AM79: 0
C80: 깔림·뒤집힘(물체의 쓰러짐이나 뒤집힘) | D80: 1 | E80: 0 | F80: 1 | G80: 0 | H80: 0 | I80: 0 | J80: 0 | K80: 0 | L80: 0 | M80: 0 | N80: 0 | O80: 0 | P80: 2 | Q80: 0 | R80: 0 | S80: 0 | T80: 1 | U80: 0 | V80: 1 | W80: 0 | X80: 0 | Y80: 0 | Z80: 0 | AA80: 0 | AB80: 0 | AC80: 0 | AD80: 0 | AE80: 0 | AF80: 0 | AG80: 0 | AH80: 0 | AI80: 0 | AJ80: 0 | AK80: 0 | AL80: 0 | AM80: 0
C81: 부딪힘(물체에 부딪힘) | D81: 3 | E81: 0 | F81: 1 | G81: 0 | H81: 1 | I81: 0 | J81: 0 | K81: 0 | L81: 1 | M81: 0 | N81: 0 | O81: 0 | P81: 2 | Q81: 0 | R81: 1 | S81: 0 | T81: 0 | U81: 0 | V81: 1 | W81: 0 | X81: 0 | Y81: 0 | Z81: 0 | AA81: 0 | AB81: 4 | AC81: 0 | AD81: 2 | AE81: 0 | AF81: 2 | AG81: 0 | AH81: 0 | AI81: 0 | AJ81: 0 | AK81: 0 | AL81: 0 | AM81: 0
C82: 물체에 맞음(날아오거나 떨어진 물체에 맞음) | D82: 6 | E82: 0 | F82: 1 | G82: 0 | H82: 2 | I82: 0 | J82: 2 | K82: 0 | L82: 1 | M82: 0 | N82: 0 | O82: 0 | P82: 3 | Q82: 0 | R82: 3 | S82: 0 | T82: 0 | U82: 0 | V82: 0 | W82: 0 | X82: 0 | Y82: 0 | Z82: 0 | AA82: 0 | AB82: 2 | AC82: 0 | AD82: 1 | AE82: 0 | AF82: 1 | AG82: 0 | AH82: 0 | AI82: 0 | AJ82: 0 | AK82: 0 | AL82: 0 | AM82: 0
C83: 끼임(기계설비에 끼이거나 감김) | D83: 16 | E83: 0 | F83: 9 | G83: 0 | H83: 5 | I83: 0 | J83: 1 | K83: 0 | L83: 1 | M83: 0 | N83: 0 | O83: 0 | P83: 12 | Q83: 0 | R83: 8 | S83: 0 | T83: 1 | U83: 0 | V83: 1 | W83: 0 | X83: 1 | Y83: 0 | Z83: 1 | AA83: 0 | AB83: 10 | AC83: 0 | AD83: 4 | AE83: 0 | AF83: 5 | AG83: 0 | AH83: 1 | AI83: 0 | AJ83: 0 | AK83: 0 | AL83: 0 | AM83: 0
C84: 절단·베임·찔림 | D84: 38 | E84: 0 | F84: 15 | G84: 0 | H84: 6 | I84: 0 | J84: 12 | K84: 0 | L84: 4 | M84: 0 | N84: 1 | O84: 0 | P84: 31 | Q84: 0 | R84: 12 | S84: 0 | T84: 10 | U84: 0 | V84: 5 | W84: 0 | X84: 3 | Y84: 0 | Z84: 1 | AA84: 0 | AB84: 13 | AC84: 0 | AD84: 7 | AE84: 0 | AF84: 4 | AG84: 0 | AH84: 1 | AI84: 0 | AJ84: 1 | AK84: 0 | AL84: 0 | AM84: 0
C85: 화재 | D85: 1 | E85: 0 | F85: 1 | G85: 0 | H85: 0 | I85: 0 | J85: 0 | K85: 0 | L85: 0 | M85: 0 | N85: 0 | O85: 0 | P85: 0 | Q85: 0 | R85: 0 | S85: 0 | T85: 0 | U85: 0 | V85: 0 | W85: 0 | X85: 0 | Y85: 0 | Z85: 0 | AA85: 0 | AB85: 0 | AC85: 0 | AD85: 0 | AE85: 0 | AF85: 0 | AG85: 0 | AH85: 0 | AI85: 0 | AJ85: 0 | AK85: 0 | AL85: 0 | AM85: 0
C86: 불균형 및 무리한 동작 | D86: 5 | E86: 0 | F86: 1 | G86: 0 | H86: 3 | I86: 0 | J86: 1 | K86: 0 | L86: 0 | M86: 0 | N86: 0 | O86: 0 | P86: 6 | Q86: 0 | R86: 3 | S86: 0 | T86: 2 | U86: 0 | V86: 0 | W86: 0 | X86: 0 | Y86: 0 | Z86: 1 | AA86: 0 | AB86: 4 | AC86: 0 | AD86: 2 | AE86: 0 | AF86: 1 | AG86: 0 | AH86: 1 | AI86: 0 | AJ86: 0 | AK86: 0 | AL86: 0 | AM86: 0
C87: 이상온도 접촉 | D87: 41 | E87: 0 | F87: 23 | G87: 0 | H87: 3 | I87: 0 | J87: 7 | K87: 0 | L87: 3 | M87: 0 | N87: 5 | O87: 0 | P87: 28 | Q87: 0 | R87: 17 | S87: 0 | T87: 6 | U87: 0 | V87: 2 | W87: 0 | X87: 2 | Y87: 0 | Z87: 1 | AA87: 0 | AB87: 21 | AC87: 0 | AD87: 11 | AE87: 0 | AF87: 4 | AG87: 0 | AH87: 3 | AI87: 0 | AJ87: 0 | AK87: 0 | AL87: 3 | AM87: 0
C88: 화학물질누출·접촉 | D88: 1 | E88: 0 | F88: 1 | G88: 0 | H88: 0 | I88: 0 | J88: 0 | K88: 0 | L88: 0 | M88: 0 | N88: 0 | O88: 0 | P88: 0 | Q88: 0 | R88: 0 | S88: 0 | T88: 0 | U88: 0 | V88: 0 | W88: 0 | X88: 0 | Y88: 0 | Z88: 0 | AA88: 0 | AB88: 0 | AC88: 0 | AD88: 0 | AE88: 0 | AF88: 0 | AG88: 0 | AH88: 0 | AI88: 0 | AJ88: 0 | AK88: 0 | AL88: 0 | AM88: 0
C89: 사업장외 교통사고 | D89: 18 | E89: 0 | F89: 16 | G89: 0 | H89: 1 | I89: 0 | J89: 0 | K89: 0 | L89: 1 | M89: 0 | N89: 0 | O89: 0 | P89: 15 | Q89: 0 | R89: 10 | S89: 0 | T89: 1 | U89: 0 | V89: 2 | W89: 0 | X89: 2 | Y89: 0 | Z89: 0 | AA89: 0 | AB89: 12 | AC89: 0 | AD89: 6 | AE89: 0 | AF89: 2 | AG89: 0 | AH89: 2 | AI89: 0 | AJ89: 0 | AK89: 0 | AL89: 2 | AM89: 0
C90: 체육행사 등의 사고 | D90: 1 | E90: 0 | F90: 0 | G90: 0 | H90: 0 | I90: 0 | J90: 0 | K90: 0 | L90: 1 | M90: 0 | N90: 0 | O90: 0 | P90: 1 | Q90: 0 | R90: 1 | S90: 0 | T90: 0 | U90: 0 | V90: 0 | W90: 0 | X90: 0 | Y90: 0 | Z90: 0 | AA90: 0 | AB90: 0 | AC90: 0 | AD90: 0 | AE90: 0 | AF90: 0 | AG90: 0 | AH90: 0 | AI90: 0 | AJ90: 0 | AK90: 0 | AL90: 0 | AM90: 0
C91: 동물상해 | D91: 0 | E91: 0 | F91: 0 | G91: 0 | H91: 0 | I91: 0 | J91: 0 | K91: 0 | L91: 0 | M91: 0 | N91: 0 | O91: 0 | P91: 0 | Q91: 0 | R91: 0 | S91: 0 | T91: 0 | U91: 0 | V91: 0 | W91: 0 | X91: 0 | Y91: 0 | Z91: 0 | AA91: 0 | AB91: 1 | AC91: 0 | AD91: 1 | AE91: 0 | AF91: 0 | AG91: 0 | AH91: 0 | AI91: 0 | AJ91: 0 | AK91: 0 | AL91: 0 | AM91: 0
C92: 기타 | D92: 0 | E92: 0 | F92: 0 | G92: 0 | H92: 0 | I92: 0 | J92: 0 | K92: 0 | L92: 0 | M92: 0 | N92: 0 | O92: 0 | P92: 2 | Q92: 0 | R92: 0 | S92: 0 | T92: 0 | U92: 0 | V92: 2 | W92: 0 | X92: 0 | Y92: 0 | Z92: 0 | AA92: 0 | AB92: 0 | AC92: 0 | AD92: 0 | AE92: 0 | AF92: 0 | AG92: 0 | AH92: 0 | AI92: 0 | AJ92: 0 | AK92: 0 | AL92: 0 | AM92: 0
C93: 뇌심혈관질환 | D93: 0 | E93: 0 | F93: 0 | G93: 0 | H93: 0 | I93: 0 | J93: 0 | K93: 0 | L93: 0 | M93: 0 | N93: 0 | O93: 0 | P93: 0 | Q93: 0 | R93: 0 | S93: 0 | T93: 0 | U93: 0 | V93: 0 | W93: 0 | X93: 0 | Y93: 0 | Z93: 0 | AA93: 0 | AB93: 0 | AC93: 0 | AD93: 0 | AE93: 0 | AF93: 0 | AG93: 0 | AH93: 0 | AI93: 0 | AJ93: 0 | AK93: 0 | AL93: 0 | AM93: 0
C94: 근골격계질환 | D94: 0 | E94: 0 | F94: 0 | G94: 0 | H94: 0 | I94: 0 | J94: 0 | K94: 0 | L94: 0 | M94: 0 | N94: 0 | O94: 0 | P94: 0 | Q94: 0 | R94: 0 | S94: 0 | T94: 0 | U94: 0 | V94: 0 | W94: 0 | X94: 0 | Y94: 0 | Z94: 0 | AA94: 0 | AB94: 0 | AC94: 0 | AD94: 0 | AE94: 0 | AF94: 0 | AG94: 0 | AH94: 0 | AI94: 0 | AJ94: 0 | AK94: 0 | AL94: 0 | AM94: 0
C95: 작업관련성질환 기타 | D95: 0 | E95: 0 | F95: 0 | G95: 0 | H95: 0 | I95: 0 | J95: 0 | K95: 0 | L95: 0 | M95: 0 | N95: 0 | O95: 0 | P95: 0 | Q95: 0 | R95: 0 | S95: 0 | T95: 0 | U95: 0 | V95: 0 | W95: 0 | X95: 0 | Y95: 0 | Z95: 0 | AA95: 0 | AB95: 0 | AC95: 0 | AD95: 0 | AE95: 0 | AF95: 0 | AG95: 0 | AH95: 0 | AI95: 0 | AJ95: 0 | AK95: 0 | AL95: 0 | AM95: 0
B96: 양 산 | C96: 합계 | D96: 160 | E96: 0 | F96: 100 | G96: 0 | H96: 26 | I96: 0 | J96: 13 | K96: 0 | L96: 13 | M96: 0 | N96: 8 | O96: 0 | P96: 142 | Q96: 1 | R96: 87 | S96: 1 | T96: 25 | U96: 0 | V96: 17 | W96: 0 | X96: 3 | Y96: 0 | Z96: 10 | AA96: 0 | AB96: 100 | AC96: 0 | AD96: 55 | AE96: 0 | AF96: 20 | AG96: 0 | AH96: 9 | AI96: 0 | AJ96: 7 | AK96: 0 | AL96: 9 | AM96: 0
C97: 떨어짐(높이가 있는 곳에서 사람이 떨어짐) | D97: 0 | E97: 0 | F97: 0 | G97: 0 | H97: 0 | I97: 0 | J97: 0 | K97: 0 | L97: 0 | M97: 0 | N97: 0 | O97: 0 | P97: 2 | Q97: 0 | R97: 1 | S97: 0 | T97: 1 | U97: 0 | V97: 0 | W97: 0 | X97: 0 | Y97: 0 | Z97: 0 | AA97: 0 | AB97: 2 | AC97: 0 | AD97: 1 | AE97: 0 | AF97: 1 | AG97: 0 | AH97: 0 | AI97: 0 | AJ97: 0 | AK97: 0 | AL97: 0 | AM97: 0
C98: 넘어짐(사람이 미끄러지거나 넘어짐) | D98: 52 | E98: 0 | F98: 33 | G98: 0 | H98: 8 | I98: 0 | J98: 3 | K98: 0 | L98: 6 | M98: 0 | N98: 2 | O98: 0 | P98: 38 | Q98: 0 | R98: 25 | S98: 0 | T98: 5 | U98: 0 | V98: 5 | W98: 0 | X98: 2 | Y98: 0 | Z98: 1 | AA98: 0 | AB98: 26 | AC98: 0 | AD98: 16 | AE98: 0 | AF98: 4 | AG98: 0 | AH98: 0 | AI98: 0 | AJ98: 4 | AK98: 0 | AL98: 2 | AM98: 0
C99: 깔림·뒤집힘(물체의 쓰러짐이나 뒤집힘) | D99: 2 | E99: 0 | F99: 2 | G99: 0 | H99: 0 | I99: 0 | J99: 0 | K99: 0 | L99: 0 | M99: 0 | N99: 0 | O99: 0 | P99: 0 | Q99: 0 | R99: 0 | S99: 0 | T99: 0 | U99: 0 | V99: 0 | W99: 0 | X99: 0 | Y99: 0 | Z99: 0 | AA99: 0 | AB99: 0 | AC99: 0 | AD99: 0 | AE99: 0 | AF99: 0 | AG99: 0 | AH99: 0 | AI99: 0 | AJ99: 0 | AK99: 0 | AL99: 0 | AM99: 0
C100: 부딪힘(물체에 부딪힘) | D100: 5 | E100: 0 | F100: 4 | G100: 0 | H100: 0 | I100: 0 | J100: 0 | K100: 0 | L100: 1 | M100: 0 | N100: 0 | O100: 0 | P100: 11 | Q100: 0 | R100: 4 | S100: 0 | T100: 4 | U100: 0 | V100: 1 | W100: 0 | X100: 0 | Y100: 0 | Z100: 2 | AA100: 0 | AB100: 4 | AC100: 0 | AD100: 2 | AE100: 0 | AF100: 1 | AG100: 0 | AH100: 0 | AI100: 0 | AJ100: 0 | AK100: 0 | AL100: 1 | AM100: 0
C101: 물체에 맞음(날아오거나 떨어진 물체에 맞음) | D101: 5 | E101: 0 | F101: 5 | G101: 0 | H101: 0 | I101: 0 | J101: 0 | K101: 0 | L101: 0 | M101: 0 | N101: 0 | O101: 0 | P101: 3 | Q101: 0 | R101: 1 | S101: 0 | T101: 0 | U101: 0 | V101: 1 | W101: 0 | X101: 0 | Y101: 0 | Z101: 1 | AA101: 0 | AB101: 3 | AC101: 0 | AD101: 1 | AE101: 0 | AF101: 0 | AG101: 0 | AH101: 1 | AI101: 0 | AJ101: 1 | AK101: 0 | AL101: 0 | AM101: 0
C102: 무너짐(건축물이나 쌓여진 물체가 무너짐) | D102: 1 | E102: 0 | F102: 0 | G102: 0 | H102: 0 | I102: 0 | J102: 0 | K102: 0 | L102: 0 | M102: 0 | N102: 1 | O102: 0 | P102: 0 | Q102: 0 | R102: 0 | S102: 0 | T102: 0 | U102: 0 | V102: 0 | W102: 0 | X102: 0 | Y102: 0 | Z102: 0 | AA102: 0 | AB102: 0 | AC102: 0 | AD102: 0 | AE102: 0 | AF102: 0 | AG102: 0 | AH102: 0 | AI102: 0 | AJ102: 0 | AK102: 0 | AL102: 0 | AM102: 0
C103: 끼임(기계설비에 끼이거나 감김) | D103: 13 | E103: 0 | F103: 9 | G103: 0 | H103: 1 | I103: 0 | J103: 2 | K103: 0 | L103: 1 | M103: 0 | N103: 0 | O103: 0 | P103: 7 | Q103: 0 | R103: 5 | S103: 0 | T103: 1 | U103: 0 | V103: 0 | W103: 0 | X103: 0 | Y103: 0 | Z103: 1 | AA103: 0 | AB103: 8 | AC103: 0 | AD103: 5 | AE103: 0 | AF103: 1 | AG103: 0 | AH103: 1 | AI103: 0 | AJ103: 0 | AK103: 0 | AL103: 1 | AM103: 0
C104: 절단·베임·찔림 | D104: 24 | E104: 0 | F104: 14 | G104: 0 | H104: 6 | I104: 0 | J104: 3 | K104: 0 | L104: 1 | M104: 0 | N104: 0 | O104: 0 | P104: 37 | Q104: 0 | R104: 24 | S104: 0 | T104: 4 | U104: 0 | V104: 7 | W104: 0 | X104: 0 | Y104: 0 | Z104: 2 | AA104: 0 | AB104: 16 | AC104: 0 | AD104: 6 | AE104: 0 | AF104: 6 | AG104: 0 | AH104: 4 | AI104: 0 | AJ104: 0 | AK104: 0 | AL104: 0 | AM104: 0
C105: 화재 | D105: 1 | E105: 0 | F105: 1 | G105: 0 | H105: 0 | I105: 0 | J105: 0 | K105: 0 | L105: 0 | M105: 0 | N105: 0 | O105: 0 | P105: 0 | Q105: 0 | R105: 0 | S105: 0 | T105: 0 | U105: 0 | V105: 0 | W105: 0 | X105: 0 | Y105: 0 | Z105: 0 | AA105: 0 | AB105: 0 | AC105: 0 | AD105: 0 | AE105: 0 | AF105: 0 | AG105: 0 | AH105: 0 | AI105: 0 | AJ105: 0 | AK105: 0 | AL105: 0 | AM105: 0
C106: 불균형 및 무리한 동작 | D106: 5 | E106: 0 | F106: 3 | G106: 0 | H106: 1 | I106: 0 | J106: 0 | K106: 0 | L106: 0 | M106: 0 | N106: 1 | O106: 0 | P106: 1 | Q106: 0 | R106: 1 | S106: 0 | T106: 0 | U106: 0 | V106: 0 | W106: 0 | X106: 0 | Y106: 0 | Z106: 0 | AA106: 0 | AB106: 5 | AC106: 0 | AD106: 3 | AE106: 0 | AF106: 1 | AG106: 0 | AH106: 0 | AI106: 0 | AJ106: 0 | AK106: 0 | AL106: 1 | AM106: 0
C107: 이상온도 접촉 | D107: 35 | E107: 0 | F107: 18 | G107: 0 | H107: 8 | I107: 0 | J107: 5 | K107: 0 | L107: 3 | M107: 0 | N107: 1 | O107: 0 | P107: 28 | Q107: 0 | R107: 15 | S107: 0 | T107: 9 | U107: 0 | V107: 3 | W107: 0 | X107: 0 | Y107: 0 | Z107: 1 | AA107: 0 | AB107: 29 | AC107: 0 | AD107: 17 | AE107: 0 | AF107: 6 | AG107: 0 | AH107: 2 | AI107: 0 | AJ107: 2 | AK107: 0 | AL107: 2 | AM107: 0
C108: 사업장외 교통사고 | D108: 17 | E108: 0 | F108: 11 | G108: 0 | H108: 2 | I108: 0 | J108: 0 | K108: 0 | L108: 1 | M108: 0 | N108: 3 | O108: 0 | P108: 13 | Q108: 1 | R108: 9 | S108: 1 | T108: 1 | U108: 0 | V108: 0 | W108: 0 | X108: 1 | Y108: 0 | Z108: 2 | AA108: 0 | AB108: 5 | AC108: 0 | AD108: 2 | AE108: 0 | AF108: 0 | AG108: 0 | AH108: 1 | AI108: 0 | AJ108: 0 | AK108: 0 | AL108: 2 | AM108: 0
C109: 체육행사 등의 사고 | D109: 0 | E109: 0 | F109: 0 | G109: 0 | H109: 0 | I109: 0 | J109: 0 | K109: 0 | L109: 0 | M109: 0 | N109: 0 | O109: 0 | P109: 0 | Q109: 0 | R109: 0 | S109: 0 | T109: 0 | U109: 0 | V109: 0 | W109: 0 | X109: 0 | Y109: 0 | Z109: 0 | AA109: 0 | AB109: 2 | AC109: 0 | AD109: 2 | AE109: 0 | AF109: 0 | AG109: 0 | AH109: 0 | AI109: 0 | AJ109: 0 | AK109: 0 | AL109: 0 | AM109: 0
C110: 폭력행위 | D110: 0 | E110: 0 | F110: 0 | G110: 0 | H110: 0 | I110: 0 | J110: 0 | K110: 0 | L110: 0 | M110: 0 | N110: 0 | O110: 0 | P110: 2 | Q110: 0 | R110: 2 | S110: 0 | T110: 0 | U110: 0 | V110: 0 | W110: 0 | X110: 0 | Y110: 0 | Z110: 0 | AA110: 0 | AB110: 0 | AC110: 0 | AD110: 0 | AE110: 0 | AF110: 0 | AG110: 0 | AH110: 0 | AI110: 0 | AJ110: 0 | AK110: 0 | AL110: 0 | AM110: 0
C111: 뇌심혈관질환 | D111: 0 | E111: 0 | F111: 0 | G111: 0 | H111: 0 | I111: 0 | J111: 0 | K111: 0 | L111: 0 | M111: 0 | N111: 0 | O111: 0 | P111: 0 | Q111: 0 | R111: 0 | S111: 0 | T111: 0 | U111: 0 | V111: 0 | W111: 0 | X111: 0 | Y111: 0 | Z111: 0 | AA111: 0 | AB111: 0 | AC111: 0 | AD111: 0 | AE111: 0 | AF111: 0 | AG111: 0 | AH111: 0 | AI111: 0 | AJ111: 0 | AK111: 0 | AL111: 0 | AM111: 0
C112: 근골격계질환 | D112: 0 | E112: 0 | F112: 0 | G112: 0 | H112: 0 | I112: 0 | J112: 0 | K112: 0 | L112: 0 | M112: 0 | N112: 0 | O112: 0 | P112: 0 | Q112: 0 | R112: 0 | S112: 0 | T112: 0 | U112: 0 | V112: 0 | W112: 0 | X112: 0 | Y112: 0 | Z112: 0 | AA112: 0 | AB112: 0 | AC112: 0 | AD112: 0 | AE112: 0 | AF112: 0 | AG112: 0 | AH112: 0 | AI112: 0 | AJ112: 0 | AK112: 0 | AL112: 0 | AM112: 0
B113: 진 주 | C113: 합계 | D113: 79 | E113: 1 | F113: 58 | G113: 1 | H113: 10 | I113: 0 | J113: 9 | K113: 0 | L113: 1 | M113: 0 | N113: 1 | O113: 0 | P113: 71 | Q113: 1 | R113: 40 | S113: 1 | T113: 14 | U113: 0 | V113: 9 | W113: 0 | X113: 2 | Y113: 0 | Z113: 6 | AA113: 0 | AB113: 46 | AC113: 0 | AD113: 27 | AE113: 0 | AF113: 10 | AG113: 0 | AH113: 4 | AI113: 0 | AJ113: 3 | AK113: 0 | AL113: 2 | AM113: 0
C114: 떨어짐(높이가 있는 곳에서 사람이 떨어짐) | D114: 3 | E114: 0 | F114: 3 | G114: 0 | H114: 0 | I114: 0 | J114: 0 | K114: 0 | L114: 0 | M114: 0 | N114: 0 | O114: 0 | P114: 5 | Q114: 0 | R114: 4 | S114: 0 | T114: 1 | U114: 0 | V114: 0 | W114: 0 | X114: 0 | Y114: 0 | Z114: 0 | AA114: 0 | AB114: 0 | AC114: 0 | AD114: 0 | AE114: 0 | AF114: 0 | AG114: 0 | AH114: 0 | AI114: 0 | AJ114: 0 | AK114: 0 | AL114: 0 | AM114: 0
C115: 넘어짐(사람이 미끄러지거나 넘어짐) | D115: 24 | E115: 0 | F115: 18 | G115: 0 | H115: 2 | I115: 0 | J115: 3 | K115: 0 | L115: 0 | M115: 0 | N115: 1 | O115: 0 | P115: 21 | Q115: 0 | R115: 14 | S115: 0 | T115: 4 | U115: 0 | V115: 3 | W115: 0 | X115: 0 | Y115: 0 | Z115: 0 | AA115: 0 | AB115: 12 | AC115: 0 | AD115: 9 | AE115: 0 | AF115: 2 | AG115: 0 | AH115: 0 | AI115: 0 | AJ115: 0 | AK115: 0 | AL115: 1 | AM115: 0
C116: 깔림·뒤집힘(물체의 쓰러짐이나 뒤집힘) | D116: 0 | E116: 0 | F116: 0 | G116: 0 | H116: 0 | I116: 0 | J116: 0 | K116: 0 | L116: 0 | M116: 0 | N116: 0 | O116: 0 | P116: 1 | Q116: 0 | R116: 0 | S116: 0 | T116: 0 | U116: 0 | V116: 0 | W116: 0 | X116: 0 | Y116: 0 | Z116: 1 | AA116: 0 | AB116: 1 | AC116: 0 | AD116: 0 | AE116: 0 | AF116: 0 | AG116: 0 | AH116: 0 | AI116: 0 | AJ116: 1 | AK116: 0 | AL116: 0 | AM116: 0
C117: 부딪힘(물체에 부딪힘) | D117: 5 | E117: 0 | F117: 4 | G117: 0 | H117: 1 | I117: 0 | J117: 0 | K117: 0 | L117: 0 | M117: 0 | N117: 0 | O117: 0 | P117: 5 | Q117: 0 | R117: 4 | S117: 0 | T117: 1 | U117: 0 | V117: 0 | W117: 0 | X117: 0 | Y117: 0 | Z117: 0 | AA117: 0 | AB117: 3 | AC117: 0 | AD117: 2 | AE117: 0 | AF117: 0 | AG117: 0 | AH117: 0 | AI117: 0 | AJ117: 1 | AK117: 0 | AL117: 0 | AM117: 0
C118: 물체에 맞음(날아오거나 떨어진 물체에 맞음) | D118: 1 | E118: 0 | F118: 0 | G118: 0 | H118: 0 | I118: 0 | J118: 1 | K118: 0 | L118: 0 | M118: 0 | N118: 0 | O118: 0 | P118: 2 | Q118: 0 | R118: 1 | S118: 0 | T118: 1 | U118: 0 | V118: 0 | W118: 0 | X118: 0 | Y118: 0 | Z118: 0 | AA118: 0 | AB118: 2 | AC118: 0 | AD118: 0 | AE118: 0 | AF118: 2 | AG118: 0 | AH118: 0 | AI118: 0 | AJ118: 0 | AK118: 0 | AL118: 0 | AM118: 0
C119: 끼임(기계설비에 끼이거나 감김) | D119: 7 | E119: 0 | F119: 4 | G119: 0 | H119: 3 | I119: 0 | J119: 0 | K119: 0 | L119: 0 | M119: 0 | N119: 0 | O119: 0 | P119: 5 | Q119: 0 | R119: 2 | S119: 0 | T119: 2 | U119: 0 | V119: 1 | W119: 0 | X119: 0 | Y119: 0 | Z119: 0 | AA119: 0 | AB119: 5 | AC119: 0 | AD119: 2 | AE119: 0 | AF119: 2 | AG119: 0 | AH119: 1 | AI119: 0 | AJ119: 0 | AK119: 0 | AL119: 0 | AM119: 0
C120: 절단·베임·찔림 | D120: 10 | E120: 0 | F120: 8 | G120: 0 | H120: 0 | I120: 0 | J120: 1 | K120: 0 | L120: 1 | M120: 0 | N120: 0 | O120: 0 | P120: 7 | Q120: 0 | R120: 3 | S120: 0 | T120: 2 | U120: 0 | V120: 1 | W120: 0 | X120: 0 | Y120: 0 | Z120: 1 | AA120: 0 | AB120: 7 | AC120: 0 | AD120: 4 | AE120: 0 | AF120: 2 | AG120: 0 | AH120: 1 | AI120: 0 | AJ120: 0 | AK120: 0 | AL120: 0 | AM120: 0
C121: 화재 | D121: 0 | E121: 0 | F121: 0 | G121: 0 | H121: 0 | I121: 0 | J121: 0 | K121: 0 | L121: 0 | M121: 0 | N121: 0 | O121: 0 | P121: 0 | Q121: 0 | R121: 0 | S121: 0 | T121: 0 | U121: 0 | V121: 0 | W121: 0 | X121: 0 | Y121: 0 | Z121: 0 | AA121: 0 | AB121: 1 | AC121: 0 | AD121: 1 | AE121: 0 | AF121: 0 | AG121: 0 | AH121: 0 | AI121: 0 | AJ121: 0 | AK121: 0 | AL121: 0 | AM121: 0
C122: 불균형 및 무리한 동작 | D122: 8 | E122: 0 | F122: 7 | G122: 0 | H122: 0 | I122: 0 | J122: 1 | K122: 0 | L122: 0 | M122: 0 | N122: 0 | O122: 0 | P122: 0 | Q122: 0 | R122: 0 | S122: 0 | T122: 0 | U122: 0 | V122: 0 | W122: 0 | X122: 0 | Y122: 0 | Z122: 0 | AA122: 0 | AB122: 2 | AC122: 0 | AD122: 2 | AE122: 0 | AF122: 0 | AG122: 0 | AH122: 0 | AI122: 0 | AJ122: 0 | AK122: 0 | AL122: 0 | AM122: 0
C123: 이상온도 접촉 | D123: 13 | E123: 0 | F123: 7 | G123: 0 | H123: 4 | I123: 0 | J123: 2 | K123: 0 | L123: 0 | M123: 0 | N123: 0 | O123: 0 | P123: 21 | Q123: 0 | R123: 10 | S123: 0 | T123: 3 | U123: 0 | V123: 4 | W123: 0 | X123: 2 | Y123: 0 | Z123: 2 | AA123: 0 | AB123: 10 | AC123: 0 | AD123: 7 | AE123: 0 | AF123: 0 | AG123: 0 | AH123: 2 | AI123: 0 | AJ123: 1 | AK123: 0 | AL123: 0 | AM123: 0
C124: 사업장외 교통사고 | D124: 7 | E124: 1 | F124: 6 | G124: 1 | H124: 0 | I124: 0 | J124: 1 | K124: 0 | L124: 0 | M124: 0 | N124: 0 | O124: 0 | P124: 3 | Q124: 1 | R124: 1 | S124: 1 | T124: 0 | U124: 0 | V124: 0 | W124: 0 | X124: 0 | Y124: 0 | Z124: 2 | AA124: 0 | AB124: 3 | AC124: 0 | AD124: 0 | AE124: 0 | AF124: 2 | AG124: 0 | AH124: 0 | AI124: 0 | AJ124: 0 | AK124: 0 | AL124: 1 | AM124: 0
C125: 폭력행위 | D125: 1 | E125: 0 | F125: 1 | G125: 0 | H125: 0 | I125: 0 | J125: 0 | K125: 0 | L125: 0 | M125: 0 | N125: 0 | O125: 0 | P125: 1 | Q125: 0 | R125: 1 | S125: 0 | T125: 0 | U125: 0 | V125: 0 | W125: 0 | X125: 0 | Y125: 0 | Z125: 0 | AA125: 0 | AB125: 0 | AC125: 0 | AD125: 0 | AE125: 0 | AF125: 0 | AG125: 0 | AH125: 0 | AI125: 0 | AJ125: 0 | AK125: 0 | AL125: 0 | AM125: 0
C126: 뇌심혈관질환 | D126: 0 | E126: 0 | F126: 0 | G126: 0 | H126: 0 | I126: 0 | J126: 0 | K126: 0 | L126: 0 | M126: 0 | N126: 0 | O126: 0 | P126: 0 | Q126: 0 | R126: 0 | S126: 0 | T126: 0 | U126: 0 | V126: 0 | W126: 0 | X126: 0 | Y126: 0 | Z126: 0 | AA126: 0 | AB126: 0 | AC126: 0 | AD126: 0 | AE126: 0 | AF126: 0 | AG126: 0 | AH126: 0 | AI126: 0 | AJ126: 0 | AK126: 0 | AL126: 0 | AM126: 0
C127: 근골격계질환 | D127: 0 | E127: 0 | F127: 0 | G127: 0 | H127: 0 | I127: 0 | J127: 0 | K127: 0 | L127: 0 | M127: 0 | N127: 0 | O127: 0 | P127: 0 | Q127: 0 | R127: 0 | S127: 0 | T127: 0 | U127: 0 | V127: 0 | W127: 0 | X127: 0 | Y127: 0 | Z127: 0 | AA127: 0 | AB127: 0 | AC127: 0 | AD127: 0 | AE127: 0 | AF127: 0 | AG127: 0 | AH127: 0 | AI127: 0 | AJ127: 0 | AK127: 0 | AL127: 0 | AM127: 0
B128: 통 영 | C128: 합계 | D128: 53 | E128: 0 | F128: 31 | G128: 0 | H128: 10 | I128: 0 | J128: 9 | K128: 0 | L128: 1 | M128: 0 | N128: 2 | O128: 0 | P128: 53 | Q128: 0 | R128: 38 | S128: 0 | T128: 6 | U128: 0 | V128: 5 | W128: 0 | X128: 0 | Y128: 0 | Z128: 4 | AA128: 0 | AB128: 34 | AC128: 0 | AD128: 22 | AE128: 0 | AF128: 7 | AG128: 0 | AH128: 2 | AI128: 0 | AJ128: 2 | AK128: 0 | AL128: 1 | AM128: 0
C129: 떨어짐(높이가 있는 곳에서 사람이 떨어짐) | D129: 5 | E129: 0 | F129: 2 | G129: 0 | H129: 1 | I129: 0 | J129: 1 | K129: 0 | L129: 0 | M129: 0 | N129: 1 | O129: 0 | P129: 0 | Q129: 0 | R129: 0 | S129: 0 | T129: 0 | U129: 0 | V129: 0 | W129: 0 | X129: 0 | Y129: 0 | Z129: 0 | AA129: 0 | AB129: 3 | AC129: 0 | AD129: 1 | AE129: 0 | AF129: 2 | AG129: 0 | AH129: 0 | AI129: 0 | AJ129: 0 | AK129: 0 | AL129: 0 | AM129: 0
C130: 넘어짐(사람이 미끄러지거나 넘어짐) | D130: 21 | E130: 0 | F130: 12 | G130: 0 | H130: 6 | I130: 0 | J130: 3 | K130: 0 | L130: 0 | M130: 0 | N130: 0 | O130: 0 | P130: 18 | Q130: 0 | R130: 13 | S130: 0 | T130: 2 | U130: 0 | V130: 2 | W130: 0 | X130: 0 | Y130: 0 | Z130: 1 | AA130: 0 | AB130: 13 | AC130: 0 | AD130: 8 | AE130: 0 | AF130: 3 | AG130: 0 | AH130: 1 | AI130: 0 | AJ130: 1 | AK130: 0 | AL130: 0 | AM130: 0
C131: 깔림·뒤집힘(물체의 쓰러짐이나 뒤집힘) | D131: 0 | E131: 0 | F131: 0 | G131: 0 | H131: 0 | I131: 0 | J131: 0 | K131: 0 | L131: 0 | M131: 0 | N131: 0 | O131: 0 | P131: 3 | Q131: 0 | R131: 1 | S131: 0 | T131: 0 | U131: 0 | V131: 1 | W131: 0 | X131: 0 | Y131: 0 | Z131: 1 | AA131: 0 | AB131: 0 | AC131: 0 | AD131: 0 | AE131: 0 | AF131: 0 | AG131: 0 | AH131: 0 | AI131: 0 | AJ131: 0 | AK131: 0 | AL131: 0 | AM131: 0
C132: 부딪힘(물체에 부딪힘) | D132: 2 | E132: 0 | F132: 2 | G132: 0 | H132: 0 | I132: 0 | J132: 0 | K132: 0 | L132: 0 | M132: 0 | N132: 0 | O132: 0 | P132: 2 | Q132: 0 | R132: 1 | S132: 0 | T132: 0 | U132: 0 | V132: 0 | W132: 0 | X132: 0 | Y132: 0 | Z132: 1 | AA132: 0 | AB132: 3 | AC132: 0 | AD132: 3 | AE132: 0 | AF132: 0 | AG132: 0 | AH132: 0 | AI132: 0 | AJ132: 0 | AK132: 0 | AL132: 0 | AM132: 0
C133: 물체에 맞음(날아오거나 떨어진 물체에 맞음) | D133: 3 | E133: 0 | F133: 1 | G133: 0 | H133: 0 | I133: 0 | J133: 1 | K133: 0 | L133: 1 | M133: 0 | N133: 0 | O133: 0 | P133: 3 | Q133: 0 | R133: 3 | S133: 0 | T133: 0 | U133: 0 | V133: 0 | W133: 0 | X133: 0 | Y133: 0 | Z133: 0 | AA133: 0 | AB133: 1 | AC133: 0 | AD133: 1 | AE133: 0 | AF133: 0 | AG133: 0 | AH133: 0 | AI133: 0 | AJ133: 0 | AK133: 0 | AL133: 0 | AM133: 0
C134: 끼임(기계설비에 끼이거나 감김) | D134: =SUM(F134,H134,J134,L134,N134) -> 5 | E134: =SUM(G134,I134,K134,M134,O134) -> 0 | F134: 3 | G134: 0 | H134: 1 | I134: 0 | J134: 0 | K134: 0 | L134: 0 | M134: 0 | N134: 1 | O134: 0 | P134: =SUM(R134,T134,V134,X134,Z134) -> 6 | Q134: =SUM(S134,U134,W134,Y134,AA134) -> 0 | R134: 6 | S134: 0 | T134: 0 | U134: 0 | V134: 0 | W134: 0 | X134: 0 | Y134: 0 | Z134: 0 | AA134: 0 | AB134: =SUM(AD134,AF134,AH134,AJ134,AL134) -> 1 | AC134: =SUM(AE134,AG134,AI134,AK134,AM134) -> 0 | AD134: 1 | AE134: 0 | AF134: 0 | AG134: 0 | AH134: 0 | AI134: 0 | AJ134: 0 | AK134: 0 | AL134: 0 | AM134: 0
C135: 절단·베임·찔림 | D135: 4 | E135: 0 | F135: 0 | G135: 0 | H135: 2 | I135: 0 | J135: 2 | K135: 0 | L135: 0 | M135: 0 | N135: 0 | O135: 0 | P135: 10 | Q135: 0 | R135: 6 | S135: 0 | T135: 3 | U135: 0 | V135: 1 | W135: 0 | X135: 0 | Y135: 0 | Z135: 0 | AA135: 0 | AB135: 4 | AC135: 0 | AD135: 2 | AE135: 0 | AF135: 1 | AG135: 0 | AH135: 0 | AI135: 0 | AJ135: 0 | AK135: 0 | AL135: 1 | AM135: 0
C136: 불균형 및 무리한 동작 | D136: 2 | E136: 0 | F136: 2 | G136: 0 | H136: 0 | I136: 0 | J136: 0 | K136: 0 | L136: 0 | M136: 0 | N136: 0 | O136: 0 | P136: 0 | Q136: 0 | R136: 0 | S136: 0 | T136: 0 | U136: 0 | V136: 0 | W136: 0 | X136: 0 | Y136: 0 | Z136: 0 | AA136: 0 | AB136: 4 | AC136: 0 | AD136: 3 | AE136: 0 | AF136: 1 | AG136: 0 | AH136: 0 | AI136: 0 | AJ136: 0 | AK136: 0 | AL136: 0 | AM136: 0
C137: 이상온도 접촉 | D137: 8 | E137: 0 | F137: 6 | G137: 0 | H137: 0 | I137: 0 | J137: 2 | K137: 0 | L137: 0 | M137: 0 | N137: 0 | O137: 0 | P137: 6 | Q137: 0 | R137: 3 | S137: 0 | T137: 1 | U137: 0 | V137: 1 | W137: 0 | X137: 0 | Y137: 0 | Z137: 1 | AA137: 0 | AB137: 5 | AC137: 0 | AD137: 3 | AE137: 0 | AF137: 0 | AG137: 0 | AH137: 1 | AI137: 0 | AJ137: 1 | AK137: 0 | AL137: 0 | AM137: 0
C138: 사업장외 교통사고 | D138: 3 | E138: 0 | F138: 3 | G138: 0 | H138: 0 | I138: 0 | J138: 0 | K138: 0 | L138: 0 | M138: 0 | N138: 0 | O138: 0 | P138: 5 | Q138: 0 | R138: 5 | S138: 0 | T138: 0 | U138: 0 | V138: 0 | W138: 0 | X138: 0 | Y138: 0 | Z138: 0 | AA138: 0 | AB138: 0 | AC138: 0 | AD138: 0 | AE138: 0 | AF138: 0 | AG138: 0 | AH138: 0 | AI138: 0 | AJ138: 0 | AK138: 0 | AL138: 0 | AM138: 0
C139: 근골격계질환 | D139: 0 | E139: 0 | F139: 0 | G139: 0 | H139: 0 | I139: 0 | J139: 0 | K139: 0 | L139: 0 | M139: 0 | N139: 0 | O139: 0 | P139: 0 | Q139: 0 | R139: 0 | S139: 0 | T139: 0 | U139: 0 | V139: 0 | W139: 0 | X139: 0 | Y139: 0 | Z139: 0 | AA139: 0 | AB139: 0 | AC139: 0 | AD139: 0 | AE139: 0 | AF139: 0 | AG139: 0 | AH139: 0 | AI139: 0 | AJ139: 0 | AK139: 0 | AL139: 0 | AM139: 0
C140: 작업관련성질환 기타 | D140: 0 | E140: 0 | F140: 0 | G140: 0 | H140: 0 | I140: 0 | J140: 0 | K140: 0 | L140: 0 | M140: 0 | N140: 0 | O140: 0 | P140: 0 | Q140: 0 | R140: 0 | S140: 0 | T140: 0 | U140: 0 | V140: 0 | W140: 0 | X140: 0 | Y140: 0 | Z140: 0 | AA140: 0 | AB140: 0 | AC140: 0 | AD140: 0 | AE140: 0 | AF140: 0 | AG140: 0 | AH140: 0 | AI140: 0 | AJ140: 0 | AK140: 0 | AL140: 0 | AM140: 0

Sheet 대구
A1: 업종(소) | B1: 고용지청 | C1: 기준년월 | D1: 2019년 12월 | P1: 2020년 12월 | AB1: 2021년 9월
C2: 규모(소) | D2: 규모별 합계 | F2: 5인 미만 | H2: 5인 ~ 9인 | J2: 10인 ~ 19인 | L2: 20인 ~ 29인 | N2: 30인 ~ 49인 | P2: 규모별 합계 | R2: 5인 미만 | T2: 5인 ~ 9인 | V2: 10인 ~ 19인 | X2: 20인 ~ 29인 | Z2: 30인 ~ 49인 | AB2: 규모별 합계 | AD2: 5인 미만 | AF2: 5인 ~ 9인 | AH2: 10인 ~ 19인 | AJ2: 20인 ~ 29인 | AL2: 30인 ~ 49인
C3: 발생형태(중) | D3: 사고재해자수 합계 | E3: 사고사망자수 합계 | F3: 사고재해자수 | G3: 사고사망자수 | H3: 사고재해자수 | I3: 사고사망자수 | J3: 사고재해자수 | K3: 사고사망자수 | L3: 사고재해자수 | M3: 사고사망자수 | N3: 사고재해자수 | O3: 사고사망자수 | P3: 사고재해자수 합계 | Q3: 사고사망자수 합계 | R3: 사고재해자수 | S3: 사고사망자수 | T3: 사고재해자수 | U3: 사고사망자수 | V3: 사고재해자수 | W3: 사고사망자수 | X3: 사고재해자수 | Y3: 사고사망자수 | Z3: 사고재해자수 | AA3: 사고사망자수 | AB3: 사고재해자수 합계 | AC3: 사고사망자수 합계 | AD3: 사고재해자수 | AE3: 사고사망자수 | AF3: 사고재해자수 | AG3: 사고사망자수 | AH3: 사고재해자수 | AI3: 사고사망자수 | AJ3: 사고재해자수 | AK3: 사고사망자수 | AL3: 사고재해자수 | AM3: 사고사망자수
A4: 음식 및 숙박업 | B4: 합계 | D4: =SUM(D5,D27,D47,D64,D78,D90) -> 840 | E4: =SUM(E5,E27,E47,E64,E78,E90) -> 3 | F4: 465 | G4: 3 | H4: 169 | I4: 0 | J4: 118 | K4: 0 | L4: 54 | M4: 0 | N4: 34 | O4: 0 | P4: 714 | Q4: 4 | R4: 360 | S4: 4 | T4: 186 | U4: 0 | V4: 103 | W4: 0 | X4: 33 | Y4: 0 | Z4: 32 | AA4: 0 | AB4: 527 | AC4: 0 | AD4: 296 | AE4: 0 | AF4: 105 | AG4: 0 | AH4: 82 | AI4: 0 | AJ4: 30 | AK4: 0 | AL4: 14 | AM4: 0
B5: 대 구 청 | C5: 합계 | D5: =SUM(F5,H5,J5,L5,N5) -> 377 | E5: =SUM(G5,I5,K5,M5,O5) -> 2 | F5: 190 | G5: 2 | H5: 74 | I5: 0 | J5: 69 | K5: 0 | L5: 28 | M5: 0 | N5: 16 | O5: 0 | P5: =SUM(R5,T5,V5,X5,Z5) -> 325 | Q5: =SUM(S5,U5,W5,Y5,AA5) -> 2 | R5: 147 | S5: 2 | T5: 89 | U5: 0 | V5: 59 | W5: 0 | X5: 14 | Y5: 0 | Z5: 16 | AA5: 0 | AB5: =SUM(AD5,AF5,AH5,AJ5,AL5) -> 252 | AC5: =SUM(AE5,AG5,AI5,AK5,AM5) -> 0 | AD5: 127 | AE5: 0 | AF5: 57 | AG5: 0 | AH5: 47 | AI5: 0 | AJ5: 15 | AK5: 0 | AL5: 6 | AM5: 0
C6: 떨어짐(높이가 있는 곳에서 사람이 떨어짐) | D6: =SUM(F6,H6,J6,L6,N6) -> 8 | E6: =SUM(G6,I6,K6,M6,O6) -> 0 | F6: 6 | G6: 0 | H6: 0 | I6: 0 | J6: 1 | K6: 0 | L6: 1 | M6: 0 | N6: 0 | O6: 0 | P6: =SUM(R6,T6,V6,X6,Z6) -> 2 | Q6: =SUM(S6,U6,W6,Y6,AA6) -> 0 | R6: 1 | S6: 0 | T6: 1 | U6: 0 | V6: 0 | W6: 0 | X6: 0 | Y6: 0 | Z6: 0 | AA6: 0 | AB6: =SUM(AD6,AF6,AH6,AJ6,AL6) -> 3 | AC6: =SUM(AE6,AG6,AI6,AK6,AM6) -> 0 | AD6: 3 | AE6: 0 | AF6: 0 | AG6: 0 | AH6: 0 | AI6: 0 | AJ6: 0 | AK6: 0 | AL6: 0 | AM6: 0
C7: 넘어짐(사람이 미끄러지거나 넘어짐) | D7: 88 | E7: 0 | F7: 48 | G7: 0 | H7: 18 | I7: 0 | J7: 14 | K7: 0 | L7: 6 | M7: 0 | N7: 2 | O7: 0 | P7: 67 | Q7: 0 | R7: 28 | S7: 0 | T7: 17 | U7: 0 | V7: 13 | W7: 0 | X7: 4 | Y7: 0 | Z7: 5 | AA7: 0 | AB7: 52 | AC7: 0 | AD7: 27 | AE7: 0 | AF7: 11 | AG7: 0 | AH7: 10 | AI7: 0 | AJ7: 1 | AK7: 0 | AL7: 3 | AM7: 0
C8: 깔림·뒤집힘(물체의 쓰러짐이나 뒤집힘) | D8: 2 | E8: 0 | F8: 0 | G8: 0 | H8: 1 | I8: 0 | J8: 1 | K8: 0 | L8: 0 | M8: 0 | N8: 0 | O8: 0 | P8: 1 | Q8: 0 | R8: 0 | S8: 0 | T8: 1 | U8: 0 | V8: 0 | W8: 0 | X8: 0 | Y8: 0 | Z8: 0 | AA8: 0 | AB8: 0 | AC8: 0 | AD8: 0 | AE8: 0 | AF8: 0 | AG8: 0 | AH8: 0 | AI8: 0 | AJ8: 0 | AK8: 0 | AL8: 0 | AM8: 0
C9: 부딪힘(물체에 부딪힘) | D9: 18 | E9: 0 | F9: 4 | G9: 0 | H9: 9 | I9: 0 | J9: 2 | K9: 0 | L9: 2 | M9: 0 | N9: 1 | O9: 0 | P9: 9 | Q9: 1 | R9: 5 | S9: 1 | T9: 3 | U9: 0 | V9: 1 | W9: 0 | X9: 0 | Y9: 0 | Z9: 0 | AA9: 0 | AB9: 12 | AC9: 0 | AD9: 6 | AE9: 0 | AF9: 3 | AG9: 0 | AH9: 2 | AI9: 0 | AJ9: 0 | AK9: 0 | AL9: 1 | AM9: 0
C10: 물체에 맞음(날아오거나 떨어진 물체에 맞음) | D10: 7 | E10: 0 | F10: 1 | G10: 0 | H10: 5 | I10: 0 | J10: 0 | K10: 0 | L10: 1 | M10: 0 | N10: 0 | O10: 0 | P10: 11 | Q10: 0 | R10: 6 | S10: 0 | T10: 2 | U10: 0 | V10: 2 | W10: 0 | X10: 0 | Y10: 0 | Z10: 1 | AA10: 0 | AB10: 6 | AC10: 0 | AD10: 5 | AE10: 0 | AF10: 0 | AG10: 0 | AH10: 1 | AI10: 0 | AJ10: 0 | AK10: 0 | AL10: 0 | AM10: 0
C11: 무너짐(건축물이나 쌓여진 물체가 무너짐) | D11: 1 | E11: 0 | F11: 1 | G11: 0 | H11: 0 | I11: 0 | J11: 0 | K11: 0 | L11: 0 | M11: 0 | N11: 0 | O11: 0 | P11: 0 | Q11: 0 | R11: 0 | S11: 0 | T11: 0 | U11: 0 | V11: 0 | W11: 0 | X11: 0 | Y11: 0 | Z11: 0 | AA11: 0 | AB11: 0 | AC11: 0 | AD11: 0 | AE11: 0 | AF11: 0 | AG11: 0 | AH11: 0 | AI11: 0 | AJ11: 0 | AK11: 0 | AL11: 0 | AM11: 0
C12: 끼임(기계설비에 끼이거나 감김) | D12: 21 | E12: 0 | F12: 9 | G12: 0 | H12: 6 | I12: 0 | J12: 5 | K12: 0 | L12: 0 | M12: 0 | N12: 1 | O12: 0 | P12: 20 | Q12: 0 | R12: 11 | S12: 0 | T12: 5 | U12: 0 | V12: 4 | W12: 0 | X12: 0 | Y12: 0 | Z12: 0 | AA12: 0 | AB12: 15 | AC12: 0 | AD12: 7 | AE12: 0 | AF12: 1 | AG12: 0 | AH12: 4 | AI12: 0 | AJ12: 3 | AK12: 0 | AL12: 0 | AM12: 0
C13: 절단·베임·찔림 | D13: 71 | E13: 0 | F13: 32 | G13: 0 | H13: 9 | I13: 0 | J13: 20 | K13: 0 | L13: 7 | M13: 0 | N13: 3 | O13: 0 | P13: 76 | Q13: 0 | R13: 29 | S13: 0 | T13: 23 | U13: 0 | V13: 16 | W13: 0 | X13: 4 | Y13: 0 | Z13: 4 | AA13: 0 | AB13: 52 | AC13: 0 | AD13: 23 | AE13: 0 | AF13: 13 | AG13: 0 | AH13: 12 | AI13: 0 | AJ13: 4 | AK13: 0 | AL13: 0 | AM13: 0
C14: 감전 | D14: 1 | E14: 0 | F14: 0 | G14: 0 | H14: 0 | I14: 0 | J14: 0 | K14: 0 | L14: 1 | M14: 0 | N14: 0 | O14: 0 | P14: 0 | Q14: 0 | R14: 0 | S14: 0 | T14: 0 | U14: 0 | V14: 0 | W14: 0 | X14: 0 | Y14: 0 | Z14: 0 | AA14: 0 | AB14: 0 | AC14: 0 | AD14: 0 | AE14: 0 | AF14: 0 | AG14: 0 | AH14: 0 | AI14: 0 | AJ14: 0 | AK14: 0 | AL14: 0 | AM14: 0
C15: 폭발·파열 | D15: 0 | E15: 0 | F15: 0 | G15: 0 | H15: 0 | I15: 0 | J15: 0 | K15: 0 | L15: 0 | M15: 0 | N15: 0 | O15: 0 | P15: 1 | Q15: 0 | R15: 1 | S15: 0 | T15: 0 | U15: 0 | V15: 0 | W15: 0 | X15: 0 | Y15: 0 | Z15: 0 | AA15: 0 | AB15: 0 | AC15: 0 | AD15: 0 | AE15: 0 | AF15: 0 | AG15: 0 | AH15: 0 | AI15: 0 | AJ15: 0 | AK15: 0 | AL15: 0 | AM15: 0
C16: 불균형 및 무리한 동작 | D16: 6 | E16: 0 | F16: 1 | G16: 0 | H16: 2 | I16: 0 | J16: 3 | K16: 0 | L16: 0 | M16: 0 | N16: 0 | O16: 0 | P16: 5 | Q16: 0 | R16: 1 | S16: 0 | T16: 2 | U16: 0 | V16: 1 | W16: 0 | X16: 1 | Y16: 0 | Z16: 0 | AA16: 0 | AB16: 2 | AC16: 0 | AD16: 1 | AE16: 0 | AF16: 0 | AG16: 0 | AH16: 1 | AI16: 0 | AJ16: 0 | AK16: 0 | AL16: 0 | AM16: 0
C17: 이상온도 접촉 | D17: 134 | E17: 0 | F17: 70 | G17: 0 | H17: 24 | I17: 0 | J17: 22 | K17: 0 | L17: 9 | M17: 0 | N17: 9 | O17: 0 | P17: 118 | Q17: 0 | R17: 55 | S17: 0 | T17: 32 | U17: 0 | V17: 21 | W17: 0 | X17: 5 | Y17: 0 | Z17: 5 | AA17: 0 | AB17: 95 | AC17: 0 | AD17: 44 | AE17: 0 | AF17: 28 | AG17: 0 | AH17: 14 | AI17: 0 | AJ17: 7 | AK17: 0 | AL17: 2 | AM17: 0
C18: 화학물질누출·접촉 | D18: 0 | E18: 0 | F18: 0 | G18: 0 | H18: 0 | I18: 0 | J18: 0 | K18: 0 | L18: 0 | M18: 0 | N18: 0 | O18: 0 | P18: 2 | Q18: 0 | R18: 0 | S18: 0 | T18: 1 | U18: 0 | V18: 1 | W18: 0 | X18: 0 | Y18: 0 | Z18: 0 | AA18: 0 | AB18: 0 | AC18: 0 | AD18: 0 | AE18: 0 | AF18: 0 | AG18: 0 | AH18: 0 | AI18: 0 | AJ18: 0 | AK18: 0 | AL18: 0 | AM18: 0
C19: 사업장외 교통사고 | D19: 19 | E19: 2 | F19: 18 | G19: 2 | H19: 0 | I19: 0 | J19: 1 | K19: 0 | L19: 0 | M19: 0 | N19: 0 | O19: 0 | P19: 9 | Q19: 1 | R19: 6 | S19: 1 | T19: 2 | U19: 0 | V19: 0 | W19: 0 | X19: 0 | Y19: 0 | Z19: 1 | AA19: 0 | AB19: 15 | AC19: 0 | AD19: 11 | AE19: 0 | AF19: 1 | AG19: 0 | AH19: 3 | AI19: 0 | AJ19: 0 | AK19: 0 | AL19: 0 | AM19: 0
C20: 체육행사 등의 사고 | D20: 1 | E20: 0 | F20: 0 | G20: 0 | H20: 0 | I20: 0 | J20: 0 | K20: 0 | L20: 1 | M20: 0 | N20: 0 | O20: 0 | P20: 0 | Q20: 0 | R20: 0 | S20: 0 | T20: 0 | U20: 0 | V20: 0 | W20: 0 | X20: 0 | Y20: 0 | Z20: 0 | AA20: 0 | AB20: 0 | AC20: 0 | AD20: 0 | AE20: 0 | AF20: 0 | AG20: 0 | AH20: 0 | AI20: 0 | AJ20: 0 | AK20: 0 | AL20: 0 | AM20: 0
C21: 폭력행위 | D21: 0 | E21: 0 | F21: 0 | G21: 0 | H21: 0 | I21: 0 | J21: 0 | K21: 0 | L21: 0 | M21: 0 | N21: 0 | O21: 0 | P21: 2 | Q21: 0 | R21: 2 | S21: 0 | T21: 0 | U21: 0 | V21: 0 | W21: 0 | X21: 0 | Y21: 0 | Z21: 0 | AA21: 0 | AB21: 0 | AC21: 0 | AD21: 0 | AE21: 0 | AF21: 0 | AG21: 0 | AH21: 0 | AI21: 0 | AJ21: 0 | AK21: 0 | AL21: 0 | AM21: 0
C22: 동물상해 | D22: 0 | E22: 0 | F22: 0 | G22: 0 | H22: 0 | I22: 0 | J22: 0 | K22: 0 | L22: 0 | M22: 0 | N22: 0 | O22: 0 | P22: 2 | Q22: 0 | R22: 2 | S22: 0 | T22: 0 | U22: 0 | V22: 0 | W22: 0 | X22: 0 | Y22: 0 | Z22: 0 | AA22: 0 | AB22: 0 | AC22: 0 | AD22: 0 | AE22: 0 | AF22: 0 | AG22: 0 | AH22: 0 | AI22: 0 | AJ22: 0 | AK22: 0 | AL22: 0 | AM22: 0
C23: 생물학적인자 | D23: 0 | E23: 0 | F23: 0 | G23: 0 | H23: 0 | I23: 0 | J23: 0 | K23: 0 | L23: 0 | M23: 0 | N23: 0 | O23: 0 | P23: 0 | Q23: 0 | R23: 0 | S23: 0 | T23: 0 | U23: 0 | V23: 0 | W23: 0 | X23: 0 | Y23: 0 | Z23: 0 | AA23: 0 | AB23: 0 | AC23: 0 | AD23: 0 | AE23: 0 | AF23: 0 | AG23: 0 | AH23: 0 | AI23: 0 | AJ23: 0 | AK23: 0 | AL23: 0 | AM23: 0
C24: 뇌심혈관질환 | D24: 0 | E24: 0 | F24: 0 | G24: 0 | H24: 0 | I24: 0 | J24: 0 | K24: 0 | L24: 0 | M24: 0 | N24: 0 | O24: 0 | P24: 0 | Q24: 0 | R24: 0 | S24: 0 | T24: 0 | U24: 0 | V24: 0 | W24: 0 | X24: 0 | Y24: 0 | Z24: 0 | AA24: 0 | AB24: 0 | AC24: 0 | AD24: 0 | AE24: 0 | AF24: 0 | AG24: 0 | AH24: 0 | AI24: 0 | AJ24: 0 | AK24: 0 | AL24: 0 | AM24: 0
C25: 근골격계질환 | D25: 0 | E25: 0 | F25: 0 | G25: 0 | H25: 0 | I25: 0 | J25: 0 | K25: 0 | L25: 0 | M25: 0 | N25: 0 | O25: 0 | P25: 0 | Q25: 0 | R25: 0 | S25: 0 | T25: 0 | U25: 0 | V25: 0 | W25: 0 | X25: 0 | Y25: 0 | Z25: 0 | AA25: 0 | AB25: 0 | AC25: 0 | AD25: 0 | AE25: 0 | AF25: 0 | AG25: 0 | AH25: 0 | AI25: 0 | AJ25: 0 | AK25: 0 | AL25: 0 | AM25: 0
C26: 작업관련성질환 기타 | D26: 0 | E26: 0 | F26: 0 | G26: 0 | H26: 0 | I26: 0 | J26: 0 | K26: 0 | L26: 0 | M26: 0 | N26: 0 | O26: 0 | P26: 0 | Q26: 0 | R26: 0 | S26: 0 | T26: 0 | U26: 0 | V26: 0 | W26: 0 | X26: 0 | Y26: 0 | Z26: 0 | AA26: 0 | AB26: 0 | AC26: 0 | AD26: 0 | AE26: 0 | AF26: 0 | AG26: 0 | AH26: 0 | AI26: 0 | AJ26: 0 | AK26: 0 | AL26: 0 | AM26: 0
B27: 대구서부 | C27: 합계 | D27: 222 | E27: 0 | F27: 125 | G27: 0 | H27: 53 | I27: 0 | J27: 23 | K27: 0 | L27: 11 | M27: 0 | N27: 10 | O27: 0 | P27: 189 | Q27: 0 | R27: 101 | S27: 0 | T27: 50 | U27: 0 | V27: 24 | W27: 0 | X27: 6 | Y27: 0 | Z27: 8 | AA27: 0 | AB27: 130 | AC27: 0 | AD27: 73 | AE27: 0 | AF27: 25 | AG27: 0 | AH27: 20 | AI27: 0 | AJ27: 7 | AK27: 0 | AL27: 5 | AM27: 0
C28: 떨어짐(높이가 있는 곳에서 사람이 떨어짐) | D28: 2 | E28: 0 | F28: 1 | G28: 0 | H28: 1 | I28: 0 | J28: 0 | K28: 0 | L28: 0 | M28: 0 | N28: 0 | O28: 0 | P28: 2 | Q28: 0 | R28: 1 | S28: 0 | T28: 0 | U28: 0 | V28: 1 | W28: 0 | X28: 0 | Y28: 0 | Z28: 0 | AA28: 0 | AB28: 1 | AC28: 0 | AD28: 1 | AE28: 0 | AF28: 0 | AG28: 0 | AH28: 0 | AI28: 0 | AJ28: 0 | AK28: 0 | AL28: 0 | AM28: 0
C29: 넘어짐(사람이 미끄러지거나 넘어짐) | D29: 60 | E29: 0 | F29: 33 | G29: 0 | H29: 17 | I29: 0 | J29: 7 | K29: 0 | L29: 2 | M29: 0 | N29: 1 | O29: 0 | P29: 47 | Q29: 0 | R29: 26 | S29: 0 | T29: 12 | U29: 0 | V29: 5 | W29: 0 | X29: 1 | Y29: 0 | Z29: 3 | AA29: 0 | AB29: 34 | AC29: 0 | AD29: 24 | AE29: 0 | AF29: 5 | AG29: 0 | AH29: 4 | AI29: 0 | AJ29: 1 | AK29: 0 | AL29: 0 | AM29: 0
C30: 깔림·뒤집힘(물체의 쓰러짐이나 뒤집힘) | D30: 1 | E30: 0 | F30: 0 | G30: 0 | H30: 1 | I30: 0 | J30: 0 | K30: 0 | L30: 0 | M30: 0 | N30: 0 | O30: 0 | P30: 0 | Q30: 0 | R30: 0 | S30: 0 | T30: 0 | U30: 0 | V30: 0 | W30: 0 | X30: 0 | Y30: 0 | Z30: 0 | AA30: 0 | AB30: 0 | AC30: 0 | AD30: 0 | AE30: 0 | AF30: 0 | AG30: 0 | AH30: 0 | AI30: 0 | AJ30: 0 | AK30: 0 | AL30: 0 | AM30: 0
C31: 부딪힘(물체에 부딪힘) | D31: 7 | E31: 0 | F31: 4 | G31: 0 | H31: 2 | I31: 0 | J31: 0 | K31: 0 | L31: 0 | M31: 0 | N31: 1 | O31: 0 | P31: 5 | Q31: 0 | R31: 1 | S31: 0 | T31: 2 | U31: 0 | V31: 2 | W31: 0 | X31: 0 | Y31: 0 | Z31: 0 | AA31: 0 | AB31: 6 | AC31: 0 | AD31: 3 | AE31: 0 | AF31: 0 | AG31: 0 | AH31: 1 | AI31: 0 | AJ31: 2 | AK31: 0 | AL31: 0 | AM31: 0
C32: 물체에 맞음(날아오거나 떨어진 물체에 맞음) | D32: 7 | E32: 0 | F32: 2 | G32: 0 | H32: 2 | I32: 0 | J32: 2 | K32: 0 | L32: 1 | M32: 0 | N32: 0 | O32: 0 | P32: 2 | Q32: 0 | R32: 2 | S32: 0 | T32: 0 | U32: 0 | V32: 0 | W32: 0 | X32: 0 | Y32: 0 | Z32: 0 | AA32: 0 | AB32: 0 | AC32: 0 | AD32: 0 | AE32: 0 | AF32: 0 | AG32: 0 | AH32: 0 | AI32: 0 | AJ32: 0 | AK32: 0 | AL32: 0 | AM32: 0
C33: 끼임(기계설비에 끼이거나 감김) | D33: 18 | E33: 0 | F33: 9 | G33: 0 | H33: 5 | I33: 0 | J33: 2 | K33: 0 | L33: 0 | M33: 0 | N33: 2 | O33: 0 | P33: 18 | Q33: 0 | R33: 9 | S33: 0 | T33: 7 | U33: 0 | V33: 2 | W33: 0 | X33: 0 | Y33: 0 | Z33: 0 | AA33: 0 | AB33: 5 | AC33: 0 | AD33: 2 | AE33: 0 | AF33: 1 | AG33: 0 | AH33: 1 | AI33: 0 | AJ33: 0 | AK33: 0 | AL33: 1 | AM33: 0
C34: 절단·베임·찔림 | D34: 35 | E34: 0 | F34: 16 | G34: 0 | H34: 8 | I34: 0 | J34: 5 | K34: 0 | L34: 3 | M34: 0 | N34: 3 | O34: 0 | P34: 37 | Q34: 0 | R34: 18 | S34: 0 | T34: 10 | U34: 0 | V34: 5 | W34: 0 | X34: 2 | Y34: 0 | Z34: 2 | AA34: 0 | AB34: 22 | AC34: 0 | AD34: 10 | AE34: 0 | AF34: 5 | AG34: 0 | AH34: 3 | AI34: 0 | AJ34: 3 | AK34: 0 | AL34: 1 | AM34: 0
C35: 감전 | D35: 0 | E35: 0 | F35: 0 | G35: 0 | H35: 0 | I35: 0 | J35: 0 | K35: 0 | L35: 0 | M35: 0 | N35: 0 | O35: 0 | P35: 2 | Q35: 0 | R35: 1 | S35: 0 | T35: 0 | U35: 0 | V35: 0 | W35: 0 | X35: 0 | Y35: 0 | Z35: 1 | AA35: 0 | AB35: 0 | AC35: 0 | AD35: 0 | AE35: 0 | AF35: 0 | AG35: 0 | AH35: 0 | AI35: 0 | AJ35: 0 | AK35: 0 | AL35: 0 | AM35: 0
C36: 폭발·파열 | D36: 0 | E36: 0 | F36: 0 | G36: 0 | H36: 0 | I36: 0 | J36: 0 | K36: 0 | L36: 0 | M36: 0 | N36: 0 | O36: 0 | P36: 0 | Q36: 0 | R36: 0 | S36: 0 | T36: 0 | U36: 0 | V36: 0 | W36: 0 | X36: 0 | Y36: 0 | Z36: 0 | AA36: 0 | AB36: 1 | AC36: 0 | AD36: 1 | AE36: 0 | AF36: 0 | AG36: 0 | AH36: 0 | AI36: 0 | AJ36: 0 | AK36: 0 | AL36: 0 | AM36: 0
C37: 불균형 및 무리한 동작 | D37: 8 | E37: 0 | F37: 6 | G37: 0 | H37: 2 | I37: 0 | J37: 0 | K37: 0 | L37: 0 | M37: 0 | N37: 0 | O37: 0 | P37: 2 | Q37: 0 | R37: 1 | S37: 0 | T37: 0 | U37: 0 | V37: 1 | W37: 0 | X37: 0 | Y37: 0 | Z37: 0 | AA37: 0 | AB37: 4 | AC37: 0 | AD37: 3 | AE37: 0 | AF37: 1 | AG37: 0 | AH37: 0 | AI37: 0 | AJ37: 0 | AK37: 0 | AL37: 0 | AM37: 0
C38: 이상온도 접촉 | D38: 63 | E38: 0 | F38: 37 | G38: 0 | H38: 13 | I38: 0 | J38: 5 | K38: 0 | L38: 5 | M38: 0 | N38: 3 | O38: 0 | P38: 64 | Q38: 0 | R38: 35 | S38: 0 | T38: 16 | U38: 0 | V38: 8 | W38: 0 | X38: 3 | Y38: 0 | Z38: 2 | AA38: 0 | AB38: 49 | AC38: 0 | AD38: 21 | AE38: 0 | AF38: 13 | AG38: 0 | AH38: 11 | AI38: 0 | AJ38: 1 | AK38: 0 | AL38: 3 | AM38: 0
C39: 화학물질누출·접촉 | D39: 2 | E39: 0 | F39: 2 | G39: 0 | H39: 0 | I39: 0 | J39: 0 | K39: 0 | L39: 0 | M39: 0 | N39: 0 | O39: 0 | P39: 0 | Q39: 0 | R39: 0 | S39: 0 | T39: 0 | U39: 0 | V39: 0 | W39: 0 | X39: 0 | Y39: 0 | Z39: 0 | AA39: 0 | AB39: 0 | AC39: 0 | AD39: 0 | AE39: 0 | AF39: 0 | AG39: 0 | AH39: 0 | AI39: 0 | AJ39: 0 | AK39: 0 | AL39: 0 | AM39: 0
C40: 사업장외 교통사고 | D40: 18 | E40: 0 | F40: 14 | G40: 0 | H40: 2 | I40: 0 | J40: 2 | K40: 0 | L40: 0 | M40: 0 | N40: 0 | O40: 0 | P40: 8 | Q40: 0 | R40: 5 | S40: 0 | T40: 3 | U40: 0 | V40: 0 | W40: 0 | X40: 0 | Y40: 0 | Z40: 0 | AA40: 0 | AB40: 8 | AC40: 0 | AD40: 8 | AE40: 0 | AF40: 0 | AG40: 0 | AH40: 0 | AI40: 0 | AJ40: 0 | AK40: 0 | AL40: 0 | AM40: 0
C41: 폭력행위 | D41: 1 | E41: 0 | F41: 1 | G41: 0 | H41: 0 | I41: 0 | J41: 0 | K41: 0 | L41: 0 | M41: 0 | N41: 0 | O41: 0 | P41: 1 | Q41: 0 | R41: 1 | S41: 0 | T41: 0 | U41: 0 | V41: 0 | W41: 0 | X41: 0 | Y41: 0 | Z41: 0 | AA41: 0 | AB41: 0 | AC41: 0 | AD41: 0 | AE41: 0 | AF41: 0 | AG41: 0 | AH41: 0 | AI41: 0 | AJ41: 0 | AK41: 0 | AL41: 0 | AM41: 0
C42: 기타 | D42: 0 | E42: 0 | F42: 0 | G42: 0 | H42: 0 | I42: 0 | J42: 0 | K42: 0 | L42: 0 | M42: 0 | N42: 0 | O42: 0 | P42: 1 | Q42: 0 | R42: 1 | S42: 0 | T42: 0 | U42: 0 | V42: 0 | W42: 0 | X42: 0 | Y42: 0 | Z42: 0 | AA42: 0 | AB42: 0 | AC42: 0 | AD42: 0 | AE42: 0 | AF42: 0 | AG42: 0 | AH42: 0 | AI42: 0 | AJ42: 0 | AK42: 0 | AL42: 0 | AM42: 0
C43: 물리적인자 | D43: 0 | E43: 0 | F43: 0 | G43: 0 | H43: 0 | I43: 0 | J43: 0 | K43: 0 | L43: 0 | M43: 0 | N43: 0 | O43: 0 | P43: 0 | Q43: 0 | R43: 0 | S43: 0 | T43: 0 | U43: 0 | V43: 0 | W43: 0 | X43: 0 | Y43: 0 | Z43: 0 | AA43: 0 | AB43: 0 | AC43: 0 | AD43: 0 | AE43: 0 | AF43: 0 | AG43: 0 | AH43: 0 | AI43: 0 | AJ43: 0 | AK43: 0 | AL43: 0 | AM43: 0
C44: 뇌심혈관질환 | D44: 0 | E44: 0 | F44: 0 | G44: 0 | H44: 0 | I44: 0 | J44: 0 | K44: 0 | L44: 0 | M44: 0 | N44: 0 | O44: 0 | P44: 0 | Q44: 0 | R44: 0 | S44: 0 | T44: 0 | U44: 0 | V44: 0 | W44: 0 | X44: 0 | Y44: 0 | Z44: 0 | AA44: 0 | AB44: 0 | AC44: 0 | AD44: 0 | AE44: 0 | AF44: 0 | AG44: 0 | AH44: 0 | AI44: 0 | AJ44: 0 | AK44: 0 | AL44: 0 | AM44: 0
C45: 근골격계질환 | D45: 0 | E45: 0 | F45: 0 | G45: 0 | H45: 0 | I45: 0 | J45: 0 | K45: 0 | L45: 0 | M45: 0 | N45: 0 | O45: 0 | P45: 0 | Q45: 0 | R45: 0 | S45: 0 | T45: 0 | U45: 0 | V45: 0 | W45: 0 | X45: 0 | Y45: 0 | Z45: 0 | AA45: 0 | AB45: 0 | AC45: 0 | AD45: 0 | AE45: 0 | AF45: 0 | AG45: 0 | AH45: 0 | AI45: 0 | AJ45: 0 | AK45: 0 | AL45: 0 | AM45: 0
C46: 작업관련성질환 기타 | D46: 0 | E46: 0 | F46: 0 | G46: 0 | H46: 0 | I46: 0 | J46: 0 | K46: 0 | L46: 0 | M46: 0 | N46: 0 | O46: 0 | P46: 0 | Q46: 0 | R46: 0 | S46: 0 | T46: 0 | U46: 0 | V46: 0 | W46: 0 | X46: 0 | Y46: 0 | Z46: 0 | AA46: 0 | AB46: 0 | AC46: 0 | AD46: 0 | AE46: 0 | AF46: 0 | AG46: 0 | AH46: 0 | AI46: 0 | AJ46: 0 | AK46: 0 | AL46: 0 | AM46: 0
B47: 포 항 | C47: 합계 | D47: 128 | E47: 0 | F47: 79 | G47: 0 | H47: 28 | I47: 0 | J47: 11 | K47: 0 | L47: 7 | M47: 0 | N47: 3 | O47: 0 | P47: 105 | Q47: 1 | R47: 52 | S47: 1 | T47: 28 | U47: 0 | V47: 13 | W47: 0 | X47: 7 | Y47: 0 | Z47: 5 | AA47: 0 | AB47: 79 | AC47: 0 | AD47: 53 | AE47: 0 | AF47: 9 | AG47: 0 | AH47: 11 | AI47: 0 | AJ47: 5 | AK47: 0 | AL47: 1 | AM47: 0
C48: 떨어짐(높이가 있는 곳에서 사람이 떨어짐) | D48: 4 | E48: 0 | F48: 1 | G48: 0 | H48: 1 | I48: 0 | J48: 0 | K48: 0 | L48: 0 | M48: 0 | N48: 2 | O48: 0 | P48: 5 | Q48: 0 | R48: 2 | S48: 0 | T48: 2 | U48: 0 | V48: 0 | W48: 0 | X48: 0 | Y48: 0 | Z48: 1 | AA48: 0 | AB48: 3 | AC48: 0 | AD48: 1 | AE48: 0 | AF48: 1 | AG48: 0 | AH48: 0 | AI48: 0 | AJ48: 1 | AK48: 0 | AL48: 0 | AM48: 0
C49: 넘어짐(사람이 미끄러지거나 넘어짐) | D49: 49 | E49: 0 | F49: 30 | G49: 0 | H49: 10 | I49: 0 | J49: 4 | K49: 0 | L49: 4 | M49: 0 | N49: 1 | O49: 0 | P49: 32 | Q49: 0 | R49: 14 | S49: 0 | T49: 10 | U49: 0 | V49: 4 | W49: 0 | X49: 2 | Y49: 0 | Z49: 2 | AA49: 0 | AB49: 30 | AC49: 0 | AD49: 17 | AE49: 0 | AF49: 3 | AG49: 0 | AH49: 6 | AI49: 0 | AJ49: 3 | AK49: 0 | AL49: 1 | AM49: 0
C50: 깔림·뒤집힘(물체의 쓰러짐이나 뒤집힘) | D50: 1 | E50: 0 | F50: 0 | G50: 0 | H50: 0 | I50: 0 | J50: 1 | K50: 0 | L50: 0 | M50: 0 | N50: 0 | O50: 0 | P50: 2 | Q50: 0 | R50: 1 | S50: 0 | T50: 1 | U50: 0 | V50: 0 | W50: 0 | X50: 0 | Y50: 0 | Z50: 0 | AA50: 0 | AB50: 0 | AC50: 0 | AD50: 0 | AE50: 0 | AF50: 0 | AG50: 0 | AH50: 0 | AI50: 0 | AJ50: 0 | AK50: 0 | AL50: 0 | AM50: 0
C51: 부딪힘(물체에 부딪힘) | D51: 7 | E51: 0 | F51: 0 | G51: 0 | H51: 3 | I51: 0 | J51: 1 | K51: 0 | L51: 3 | M51: 0 | N51: 0 | O51: 0 | P51: 3 | Q51: 0 | R51: 3 | S51: 0 | T51: 0 | U51: 0 | V51: 0 | W51: 0 | X51: 0 | Y51: 0 | Z51: 0 | AA51: 0 | AB51: 1 | AC51: 0 | AD51: 0 | AE51: 0 | AF51: 1 | AG51: 0 | AH51: 0 | AI51: 0 | AJ51: 0 | AK51: 0 | AL51: 0 | AM51: 0
C52: 물체에 맞음(날아오거나 떨어진 물체에 맞음) | D52: 2 | E52: 0 | F52: 1 | G52: 0 | H52: 1 | I52: 0 | J52: 0 | K52: 0 | L52: 0 | M52: 0 | N52: 0 | O52: 0 | P52: 1 | Q52: 0 | R52: 1 | S52: 0 | T52: 0 | U52: 0 | V52: 0 | W52: 0 | X52: 0 | Y52: 0 | Z52: 0 | AA52: 0 | AB52: 0 | AC52: 0 | AD52: 0 | AE52: 0 | AF52: 0 | AG52: 0 | AH52: 0 | AI52: 0 | AJ52: 0 | AK52: 0 | AL52: 0 | AM52: 0
C53: 끼임(기계설비에 끼이거나 감김) | D53: 12 | E53: 0 | F53: 10 | G53: 0 | H53: 1 | I53: 0 | J53: 1 | K53: 0 | L53: 0 | M53: 0 | N53: 0 | O53: 0 | P53: 6 | Q53: 0 | R53: 4 | S53: 0 | T53: 1 | U53: 0 | V53: 0 | W53: 0 | X53: 1 | Y53: 0 | Z53: 0 | AA53: 0 | AB53: 10 | AC53: 0 | AD53: 8 | AE53: 0 | AF53: 0 | AG53: 0 | AH53: 2 | AI53: 0 | AJ53: 0 | AK53: 0 | AL53: 0 | AM53: 0
C54: 절단·베임·찔림 | D54: 23 | E54: 0 | F54: 17 | G54: 0 | H54: 4 | I54: 0 | J54: 2 | K54: 0 | L54: 0 | M54: 0 | N54: 0 | O54: 0 | P54: 20 | Q54: 0 | R54: 8 | S54: 0 | T54: 8 | U54: 0 | V54: 2 | W54: 0 | X54: 1 | Y54: 0 | Z54: 1 | AA54: 0 | AB54: 20 | AC54: 0 | AD54: 15 | AE54: 0 | AF54: 3 | AG54: 0 | AH54: 2 | AI54: 0 | AJ54: 0 | AK54: 0 | AL54: 0 | AM54: 0
C55: 화재 | D55: 0 | E55: 0 | F55: 0 | G55: 0 | H55: 0 | I55: 0 | J55: 0 | K55: 0 | L55: 0 | M55: 0 | N55: 0 | O55: 0 | P55: 1 | Q55: 0 | R55: 1 | S55: 0 | T55: 0 | U55: 0 | V55: 0 | W55: 0 | X55: 0 | Y55: 0 | Z55: 0 | AA55: 0 | AB55: 0 | AC55: 0 | AD55: 0 | AE55: 0 | AF55: 0 | AG55: 0 | AH55: 0 | AI55: 0 | AJ55: 0 | AK55: 0 | AL55: 0 | AM55: 0
C56: 불균형 및 무리한 동작 | D56: 5 | E56: 0 | F56: 5 | G56: 0 | H56: 0 | I56: 0 | J56: 0 | K56: 0 | L56: 0 | M56: 0 | N56: 0 | O56: 0 | P56: 5 | Q56: 0 | R56: 2 | S56: 0 | T56: 1 | U56: 0 | V56: 1 | W56: 0 | X56: 1 | Y56: 0 | Z56: 0 | AA56: 0 | AB56: 1 | AC56: 0 | AD56: 1 | AE56: 0 | AF56: 0 | AG56: 0 | AH56: 0 | AI56: 0 | AJ56: 0 | AK56: 0 | AL56: 0 | AM56: 0
C57: 이상온도 접촉 | D57: 15 | E57: 0 | F57: 9 | G57: 0 | H57: 5 | I57: 0 | J57: 1 | K57: 0 | L57: 0 | M57: 0 | N57: 0 | O57: 0 | P57: 19 | Q57: 0 | R57: 10 | S57: 0 | T57: 3 | U57: 0 | V57: 5 | W57: 0 | X57: 0 | Y57: 0 | Z57: 1 | AA57: 0 | AB57: 11 | AC57: 0 | AD57: 8 | AE57: 0 | AF57: 1 | AG57: 0 | AH57: 1 | AI57: 0 | AJ57: 1 | AK57: 0 | AL57: 0 | AM57: 0
C58: 화학물질누출·접촉 | D58: 0 | E58: 0 | F58: 0 | G58: 0 | H58: 0 | I58: 0 | J58: 0 | K58: 0 | L58: 0 | M58: 0 | N58: 0 | O58: 0 | P58: 0 | Q58: 0 | R58: 0 | S58: 0 | T58: 0 | U58: 0 | V58: 0 | W58: 0 | X58: 0 | Y58: 0 | Z58: 0 | AA58: 0 | AB58: 1 | AC58: 0 | AD58: 1 | AE58: 0 | AF58: 0 | AG58: 0 | AH58: 0 | AI58: 0 | AJ58: 0 | AK58: 0 | AL58: 0 | AM58: 0
C59: 사업장외 교통사고 | D59: 9 | E59: 0 | F59: 5 | G59: 0 | H59: 3 | I59: 0 | J59: 1 | K59: 0 | L59: 0 | M59: 0 | N59: 0 | O59: 0 | P59: 11 | Q59: 1 | R59: 6 | S59: 1 | T59: 2 | U59: 0 | V59: 1 | W59: 0 | X59: 2 | Y59: 0 | Z59: 0 | AA59: 0 | AB59: 2 | AC59: 0 | AD59: 2 | AE59: 0 | AF59: 0 | AG59: 0 | AH59: 0 | AI59: 0 | AJ59: 0 | AK59: 0 | AL59: 0 | AM59: 0
C60: 체육행사 등의 사고 | D60: 1 | E60: 0 | F60: 1 | G60: 0 | H60: 0 | I60: 0 | J60: 0 | K60: 0 | L60: 0 | M60: 0 | N60: 0 | O60: 0 | P60: 0 | Q60: 0 | R60: 0 | S60: 0 | T60: 0 | U60: 0 | V60: 0 | W60: 0 | X60: 0 | Y60: 0 | Z60: 0 | AA60: 0 | AB60: 0 | AC60: 0 | AD60: 0 | AE60: 0 | AF60: 0 | AG60: 0 | AH60: 0 | AI60: 0 | AJ60: 0 | AK60: 0 | AL60: 0 | AM60: 0
C61: 뇌심혈관질환 | D61: 0 | E61: 0 | F61: 0 | G61: 0 | H61: 0 | I61: 0 | J61: 0 | K61: 0 | L61: 0 | M61: 0 | N61: 0 | O61: 0 | P61: 0 | Q61: 0 | R61: 0 | S61: 0 | T61: 0 | U61: 0 | V61: 0 | W61: 0 | X61: 0 | Y61: 0 | Z61: 0 | AA61: 0 | AB61: 0 | AC61: 0 | AD61: 0 | AE61: 0 | AF61: 0 | AG61: 0 | AH61: 0 | AI61: 0 | AJ61: 0 | AK61: 0 | AL61: 0 | AM61: 0
C62: 근골격계질환 | D62: 0 | E62: 0 | F62: 0 | G62: 0 | H62: 0 | I62: 0 | J62: 0 | K62: 0 | L62: 0 | M62: 0 | N62: 0 | O62: 0 | P62: 0 | Q62: 0 | R62: 0 | S62: 0 | T62: 0 | U62: 0 | V62: 0 | W62: 0 | X62: 0 | Y62: 0 | Z62: 0 | AA62: 0 | AB62: 0 | AC62: 0 | AD62: 0 | AE62: 0 | AF62: 0 | AG62: 0 | AH62: 0 | AI62: 0 | AJ62: 0 | AK62: 0 | AL62: 0 | AM62: 0
C63: 작업관련성질환 기타 | D63: 0 | E63: 0 | F63: 0 | G63: 0 | H63: 0 | I63: 0 | J63: 0 | K63: 0 | L63: 0 | M63: 0 | N63: 0 | O63: 0 | P63: 0 | Q63: 0 | R63: 0 | S63: 0 | T63: 0 | U63: 0 | V63: 0 | W63: 0 | X63: 0 | Y63: 0 | Z63: 0 | AA63: 0 | AB63: 0 | AC63: 0 | AD63: 0 | AE63: 0 | AF63: 0 | AG63: 0 | AH63: 0 | AI63: 0 | AJ63: 0 | AK63: 0 | AL63: 0 | AM63: 0
B64: 구 미 | C64: 합계 | D64: 72 | E64: 1 | F64: 44 | G64: 1 | H64: 10 | I64: 0 | J64: 9 | K64: 0 | L64: 7 | M64: 0 | N64: 2 | O64: 0 | P64: 58 | Q64: 1 | R64: 37 | S64: 1 | T64: 13 | U64: 0 | V64: 3 | W64: 0 | X64: 3 | Y64: 0 | Z64: 2 | AA64: 0 | AB64: 43 | AC64: 0 | AD64: 24 | AE64: 0 | AF64: 12 | AG64: 0 | AH64: 3 | AI64: 0 | AJ64: 2 | AK64: 0 | AL64: 2 | AM64: 0
C65: 떨어짐(높이가 있는 곳에서 사람이 떨어짐) | D65: 2 | E65: 0 | F65: 1 | G65: 0 | H65: 0 | I65: 0 | J65: 1 | K65: 0 | L65: 0 | M65: 0 | N65: 0 | O65: 0 | P65: 1 | Q65: 0 | R65: 0 | S65: 0 | T65: 1 | U65: 0 | V65: 0 | W65: 0 | X65: 0 | Y65: 0 | Z65: 0 | AA65: 0 | AB65: 0 | AC65: 0 | AD65: 0 | AE65: 0 | AF65: 0 | AG65: 0 | AH65: 0 | AI65: 0 | AJ65: 0 | AK65: 0 | AL65: 0 | AM65: 0
C66: 넘어짐(사람이 미끄러지거나 넘어짐) | D66: 19 | E66: 0 | F66: 14 | G66: 0 | H66: 1 | I66: 0 | J66: 1 | K66: 0 | L66: 2 | M66: 0 | N66: 1 | O66: 0 | P66: 18 | Q66: 0 | R66: 11 | S66: 0 | T66: 4 | U66: 0 | V66: 0 | W66: 0 | X66: 2 | Y66: 0 | Z66: 1 | AA66: 0 | AB66: 14 | AC66: 0 | AD66: 7 | AE66: 0 | AF66: 4 | AG66: 0 | AH66: 2 | AI66: 0 | AJ66: 1 | AK66: 0 | AL66: 0 | AM66: 0
C67: 부딪힘(물체에 부딪힘) | D67: 4 | E67: 0 | F67: 1 | G67: 0 | H67: 1 | I67: 0 | J67: 0 | K67: 0 | L67: 2 | M67: 0 | N67: 0 | O67: 0 | P67: 3 | Q67: 0 | R67: 2 | S67: 0 | T67: 1 | U67: 0 | V67: 0 | W67: 0 | X67: 0 | Y67: 0 | Z67: 0 | AA67: 0 | AB67: 1 | AC67: 0 | AD67: 0 | AE67: 0 | AF67: 0 | AG67: 0 | AH67: 0 | AI67: 0 | AJ67: 1 | AK67: 0 | AL67: 0 | AM67: 0
C68: 물체에 맞음(날아오거나 떨어진 물체에 맞음) | D68: 5 | E68: 0 | F68: 3 | G68: 0 | H68: 0 | I68: 0 | J68: 0 | K68: 0 | L68: 2 | M68: 0 | N68: 0 | O68: 0 | P68: 3 | Q68: 0 | R68: 3 | S68: 0 | T68: 0 | U68: 0 | V68: 0 | W68: 0 | X68: 0 | Y68: 0 | Z68: 0 | AA68: 0 | AB68: 0 | AC68: 0 | AD68: 0 | AE68: 0 | AF68: 0 | AG68: 0 | AH68: 0 | AI68: 0 | AJ68: 0 | AK68: 0 | AL68: 0 | AM68: 0
C69: 끼임(기계설비에 끼이거나 감김) | D69: 2 | E69: 0 | F69: 2 | G69: 0 | H69: 0 | I69: 0 | J69: 0 | K69: 0 | L69: 0 | M69: 0 | N69: 0 | O69: 0 | P69: 6 | Q69: 0 | R69: 4 | S69: 0 | T69: 1 | U69: 0 | V69: 0 | W69: 0 | X69: 1 | Y69: 0 | Z69: 0 | AA69: 0 | AB69: 2 | AC69: 0 | AD69: 1 | AE69: 0 | AF69: 1 | AG69: 0 | AH69: 0 | AI69: 0 | AJ69: 0 | AK69: 0 | AL69: 0 | AM69: 0
C70: 절단·베임·찔림 | D70: =SUM(F70,H70,J70,L70,N70) -> 10 | E70: =SUM(G70,I70,K70,M70,O70) -> 0 | F70: 6 | G70: 0 | H70: 1 | I70: 0 | J70: 3 | K70: 0 | L70: 0 | M70: 0 | N70: 0 | O70: 0 | P70: =SUM(R70,T70,V70,X70,Z70) -> 6 | Q70: =SUM(S70,U70,W70,Y70,AA70) -> 0 | R70: 4 | S70: 0 | T70: 2 | U70: 0 | V70: 0 | W70: 0 | X70: 0 | Y70: 0 | Z70: 0 | AA70: 0 | AB70: =SUM(AD70,AF70,AH70,AJ70,AL70) -> 10 | AC70: =SUM(AE70,AG70,AI70,AK70,AM70) -> 0 | AD70: 6 | AE70: 0 | AF70: 4 | AG70: 0 | AH70: 0 | AI70: 0 | AJ70: 0 | AK70: 0 | AL70: 0 | AM70: 0
C71: 불균형 및 무리한 동작 | D71: 5 | E71: 0 | F71: 2 | G71: 0 | H71: 2 | I71: 0 | J71: 1 | K71: 0 | L71: 0 | M71: 0 | N71: 0 | O71: 0 | P71: 2 | Q71: 0 | R71: 1 | S71: 0 | T71: 1 | U71: 0 | V71: 0 | W71: 0 | X71: 0 | Y71: 0 | Z71: 0 | AA71: 0 | AB71: 3 | AC71: 0 | AD71: 1 | AE71: 0 | AF71: 1 | AG71: 0 | AH71: 1 | AI71: 0 | AJ71: 0 | AK71: 0 | AL71: 0 | AM71: 0
C72: 이상온도 접촉 | D72: 14 | E72: 0 | F72: 7 | G72: 0 | H72: 4 | I72: 0 | J72: 2 | K72: 0 | L72: 1 | M72: 0 | N72: 0 | O72: 0 | P72: 11 | Q72: 0 | R72: 7 | S72: 0 | T72: 3 | U72: 0 | V72: 0 | W72: 0 | X72: 0 | Y72: 0 | Z72: 1 | AA72: 0 | AB72: 10 | AC72: 0 | AD72: 7 | AE72: 0 | AF72: 1 | AG72: 0 | AH72: 0 | AI72: 0 | AJ72: 0 | AK72: 0 | AL72: 2 | AM72: 0
C73: 화학물질누출·접촉 | D73: 0 | E73: 0 | F73: 0 | G73: 0 | H73: 0 | I73: 0 | J73: 0 | K73: 0 | L73: 0 | M73: 0 | N73: 0 | O73: 0 | P73: 0 | Q73: 0 | R73: 0 | S73: 0 | T73: 0 | U73: 0 | V73: 0 | W73: 0 | X73: 0 | Y73: 0 | Z73: 0 | AA73: 0 | AB73: 1 | AC73: 0 | AD73: 0 | AE73: 0 | AF73: 1 | AG73: 0 | AH73: 0 | AI73: 0 | AJ73: 0 | AK73: 0 | AL73: 0 | AM73: 0
C74: 사업장외 교통사고 | D74: 10 | E74: 1 | F74: 7 | G74: 1 | H74: 1 | I74: 0 | J74: 1 | K74: 0 | L74: 0 | M74: 0 | N74: 1 | O74: 0 | P74: 8 | Q74: 1 | R74: 5 | S74: 1 | T74: 0 | U74: 0 | V74: 3 | W74: 0 | X74: 0 | Y74: 0 | Z74: 0 | AA74: 0 | AB74: 2 | AC74: 0 | AD74: 2 | AE74: 0 | AF74: 0 | AG74: 0 | AH74: 0 | AI74: 0 | AJ74: 0 | AK74: 0 | AL74: 0 | AM74: 0
C75: 체육행사 등의 사고 | D75: 1 | E75: 0 | F75: 1 | G75: 0 | H75: 0 | I75: 0 | J75: 0 | K75: 0 | L75: 0 | M75: 0 | N75: 0 | O75: 0 | P75: 0 | Q75: 0 | R75: 0 | S75: 0 | T75: 0 | U75: 0 | V75: 0 | W75: 0 | X75: 0 | Y75: 0 | Z75: 0 | AA75: 0 | AB75: 0 | AC75: 0 | AD75: 0 | AE75: 0 | AF75: 0 | AG75: 0 | AH75: 0 | AI75: 0 | AJ75: 0 | AK75: 0 | AL75: 0 | AM75: 0
C76: 뇌심혈관질환 | D76: 0 | E76: 0 | F76: 0 | G76: 0 | H76: 0 | I76: 0 | J76: 0 | K76: 0 | L76: 0 | M76: 0 | N76: 0 | O76: 0 | P76: 0 | Q76: 0 | R76: 0 | S76: 0 | T76: 0 | U76: 0 | V76: 0 | W76: 0 | X76: 0 | Y76: 0 | Z76: 0 | AA76: 0 | AB76: 0 | AC76: 0 | AD76: 0 | AE76: 0 | AF76: 0 | AG76: 0 | AH76: 0 | AI76: 0 | AJ76: 0 | AK76: 0 | AL76: 0 | AM76: 0
C77: 근골격계질환 | D77: 0 | E77: 0 | F77: 0 | G77: 0 | H77: 0 | I77: 0 | J77: 0 | K77: 0 | L77: 0 | M77: 0 | N77: 0 | O77: 0 | P77: 0 | Q77: 0 | R77: 0 | S77: 0 | T77: 0 | U77: 0 | V77: 0 | W77: 0 | X77: 0 | Y77: 0 | Z77: 0 | AA77: 0 | AB77: 0 | AC77: 0 | AD77: 0 | AE77: 0 | AF77: 0 | AG77: 0 | AH77: 0 | AI77: 0 | AJ77: 0 | AK77: 0 | AL77: 0 | AM77: 0
B78: 영 주 | C78: 합계 | D78: 23 | E78: 0 | F78: 13 | G78: 0 | H78: 3 | I78: 0 | J78: 5 | K78: 0 | L78: 0 | M78: 0 | N78: 2 | O78: 0 | P78: 19 | Q78: 0 | R78: 14 | S78: 0 | T78: 2 | U78: 0 | V78: 2 | W78: 0 | X78: 1 | Y78: 0 | Z78: 0 | AA78: 0 | AB78: 15 | AC78: 0 | AD78: 13 | AE78: 0 | AF78: 1 | AG78: 0 | AH78: 1 | AI78: 0 | AJ78: 0 | AK78: 0 | AL78: 0 | AM78: 0
C79: 떨어짐(높이가 있는 곳에서 사람이 떨어짐) | D79: 1 | E79: 0 | F79: 0 | G79: 0 | H79: 0 | I79: 0 | J79: 1 | K79: 0 | L79: 0 | M79: 0 | N79: 0 | O79: 0 | P79: 1 | Q79: 0 | R79: 0 | S79: 0 | T79: 1 | U79: 0 | V79: 0 | W79: 0 | X79: 0 | Y79: 0 | Z79: 0 | AA79: 0 | AB79: 0 | AC79: 0 | AD79: 0 | AE79: 0 | AF79: 0 | AG79: 0 | AH79: 0 | AI79: 0 | AJ79: 0 | AK79: 0 | AL79: 0 | AM79: 0
C80: 넘어짐(사람이 미끄러지거나 넘어짐) | D80: 7 | E80: 0 | F80: 3 | G80: 0 | H80: 1 | I80: 0 | J80: 2 | K80: 0 | L80: 0 | M80: 0 | N80: 1 | O80: 0 | P80: 9 | Q80: 0 | R80: 7 | S80: 0 | T80: 1 | U80: 0 | V80: 1 | W80: 0 | X80: 0 | Y80: 0 | Z80: 0 | AA80: 0 | AB80: 4 | AC80: 0 | AD80: 4 | AE80: 0 | AF80: 0 | AG80: 0 | AH80: 0 | AI80: 0 | AJ80: 0 | AK80: 0 | AL80: 0 | AM80: 0
C81: 부딪힘(물체에 부딪힘) | D81: 1 | E81: 0 | F81: 1 | G81: 0 | H81: 0 | I81: 0 | J81: 0 | K81: 0 | L81: 0 | M81: 0 | N81: 0 | O81: 0 | P81: 1 | Q81: 0 | R81: 1 | S81: 0 | T81: 0 | U81: 0 | V81: 0 | W81: 0 | X81: 0 | Y81: 0 | Z81: 0 | AA81: 0 | AB81: 1 | AC81: 0 | AD81: 0 | AE81: 0 | AF81: 1 | AG81: 0 | AH81: 0 | AI81: 0 | AJ81: 0 | AK81: 0 | AL81: 0 | AM81: 0
C82: 물체에 맞음(날아오거나 떨어진 물체에 맞음) | D82: 1 | E82: 0 | F82: 1 | G82: 0 | H82: 0 | I82: 0 | J82: 0 | K82: 0 | L82: 0 | M82: 0 | N82: 0 | O82: 0 | P82: 0 | Q82: 0 | R82: 0 | S82: 0 | T82: 0 | U82: 0 | V82: 0 | W82: 0 | X82: 0 | Y82: 0 | Z82: 0 | AA82: 0 | AB82: 0 | AC82: 0 | AD82: 0 | AE82: 0 | AF82: 0 | AG82: 0 | AH82: 0 | AI82: 0 | AJ82: 0 | AK82: 0 | AL82: 0 | AM82: 0
C83: 끼임(기계설비에 끼이거나 감김) | D83: 2 | E83: 0 | F83: 1 | G83: 0 | H83: 1 | I83: 0 | J83: 0 | K83: 0 | L83: 0 | M83: 0 | N83: 0 | O83: 0 | P83: 3 | Q83: 0 | R83: 3 | S83: 0 | T83: 0 | U83: 0 | V83: 0 | W83: 0 | X83: 0 | Y83: 0 | Z83: 0 | AA83: 0 | AB83: 2 | AC83: 0 | AD83: 1 | AE83: 0 | AF83: 0 | AG83: 0 | AH83: 1 | AI83: 0 | AJ83: 0 | AK83: 0 | AL83: 0 | AM83: 0
C84: 절단·베임·찔림 | D84: 3 | E84: 0 | F84: 0 | G84: 0 | H84: 1 | I84: 0 | J84: 2 | K84: 0 | L84: 0 | M84: 0 | N84: 0 | O84: 0 | P84: 1 | Q84: 0 | R84: 0 | S84: 0 | T84: 0 | U84: 0 | V84: 1 | W84: 0 | X84: 0 | Y84: 0 | Z84: 0 | AA84: 0 | AB84: 5 | AC84: 0 | AD84: 5 | AE84: 0 | AF84: 0 | AG84: 0 | AH84: 0 | AI84: 0 | AJ84: 0 | AK84: 0 | AL84: 0 | AM84: 0
C85: 폭발·파열 | D85: 0 | E85: 0 | F85: 0 | G85: 0 | H85: 0 | I85: 0 | J85: 0 | K85: 0 | L85: 0 | M85: 0 | N85: 0 | O85: 0 | P85: 1 | Q85: 0 | R85: 0 | S85: 0 | T85: 0 | U85: 0 | V85: 0 | W85: 0 | X85: 1 | Y85: 0 | Z85: 0 | AA85: 0 | AB85: 0 | AC85: 0 | AD85: 0 | AE85: 0 | AF85: 0 | AG85: 0 | AH85: 0 | AI85: 0 | AJ85: 0 | AK85: 0 | AL85: 0 | AM85: 0
C86: 불균형 및 무리한 동작 | D86: 1 | E86: 0 | F86: 1 | G86: 0 | H86: 0 | I86: 0 | J86: 0 | K86: 0 | L86: 0 | M86: 0 | N86: 0 | O86: 0 | P86: 0 | Q86: 0 | R86: 0 | S86: 0 | T86: 0 | U86: 0 | V86: 0 | W86: 0 | X86: 0 | Y86: 0 | Z86: 0 | AA86: 0 | AB86: 2 | AC86: 0 | AD86: 2 | AE86: 0 | AF86: 0 | AG86: 0 | AH86: 0 | AI86: 0 | AJ86: 0 | AK86: 0 | AL86: 0 | AM86: 0
C87: 이상온도 접촉 | D87: 4 | E87: 0 | F87: 3 | G87: 0 | H87: 0 | I87: 0 | J87: 0 | K87: 0 | L87: 0 | M87: 0 | N87: 1 | O87: 0 | P87: 3 | Q87: 0 | R87: 3 | S87: 0 | T87: 0 | U87: 0 | V87: 0 | W87: 0 | X87: 0 | Y87: 0 | Z87: 0 | AA87: 0 | AB87: 1 | AC87: 0 | AD87: 1 | AE87: 0 | AF87: 0 | AG87: 0 | AH87: 0 | AI87: 0 | AJ87: 0 | AK87: 0 | AL87: 0 | AM87: 0
C88: 사업장외 교통사고 | D88: 3 | E88: 0 | F88: 3 | G88: 0 | H88: 0 | I88: 0 | J88: 0 | K88: 0 | L88: 0 | M88: 0 | N88: 0 | O88: 0 | P88: 0 | Q88: 0 | R88: 0 | S88: 0 | T88: 0 | U88: 0 | V88: 0 | W88: 0 | X88: 0 | Y88: 0 | Z88: 0 | AA88: 0 | AB88: 0 | AC88: 0 | AD88: 0 | AE88: 0 | AF88: 0 | AG88: 0 | AH88: 0 | AI88: 0 | AJ88: 0 | AK88: 0 | AL88: 0 | AM88: 0
C89: 근골격계질환 | D89: 0 | E89: 0 | F89: 0 | G89: 0 | H89: 0 | I89: 0 | J89: 0 | K89: 0 | L89: 0 | M89: 0 | N89: 0 | O89: 0 | P89: 0 | Q89: 0 | R89: 0 | S89: 0 | T89: 0 | U89: 0 | V89: 0 | W89: 0 | X89: 0 | Y89: 0 | Z89: 0 | AA89: 0 | AB89: 0 | AC89: 0 | AD89: 0 | AE89: 0 | AF89: 0 | AG89: 0 | AH89: 0 | AI89: 0 | AJ89: 0 | AK89: 0 | AL89: 0 | AM89: 0
B90: 안 동 | C90: 합계 | D90: 18 | E90: 0 | F90: 14 | G90: 0 | H90: 1 | I90: 0 | J90: 1 | K90: 0 | L90: 1 | M90: 0 | N90: 1 | O90: 0 | P90: 18 | Q90: 0 | R90: 9 | S90: 0 | T90: 4 | U90: 0 | V90: 2 | W90: 0 | X90: 2 | Y90: 0 | Z90: 1 | AA90: 0 | AB90: 8 | AC90: 0 | AD90: 6 | AE90: 0 | AF90: 1 | AG90: 0 | AH90: 0 | AI90: 0 | AJ90: 1 | AK90: 0 | AL90: 0 | AM90: 0
C91: 떨어짐(높이가 있는 곳에서 사람이 떨어짐) | D91: 0 | E91: 0 | F91: 0 | G91: 0 | H91: 0 | I91: 0 | J91: 0 | K91: 0 | L91: 0 | M91: 0 | N91: 0 | O91: 0 | P91: 2 | Q91: 0 | R91: 2 | S91: 0 | T91: 0 | U91: 0 | V91: 0 | W91: 0 | X91: 0 | Y91: 0 | Z91: 0 | AA91: 0 | AB91: 1 | AC91: 0 | AD91: 1 | AE91: 0 | AF91: 0 | AG91: 0 | AH91: 0 | AI91: 0 | AJ91: 0 | AK91: 0 | AL91: 0 | AM91: 0
C92: 넘어짐(사람이 미끄러지거나 넘어짐) | D92: 5 | E92: 0 | F92: 5 | G92: 0 | H92: 0 | I92: 0 | J92: 0 | K92: 0 | L92: 0 | M92: 0 | N92: 0 | O92: 0 | P92: 2 | Q92: 0 | R92: 0 | S92: 0 | T92: 2 | U92: 0 | V92: 0 | W92: 0 | X92: 0 | Y92: 0 | Z92: 0 | AA92: 0 | AB92: 2 | AC92: 0 | AD92: 2 | AE92: 0 | AF92: 0 | AG92: 0 | AH92: 0 | AI92: 0 | AJ92: 0 | AK92: 0 | AL92: 0 | AM92: 0
C93: 부딪힘(물체에 부딪힘) | D93: 1 | E93: 0 | F93: 1 | G93: 0 | H93: 0 | I93: 0 | J93: 0 | K93: 0 | L93: 0 | M93: 0 | N93: 0 | O93: 0 | P93: 0 | Q93: 0 | R93: 0 | S93: 0 | T93: 0 | U93: 0 | V93: 0 | W93: 0 | X93: 0 | Y93: 0 | Z93: 0 | AA93: 0 | AB93: 1 | AC93: 0 | AD93: 0 | AE93: 0 | AF93: 0 | AG93: 0 | AH93: 0 | AI93: 0 | AJ93: 1 | AK93: 0 | AL93: 0 | AM93: 0
C94: 물체에 맞음(날아오거나 떨어진 물체에 맞음) | D94: 1 | E94: 0 | F94: 1 | G94: 0 | H94: 0 | I94: 0 | J94: 0 | K94: 0 | L94: 0 | M94: 0 | N94: 0 | O94: 0 | P94: 3 | Q94: 0 | R94: 2 | S94: 0 | T94: 0 | U94: 0 | V94: 0 | W94: 0 | X94: 0 | Y94: 0 | Z94: 1 | AA94: 0 | AB94: 0 | AC94: 0 | AD94: 0 | AE94: 0 | AF94: 0 | AG94: 0 | AH94: 0 | AI94: 0 | AJ94: 0 | AK94: 0 | AL94: 0 | AM94: 0
C95: 끼임(기계설비에 끼이거나 감김) | D95: 1 | E95: 0 | F95: 1 | G95: 0 | H95: 0 | I95: 0 | J95: 0 | K95: 0 | L95: 0 | M95: 0 | N95: 0 | O95: 0 | P95: 4 | Q95: 0 | R95: 3 | S95: 0 | T95: 1 | U95: 0 | V95: 0 | W95: 0 | X95: 0 | Y95: 0 | Z95: 0 | AA95: 0 | AB95: 0 | AC95: 0 | AD95: 0 | AE95: 0 | AF95: 0 | AG95: 0 | AH95: 0 | AI95: 0 | AJ95: 0 | AK95: 0 | AL95: 0 | AM95: 0
C96: 절단·베임·찔림 | D96: 2 | E96: 0 | F96: 2 | G96: 0 | H96: 0 | I96: 0 | J96: 0 | K96: 0 | L96: 0 | M96: 0 | N96: 0 | O96: 0 | P96: 3 | Q96: 0 | R96: 1 | S96: 0 | T96: 0 | U96: 0 | V96: 1 | W96: 0 | X96: 1 | Y96: 0 | Z96: 0 | AA96: 0 | AB96: 0 | AC96: 0 | AD96: 0 | AE96: 0 | AF96: 0 | AG96: 0 | AH96: 0 | AI96: 0 | AJ96: 0 | AK96: 0 | AL96: 0 | AM96: 0
C97: 불균형 및 무리한 동작 | D97: 1 | E97: 0 | F97: 1 | G97: 0 | H97: 0 | I97: 0 | J97: 0 | K97: 0 | L97: 0 | M97: 0 | N97: 0 | O97: 0 | P97: 1 | Q97: 0 | R97: 0 | S97: 0 | T97: 0 | U97: 0 | V97: 1 | W97: 0 | X97: 0 | Y97: 0 | Z97: 0 | AA97: 0 | AB97: 1 | AC97: 0 | AD97: 1 | AE97: 0 | AF97: 0 | AG97: 0 | AH97: 0 | AI97: 0 | AJ97: 0 | AK97: 0 | AL97: 0 | AM97: 0
C98: 이상온도 접촉 | D98: 5 | E98: 0 | F98: 2 | G98: 0 | H98: 0 | I98: 0 | J98: 1 | K98: 0 | L98: 1 | M98: 0 | N98: 1 | O98: 0 | P98: 3 | Q98: 0 | R98: 1 | S98: 0 | T98: 1 | U98: 0 | V98: 0 | W98: 0 | X98: 1 | Y98: 0 | Z98: 0 | AA98: 0 | AB98: 0 | AC98: 0 | AD98: 0 | AE98: 0 | AF98: 0 | AG98: 0 | AH98: 0 | AI98: 0 | AJ98: 0 | AK98: 0 | AL98: 0 | AM98: 0
C99: 사업장외 교통사고 | D99: 2 | E99: 0 | F99: 1 | G99: 0 | H99: 1 | I99: 0 | J99: 0 | K99: 0 | L99: 0 | M99: 0 | N99: 0 | O99: 0 | P99: 0 | Q99: 0 | R99: 0 | S99: 0 | T99: 0 | U99: 0 | V99: 0 | W99: 0 | X99: 0 | Y99: 0 | Z99: 0 | AA99: 0 | AB99: 3 | AC99: 0 | AD99: 2 | AE99: 0 | AF99: 1 | AG99: 0 | AH99: 0 | AI99: 0 | AJ99: 0 | AK99: 0 | AL99: 0 | AM99: 0
C100: 물리적인자 | D100: 0 | E100: 0 | F100: 0 | G100: 0 | H100: 0 | I100: 0 | J100: 0 | K100: 0 | L100: 0 | M100: 0 | N100: 0 | O100: 0 | P100: 0 | Q100: 0 | R100: 0 | S100: 0 | T100: 0 | U100: 0 | V100: 0 | W100: 0 | X100: 0 | Y100: 0 | Z100: 0 | AA100: 0 | AB100: 0 | AC100: 0 | AD100: 0 | AE100: 0 | AF100: 0 | AG100: 0 | AH100: 0 | AI100: 0 | AJ100: 0 | AK100: 0 | AL100: 0 | AM100: 0
C101: 근골격계질환 | D101: 0 | E101: 0 | F101: 0 | G101: 0 | H101: 0 | I101: 0 | J101: 0 | K101: 0 | L101: 0 | M101: 0 | N101: 0 | O101: 0 | P101: 0 | Q101: 0 | R101: 0 | S101: 0 | T101: 0 | U101: 0 | V101: 0 | W101: 0 | X101: 0 | Y101: 0 | Z101: 0 | AA101: 0 | AB101: 0 | AC101: 0 | AD101: 0 | AE101: 0 | AF101: 0 | AG101: 0 | AH101: 0 | AI101: 0 | AJ101: 0 | AK101: 0 | AL101: 0 | AM101: 0

Sheet 인천
A1: 업종(소) | B1: 고용지청 | C1: 기준년월 | D1: 2019년 12월 | P1: 2020년 12월 | AB1: 2021년 9월
C2: 규모(소) | D2: 규모별 합계 | F2: 5인 미만 | H2: 5인 ~ 9인 | J2: 10인 ~ 19인 | L2: 20인 ~ 29인 | N2: 30인 ~ 49인 | P2: 규모별 합계 | R2: 5인 미만 | T2: 5인 ~ 9인 | V2: 10인 ~ 19인 | X2: 20인 ~ 29인 | Z2: 30인 ~ 49인 | AB2: 규모별 합계 | AD2: 5인 미만 | AF2: 5인 ~ 9인 | AH2: 10인 ~ 19인 | AJ2: 20인 ~ 29인 | AL2: 30인 ~ 49인
C3: 발생형태(중) | D3: 사고재해자수 합계 | E3: 사고사망자수 합계 | F3: 사고재해자수 | G3: 사고사망자수 | H3: 사고재해자수 | I3: 사고사망자수 | J3: 사고재해자수 | K3: 사고사망자수 | L3: 사고재해자수 | M3: 사고사망자수 | N3: 사고재해자수 | O3: 사고사망자수 | P3: 사고재해자수 합계 | Q3: 사고사망자수 합계 | R3: 사고재해자수 | S3: 사고사망자수 | T3: 사고재해자수 | U3: 사고사망자수 | V3: 사고재해자수 | W3: 사고사망자수 | X3: 사고재해자수 | Y3: 사고사망자수 | Z3: 사고재해자수 | AA3: 사고사망자수 | AB3: 사고재해자수 합계 | AC3: 사고사망자수 합계 | AD3: 사고재해자수 | AE3: 사고사망자수 | AF3: 사고재해자수 | AG3: 사고사망자수 | AH3: 사고재해자수 | AI3: 사고사망자수 | AJ3: 사고재해자수 | AK3: 사고사망자수 | AL3: 사고재해자수 | AM3: 사고사망자수
A4: 음식및숙박업 | B4: 합계 | D4: =SUM(D5,D25,D43,D62,D82) -> 1469 | E4: =SUM(E5,E25,E43,E62,E82) -> 3 | F4: 791 | G4: 2 | H4: 267 | I4: 1 | J4: 237 | K4: 0 | L4: 100 | M4: 0 | N4: 74 | O4: 0 | P4: 1400 | Q4: 3 | R4: 737 | S4: 3 | T4: 290 | U4: 0 | V4: 240 | W4: 0 | X4: 80 | Y4: 0 | Z4: 53 | AA4: 0 | AB4: 961 | AC4: 2 | AD4: 516 | AE4: 1 | AF4: 214 | AG4: 1 | AH4: 142 | AI4: 0 | AJ4: 53 | AK4: 0 | AL4: 36 | AM4: 0
B5: 중 부 청 | C5: 합계 | D5: =SUM(F5,H5,J5,L5,N5) -> 336 | E5: =SUM(G5,I5,K5,M5,O5) -> 1 | F5: 163 | G5: 0 | H5: 64 | I5: 1 | J5: 67 | K5: 0 | L5: 16 | M5: 0 | N5: 26 | O5: 0 | P5: =SUM(R5,T5,V5,X5,Z5) -> 315 | Q5: =SUM(S5,U5,W5,Y5,AA5) -> 0 | R5: 154 | S5: 0 | T5: 63 | U5: 0 | V5: 58 | W5: 0 | X5: 24 | Y5: 0 | Z5: 16 | AA5: 0 | AB5: =SUM(AD5,AF5,AH5,AJ5,AL5) -> 231 | AC5: =SUM(AE5,AG5,AI5,AK5,AM5) -> 0 | AD5: 122 | AE5: 0 | AF5: 65 | AG5: 0 | AH5: 26 | AI5: 0 | AJ5: 10 | AK5: 0 | AL5: 8 | AM5: 0
C6: 떨어짐(높이가 있는 곳에서 사람이 떨어짐) | D6: =SUM(F6,H6,J6,L6,N6) -> 7 | E6: =SUM(G6,I6,K6,M6,O6) -> 0 | F6: 5 | G6: 0 | H6: 0 | I6: 0 | J6: 1 | K6: 0 | L6: 1 | M6: 0 | N6: 0 | O6: 0 | P6: =SUM(R6,T6,V6,X6,Z6) -> 8 | Q6: =SUM(S6,U6,W6,Y6,AA6) -> 0 | R6: 3 | S6: 0 | T6: 4 | U6: 0 | V6: 0 | W6: 0 | X6: 0 | Y6: 0 | Z6: 1 | AA6: 0 | AB6: =SUM(AD6,AF6,AH6,AJ6,AL6) -> 5 | AC6: =SUM(AE6,AG6,AI6,AK6,AM6) -> 0 | AD6: 3 | AE6: 0 | AF6: 2 | AG6: 0 | AH6: 0 | AI6: 0 | AJ6: 0 | AK6: 0 | AL6: 0 | AM6: 0
C7: 넘어짐(사람이 미끄러지거나 넘어짐) | D7: 96 | E7: 0 | F7: 57 | G7: 0 | H7: 15 | I7: 0 | J7: 13 | K7: 0 | L7: 4 | M7: 0 | N7: 7 | O7: 0 | P7: 90 | Q7: 0 | R7: 48 | S7: 0 | T7: 6 | U7: 0 | V7: 25 | W7: 0 | X7: 7 | Y7: 0 | Z7: 4 | AA7: 0 | AB7: 84 | AC7: 0 | AD7: 52 | AE7: 0 | AF7: 20 | AG7: 0 | AH7: 8 | AI7: 0 | AJ7: 2 | AK7: 0 | AL7: 2 | AM7: 0
C8: 깔림·뒤집힘(물체의 쓰러짐이나 뒤집힘) | D8: 2 | E8: 0 | F8: 1 | G8: 0 | H8: 1 | I8: 0 | J8: 0 | K8: 0 | L8: 0 | M8: 0 | N8: 0 | O8: 0 | P8: 2 | Q8: 0 | R8: 2 | S8: 0 | T8: 0 | U8: 0 | V8: 0 | W8: 0 | X8: 0 | Y8: 0 | Z8: 0 | AA8: 0 | AB8: 1 | AC8: 0 | AD8: 1 | AE8: 0 | AF8: 0 | AG8: 0 | AH8: 0 | AI8: 0 | AJ8: 0 | AK8: 0 | AL8: 0 | AM8: 0
C9: 부딪힘(물체에 부딪힘) | D9: 14 | E9: 1 | F9: 6 | G9: 0 | H9: 3 | I9: 1 | J9: 1 | K9: 0 | L9: 0 | M9: 0 | N9: 4 | O9: 0 | P9: 12 | Q9: 0 | R9: 7 | S9: 0 | T9: 1 | U9: 0 | V9: 1 | W9: 0 | X9: 2 | Y9: 0 | Z9: 1 | AA9: 0 | AB9: 8 | AC9: 0 | AD9: 3 | AE9: 0 | AF9: 1 | AG9: 0 | AH9: 1 | AI9: 0 | AJ9: 3 | AK9: 0 | AL9: 0 | AM9: 0
C10: 물체에 맞음(날아오거나 떨어진 물체에 맞음) | D10: 20 | E10: 0 | F10: 7 | G10: 0 | H10: 3 | I10: 0 | J10: 6 | K10: 0 | L10: 1 | M10: 0 | N10: 3 | O10: 0 | P10: 11 | Q10: 0 | R10: 7 | S10: 0 | T10: 2 | U10: 0 | V10: 1 | W10: 0 | X10: 1 | Y10: 0 | Z10: 0 | AA10: 0 | AB10: 3 | AC10: 0 | AD10: 2 | AE10: 0 | AF10: 1 | AG10: 0 | AH10: 0 | AI10: 0 | AJ10: 0 | AK10: 0 | AL10: 0 | AM10: 0
C11: 무너짐(건축물이나 쌓여진 물체가 무너짐) | D11: 0 | E11: 0 | F11: 0 | G11: 0 | H11: 0 | I11: 0 | J11: 0 | K11: 0 | L11: 0 | M11: 0 | N11: 0 | O11: 0 | P11: 1 | Q11: 0 | R11: 0 | S11: 0 | T11: 1 | U11: 0 | V11: 0 | W11: 0 | X11: 0 | Y11: 0 | Z11: 0 | AA11: 0 | AB11: 0 | AC11: 0 | AD11: 0 | AE11: 0 | AF11: 0 | AG11: 0 | AH11: 0 | AI11: 0 | AJ11: 0 | AK11: 0 | AL11: 0 | AM11: 0
C12: 끼임(기계설비에 끼이거나 감김) | D12: 15 | E12: 0 | F12: 6 | G12: 0 | H12: 5 | I12: 0 | J12: 2 | K12: 0 | L12: 1 | M12: 0 | N12: 1 | O12: 0 | P12: 18 | Q12: 0 | R12: 10 | S12: 0 | T12: 3 | U12: 0 | V12: 1 | W12: 0 | X12: 1 | Y12: 0 | Z12: 3 | AA12: 0 | AB12: 10 | AC12: 0 | AD12: 6 | AE12: 0 | AF12: 3 | AG12: 0 | AH12: 1 | AI12: 0 | AJ12: 0 | AK12: 0 | AL12: 0 | AM12: 0
C13: 절단·베임·찔림 | D13: 72 | E13: 0 | F13: 28 | G13: 0 | H13: 16 | I13: 0 | J13: 20 | K13: 0 | L13: 3 | M13: 0 | N13: 5 | O13: 0 | P13: 60 | Q13: 0 | R13: 25 | S13: 0 | T13: 16 | U13: 0 | V13: 10 | W13: 0 | X13: 6 | Y13: 0 | Z13: 3 | AA13: 0 | AB13: 54 | AC13: 0 | AD13: 20 | AE13: 0 | AF13: 22 | AG13: 0 | AH13: 5 | AI13: 0 | AJ13: 1 | AK13: 0 | AL13: 6 | AM13: 0
C14: 폭발·파열 | D14: 1 | E14: 0 | F14: 1 | G14: 0 | H14: 0 | I14: 0 | J14: 0 | K14: 0 | L14: 0 | M14: 0 | N14: 0 | O14: 0 | P14: 0 | Q14: 0 | R14: 0 | S14: 0 | T14: 0 | U14: 0 | V14: 0 | W14: 0 | X14: 0 | Y14: 0 | Z14: 0 | AA14: 0 | AB14: 0 | AC14: 0 | AD14: 0 | AE14: 0 | AF14: 0 | AG14: 0 | AH14: 0 | AI14: 0 | AJ14: 0 | AK14: 0 | AL14: 0 | AM14: 0
C15: 화재 | D15: 1 | E15: 0 | F15: 0 | G15: 0 | H15: 0 | I15: 0 | J15: 1 | K15: 0 | L15: 0 | M15: 0 | N15: 0 | O15: 0 | P15: 1 | Q15: 0 | R15: 1 | S15: 0 | T15: 0 | U15: 0 | V15: 0 | W15: 0 | X15: 0 | Y15: 0 | Z15: 0 | AA15: 0 | AB15: 0 | AC15: 0 | AD15: 0 | AE15: 0 | AF15: 0 | AG15: 0 | AH15: 0 | AI15: 0 | AJ15: 0 | AK15: 0 | AL15: 0 | AM15: 0
C16: 불균형 및 무리한 동작 | D16: 16 | E16: 0 | F16: 8 | G16: 0 | H16: 2 | I16: 0 | J16: 4 | K16: 0 | L16: 1 | M16: 0 | N16: 1 | O16: 0 | P16: 11 | Q16: 0 | R16: 7 | S16: 0 | T16: 0 | U16: 0 | V16: 2 | W16: 0 | X16: 1 | Y16: 0 | Z16: 1 | AA16: 0 | AB16: 6 | AC16: 0 | AD16: 3 | AE16: 0 | AF16: 1 | AG16: 0 | AH16: 2 | AI16: 0 | AJ16: 0 | AK16: 0 | AL16: 0 | AM16: 0
C17: 이상온도 접촉 | D17: 54 | E17: 0 | F17: 23 | G17: 0 | H17: 11 | I17: 0 | J17: 12 | K17: 0 | L17: 5 | M17: 0 | N17: 3 | O17: 0 | P17: 65 | Q17: 0 | R17: 23 | S17: 0 | T17: 22 | U17: 0 | V17: 12 | W17: 0 | X17: 5 | Y17: 0 | Z17: 3 | AA17: 0 | AB17: 37 | AC17: 0 | AD17: 19 | AE17: 0 | AF17: 12 | AG17: 0 | AH17: 2 | AI17: 0 | AJ17: 4 | AK17: 0 | AL17: 0 | AM17: 0
C18: 화학물질누출·접촉 | D18: 0 | E18: 0 | F18: 0 | G18: 0 | H18: 0 | I18: 0 | J18: 0 | K18: 0 | L18: 0 | M18: 0 | N18: 0 | O18: 0 | P18: 0 | Q18: 0 | R18: 0 | S18: 0 | T18: 0 | U18: 0 | V18: 0 | W18: 0 | X18: 0 | Y18: 0 | Z18: 0 | AA18: 0 | AB18: 1 | AC18: 0 | AD18: 1 | AE18: 0 | AF18: 0 | AG18: 0 | AH18: 0 | AI18: 0 | AJ18: 0 | AK18: 0 | AL18: 0 | AM18: 0
C19: 사업장외 교통사고 | D19: 36 | E19: 0 | F19: 21 | G19: 0 | H19: 7 | I19: 0 | J19: 7 | K19: 0 | L19: 0 | M19: 0 | N19: 1 | O19: 0 | P19: 36 | Q19: 0 | R19: 21 | S19: 0 | T19: 8 | U19: 0 | V19: 6 | W19: 0 | X19: 1 | Y19: 0 | Z19: 0 | AA19: 0 | AB19: 20 | AC19: 0 | AD19: 12 | AE19: 0 | AF19: 2 | AG19: 0 | AH19: 6 | AI19: 0 | AJ19: 0 | AK19: 0 | AL19: 0 | AM19: 0
C20: 체육행사 등의 사고 | D20: 1 | E20: 0 | F20: 0 | G20: 0 | H20: 0 | I20: 0 | J20: 0 | K20: 0 | L20: 0 | M20: 0 | N20: 1 | O20: 0 | P20: 0 | Q20: 0 | R20: 0 | S20: 0 | T20: 0 | U20: 0 | V20: 0 | W20: 0 | X20: 0 | Y20: 0 | Z20: 0 | AA20: 0 | AB20: 0 | AC20: 0 | AD20: 0 | AE20: 0 | AF20: 0 | AG20: 0 | AH20: 0 | AI20: 0 | AJ20: 0 | AK20: 0 | AL20: 0 | AM20: 0
C21: 폭력행위 | D21: 1 | E21: 0 | F21: 0 | G21: 0 | H21: 1 | I21: 0 | J21: 0 | K21: 0 | L21: 0 | M21: 0 | N21: 0 | O21: 0 | P21: 0 | Q21: 0 | R21: 0 | S21: 0 | T21: 0 | U21: 0 | V21: 0 | W21: 0 | X21: 0 | Y21: 0 | Z21: 0 | AA21: 0 | AB21: 2 | AC21: 0 | AD21: 0 | AE21: 0 | AF21: 1 | AG21: 0 | AH21: 1 | AI21: 0 | AJ21: 0 | AK21: 0 | AL21: 0 | AM21: 0
C22: 뇌심혈관질환 | D22: 0 | E22: 0 | F22: 0 | G22: 0 | H22: 0 | I22: 0 | J22: 0 | K22: 0 | L22: 0 | M22: 0 | N22: 0 | O22: 0 | P22: 0 | Q22: 0 | R22: 0 | S22: 0 | T22: 0 | U22: 0 | V22: 0 | W22: 0 | X22: 0 | Y22: 0 | Z22: 0 | AA22: 0 | AB22: 0 | AC22: 0 | AD22: 0 | AE22: 0 | AF22: 0 | AG22: 0 | AH22: 0 | AI22: 0 | AJ22: 0 | AK22: 0 | AL22: 0 | AM22: 0
C23: 근골격계질환 | D23: 0 | E23: 0 | F23: 0 | G23: 0 | H23: 0 | I23: 0 | J23: 0 | K23: 0 | L23: 0 | M23: 0 | N23: 0 | O23: 0 | P23: 0 | Q23: 0 | R23: 0 | S23: 0 | T23: 0 | U23: 0 | V23: 0 | W23: 0 | X23: 0 | Y23: 0 | Z23: 0 | AA23: 0 | AB23: 0 | AC23: 0 | AD23: 0 | AE23: 0 | AF23: 0 | AG23: 0 | AH23: 0 | AI23: 0 | AJ23: 0 | AK23: 0 | AL23: 0 | AM23: 0
C24: 작업관련성질환 기타 | D24: 0 | E24: 0 | F24: 0 | G24: 0 | H24: 0 | I24: 0 | J24: 0 | K24: 0 | L24: 0 | M24: 0 | N24: 0 | O24: 0 | P24: 0 | Q24: 0 | R24: 0 | S24: 0 | T24: 0 | U24: 0 | V24: 0 | W24: 0 | X24: 0 | Y24: 0 | Z24: 0 | AA24: 0 | AB24: 0 | AC24: 0 | AD24: 0 | AE24: 0 | AF24: 0 | AG24: 0 | AH24: 0 | AI24: 0 | AJ24: 0 | AK24: 0 | AL24: 0 | AM24: 0
B25: 인천북부 | C25: 합계 | D25: 286 | E25: 0 | F25: 173 | G25: 0 | H25: 39 | I25: 0 | J25: 43 | K25: 0 | L25: 21 | M25: 0 | N25: 10 | O25: 0 | P25: 259 | Q25: 0 | R25: 143 | S25: 0 | T25: 44 | U25: 0 | V25: 50 | W25: 0 | X25: 14 | Y25: 0 | Z25: 8 | AA25: 0 | AB25: 169 | AC25: 0 | AD25: 98 | AE25: 0 | AF25: 25 | AG25: 0 | AH25: 28 | AI25: 0 | AJ25: 14 | AK25: 0 | AL25: 4 | AM25: 0
C26: 떨어짐(높이가 있는 곳에서 사람이 떨어짐) | D26: 3 | E26: 0 | F26: 1 | G26: 0 | H26: 0 | I26: 0 | J26: 0 | K26: 0 | L26: 2 | M26: 0 | N26: 0 | O26: 0 | P26: 8 | Q26: 0 | R26: 4 | S26: 0 | T26: 0 | U26: 0 | V26: 1 | W26: 0 | X26: 3 | Y26: 0 | Z26: 0 | AA26: 0 | AB26: 4 | AC26: 0 | AD26: 4 | AE26: 0 | AF26: 0 | AG26: 0 | AH26: 0 | AI26: 0 | AJ26: 0 | AK26: 0 | AL26: 0 | AM26: 0
C27: 넘어짐(사람이 미끄러지거나 넘어짐) | D27: 74 | E27: 0 | F27: 50 | G27: 0 | H27: 7 | I27: 0 | J27: 10 | K27: 0 | L27: 2 | M27: 0 | N27: 5 | O27: 0 | P27: 91 | Q27: 0 | R27: 51 | S27: 0 | T27: 13 | U27: 0 | V27: 19 | W27: 0 | X27: 4 | Y27: 0 | Z27: 4 | AA27: 0 | AB27: 61 | AC27: 0 | AD27: 32 | AE27: 0 | AF27: 10 | AG27: 0 | AH27: 11 | AI27: 0 | AJ27: 5 | AK27: 0 | AL27: 3 | AM27: 0
C28: 깔림·뒤집힘(물체의 쓰러짐이나 뒤집힘) | D28: 2 | E28: 0 | F28: 2 | G28: 0 | H28: 0 | I28: 0 | J28: 0 | K28: 0 | L28: 0 | M28: 0 | N28: 0 | O28: 0 | P28: 3 | Q28: 0 | R28: 2 | S28: 0 | T28: 1 | U28: 0 | V28: 0 | W28: 0 | X28: 0 | Y28: 0 | Z28: 0 | AA28: 0 | AB28: 1 | AC28: 0 | AD28: 1 | AE28: 0 | AF28: 0 | AG28: 0 | AH28: 0 | AI28: 0 | AJ28: 0 | AK28: 0 | AL28: 0 | AM28: 0
C29: 부딪힘(물체에 부딪힘) | D29: 20 | E29: 0 | F29: 7 | G29: 0 | H29: 7 | I29: 0 | J29: 4 | K29: 0 | L29: 1 | M29: 0 | N29: 1 | O29: 0 | P29: 4 | Q29: 0 | R29: 1 | S29: 0 | T29: 2 | U29: 0 | V29: 0 | W29: 0 | X29: 0 | Y29: 0 | Z29: 1 | AA29: 0 | AB29: 5 | AC29: 0 | AD29: 3 | AE29: 0 | AF29: 2 | AG29: 0 | AH29: 0 | AI29: 0 | AJ29: 0 | AK29: 0 | AL29: 0 | AM29: 0
C30: 물체에 맞음(날아오거나 떨어진 물체에 맞음) | D30: 8 | E30: 0 | F30: 6 | G30: 0 | H30: 0 | I30: 0 | J30: 2 | K30: 0 | L30: 0 | M30: 0 | N30: 0 | O30: 0 | P30: 10 | Q30: 0 | R30: 5 | S30: 0 | T30: 2 | U30: 0 | V30: 2 | W30: 0 | X30: 1 | Y30: 0 | Z30: 0 | AA30: 0 | AB30: 4 | AC30: 0 | AD30: 1 | AE30: 0 | AF30: 1 | AG30: 0 | AH30: 2 | AI30: 0 | AJ30: 0 | AK30: 0 | AL30: 0 | AM30: 0
C31: 무너짐(건축물이나 쌓여진 물체가 무너짐) | D31: 0 | E31: 0 | F31: 0 | G31: 0 | H31: 0 | I31: 0 | J31: 0 | K31: 0 | L31: 0 | M31: 0 | N31: 0 | O31: 0 | P31: 1 | Q31: 0 | R31: 1 | S31: 0 | T31: 0 | U31: 0 | V31: 0 | W31: 0 | X31: 0 | Y31: 0 | Z31: 0 | AA31: 0 | AB31: 0 | AC31: 0 | AD31: 0 | AE31: 0 | AF31: 0 | AG31: 0 | AH31: 0 | AI31: 0 | AJ31: 0 | AK31: 0 | AL31: 0 | AM31: 0
C32: 끼임(기계설비에 끼이거나 감김) | D32: 18 | E32: 0 | F32: 13 | G32: 0 | H32: 2 | I32: 0 | J32: 3 | K32: 0 | L32: 0 | M32: 0 | N32: 0 | O32: 0 | P32: 16 | Q32: 0 | R32: 11 | S32: 0 | T32: 2 | U32: 0 | V32: 2 | W32: 0 | X32: 0 | Y32: 0 | Z32: 1 | AA32: 0 | AB32: 6 | AC32: 0 | AD32: 3 | AE32: 0 | AF32: 2 | AG32: 0 | AH32: 1 | AI32: 0 | AJ32: 0 | AK32: 0 | AL32: 0 | AM32: 0
C33: 절단·베임·찔림 | D33: 53 | E33: 0 | F33: 27 | G33: 0 | H33: 10 | I33: 0 | J33: 10 | K33: 0 | L33: 4 | M33: 0 | N33: 2 | O33: 0 | P33: 55 | Q33: 0 | R33: 28 | S33: 0 | T33: 13 | U33: 0 | V33: 10 | W33: 0 | X33: 3 | Y33: 0 | Z33: 1 | AA33: 0 | AB33: 35 | AC33: 0 | AD33: 19 | AE33: 0 | AF33: 5 | AG33: 0 | AH33: 5 | AI33: 0 | AJ33: 6 | AK33: 0 | AL33: 0 | AM33: 0
C34: 화재 | D34: 0 | E34: 0 | F34: 0 | G34: 0 | H34: 0 | I34: 0 | J34: 0 | K34: 0 | L34: 0 | M34: 0 | N34: 0 | O34: 0 | P34: 1 | Q34: 0 | R34: 1 | S34: 0 | T34: 0 | U34: 0 | V34: 0 | W34: 0 | X34: 0 | Y34: 0 | Z34: 0 | AA34: 0 | AB34: 0 | AC34: 0 | AD34: 0 | AE34: 0 | AF34: 0 | AG34: 0 | AH34: 0 | AI34: 0 | AJ34: 0 | AK34: 0 | AL34: 0 | AM34: 0
C35: 불균형 및 무리한 동작 | D35: 12 | E35: 0 | F35: 7 | G35: 0 | H35: 2 | I35: 0 | J35: 2 | K35: 0 | L35: 0 | M35: 0 | N35: 1 | O35: 0 | P35: 9 | Q35: 0 | R35: 5 | S35: 0 | T35: 3 | U35: 0 | V35: 1 | W35: 0 | X35: 0 | Y35: 0 | Z35: 0 | AA35: 0 | AB35: 5 | AC35: 0 | AD35: 2 | AE35: 0 | AF35: 2 | AG35: 0 | AH35: 0 | AI35: 0 | AJ35: 1 | AK35: 0 | AL35: 0 | AM35: 0
C36: 이상온도 접촉 | D36: 49 | E36: 0 | F36: 26 | G36: 0 | H36: 6 | I36: 0 | J36: 9 | K36: 0 | L36: 8 | M36: 0 | N36: 0 | O36: 0 | P36: 28 | Q36: 0 | R36: 13 | S36: 0 | T36: 5 | U36: 0 | V36: 6 | W36: 0 | X36: 3 | Y36: 0 | Z36: 1 | AA36: 0 | AB36: 26 | AC36: 0 | AD36: 16 | AE36: 0 | AF36: 2 | AG36: 0 | AH36: 5 | AI36: 0 | AJ36: 2 | AK36: 0 | AL36: 1 | AM36: 0
C37: 화학물질누출·접촉 | D37: 2 | E37: 0 | F37: 2 | G37: 0 | H37: 0 | I37: 0 | J37: 0 | K37: 0 | L37: 0 | M37: 0 | N37: 0 | O37: 0 | P37: 0 | Q37: 0 | R37: 0 | S37: 0 | T37: 0 | U37: 0 | V37: 0 | W37: 0 | X37: 0 | Y37: 0 | Z37: 0 | AA37: 0 | AB37: 1 | AC37: 0 | AD37: 1 | AE37: 0 | AF37: 0 | AG37: 0 | AH37: 0 | AI37: 0 | AJ37: 0 | AK37: 0 | AL37: 0 | AM37: 0
C38: 사업장외 교통사고 | D38: 43 | E38: 0 | F38: 31 | G38: 0 | H38: 5 | I38: 0 | J38: 3 | K38: 0 | L38: 3 | M38: 0 | N38: 1 | O38: 0 | P38: 33 | Q38: 0 | R38: 21 | S38: 0 | T38: 3 | U38: 0 | V38: 9 | W38: 0 | X38: 0 | Y38: 0 | Z38: 0 | AA38: 0 | AB38: 21 | AC38: 0 | AD38: 16 | AE38: 0 | AF38: 1 | AG38: 0 | AH38: 4 | AI38: 0 | AJ38: 0 | AK38: 0 | AL38: 0 | AM38: 0
C39: 폭력행위 | D39: 1 | E39: 0 | F39: 0 | G39: 0 | H39: 0 | I39: 0 | J39: 0 | K39: 0 | L39: 1 | M39: 0 | N39: 0 | O39: 0 | P39: 0 | Q39: 0 | R39: 0 | S39: 0 | T39: 0 | U39: 0 | V39: 0 | W39: 0 | X39: 0 | Y39: 0 | Z39: 0 | AA39: 0 | AB39: 0 | AC39: 0 | AD39: 0 | AE39: 0 | AF39: 0 | AG39: 0 | AH39: 0 | AI39: 0 | AJ39: 0 | AK39: 0 | AL39: 0 | AM39: 0
C40: 동물상해 | D40: 1 | E40: 0 | F40: 1 | G40: 0 | H40: 0 | I40: 0 | J40: 0 | K40: 0 | L40: 0 | M40: 0 | N40: 0 | O40: 0 | P40: 0 | Q40: 0 | R40: 0 | S40: 0 | T40: 0 | U40: 0 | V40: 0 | W40: 0 | X40: 0 | Y40: 0 | Z40: 0 | AA40: 0 | AB40: 0 | AC40: 0 | AD40: 0 | AE40: 0 | AF40: 0 | AG40: 0 | AH40: 0 | AI40: 0 | AJ40: 0 | AK40: 0 | AL40: 0 | AM40: 0
C41: 뇌심혈관질환 | D41: 0 | E41: 0 | F41: 0 | G41: 0 | H41: 0 | I41: 0 | J41: 0 | K41: 0 | L41: 0 | M41: 0 | N41: 0 | O41: 0 | P41: 0 | Q41: 0 | R41: 0 | S41: 0 | T41: 0 | U41: 0 | V41: 0 | W41: 0 | X41: 0 | Y41: 0 | Z41: 0 | AA41: 0 | AB41: 0 | AC41: 0 | AD41: 0 | AE41: 0 | AF41: 0 | AG41: 0 | AH41: 0 | AI41: 0 | AJ41: 0 | AK41: 0 | AL41: 0 | AM41: 0
C42: 근골격계질환 | D42: 0 | E42: 0 | F42: 0 | G42: 0 | H42: 0 | I42: 0 | J42: 0 | K42: 0 | L42: 0 | M42: 0 | N42: 0 | O42: 0 | P42: 0 | Q42: 0 | R42: 0 | S42: 0 | T42: 0 | U42: 0 | V42: 0 | W42: 0 | X42: 0 | Y42: 0 | Z42: 0 | AA42: 0 | AB42: 0 | AC42: 0 | AD42: 0 | AE42: 0 | AF42: 0 | AG42: 0 | AH42: 0 | AI42: 0 | AJ42: 0 | AK42: 0 | AL42: 0 | AM42: 0
B43: 부 천 | C43: 합계 | D43: 222 | E43: 0 | F43: 114 | G43: 0 | H43: 49 | I43: 0 | J43: 27 | K43: 0 | L43: 19 | M43: 0 | N43: 13 | O43: 0 | P43: 224 | Q43: 1 | R43: 132 | S43: 1 | T43: 54 | U43: 0 | V43: 22 | W43: 0 | X43: 6 | Y43: 0 | Z43: 10 | AA43: 0 | AB43: 171 | AC43: 1 | AD43: 91 | AE43: 1 | AF43: 38 | AG43: 0 | AH43: 27 | AI43: 0 | AJ43: 6 | AK43: 0 | AL43: 9 | AM43: 0
C44: 떨어짐(높이가 있는 곳에서 사람이 떨어짐) | D44: 7 | E44: 0 | F44: 2 | G44: 0 | H44: 4 | I44: 0 | J44: 1 | K44: 0 | L44: 0 | M44: 0 | N44: 0 | O44: 0 | P44: 2 | Q44: 0 | R44: 2 | S44: 0 | T44: 0 | U44: 0 | V44: 0 | W44: 0 | X44: 0 | Y44: 0 | Z44: 0 | AA44: 0 | AB44: 3 | AC44: 0 | AD44: 0 | AE44: 0 | AF44: 2 | AG44: 0 | AH44: 0 | AI44: 0 | AJ44: 1 | AK44: 0 | AL44: 0 | AM44: 0
C45: 넘어짐(사람이 미끄러지거나 넘어짐) | D45: 68 | E45: 0 | F45: 34 | G45: 0 | H45: 21 | I45: 0 | J45: 8 | K45: 0 | L45: 4 | M45: 0 | N45: 1 | O45: 0 | P45: 78 | Q45: 0 | R45: 48 | S45: 0 | T45: 17 | U45: 0 | V45: 8 | W45: 0 | X45: 3 | Y45: 0 | Z45: 2 | AA45: 0 | AB45: 48 | AC45: 0 | AD45: 29 | AE45: 0 | AF45: 9 | AG45: 0 | AH45: 6 | AI45: 0 | AJ45: 4 | AK45: 0 | AL45: 0 | AM45: 0
C46: 깔림·뒤집힘(물체의 쓰러짐이나 뒤집힘) | D46: 0 | E46: 0 | F46: 0 | G46: 0 | H46: 0 | I46: 0 | J46: 0 | K46: 0 | L46: 0 | M46: 0 | N46: 0 | O46: 0 | P46: 2 | Q46: 0 | R46: 1 | S46: 0 | T46: 0 | U46: 0 | V46: 0 | W46: 0 | X46: 0 | Y46: 0 | Z46: 1 | AA46: 0 | AB46: 1 | AC46: 0 | AD46: 1 | AE46: 0 | AF46: 0 | AG46: 0 | AH46: 0 | AI46: 0 | AJ46: 0 | AK46: 0 | AL46: 0 | AM46: 0
C47: 부딪힘(물체에 부딪힘) | D47: 4 | E47: 0 | F47: 3 | G47: 0 | H47: 0 | I47: 0 | J47: 1 | K47: 0 | L47: 0 | M47: 0 | N47: 0 | O47: 0 | P47: 6 | Q47: 0 | R47: 2 | S47: 0 | T47: 3 | U47: 0 | V47: 0 | W47: 0 | X47: 0 | Y47: 0 | Z47: 1 | AA47: 0 | AB47: 7 | AC47: 0 | AD47: 4 | AE47: 0 | AF47: 1 | AG47: 0 | AH47: 0 | AI47: 0 | AJ47: 1 | AK47: 0 | AL47: 1 | AM47: 0
C48: 물체에 맞음(날아오거나 떨어진 물체에 맞음) | D48: 7 | E48: 0 | F48: 4 | G48: 0 | H48: 2 | I48: 0 | J48: 0 | K48: 0 | L48: 0 | M48: 0 | N48: 1 | O48: 0 | P48: 7 | Q48: 0 | R48: 4 | S48: 0 | T48: 2 | U48: 0 | V48: 0 | W48: 0 | X48: 0 | Y48: 0 | Z48: 1 | AA48: 0 | AB48: 1 | AC48: 0 | AD48: 0 | AE48: 0 | AF48: 1 | AG48: 0 | AH48: 0 | AI48: 0 | AJ48: 0 | AK48: 0 | AL48: 0 | AM48: 0
C49: 끼임(기계설비에 끼이거나 감김) | D49: 12 | E49: 0 | F49: 5 | G49: 0 | H49: 3 | I49: 0 | J49: 2 | K49: 0 | L49: 1 | M49: 0 | N49: 1 | O49: 0 | P49: 14 | Q49: 0 | R49: 8 | S49: 0 | T49: 2 | U49: 0 | V49: 3 | W49: 0 | X49: 0 | Y49: 0 | Z49: 1 | AA49: 0 | AB49: 19 | AC49: 0 | AD49: 8 | AE49: 0 | AF49: 4 | AG49: 0 | AH49: 5 | AI49: 0 | AJ49: 0 | AK49: 0 | AL49: 2 | AM49: 0
C50: 절단·베임·찔림 | D50: 39 | E50: 0 | F50: 16 | G50: 0 | H50: 9 | I50: 0 | J50: 3 | K50: 0 | L50: 5 | M50: 0 | N50: 6 | O50: 0 | P50: 44 | Q50: 0 | R50: 24 | S50: 0 | T50: 14 | U50: 0 | V50: 4 | W50: 0 | X50: 1 | Y50: 0 | Z50: 1 | AA50: 0 | AB50: 43 | AC50: 0 | AD50: 25 | AE50: 0 | AF50: 8 | AG50: 0 | AH50: 8 | AI50: 0 | AJ50: 0 | AK50: 0 | AL50: 2 | AM50: 0
C51: 화재 | D51: 2 | E51: 0 | F51: 2 | G51: 0 | H51: 0 | I51: 0 | J51: 0 | K51: 0 | L51: 0 | M51: 0 | N51: 0 | O51: 0 | P51: 0 | Q51: 0 | R51: 0 | S51: 0 | T51: 0 | U51: 0 | V51: 0 | W51: 0 | X51: 0 | Y51: 0 | Z51: 0 | AA51: 0 | AB51: 0 | AC51: 0 | AD51: 0 | AE51: 0 | AF51: 0 | AG51: 0 | AH51: 0 | AI51: 0 | AJ51: 0 | AK51: 0 | AL51: 0 | AM51: 0
C52: 불균형 및 무리한 동작 | D52: 11 | E52: 0 | F52: 7 | G52: 0 | H52: 0 | I52: 0 | J52: 2 | K52: 0 | L52: 1 | M52: 0 | N52: 1 | O52: 0 | P52: 3 | Q52: 0 | R52: 3 | S52: 0 | T52: 0 | U52: 0 | V52: 0 | W52: 0 | X52: 0 | Y52: 0 | Z52: 0 | AA52: 0 | AB52: 3 | AC52: 0 | AD52: 2 | AE52: 0 | AF52: 0 | AG52: 0 | AH52: 0 | AI52: 0 | AJ52: 0 | AK52: 0 | AL52: 1 | AM52: 0
C53: 이상온도 접촉 | D53: 44 | E53: 0 | F53: 24 | G53: 0 | H53: 8 | I53: 0 | J53: 6 | K53: 0 | L53: 4 | M53: 0 | N53: 2 | O53: 0 | P53: 42 | Q53: 0 | R53: 27 | S53: 0 | T53: 8 | U53: 0 | V53: 3 | W53: 0 | X53: 1 | Y53: 0 | Z53: 3 | AA53: 0 | AB53: 30 | AC53: 0 | AD53: 12 | AE53: 0 | AF53: 8 | AG53: 0 | AH53: 7 | AI53: 0 | AJ53: 0 | AK53: 0 | AL53: 3 | AM53: 0
C54: 화학물질누출·접촉 | D54: 0 | E54: 0 | F54: 0 | G54: 0 | H54: 0 | I54: 0 | J54: 0 | K54: 0 | L54: 0 | M54: 0 | N54: 0 | O54: 0 | P54: 2 | Q54: 0 | R54: 2 | S54: 0 | T54: 0 | U54: 0 | V54: 0 | W54: 0 | X54: 0 | Y54: 0 | Z54: 0 | AA54: 0 | AB54: 1 | AC54: 0 | AD54: 0 | AE54: 0 | AF54: 1 | AG54: 0 | AH54: 0 | AI54: 0 | AJ54: 0 | AK54: 0 | AL54: 0 | AM54: 0
C55: 사업장외 교통사고 | D55: 26 | E55: 0 | F55: 16 | G55: 0 | H55: 1 | I55: 0 | J55: 4 | K55: 0 | L55: 4 | M55: 0 | N55: 1 | O55: 0 | P55: 22 | Q55: 1 | R55: 11 | S55: 1 | T55: 7 | U55: 0 | V55: 4 | W55: 0 | X55: 0 | Y55: 0 | Z55: 0 | AA55: 0 | AB55: 15 | AC55: 1 | AD55: 10 | AE55: 1 | AF55: 4 | AG55: 0 | AH55: 1 | AI55: 0 | AJ55: 0 | AK55: 0 | AL55: 0 | AM55: 0
C56: 체육행사 등의 사고 | D56: 2 | E56: 0 | F56: 1 | G56: 0 | H56: 1 | I56: 0 | J56: 0 | K56: 0 | L56: 0 | M56: 0 | N56: 0 | O56: 0 | P56: 1 | Q56: 0 | R56: 0 | S56: 0 | T56: 0 | U56: 0 | V56: 0 | W56: 0 | X56: 1 | Y56: 0 | Z56: 0 | AA56: 0 | AB56: 0 | AC56: 0 | AD56: 0 | AE56: 0 | AF56: 0 | AG56: 0 | AH56: 0 | AI56: 0 | AJ56: 0 | AK56: 0 | AL56: 0 | AM56: 0
C57: 폭력행위 | D57: 0 | E57: 0 | F57: 0 | G57: 0 | H57: 0 | I57: 0 | J57: 0 | K57: 0 | L57: 0 | M57: 0 | N57: 0 | O57: 0 | P57: 1 | Q57: 0 | R57: 0 | S57: 0 | T57: 1 | U57: 0 | V57: 0 | W57: 0 | X57: 0 | Y57: 0 | Z57: 0 | AA57: 0 | AB57: 0 | AC57: 0 | AD57: 0 | AE57: 0 | AF57: 0 | AG57: 0 | AH57: 0 | AI57: 0 | AJ57: 0 | AK57: 0 | AL57: 0 | AM57: 0
C58: 화학적인자 | D58: 0 | E58: 0 | F58: 0 | G58: 0 | H58: 0 | I58: 0 | J58: 0 | K58: 0 | L58: 0 | M58: 0 | N58: 0 | O58: 0 | P58: 0 | Q58: 0 | R58: 0 | S58: 0 | T58: 0 | U58: 0 | V58: 0 | W58: 0 | X58: 0 | Y58: 0 | Z58: 0 | AA58: 0 | AB58: 0 | AC58: 0 | AD58: 0 | AE58: 0 | AF58: 0 | AG58: 0 | AH58: 0 | AI58: 0 | AJ58: 0 | AK58: 0 | AL58: 0 | AM58: 0
C59: 생물학적인자 | D59: 0 | E59: 0 | F59: 0 | G59: 0 | H59: 0 | I59: 0 | J59: 0 | K59: 0 | L59: 0 | M59: 0 | N59: 0 | O59: 0 | P59: 0 | Q59: 0 | R59: 0 | S59: 0 | T59: 0 | U59: 0 | V59: 0 | W59: 0 | X59: 0 | Y59: 0 | Z59: 0 | AA59: 0 | AB59: 0 | AC59: 0 | AD59: 0 | AE59: 0 | AF59: 0 | AG59: 0 | AH59: 0 | AI59: 0 | AJ59: 0 | AK59: 0 | AL59: 0 | AM59: 0
C60: 뇌심혈관질환 | D60: 0 | E60: 0 | F60: 0 | G60: 0 | H60: 0 | I60: 0 | J60: 0 | K60: 0 | L60: 0 | M60: 0 | N60: 0 | O60: 0 | P60: 0 | Q60: 0 | R60: 0 | S60: 0 | T60: 0 | U60: 0 | V60: 0 | W60: 0 | X60: 0 | Y60: 0 | Z60: 0 | AA60: 0 | AB60: 0 | AC60: 0 | AD60: 0 | AE60: 0 | AF60: 0 | AG60: 0 | AH60: 0 | AI60: 0 | AJ60: 0 | AK60: 0 | AL60: 0 | AM60: 0
C61: 근골격계질환 | D61: 0 | E61: 0 | F61: 0 | G61: 0 | H61: 0 | I61: 0 | J61: 0 | K61: 0 | L61: 0 | M61: 0 | N61: 0 | O61: 0 | P61: 0 | Q61: 0 | R61: 0 | S61: 0 | T61: 0 | U61: 0 | V61: 0 | W61: 0 | X61: 0 | Y61: 0 | Z61: 0 | AA61: 0 | AB61: 0 | AC61: 0 | AD61: 0 | AE61: 0 | AF61: 0 | AG61: 0 | AH61: 0 | AI61: 0 | AJ61: 0 | AK61: 0 | AL61: 0 | AM61: 0
B62: 고 양 | C62: 합계 | D62: 309 | E62: 2 | F62: 166 | G62: 2 | H62: 55 | I62: 0 | J62: 55 | K62: 0 | L62: 19 | M62: 0 | N62: 14 | O62: 0 | P62: 270 | Q62: 1 | R62: 128 | S62: 1 | T62: 62 | U62: 0 | V62: 49 | W62: 0 | X62: 20 | Y62: 0 | Z62: 11 | AA62: 0 | AB62: 183 | AC62: 0 | AD62: 91 | AE62: 0 | AF62: 44 | AG62: 0 | AH62: 29 | AI62: 0 | AJ62: 14 | AK62: 0 | AL62: 5 | AM62: 0
C63: 떨어짐(높이가 있는 곳에서 사람이 떨어짐) | D63: 9 | E63: 0 | F63: 5 | G63: 0 | H63: 2 | I63: 0 | J63: 1 | K63: 0 | L63: 0 | M63: 0 | N63: 1 | O63: 0 | P63: 8 | Q63: 0 | R63: 6 | S63: 0 | T63: 1 | U63: 0 | V63: 1 | W63: 0 | X63: 0 | Y63: 0 | Z63: 0 | AA63: 0 | AB63: 6 | AC63: 0 | AD63: 5 | AE63: 0 | AF63: 1 | AG63: 0 | AH63: 0 | AI63: 0 | AJ63: 0 | AK63: 0 | AL63: 0 | AM63: 0
C64: 넘어짐(사람이 미끄러지거나 넘어짐) | D64: 84 | E64: 0 | F64: 41 | G64: 0 | H64: 18 | I64: 0 | J64: 17 | K64: 0 | L64: 4 | M64: 0 | N64: 4 | O64: 0 | P64: 86 | Q64: 0 | R64: 39 | S64: 0 | T64: 19 | U64: 0 | V64: 18 | W64: 0 | X64: 4 | Y64: 0 | Z64: 6 | AA64: 0 | AB64: 63 | AC64: 0 | AD64: 30 | AE64: 0 | AF64: 17 | AG64: 0 | AH64: 10 | AI64: 0 | AJ64: 4 | AK64: 0 | AL64: 2 | AM64: 0
C65: 깔림·뒤집힘(물체의 쓰러짐이나 뒤집힘) | D65: 0 | E65: 0 | F65: 0 | G65: 0 | H65: 0 | I65: 0 | J65: 0 | K65: 0 | L65: 0 | M65: 0 | N65: 0 | O65: 0 | P65: 2 | Q65: 0 | R65: 1 | S65: 0 | T65: 0 | U65: 0 | V65: 1 | W65: 0 | X65: 0 | Y65: 0 | Z65: 0 | AA65: 0 | AB65: 0 | AC65: 0 | AD65: 0 | AE65: 0 | AF65: 0 | AG65: 0 | AH65: 0 | AI65: 0 | AJ65: 0 | AK65: 0 | AL65: 0 | AM65: 0
C66: 부딪힘(물체에 부딪힘) | D66: 5 | E66: 0 | F66: 2 | G66: 0 | H66: 1 | I66: 0 | J66: 2 | K66: 0 | L66: 0 | M66: 0 | N66: 0 | O66: 0 | P66: 6 | Q66: 0 | R66: 2 | S66: 0 | T66: 1 | U66: 0 | V66: 1 | W66: 0 | X66: 1 | Y66: 0 | Z66: 1 | AA66: 0 | AB66: 7 | AC66: 0 | AD66: 3 | AE66: 0 | AF66: 1 | AG66: 0 | AH66: 2 | AI66: 0 | AJ66: 1 | AK66: 0 | AL66: 0 | AM66: 0
C67: 물체에 맞음(날아오거나 떨어진 물체에 맞음) | D67: 7 | E67: 0 | F67: 2 | G67: 0 | H67: 1 | I67: 0 | J67: 2 | K67: 0 | L67: 2 | M67: 0 | N67: 0 | O67: 0 | P67: 11 | Q67: 0 | R67: 3 | S67: 0 | T67: 5 | U67: 0 | V67: 2 | W67: 0 | X67: 1 | Y67: 0 | Z67: 0 | AA67: 0 | AB67: 1 | AC67: 0 | AD67: 0 | AE67: 0 | AF67: 0 | AG67: 0 | AH67: 1 | AI67: 0 | AJ67: 0 | AK67: 0 | AL67: 0 | AM67: 0
C68: 끼임(기계설비에 끼이거나 감김) | D68: 22 | E68: 0 | F68: 11 | G68: 0 | H68: 5 | I68: 0 | J68: 5 | K68: 0 | L68: 0 | M68: 0 | N68: 1 | O68: 0 | P68: 21 | Q68: 0 | R68: 8 | S68: 0 | T68: 7 | U68: 0 | V68: 5 | W68: 0 | X68: 1 | Y68: 0 | Z68: 0 | AA68: 0 | AB68: 17 | AC68: 0 | AD68: 6 | AE68: 0 | AF68: 6 | AG68: 0 | AH68: 3 | AI68: 0 | AJ68: 2 | AK68: 0 | AL68: 0 | AM68: 0
C69: 절단·베임·찔림 | D69: 63 | E69: 0 | F69: 32 | G69: 0 | H69: 9 | I69: 0 | J69: 14 | K69: 0 | L69: 5 | M69: 0 | N69: 3 | O69: 0 | P69: 49 | Q69: 0 | R69: 23 | S69: 0 | T69: 10 | U69: 0 | V69: 11 | W69: 0 | X69: 4 | Y69: 0 | Z69: 1 | AA69: 0 | AB69: 38 | AC69: 0 | AD69: 16 | AE69: 0 | AF69: 8 | AG69: 0 | AH69: 8 | AI69: 0 | AJ69: 4 | AK69: 0 | AL69: 2 | AM69: 0
C70: 감전 | D70: =SUM(F70,H70,J70,L70,N70) -> 0 | E70: =SUM(G70,I70,K70,M70,O70) -> 0 | F70: 0 | G70: 0 | H70: 0 | I70: 0 | J70: 0 | K70: 0 | L70: 0 | M70: 0 | N70: 0 | O70: 0 | P70: =SUM(R70,T70,V70,X70,Z70) -> 0 | Q70: =SUM(S70,U70,W70,Y70,AA70) -> 0 | R70: 0 | S70: 0 | T70: 0 | U70: 0 | V70: 0 | W70: 0 | X70: 0 | Y70: 0 | Z70: 0 | AA70: 0 | AB70: =SUM(AD70,AF70,AH70,AJ70,AL70) -> 1 | AC70: =SUM(AE70,AG70,AI70,AK70,AM70) -> 0 | AD70: 1 | AE70: 0 | AF70: 0 | AG70: 0 | AH70: 0 | AI70: 0 | AJ70: 0 | AK70: 0 | AL70: 0 | AM70: 0
C71: 폭발·파열 | D71: 0 | E71: 0 | F71: 0 | G71: 0 | H71: 0 | I71: 0 | J71: 0 | K71: 0 | L71: 0 | M71: 0 | N71: 0 | O71: 0 | P71: 1 | Q71: 0 | R71: 0 | S71: 0 | T71: 0 | U71: 0 | V71: 0 | W71: 0 | X71: 1 | Y71: 0 | Z71: 0 | AA71: 0 | AB71: 0 | AC71: 0 | AD71: 0 | AE71: 0 | AF71: 0 | AG71: 0 | AH71: 0 | AI71: 0 | AJ71: 0 | AK71: 0 | AL71: 0 | AM71: 0
C72: 불균형 및 무리한 동작 | D72: 14 | E72: 0 | F72: 8 | G72: 0 | H72: 3 | I72: 0 | J72: 1 | K72: 0 | L72: 2 | M72: 0 | N72: 0 | O72: 0 | P72: 4 | Q72: 0 | R72: 1 | S72: 0 | T72: 1 | U72: 0 | V72: 0 | W72: 0 | X72: 2 | Y72: 0 | Z72: 0 | AA72: 0 | AB72: 4 | AC72: 0 | AD72: 2 | AE72: 0 | AF72: 1 | AG72: 0 | AH72: 0 | AI72: 0 | AJ72: 1 | AK72: 0 | AL72: 0 | AM72: 0
C73: 이상온도 접촉 | D73: 57 | E73: 0 | F73: 29 | G73: 0 | H73: 9 | I73: 0 | J73: 10 | K73: 0 | L73: 5 | M73: 0 | N73: 4 | O73: 0 | P73: 41 | Q73: 0 | R73: 20 | S73: 0 | T73: 10 | U73: 0 | V73: 4 | W73: 0 | X73: 5 | Y73: 0 | Z73: 2 | AA73: 0 | AB73: 24 | AC73: 0 | AD73: 14 | AE73: 0 | AF73: 5 | AG73: 0 | AH73: 2 | AI73: 0 | AJ73: 2 | AK73: 0 | AL73: 1 | AM73: 0
C74: 화학물질누출·접촉 | D74: 1 | E74: 0 | F74: 1 | G74: 0 | H74: 0 | I74: 0 | J74: 0 | K74: 0 | L74: 0 | M74: 0 | N74: 0 | O74: 0 | P74: 0 | Q74: 0 | R74: 0 | S74: 0 | T74: 0 | U74: 0 | V74: 0 | W74: 0 | X74: 0 | Y74: 0 | Z74: 0 | AA74: 0 | AB74: 1 | AC74: 0 | AD74: 0 | AE74: 0 | AF74: 1 | AG74: 0 | AH74: 0 | AI74: 0 | AJ74: 0 | AK74: 0 | AL74: 0 | AM74: 0
C75: 사업장외 교통사고 | D75: 45 | E75: 2 | F75: 35 | G75: 2 | H75: 7 | I75: 0 | J75: 3 | K75: 0 | L75: 0 | M75: 0 | N75: 0 | O75: 0 | P75: 40 | Q75: 1 | R75: 24 | S75: 1 | T75: 8 | U75: 0 | V75: 6 | W75: 0 | X75: 1 | Y75: 0 | Z75: 1 | AA75: 0 | AB75: 21 | AC75: 0 | AD75: 14 | AE75: 0 | AF75: 4 | AG75: 0 | AH75: 3 | AI75: 0 | AJ75: 0 | AK75: 0 | AL75: 0 | AM75: 0
C76: 체육행사 등의 사고 | D76: 1 | E76: 0 | F76: 0 | G76: 0 | H76: 0 | I76: 0 | J76: 0 | K76: 0 | L76: 1 | M76: 0 | N76: 0 | O76: 0 | P76: 0 | Q76: 0 | R76: 0 | S76: 0 | T76: 0 | U76: 0 | V76: 0 | W76: 0 | X76: 0 | Y76: 0 | Z76: 0 | AA76: 0 | AB76: 0 | AC76: 0 | AD76: 0 | AE76: 0 | AF76: 0 | AG76: 0 | AH76: 0 | AI76: 0 | AJ76: 0 | AK76: 0 | AL76: 0 | AM76: 0
C77: 동물상해 | D77: 0 | E77: 0 | F77: 0 | G77: 0 | H77: 0 | I77: 0 | J77: 0 | K77: 0 | L77: 0 | M77: 0 | N77: 0 | O77: 0 | P77: 1 | Q77: 0 | R77: 1 | S77: 0 | T77: 0 | U77: 0 | V77: 0 | W77: 0 | X77: 0 | Y77: 0 | Z77: 0 | AA77: 0 | AB77: 0 | AC77: 0 | AD77: 0 | AE77: 0 | AF77: 0 | AG77: 0 | AH77: 0 | AI77: 0 | AJ77: 0 | AK77: 0 | AL77: 0 | AM77: 0
C78: 기타 | D78: 1 | E78: 0 | F78: 0 | G78: 0 | H78: 0 | I78: 0 | J78: 0 | K78: 0 | L78: 0 | M78: 0 | N78: 1 | O78: 0 | P78: 0 | Q78: 0 | R78: 0 | S78: 0 | T78: 0 | U78: 0 | V78: 0 | W78: 0 | X78: 0 | Y78: 0 | Z78: 0 | AA78: 0 | AB78: 0 | AC78: 0 | AD78: 0 | AE78: 0 | AF78: 0 | AG78: 0 | AH78: 0 | AI78: 0 | AJ78: 0 | AK78: 0 | AL78: 0 | AM78: 0
C79: 생물학적인자 | D79: 0 | E79: 0 | F79: 0 | G79: 0 | H79: 0 | I79: 0 | J79: 0 | K79: 0 | L79: 0 | M79: 0 | N79: 0 | O79: 0 | P79: 0 | Q79: 0 | R79: 0 | S79: 0 | T79: 0 | U79: 0 | V79: 0 | W79: 0 | X79: 0 | Y79: 0 | Z79: 0 | AA79: 0 | AB79: 0 | AC79: 0 | AD79: 0 | AE79: 0 | AF79: 0 | AG79: 0 | AH79: 0 | AI79: 0 | AJ79: 0 | AK79: 0 | AL79: 0 | AM79: 0
C80: 뇌심혈관질환 | D80: 0 | E80: 0 | F80: 0 | G80: 0 | H80: 0 | I80: 0 | J80: 0 | K80: 0 | L80: 0 | M80: 0 | N80: 0 | O80: 0 | P80: 0 | Q80: 0 | R80: 0 | S80: 0 | T80: 0 | U80: 0 | V80: 0 | W80: 0 | X80: 0 | Y80: 0 | Z80: 0 | AA80: 0 | AB80: 0 | AC80: 0 | AD80: 0 | AE80: 0 | AF80: 0 | AG80: 0 | AH80: 0 | AI80: 0 | AJ80: 0 | AK80: 0 | AL80: 0 | AM80: 0
C81: 근골격계질환 | D81: 0 | E81: 0 | F81: 0 | G81: 0 | H81: 0 | I81: 0 | J81: 0 | K81: 0 | L81: 0 | M81: 0 | N81: 0 | O81: 0 | P81: 0 | Q81: 0 | R81: 0 | S81: 0 | T81: 0 | U81: 0 | V81: 0 | W81: 0 | X81: 0 | Y81: 0 | Z81: 0 | AA81: 0 | AB81: 0 | AC81: 0 | AD81: 0 | AE81: 0 | AF81: 0 | AG81: 0 | AH81: 0 | AI81: 0 | AJ81: 0 | AK81: 0 | AL81: 0 | AM81: 0
B82: 의 정 부 | C82: 합계 | D82: 316 | E82: 0 | F82: 175 | G82: 0 | H82: 60 | I82: 0 | J82: 45 | K82: 0 | L82: 25 | M82: 0 | N82: 11 | O82: 0 | P82: 332 | Q82: 1 | R82: 180 | S82: 1 | T82: 67 | U82: 0 | V82: 61 | W82: 0 | X82: 16 | Y82: 0 | Z82: 8 | AA82: 0 | AB82: 207 | AC82: 1 | AD82: 114 | AE82: 0 | AF82: 42 | AG82: 1 | AH82: 32 | AI82: 0 | AJ82: 9 | AK82: 0 | AL82: 10 | AM82: 0
C83: 떨어짐(높이가 있는 곳에서 사람이 떨어짐) | D83: 7 | E83: 0 | F83: 5 | G83: 0 | H83: 1 | I83: 0 | J83: 1 | K83: 0 | L83: 0 | M83: 0 | N83: 0 | O83: 0 | P83: 8 | Q83: 0 | R83: 4 | S83: 0 | T83: 2 | U83: 0 | V83: 1 | W83: 0 | X83: 0 | Y83: 0 | Z83: 1 | AA83: 0 | AB83: 4 | AC83: 0 | AD83: 1 | AE83: 0 | AF83: 0 | AG83: 0 | AH83: 2 | AI83: 0 | AJ83: 0 | AK83: 0 | AL83: 1 | AM83: 0
C84: 넘어짐(사람이 미끄러지거나 넘어짐) | D84: 86 | E84: 0 | F84: 43 | G84: 0 | H84: 15 | I84: 0 | J84: 19 | K84: 0 | L84: 7 | M84: 0 | N84: 2 | O84: 0 | P84: 88 | Q84: 0 | R84: 50 | S84: 0 | T84: 18 | U84: 0 | V84: 13 | W84: 0 | X84: 3 | Y84: 0 | Z84: 4 | AA84: 0 | AB84: 68 | AC84: 0 | AD84: 45 | AE84: 0 | AF84: 9 | AG84: 0 | AH84: 7 | AI84: 0 | AJ84: 2 | AK84: 0 | AL84: 5 | AM84: 0
C85: 깔림·뒤집힘(물체의 쓰러짐이나 뒤집힘) | D85: 3 | E85: 0 | F85: 3 | G85: 0 | H85: 0 | I85: 0 | J85: 0 | K85: 0 | L85: 0 | M85: 0 | N85: 0 | O85: 0 | P85: 0 | Q85: 0 | R85: 0 | S85: 0 | T85: 0 | U85: 0 | V85: 0 | W85: 0 | X85: 0 | Y85: 0 | Z85: 0 | AA85: 0 | AB85: 0 | AC85: 0 | AD85: 0 | AE85: 0 | AF85: 0 | AG85: 0 | AH85: 0 | AI85: 0 | AJ85: 0 | AK85: 0 | AL85: 0 | AM85: 0
C86: 부딪힘(물체에 부딪힘) | D86: 8 | E86: 0 | F86: 5 | G86: 0 | H86: 1 | I86: 0 | J86: 1 | K86: 0 | L86: 1 | M86: 0 | N86: 0 | O86: 0 | P86: 13 | Q86: 0 | R86: 4 | S86: 0 | T86: 6 | U86: 0 | V86: 3 | W86: 0 | X86: 0 | Y86: 0 | Z86: 0 | AA86: 0 | AB86: 3 | AC86: 0 | AD86: 1 | AE86: 0 | AF86: 1 | AG86: 0 | AH86: 0 | AI86: 0 | AJ86: 0 | AK86: 0 | AL86: 1 | AM86: 0
C87: 물체에 맞음(날아오거나 떨어진 물체에 맞음) | D87: 8 | E87: 0 | F87: 4 | G87: 0 | H87: 2 | I87: 0 | J87: 1 | K87: 0 | L87: 1 | M87: 0 | N87: 0 | O87: 0 | P87: 12 | Q87: 0 | R87: 7 | S87: 0 | T87: 3 | U87: 0 | V87: 1 | W87: 0 | X87: 1 | Y87: 0 | Z87: 0 | AA87: 0 | AB87: 2 | AC87: 0 | AD87: 1 | AE87: 0 | AF87: 1 | AG87: 0 | AH87: 0 | AI87: 0 | AJ87: 0 | AK87: 0 | AL87: 0 | AM87: 0
C88: 무너짐(건축물이나 쌓여진 물체가 무너짐) | D88: 1 | E88: 0 | F88: 0 | G88: 0 | H88: 1 | I88: 0 | J88: 0 | K88: 0 | L88: 0 | M88: 0 | N88: 0 | O88: 0 | P88: 1 | Q88: 0 | R88: 0 | S88: 0 | T88: 0 | U88: 0 | V88: 1 | W88: 0 | X88: 0 | Y88: 0 | Z88: 0 | AA88: 0 | AB88: 0 | AC88: 0 | AD88: 0 | AE88: 0 | AF88: 0 | AG88: 0 | AH88: 0 | AI88: 0 | AJ88: 0 | AK88: 0 | AL88: 0 | AM88: 0
C89: 끼임(기계설비에 끼이거나 감김) | D89: 16 | E89: 0 | F89: 8 | G89: 0 | H89: 4 | I89: 0 | J89: 3 | K89: 0 | L89: 0 | M89: 0 | N89: 1 | O89: 0 | P89: 21 | Q89: 0 | R89: 12 | S89: 0 | T89: 3 | U89: 0 | V89: 5 | W89: 0 | X89: 1 | Y89: 0 | Z89: 0 | AA89: 0 | AB89: 11 | AC89: 0 | AD89: 6 | AE89: 0 | AF89: 2 | AG89: 0 | AH89: 2 | AI89: 0 | AJ89: 1 | AK89: 0 | AL89: 0 | AM89: 0
C90: 절단·베임·찔림 | D90: 55 | E90: 0 | F90: 29 | G90: 0 | H90: 11 | I90: 0 | J90: 8 | K90: 0 | L90: 5 | M90: 0 | N90: 2 | O90: 0 | P90: 57 | Q90: 0 | R90: 26 | S90: 0 | T90: 7 | U90: 0 | V90: 19 | W90: 0 | X90: 4 | Y90: 0 | Z90: 1 | AA90: 0 | AB90: 46 | AC90: 0 | AD90: 27 | AE90: 0 | AF90: 10 | AG90: 0 | AH90: 5 | AI90: 0 | AJ90: 3 | AK90: 0 | AL90: 1 | AM90: 0
C91: 폭발·파열 | D91: 0 | E91: 0 | F91: 0 | G91: 0 | H91: 0 | I91: 0 | J91: 0 | K91: 0 | L91: 0 | M91: 0 | N91: 0 | O91: 0 | P91: 2 | Q91: 0 | R91: 2 | S91: 0 | T91: 0 | U91: 0 | V91: 0 | W91: 0 | X91: 0 | Y91: 0 | Z91: 0 | AA91: 0 | AB91: 0 | AC91: 0 | AD91: 0 | AE91: 0 | AF91: 0 | AG91: 0 | AH91: 0 | AI91: 0 | AJ91: 0 | AK91: 0 | AL91: 0 | AM91: 0
C92: 불균형 및 무리한 동작 | D92: 11 | E92: 0 | F92: 7 | G92: 0 | H92: 1 | I92: 0 | J92: 2 | K92: 0 | L92: 1 | M92: 0 | N92: 0 | O92: 0 | P92: 14 | Q92: 0 | R92: 8 | S92: 0 | T92: 1 | U92: 0 | V92: 3 | W92: 0 | X92: 1 | Y92: 0 | Z92: 1 | AA92: 0 | AB92: 4 | AC92: 0 | AD92: 1 | AE92: 0 | AF92: 2 | AG92: 0 | AH92: 1 | AI92: 0 | AJ92: 0 | AK92: 0 | AL92: 0 | AM92: 0
C93: 이상온도 접촉 | D93: 69 | E93: 0 | F93: 34 | G93: 0 | H93: 17 | I93: 0 | J93: 6 | K93: 0 | L93: 8 | M93: 0 | N93: 4 | O93: 0 | P93: 64 | Q93: 0 | R93: 36 | S93: 0 | T93: 14 | U93: 0 | V93: 7 | W93: 0 | X93: 6 | Y93: 0 | Z93: 1 | AA93: 0 | AB93: 38 | AC93: 0 | AD93: 11 | AE93: 0 | AF93: 12 | AG93: 0 | AH93: 11 | AI93: 0 | AJ93: 3 | AK93: 0 | AL93: 1 | AM93: 0
C94: 사업장외 교통사고 | D94: 49 | E94: 0 | F94: 36 | G94: 0 | H94: 6 | I94: 0 | J94: 4 | K94: 0 | L94: 1 | M94: 0 | N94: 2 | O94: 0 | P94: 49 | Q94: 1 | R94: 31 | S94: 1 | T94: 11 | U94: 0 | V94: 7 | W94: 0 | X94: 0 | Y94: 0 | Z94: 0 | AA94: 0 | AB94: 30 | AC94: 1 | AD94: 21 | AE94: 0 | AF94: 5 | AG94: 1 | AH94: 4 | AI94: 0 | AJ94: 0 | AK94: 0 | AL94: 0 | AM94: 0
C95: 체육행사 등의 사고 | D95: 1 | E95: 0 | F95: 0 | G95: 0 | H95: 0 | I95: 0 | J95: 0 | K95: 0 | L95: 1 | M95: 0 | N95: 0 | O95: 0 | P95: 0 | Q95: 0 | R95: 0 | S95: 0 | T95: 0 | U95: 0 | V95: 0 | W95: 0 | X95: 0 | Y95: 0 | Z95: 0 | AA95: 0 | AB95: 1 | AC95: 0 | AD95: 0 | AE95: 0 | AF95: 0 | AG95: 0 | AH95: 0 | AI95: 0 | AJ95: 0 | AK95: 0 | AL95: 1 | AM95: 0
C96: 폭력행위 | D96: 1 | E96: 0 | F96: 1 | G96: 0 | H96: 0 | I96: 0 | J96: 0 | K96: 0 | L96: 0 | M96: 0 | N96: 0 | O96: 0 | P96: 3 | Q96: 0 | R96: 0 | S96: 0 | T96: 2 | U96: 0 | V96: 1 | W96: 0 | X96: 0 | Y96: 0 | Z96: 0 | AA96: 0 | AB96: 0 | AC96: 0 | AD96: 0 | AE96: 0 | AF96: 0 | AG96: 0 | AH96: 0 | AI96: 0 | AJ96: 0 | AK96: 0 | AL96: 0 | AM96: 0
C97: 동물상해 | D97: 1 | E97: 0 | F97: 0 | G97: 0 | H97: 1 | I97: 0 | J97: 0 | K97: 0 | L97: 0 | M97: 0 | N97: 0 | O97: 0 | P97: 0 | Q97: 0 | R97: 0 | S97: 0 | T97: 0 | U97: 0 | V97: 0 | W97: 0 | X97: 0 | Y97: 0 | Z97: 0 | AA97: 0 | AB97: 0 | AC97: 0 | AD97: 0 | AE97: 0 | AF97: 0 | AG97: 0 | AH97: 0 | AI97: 0 | AJ97: 0 | AK97: 0 | AL97: 0 | AM97: 0
C98: 화학적인자 | D98: 0 | E98: 0 | F98: 0 | G98: 0 | H98: 0 | I98: 0 | J98: 0 | K98: 0 | L98: 0 | M98: 0 | N98: 0 | O98: 0 | P98: 0 | Q98: 0 | R98: 0 | S98: 0 | T98: 0 | U98: 0 | V98: 0 | W98: 0 | X98: 0 | Y98: 0 | Z98: 0 | AA98: 0 | AB98: 0 | AC98: 0 | AD98: 0 | AE98: 0 | AF98: 0 | AG98: 0 | AH98: 0 | AI98: 0 | AJ98: 0 | AK98: 0 | AL98: 0 | AM98: 0
C99: 생물학적인자 | D99: 0 | E99: 0 | F99: 0 | G99: 0 | H99: 0 | I99: 0 | J99: 0 | K99: 0 | L99: 0 | M99: 0 | N99: 0 | O99: 0 | P99: 0 | Q99: 0 | R99: 0 | S99: 0 | T99: 0 | U99: 0 | V99: 0 | W99: 0 | X99: 0 | Y99: 0 | Z99: 0 | AA99: 0 | AB99: 0 | AC99: 0 | AD99: 0 | AE99: 0 | AF99: 0 | AG99: 0 | AH99: 0 | AI99: 0 | AJ99: 0 | AK99: 0 | AL99: 0 | AM99: 0
C100: 뇌심혈관질환 | D100: 0 | E100: 0 | F100: 0 | G100: 0 | H100: 0 | I100: 0 | J100: 0 | K100: 0 | L100: 0 | M100: 0 | N100: 0 | O100: 0 | P100: 0 | Q100: 0 | R100: 0 | S100: 0 | T100: 0 | U100: 0 | V100: 0 | W100: 0 | X100: 0 | Y100: 0 | Z100: 0 | AA100: 0 | AB100: 0 | AC100: 0 | AD100: 0 | AE100: 0 | AF100: 0 | AG100: 0 | AH100: 0 | AI100: 0 | AJ100: 0 | AK100: 0 | AL100: 0 | AM100: 0
C101: 근골격계질환 | D101: 0 | E101: 0 | F101: 0 | G101: 0 | H101: 0 | I101: 0 | J101: 0 | K101: 0 | L101: 0 | M101: 0 | N101: 0 | O101: 0 | P101: 0 | Q101: 0 | R101: 0 | S101: 0 | T101: 0 | U101: 0 | V101: 0 | W101: 0 | X101: 0 | Y101: 0 | Z101: 0 | AA101: 0 | AB101: 0 | AC101: 0 | AD101: 0 | AE101: 0 | AF101: 0 | AG101: 0 | AH101: 0 | AI101: 0 | AJ101: 0 | AK101: 0 | AL101: 0 | AM101: 0

Sheet 경기
A1: 업종(소) | B1: 고용지청 | C1: 기준년월 | D1: 2019년 12월 | P1: 2020년 12월 | AB1: 2021년 9월
C2: 규모(소) | D2: 규모별 합계 | F2: 5인 미만 | H2: 5인 ~ 9인 | J2: 10인 ~ 19인 | L2: 20인 ~ 29인 | N2: 30인 ~ 49인 | P2: 규모별 합계 | R2: 5인 미만 | T2: 5인 ~ 9인 | V2: 10인 ~ 19인 | X2: 20인 ~ 29인 | Z2: 30인 ~ 49인 | AB2: 규모별 합계 | AD2: 5인 미만 | AF2: 5인 ~ 9인 | AH2: 10인 ~ 19인 | AJ2: 20인 ~ 29인 | AL2: 30인 ~ 49인
C3: 발생형태(중) | D3: 사고재해자수 합계 | E3: 사고사망자수 합계 | F3: 사고재해자수 | G3: 사고사망자수 | H3: 사고재해자수 | I3: 사고사망자수 | J3: 사고재해자수 | K3: 사고사망자수 | L3: 사고재해자수 | M3: 사고사망자수 | N3: 사고재해자수 | O3: 사고사망자수 | P3: 사고재해자수 합계 | Q3: 사고사망자수 합계 | R3: 사고재해자수 | S3: 사고사망자수 | T3: 사고재해자수 | U3: 사고사망자수 | V3: 사고재해자수 | W3: 사고사망자수 | X3: 사고재해자수 | Y3: 사고사망자수 | Z3: 사고재해자수 | AA3: 사고사망자수 | AB3: 사고재해자수 합계 | AC3: 사고사망자수 합계 | AD3: 사고재해자수 | AE3: 사고사망자수 | AF3: 사고재해자수 | AG3: 사고사망자수 | AH3: 사고재해자수 | AI3: 사고사망자수 | AJ3: 사고재해자수 | AK3: 사고사망자수 | AL3: 사고재해자수 | AM3: 사고사망자수
A4: 음식및숙박업 | B4: 합계 | D4: =SUM(D5,D28,D47,D67,D90) -> 1787 | E4: =SUM(E5,E28,E47,E67,E90) -> 6 | F4: 965 | G4: 3 | H4: 382 | I4: 2 | J4: 259 | K4: 1 | L4: 110 | M4: 0 | N4: 71 | O4: 0 | P4: 1699 | Q4: 3 | R4: 919 | S4: 2 | T4: 358 | U4: 1 | V4: 262 | W4: 0 | X4: 96 | Y4: 0 | Z4: 64 | AA4: 0 | AB4: 1185 | AC4: 4 | AD4: 633 | AE4: 2 | AF4: 277 | AG4: 1 | AH4: 183 | AI4: 1 | AJ4: 52 | AK4: 0 | AL4: 40 | AM4: 0
B5: 경 기 | C5: 합계 | D5: =SUM(F5,H5,J5,L5,N5) -> 624 | E5: =SUM(G5,I5,K5,M5,O5) -> 1 | F5: 328 | G5: 0 | H5: 131 | I5: 1 | J5: 102 | K5: 0 | L5: 35 | M5: 0 | N5: 28 | O5: 0 | P5: =SUM(R5,T5,V5,X5,Z5) -> 594 | Q5: =SUM(S5,U5,W5,Y5,AA5) -> 1 | R5: 293 | S5: 1 | T5: 130 | U5: 0 | V5: 104 | W5: 0 | X5: 45 | Y5: 0 | Z5: 22 | AA5: 0 | AB5: =SUM(AD5,AF5,AH5,AJ5,AL5) -> 438 | AC5: =SUM(AE5,AG5,AI5,AK5,AM5) -> 0 | AD5: 239 | AE5: 0 | AF5: 98 | AG5: 0 | AH5: 71 | AI5: 0 | AJ5: 13 | AK5: 0 | AL5: 17 | AM5: 0
C6: 떨어짐(높이가 있는 곳에서 사람이 떨어짐) | D6: =SUM(F6,H6,J6,L6,N6) -> 7 | E6: =SUM(G6,I6,K6,M6,O6) -> 0 | F6: 5 | G6: 0 | H6: 1 | I6: 0 | J6: 0 | K6: 0 | L6: 1 | M6: 0 | N6: 0 | O6: 0 | P6: =SUM(R6,T6,V6,X6,Z6) -> 14 | Q6: =SUM(S6,U6,W6,Y6,AA6) -> 0 | R6: 5 | S6: 0 | T6: 4 | U6: 0 | V6: 5 | W6: 0 | X6: 0 | Y6: 0 | Z6: 0 | AA6: 0 | AB6: =SUM(AD6,AF6,AH6,AJ6,AL6) -> 6 | AC6: =SUM(AE6,AG6,AI6,AK6,AM6) -> 0 | AD6: 3 | AE6: 0 | AF6: 2 | AG6: 0 | AH6: 0 | AI6: 0 | AJ6: 0 | AK6: 0 | AL6: 1 | AM6: 0
C7: 넘어짐(사람이 미끄러지거나 넘어짐) | D7: 176 | E7: 0 | F7: 92 | G7: 0 | H7: 44 | I7: 0 | J7: 26 | K7: 0 | L7: 9 | M7: 0 | N7: 5 | O7: 0 | P7: 165 | Q7: 0 | R7: 94 | S7: 0 | T7: 36 | U7: 0 | V7: 25 | W7: 0 | X7: 5 | Y7: 0 | Z7: 5 | AA7: 0 | AB7: 126 | AC7: 0 | AD7: 74 | AE7: 0 | AF7: 29 | AG7: 0 | AH7: 17 | AI7: 0 | AJ7: 2 | AK7: 0 | AL7: 4 | AM7: 0
C8: 깔림·뒤집힘(물체의 쓰러짐이나 뒤집힘) | D8: 4 | E8: 0 | F8: 1 | G8: 0 | H8: 0 | I8: 0 | J8: 1 | K8: 0 | L8: 0 | M8: 0 | N8: 2 | O8: 0 | P8: 3 | Q8: 0 | R8: 0 | S8: 0 | T8: 2 | U8: 0 | V8: 0 | W8: 0 | X8: 1 | Y8: 0 | Z8: 0 | AA8: 0 | AB8: 2 | AC8: 0 | AD8: 2 | AE8: 0 | AF8: 0 | AG8: 0 | AH8: 0 | AI8: 0 | AJ8: 0 | AK8: 0 | AL8: 0 | AM8: 0
C9: 부딪힘(물체에 부딪힘) | D9: 23 | E9: 0 | F9: 11 | G9: 0 | H9: 7 | I9: 0 | J9: 4 | K9: 0 | L9: 0 | M9: 0 | N9: 1 | O9: 0 | P9: 13 | Q9: 0 | R9: 4 | S9: 0 | T9: 2 | U9: 0 | V9: 5 | W9: 0 | X9: 1 | Y9: 0 | Z9: 1 | AA9: 0 | AB9: 16 | AC9: 0 | AD9: 6 | AE9: 0 | AF9: 8 | AG9: 0 | AH9: 1 | AI9: 0 | AJ9: 0 | AK9: 0 | AL9: 1 | AM9: 0
C10: 물체에 맞음(날아오거나 떨어진 물체에 맞음) | D10: 18 | E10: 0 | F10: 5 | G10: 0 | H10: 5 | I10: 0 | J10: 4 | K10: 0 | L10: 2 | M10: 0 | N10: 2 | O10: 0 | P10: 22 | Q10: 0 | R10: 11 | S10: 0 | T10: 7 | U10: 0 | V10: 2 | W10: 0 | X10: 1 | Y10: 0 | Z10: 1 | AA10: 0 | AB10: 11 | AC10: 0 | AD10: 7 | AE10: 0 | AF10: 1 | AG10: 0 | AH10: 2 | AI10: 0 | AJ10: 1 | AK10: 0 | AL10: 0 | AM10: 0
C11: 무너짐(건축물이나 쌓여진 물체가 무너짐) | D11: 0 | E11: 0 | F11: 0 | G11: 0 | H11: 0 | I11: 0 | J11: 0 | K11: 0 | L11: 0 | M11: 0 | N11: 0 | O11: 0 | P11: 0 | Q11: 0 | R11: 0 | S11: 0 | T11: 0 | U11: 0 | V11: 0 | W11: 0 | X11: 0 | Y11: 0 | Z11: 0 | AA11: 0 | AB11: 1 | AC11: 0 | AD11: 1 | AE11: 0 | AF11: 0 | AG11: 0 | AH11: 0 | AI11: 0 | AJ11: 0 | AK11: 0 | AL11: 0 | AM11: 0
C12: 끼임(기계설비에 끼이거나 감김) | D12: 39 | E12: 0 | F12: 22 | G12: 0 | H12: 7 | I12: 0 | J12: 9 | K12: 0 | L12: 1 | M12: 0 | N12: 0 | O12: 0 | P12: 44 | Q12: 0 | R12: 16 | S12: 0 | T12: 14 | U12: 0 | V12: 9 | W12: 0 | X12: 1 | Y12: 0 | Z12: 4 | AA12: 0 | AB12: 28 | AC12: 0 | AD12: 12 | AE12: 0 | AF12: 8 | AG12: 0 | AH12: 7 | AI12: 0 | AJ12: 0 | AK12: 0 | AL12: 1 | AM12: 0
C13: 절단·베임·찔림 | D13: 121 | E13: 0 | F13: 61 | G13: 0 | H13: 23 | I13: 0 | J13: 23 | K13: 0 | L13: 8 | M13: 0 | N13: 6 | O13: 0 | P13: 126 | Q13: 0 | R13: 45 | S13: 0 | T13: 29 | U13: 0 | V13: 24 | W13: 0 | X13: 22 | Y13: 0 | Z13: 6 | AA13: 0 | AB13: 91 | AC13: 0 | AD13: 44 | AE13: 0 | AF13: 17 | AG13: 0 | AH13: 23 | AI13: 0 | AJ13: 2 | AK13: 0 | AL13: 5 | AM13: 0
C14: 감전 | D14: 1 | E14: 0 | F14: 0 | G14: 0 | H14: 0 | I14: 0 | J14: 0 | K14: 0 | L14: 1 | M14: 0 | N14: 0 | O14: 0 | P14: 1 | Q14: 0 | R14: 1 | S14: 0 | T14: 0 | U14: 0 | V14: 0 | W14: 0 | X14: 0 | Y14: 0 | Z14: 0 | AA14: 0 | AB14: 0 | AC14: 0 | AD14: 0 | AE14: 0 | AF14: 0 | AG14: 0 | AH14: 0 | AI14: 0 | AJ14: 0 | AK14: 0 | AL14: 0 | AM14: 0
C15: 화재 | D15: 1 | E15: 0 | F15: 0 | G15: 0 | H15: 0 | I15: 0 | J15: 1 | K15: 0 | L15: 0 | M15: 0 | N15: 0 | O15: 0 | P15: 0 | Q15: 0 | R15: 0 | S15: 0 | T15: 0 | U15: 0 | V15: 0 | W15: 0 | X15: 0 | Y15: 0 | Z15: 0 | AA15: 0 | AB15: 0 | AC15: 0 | AD15: 0 | AE15: 0 | AF15: 0 | AG15: 0 | AH15: 0 | AI15: 0 | AJ15: 0 | AK15: 0 | AL15: 0 | AM15: 0
C16: 불균형 및 무리한 동작 | D16: 18 | E16: 0 | F16: 8 | G16: 0 | H16: 3 | I16: 0 | J16: 5 | K16: 0 | L16: 0 | M16: 0 | N16: 2 | O16: 0 | P16: 17 | Q16: 0 | R16: 8 | S16: 0 | T16: 2 | U16: 0 | V16: 3 | W16: 0 | X16: 4 | Y16: 0 | Z16: 0 | AA16: 0 | AB16: 9 | AC16: 0 | AD16: 5 | AE16: 0 | AF16: 2 | AG16: 0 | AH16: 1 | AI16: 0 | AJ16: 0 | AK16: 0 | AL16: 1 | AM16: 0
C17: 이상온도 접촉 | D17: 135 | E17: 0 | F17: 74 | G17: 0 | H17: 20 | I17: 0 | J17: 23 | K17: 0 | L17: 8 | M17: 0 | N17: 10 | O17: 0 | P17: 103 | Q17: 0 | R17: 56 | S17: 0 | T17: 21 | U17: 0 | V17: 19 | W17: 0 | X17: 4 | Y17: 0 | Z17: 3 | AA17: 0 | AB17: 78 | AC17: 0 | AD17: 42 | AE17: 0 | AF17: 18 | AG17: 0 | AH17: 14 | AI17: 0 | AJ17: 3 | AK17: 0 | AL17: 1 | AM17: 0
C18: 화학물질누출·접촉 | D18: 1 | E18: 0 | F18: 1 | G18: 0 | H18: 0 | I18: 0 | J18: 0 | K18: 0 | L18: 0 | M18: 0 | N18: 0 | O18: 0 | P18: 1 | Q18: 0 | R18: 1 | S18: 0 | T18: 0 | U18: 0 | V18: 0 | W18: 0 | X18: 0 | Y18: 0 | Z18: 0 | AA18: 0 | AB18: 0 | AC18: 0 | AD18: 0 | AE18: 0 | AF18: 0 | AG18: 0 | AH18: 0 | AI18: 0 | AJ18: 0 | AK18: 0 | AL18: 0 | AM18: 0
C19: 사업장외 교통사고 | D19: 76 | E19: 1 | F19: 46 | G19: 0 | H19: 20 | I19: 1 | J19: 5 | K19: 0 | L19: 5 | M19: 0 | N19: 0 | O19: 0 | P19: 81 | Q19: 1 | R19: 50 | S19: 1 | T19: 12 | U19: 0 | V19: 11 | W19: 0 | X19: 6 | Y19: 0 | Z19: 2 | AA19: 0 | AB19: 68 | AC19: 0 | AD19: 42 | AE19: 0 | AF19: 13 | AG19: 0 | AH19: 5 | AI19: 0 | AJ19: 5 | AK19: 0 | AL19: 3 | AM19: 0
C20: 체육행사 등의 사고 | D20: 2 | E20: 0 | F20: 0 | G20: 0 | H20: 1 | I20: 0 | J20: 1 | K20: 0 | L20: 0 | M20: 0 | N20: 0 | O20: 0 | P20: 2 | Q20: 0 | R20: 0 | S20: 0 | T20: 1 | U20: 0 | V20: 1 | W20: 0 | X20: 0 | Y20: 0 | Z20: 0 | AA20: 0 | AB20: 0 | AC20: 0 | AD20: 0 | AE20: 0 | AF20: 0 | AG20: 0 | AH20: 0 | AI20: 0 | AJ20: 0 | AK20: 0 | AL20: 0 | AM20: 0
C21: 폭력행위 | D21: 0 | E21: 0 | F21: 0 | G21: 0 | H21: 0 | I21: 0 | J21: 0 | K21: 0 | L21: 0 | M21: 0 | N21: 0 | O21: 0 | P21: 1 | Q21: 0 | R21: 1 | S21: 0 | T21: 0 | U21: 0 | V21: 0 | W21: 0 | X21: 0 | Y21: 0 | Z21: 0 | AA21: 0 | AB21: 1 | AC21: 0 | AD21: 1 | AE21: 0 | AF21: 0 | AG21: 0 | AH21: 0 | AI21: 0 | AJ21: 0 | AK21: 0 | AL21: 0 | AM21: 0
C22: 동물상해 | D22: 1 | E22: 0 | F22: 1 | G22: 0 | H22: 0 | I22: 0 | J22: 0 | K22: 0 | L22: 0 | M22: 0 | N22: 0 | O22: 0 | P22: 0 | Q22: 0 | R22: 0 | S22: 0 | T22: 0 | U22: 0 | V22: 0 | W22: 0 | X22: 0 | Y22: 0 | Z22: 0 | AA22: 0 | AB22: 1 | AC22: 0 | AD22: 0 | AE22: 0 | AF22: 0 | AG22: 0 | AH22: 1 | AI22: 0 | AJ22: 0 | AK22: 0 | AL22: 0 | AM22: 0
C23: 기타 | D23: 1 | E23: 0 | F23: 1 | G23: 0 | H23: 0 | I23: 0 | J23: 0 | K23: 0 | L23: 0 | M23: 0 | N23: 0 | O23: 0 | P23: 1 | Q23: 0 | R23: 1 | S23: 0 | T23: 0 | U23: 0 | V23: 0 | W23: 0 | X23: 0 | Y23: 0 | Z23: 0 | AA23: 0 | AB23: 0 | AC23: 0 | AD23: 0 | AE23: 0 | AF23: 0 | AG23: 0 | AH23: 0 | AI23: 0 | AJ23: 0 | AK23: 0 | AL23: 0 | AM23: 0
C24: 생물학적인자 | D24: 0 | E24: 0 | F24: 0 | G24: 0 | H24: 0 | I24: 0 | J24: 0 | K24: 0 | L24: 0 | M24: 0 | N24: 0 | O24: 0 | P24: 0 | Q24: 0 | R24: 0 | S24: 0 | T24: 0 | U24: 0 | V24: 0 | W24: 0 | X24: 0 | Y24: 0 | Z24: 0 | AA24: 0 | AB24: 0 | AC24: 0 | AD24: 0 | AE24: 0 | AF24: 0 | AG24: 0 | AH24: 0 | AI24: 0 | AJ24: 0 | AK24: 0 | AL24: 0 | AM24: 0
C25: 뇌심혈관질환 | D25: 0 | E25: 0 | F25: 0 | G25: 0 | H25: 0 | I25: 0 | J25: 0 | K25: 0 | L25: 0 | M25: 0 | N25: 0 | O25: 0 | P25: 0 | Q25: 0 | R25: 0 | S25: 0 | T25: 0 | U25: 0 | V25: 0 | W25: 0 | X25: 0 | Y25: 0 | Z25: 0 | AA25: 0 | AB25: 0 | AC25: 0 | AD25: 0 | AE25: 0 | AF25: 0 | AG25: 0 | AH25: 0 | AI25: 0 | AJ25: 0 | AK25: 0 | AL25: 0 | AM25: 0
C26: 근골격계질환 | D26: 0 | E26: 0 | F26: 0 | G26: 0 | H26: 0 | I26: 0 | J26: 0 | K26: 0 | L26: 0 | M26: 0 | N26: 0 | O26: 0 | P26: 0 | Q26: 0 | R26: 0 | S26: 0 | T26: 0 | U26: 0 | V26: 0 | W26: 0 | X26: 0 | Y26: 0 | Z26: 0 | AA26: 0 | AB26: 0 | AC26: 0 | AD26: 0 | AE26: 0 | AF26: 0 | AG26: 0 | AH26: 0 | AI26: 0 | AJ26: 0 | AK26: 0 | AL26: 0 | AM26: 0
C27: 작업관련성질환 기타 | D27: 0 | E27: 0 | F27: 0 | G27: 0 | H27: 0 | I27: 0 | J27: 0 | K27: 0 | L27: 0 | M27: 0 | N27: 0 | O27: 0 | P27: 0 | Q27: 0 | R27: 0 | S27: 0 | T27: 0 | U27: 0 | V27: 0 | W27: 0 | X27: 0 | Y27: 0 | Z27: 0 | AA27: 0 | AB27: 0 | AC27: 0 | AD27: 0 | AE27: 0 | AF27: 0 | AG27: 0 | AH27: 0 | AI27: 0 | AJ27: 0 | AK27: 0 | AL27: 0 | AM27: 0
B28: 안 양 | C28: 합계 | D28: 273 | E28: 1 | F28: 146 | G28: 1 | H28: 57 | I28: 0 | J28: 34 | K28: 0 | L28: 23 | M28: 0 | N28: 13 | O28: 0 | P28: 249 | Q28: 0 | R28: 143 | S28: 0 | T28: 52 | U28: 0 | V28: 36 | W28: 0 | X28: 7 | Y28: 0 | Z28: 11 | AA28: 0 | AB28: 181 | AC28: 0 | AD28: 95 | AE28: 0 | AF28: 46 | AG28: 0 | AH28: 25 | AI28: 0 | AJ28: 9 | AK28: 0 | AL28: 6 | AM28: 0
C29: 떨어짐(높이가 있는 곳에서 사람이 떨어짐) | D29: 4 | E29: 0 | F29: 2 | G29: 0 | H29: 2 | I29: 0 | J29: 0 | K29: 0 | L29: 0 | M29: 0 | N29: 0 | O29: 0 | P29: 2 | Q29: 0 | R29: 1 | S29: 0 | T29: 0 | U29: 0 | V29: 1 | W29: 0 | X29: 0 | Y29: 0 | Z29: 0 | AA29: 0 | AB29: 2 | AC29: 0 | AD29: 1 | AE29: 0 | AF29: 0 | AG29: 0 | AH29: 1 | AI29: 0 | AJ29: 0 | AK29: 0 | AL29: 0 | AM29: 0
C30: 넘어짐(사람이 미끄러지거나 넘어짐) | D30: 73 | E30: 0 | F30: 35 | G30: 0 | H30: 19 | I30: 0 | J30: 8 | K30: 0 | L30: 8 | M30: 0 | N30: 3 | O30: 0 | P30: 71 | Q30: 0 | R30: 48 | S30: 0 | T30: 8 | U30: 0 | V30: 11 | W30: 0 | X30: 2 | Y30: 0 | Z30: 2 | AA30: 0 | AB30: 50 | AC30: 0 | AD30: 27 | AE30: 0 | AF30: 8 | AG30: 0 | AH30: 10 | AI30: 0 | AJ30: 2 | AK30: 0 | AL30: 3 | AM30: 0
C31: 깔림·뒤집힘(물체의 쓰러짐이나 뒤집힘) | D31: 0 | E31: 0 | F31: 0 | G31: 0 | H31: 0 | I31: 0 | J31: 0 | K31: 0 | L31: 0 | M31: 0 | N31: 0 | O31: 0 | P31: 3 | Q31: 0 | R31: 1 | S31: 0 | T31: 1 | U31: 0 | V31: 0 | W31: 0 | X31: 1 | Y31: 0 | Z31: 0 | AA31: 0 | AB31: 2 | AC31: 0 | AD31: 2 | AE31: 0 | AF31: 0 | AG31: 0 | AH31: 0 | AI31: 0 | AJ31: 0 | AK31: 0 | AL31: 0 | AM31: 0
C32: 부딪힘(물체에 부딪힘) | D32: 10 | E32: 0 | F32: 7 | G32: 0 | H32: 3 | I32: 0 | J32: 0 | K32: 0 | L32: 0 | M32: 0 | N32: 0 | O32: 0 | P32: 8 | Q32: 0 | R32: 4 | S32: 0 | T32: 1 | U32: 0 | V32: 0 | W32: 0 | X32: 2 | Y32: 0 | Z32: 1 | AA32: 0 | AB32: 4 | AC32: 0 | AD32: 3 | AE32: 0 | AF32: 0 | AG32: 0 | AH32: 1 | AI32: 0 | AJ32: 0 | AK32: 0 | AL32: 0 | AM32: 0
C33: 물체에 맞음(날아오거나 떨어진 물체에 맞음) | D33: 6 | E33: 0 | F33: 4 | G33: 0 | H33: 1 | I33: 0 | J33: 1 | K33: 0 | L33: 0 | M33: 0 | N33: 0 | O33: 0 | P33: 5 | Q33: 0 | R33: 2 | S33: 0 | T33: 2 | U33: 0 | V33: 0 | W33: 0 | X33: 0 | Y33: 0 | Z33: 1 | AA33: 0 | AB33: 4 | AC33: 0 | AD33: 2 | AE33: 0 | AF33: 2 | AG33: 0 | AH33: 0 | AI33: 0 | AJ33: 0 | AK33: 0 | AL33: 0 | AM33: 0
C34: 끼임(기계설비에 끼이거나 감김) | D34: 18 | E34: 0 | F34: 11 | G34: 0 | H34: 2 | I34: 0 | J34: 2 | K34: 0 | L34: 1 | M34: 0 | N34: 2 | O34: 0 | P34: 20 | Q34: 0 | R34: 11 | S34: 0 | T34: 2 | U34: 0 | V34: 4 | W34: 0 | X34: 1 | Y34: 0 | Z34: 2 | AA34: 0 | AB34: 13 | AC34: 0 | AD34: 3 | AE34: 0 | AF34: 2 | AG34: 0 | AH34: 6 | AI34: 0 | AJ34: 2 | AK34: 0 | AL34: 0 | AM34: 0
C35: 절단·베임·찔림 | D35: 55 | E35: 0 | F35: 32 | G35: 0 | H35: 11 | I35: 0 | J35: 6 | K35: 0 | L35: 4 | M35: 0 | N35: 2 | O35: 0 | P35: 50 | Q35: 0 | R35: 20 | S35: 0 | T35: 17 | U35: 0 | V35: 11 | W35: 0 | X35: 0 | Y35: 0 | Z35: 2 | AA35: 0 | AB35: 44 | AC35: 0 | AD35: 21 | AE35: 0 | AF35: 14 | AG35: 0 | AH35: 4 | AI35: 0 | AJ35: 3 | AK35: 0 | AL35: 2 | AM35: 0
C36: 폭발·파열 | D36: 0 | E36: 0 | F36: 0 | G36: 0 | H36: 0 | I36: 0 | J36: 0 | K36: 0 | L36: 0 | M36: 0 | N36: 0 | O36: 0 | P36: 1 | Q36: 0 | R36: 1 | S36: 0 | T36: 0 | U36: 0 | V36: 0 | W36: 0 | X36: 0 | Y36: 0 | Z36: 0 | AA36: 0 | AB36: 1 | AC36: 0 | AD36: 1 | AE36: 0 | AF36: 0 | AG36: 0 | AH36: 0 | AI36: 0 | AJ36: 0 | AK36: 0 | AL36: 0 | AM36: 0
C37: 화재 | D37: 0 | E37: 0 | F37: 0 | G37: 0 | H37: 0 | I37: 0 | J37: 0 | K37: 0 | L37: 0 | M37: 0 | N37: 0 | O37: 0 | P37: 0 | Q37: 0 | R37: 0 | S37: 0 | T37: 0 | U37: 0 | V37: 0 | W37: 0 | X37: 0 | Y37: 0 | Z37: 0 | AA37: 0 | AB37: 1 | AC37: 0 | AD37: 1 | AE37: 0 | AF37: 0 | AG37: 0 | AH37: 0 | AI37: 0 | AJ37: 0 | AK37: 0 | AL37: 0 | AM37: 0
C38: 불균형 및 무리한 동작 | D38: 14 | E38: 0 | F38: 6 | G38: 0 | H38: 3 | I38: 0 | J38: 1 | K38: 0 | L38: 3 | M38: 0 | N38: 1 | O38: 0 | P38: 5 | Q38: 0 | R38: 1 | S38: 0 | T38: 2 | U38: 0 | V38: 1 | W38: 0 | X38: 0 | Y38: 0 | Z38: 1 | AA38: 0 | AB38: 6 | AC38: 0 | AD38: 2 | AE38: 0 | AF38: 3 | AG38: 0 | AH38: 0 | AI38: 0 | AJ38: 0 | AK38: 0 | AL38: 1 | AM38: 0
C39: 이상온도 접촉 | D39: 56 | E39: 0 | F39: 23 | G39: 0 | H39: 7 | I39: 0 | J39: 15 | K39: 0 | L39: 7 | M39: 0 | N39: 4 | O39: 0 | P39: 52 | Q39: 0 | R39: 32 | S39: 0 | T39: 15 | U39: 0 | V39: 3 | W39: 0 | X39: 1 | Y39: 0 | Z39: 1 | AA39: 0 | AB39: 25 | AC39: 0 | AD39: 15 | AE39: 0 | AF39: 8 | AG39: 0 | AH39: 0 | AI39: 0 | AJ39: 2 | AK39: 0 | AL39: 0 | AM39: 0
C40: 사업장외 교통사고 | D40: 36 | E40: 1 | F40: 26 | G40: 1 | H40: 8 | I40: 0 | J40: 1 | K40: 0 | L40: 0 | M40: 0 | N40: 1 | O40: 0 | P40: 31 | Q40: 0 | R40: 21 | S40: 0 | T40: 4 | U40: 0 | V40: 5 | W40: 0 | X40: 0 | Y40: 0 | Z40: 1 | AA40: 0 | AB40: 27 | AC40: 0 | AD40: 16 | AE40: 0 | AF40: 9 | AG40: 0 | AH40: 2 | AI40: 0 | AJ40: 0 | AK40: 0 | AL40: 0 | AM40: 0
C41: 체육행사 등의 사고 | D41: 0 | E41: 0 | F41: 0 | G41: 0 | H41: 0 | I41: 0 | J41: 0 | K41: 0 | L41: 0 | M41: 0 | N41: 0 | O41: 0 | P41: 0 | Q41: 0 | R41: 0 | S41: 0 | T41: 0 | U41: 0 | V41: 0 | W41: 0 | X41: 0 | Y41: 0 | Z41: 0 | AA41: 0 | AB41: 1 | AC41: 0 | AD41: 1 | AE41: 0 | AF41: 0 | AG41: 0 | AH41: 0 | AI41: 0 | AJ41: 0 | AK41: 0 | AL41: 0 | AM41: 0
C42: 폭력행위 | D42: 1 | E42: 0 | F42: 0 | G42: 0 | H42: 1 | I42: 0 | J42: 0 | K42: 0 | L42: 0 | M42: 0 | N42: 0 | O42: 0 | P42: 1 | Q42: 0 | R42: 1 | S42: 0 | T42: 0 | U42: 0 | V42: 0 | W42: 0 | X42: 0 | Y42: 0 | Z42: 0 | AA42: 0 | AB42: 1 | AC42: 0 | AD42: 0 | AE42: 0 | AF42: 0 | AG42: 0 | AH42: 1 | AI42: 0 | AJ42: 0 | AK42: 0 | AL42: 0 | AM42: 0
C43: 생물학적인자 | D43: 0 | E43: 0 | F43: 0 | G43: 0 | H43: 0 | I43: 0 | J43: 0 | K43: 0 | L43: 0 | M43: 0 | N43: 0 | O43: 0 | P43: 0 | Q43: 0 | R43: 0 | S43: 0 | T43: 0 | U43: 0 | V43: 0 | W43: 0 | X43: 0 | Y43: 0 | Z43: 0 | AA43: 0 | AB43: 0 | AC43: 0 | AD43: 0 | AE43: 0 | AF43: 0 | AG43: 0 | AH43: 0 | AI43: 0 | AJ43: 0 | AK43: 0 | AL43: 0 | AM43: 0
C44: 뇌심혈관질환 | D44: 0 | E44: 0 | F44: 0 | G44: 0 | H44: 0 | I44: 0 | J44: 0 | K44: 0 | L44: 0 | M44: 0 | N44: 0 | O44: 0 | P44: 0 | Q44: 0 | R44: 0 | S44: 0 | T44: 0 | U44: 0 | V44: 0 | W44: 0 | X44: 0 | Y44: 0 | Z44: 0 | AA44: 0 | AB44: 0 | AC44: 0 | AD44: 0 | AE44: 0 | AF44: 0 | AG44: 0 | AH44: 0 | AI44: 0 | AJ44: 0 | AK44: 0 | AL44: 0 | AM44: 0
C45: 근골격계질환 | D45: 0 | E45: 0 | F45: 0 | G45: 0 | H45: 0 | I45: 0 | J45: 0 | K45: 0 | L45: 0 | M45: 0 | N45: 0 | O45: 0 | P45: 0 | Q45: 0 | R45: 0 | S45: 0 | T45: 0 | U45: 0 | V45: 0 | W45: 0 | X45: 0 | Y45: 0 | Z45: 0 | AA45: 0 | AB45: 0 | AC45: 0 | AD45: 0 | AE45: 0 | AF45: 0 | AG45: 0 | AH45: 0 | AI45: 0 | AJ45: 0 | AK45: 0 | AL45: 0 | AM45: 0
C46: 작업관련성질환 기타 | D46: 0 | E46: 0 | F46: 0 | G46: 0 | H46: 0 | I46: 0 | J46: 0 | K46: 0 | L46: 0 | M46: 0 | N46: 0 | O46: 0 | P46: 0 | Q46: 0 | R46: 0 | S46: 0 | T46: 0 | U46: 0 | V46: 0 | W46: 0 | X46: 0 | Y46: 0 | Z46: 0 | AA46: 0 | AB46: 0 | AC46: 0 | AD46: 0 | AE46: 0 | AF46: 0 | AG46: 0 | AH46: 0 | AI46: 0 | AJ46: 0 | AK46: 0 | AL46: 0 | AM46: 0
B47: 안 산 | C47: 합계 | D47: 266 | E47: 1 | F47: 167 | G47: 1 | H47: 46 | I47: 0 | J47: 34 | K47: 0 | L47: 12 | M47: 0 | N47: 7 | O47: 0 | P47: 235 | Q47: 0 | R47: 146 | S47: 0 | T47: 48 | U47: 0 | V47: 27 | W47: 0 | X47: 10 | Y47: 0 | Z47: 4 | AA47: 0 | AB47: 153 | AC47: 0 | AD47: 91 | AE47: 0 | AF47: 34 | AG47: 0 | AH47: 18 | AI47: 0 | AJ47: 7 | AK47: 0 | AL47: 3 | AM47: 0
C48: 떨어짐(높이가 있는 곳에서 사람이 떨어짐) | D48: 8 | E48: 0 | F48: 5 | G48: 0 | H48: 1 | I48: 0 | J48: 2 | K48: 0 | L48: 0 | M48: 0 | N48: 0 | O48: 0 | P48: 7 | Q48: 0 | R48: 3 | S48: 0 | T48: 1 | U48: 0 | V48: 2 | W48: 0 | X48: 1 | Y48: 0 | Z48: 0 | AA48: 0 | AB48: 3 | AC48: 0 | AD48: 3 | AE48: 0 | AF48: 0 | AG48: 0 | AH48: 0 | AI48: 0 | AJ48: 0 | AK48: 0 | AL48: 0 | AM48: 0
C49: 넘어짐(사람이 미끄러지거나 넘어짐) | D49: 83 | E49: 0 | F49: 60 | G49: 0 | H49: 12 | I49: 0 | J49: 9 | K49: 0 | L49: 1 | M49: 0 | N49: 1 | O49: 0 | P49: 55 | Q49: 0 | R49: 29 | S49: 0 | T49: 14 | U49: 0 | V49: 10 | W49: 0 | X49: 1 | Y49: 0 | Z49: 1 | AA49: 0 | AB49: 42 | AC49: 0 | AD49: 29 | AE49: 0 | AF49: 8 | AG49: 0 | AH49: 4 | AI49: 0 | AJ49: 1 | AK49: 0 | AL49: 0 | AM49: 0
C50: 부딪힘(물체에 부딪힘) | D50: 8 | E50: 0 | F50: 2 | G50: 0 | H50: 4 | I50: 0 | J50: 0 | K50: 0 | L50: 1 | M50: 0 | N50: 1 | O50: 0 | P50: 5 | Q50: 0 | R50: 3 | S50: 0 | T50: 1 | U50: 0 | V50: 0 | W50: 0 | X50: 1 | Y50: 0 | Z50: 0 | AA50: 0 | AB50: 7 | AC50: 0 | AD50: 3 | AE50: 0 | AF50: 0 | AG50: 0 | AH50: 2 | AI50: 0 | AJ50: 1 | AK50: 0 | AL50: 1 | AM50: 0
C51: 물체에 맞음(날아오거나 떨어진 물체에 맞음) | D51: 9 | E51: 0 | F51: 5 | G51: 0 | H51: 2 | I51: 0 | J51: 2 | K51: 0 | L51: 0 | M51: 0 | N51: 0 | O51: 0 | P51: 3 | Q51: 0 | R51: 3 | S51: 0 | T51: 0 | U51: 0 | V51: 0 | W51: 0 | X51: 0 | Y51: 0 | Z51: 0 | AA51: 0 | AB51: 3 | AC51: 0 | AD51: 2 | AE51: 0 | AF51: 0 | AG51: 0 | AH51: 1 | AI51: 0 | AJ51: 0 | AK51: 0 | AL51: 0 | AM51: 0
C52: 끼임(기계설비에 끼이거나 감김) | D52: 17 | E52: 0 | F52: 10 | G52: 0 | H52: 4 | I52: 0 | J52: 2 | K52: 0 | L52: 1 | M52: 0 | N52: 0 | O52: 0 | P52: 19 | Q52: 0 | R52: 14 | S52: 0 | T52: 4 | U52: 0 | V52: 0 | W52: 0 | X52: 0 | Y52: 0 | Z52: 1 | AA52: 0 | AB52: 7 | AC52: 0 | AD52: 3 | AE52: 0 | AF52: 1 | AG52: 0 | AH52: 2 | AI52: 0 | AJ52: 1 | AK52: 0 | AL52: 0 | AM52: 0
C53: 절단·베임·찔림 | D53: 48 | E53: 0 | F53: 28 | G53: 0 | H53: 7 | I53: 0 | J53: 9 | K53: 0 | L53: 3 | M53: 0 | N53: 1 | O53: 0 | P53: 50 | Q53: 0 | R53: 23 | S53: 0 | T53: 13 | U53: 0 | V53: 10 | W53: 0 | X53: 3 | Y53: 0 | Z53: 1 | AA53: 0 | AB53: 37 | AC53: 0 | AD53: 18 | AE53: 0 | AF53: 10 | AG53: 0 | AH53: 4 | AI53: 0 | AJ53: 3 | AK53: 0 | AL53: 2 | AM53: 0
C54: 감전 | D54: 1 | E54: 0 | F54: 0 | G54: 0 | H54: 0 | I54: 0 | J54: 1 | K54: 0 | L54: 0 | M54: 0 | N54: 0 | O54: 0 | P54: 2 | Q54: 0 | R54: 2 | S54: 0 | T54: 0 | U54: 0 | V54: 0 | W54: 0 | X54: 0 | Y54: 0 | Z54: 0 | AA54: 0 | AB54: 0 | AC54: 0 | AD54: 0 | AE54: 0 | AF54: 0 | AG54: 0 | AH54: 0 | AI54: 0 | AJ54: 0 | AK54: 0 | AL54: 0 | AM54: 0
C55: 폭발·파열 | D55: 1 | E55: 1 | F55: 1 | G55: 1 | H55: 0 | I55: 0 | J55: 0 | K55: 0 | L55: 0 | M55: 0 | N55: 0 | O55: 0 | P55: 0 | Q55: 0 | R55: 0 | S55: 0 | T55: 0 | U55: 0 | V55: 0 | W55: 0 | X55: 0 | Y55: 0 | Z55: 0 | AA55: 0 | AB55: 0 | AC55: 0 | AD55: 0 | AE55: 0 | AF55: 0 | AG55: 0 | AH55: 0 | AI55: 0 | AJ55: 0 | AK55: 0 | AL55: 0 | AM55: 0
C56: 화재 | D56: 0 | E56: 0 | F56: 0 | G56: 0 | H56: 0 | I56: 0 | J56: 0 | K56: 0 | L56: 0 | M56: 0 | N56: 0 | O56: 0 | P56: 2 | Q56: 0 | R56: 2 | S56: 0 | T56: 0 | U56: 0 | V56: 0 | W56: 0 | X56: 0 | Y56: 0 | Z56: 0 | AA56: 0 | AB56: 0 | AC56: 0 | AD56: 0 | AE56: 0 | AF56: 0 | AG56: 0 | AH56: 0 | AI56: 0 | AJ56: 0 | AK56: 0 | AL56: 0 | AM56: 0
C57: 불균형 및 무리한 동작 | D57: 10 | E57: 0 | F57: 6 | G57: 0 | H57: 2 | I57: 0 | J57: 1 | K57: 0 | L57: 1 | M57: 0 | N57: 0 | O57: 0 | P57: 7 | Q57: 0 | R57: 3 | S57: 0 | T57: 3 | U57: 0 | V57: 1 | W57: 0 | X57: 0 | Y57: 0 | Z57: 0 | AA57: 0 | AB57: 7 | AC57: 0 | AD57: 5 | AE57: 0 | AF57: 1 | AG57: 0 | AH57: 1 | AI57: 0 | AJ57: 0 | AK57: 0 | AL57: 0 | AM57: 0
C58: 이상온도 접촉 | D58: 38 | E58: 0 | F58: 17 | G58: 0 | H58: 10 | I58: 0 | J58: 3 | K58: 0 | L58: 5 | M58: 0 | N58: 3 | O58: 0 | P58: 48 | Q58: 0 | R58: 30 | S58: 0 | T58: 9 | U58: 0 | V58: 4 | W58: 0 | X58: 4 | Y58: 0 | Z58: 1 | AA58: 0 | AB58: 28 | AC58: 0 | AD58: 15 | AE58: 0 | AF58: 9 | AG58: 0 | AH58: 3 | AI58: 0 | AJ58: 1 | AK58: 0 | AL58: 0 | AM58: 0
C59: 화학물질누출·접촉 | D59: 1 | E59: 0 | F59: 1 | G59: 0 | H59: 0 | I59: 0 | J59: 0 | K59: 0 | L59: 0 | M59: 0 | N59: 0 | O59: 0 | P59: 0 | Q59: 0 | R59: 0 | S59: 0 | T59: 0 | U59: 0 | V59: 0 | W59: 0 | X59: 0 | Y59: 0 | Z59: 0 | AA59: 0 | AB59: 0 | AC59: 0 | AD59: 0 | AE59: 0 | AF59: 0 | AG59: 0 | AH59: 0 | AI59: 0 | AJ59: 0 | AK59: 0 | AL59: 0 | AM59: 0
C60: 사업장외 교통사고 | D60: 40 | E60: 0 | F60: 32 | G60: 0 | H60: 4 | I60: 0 | J60: 4 | K60: 0 | L60: 0 | M60: 0 | N60: 0 | O60: 0 | P60: 37 | Q60: 0 | R60: 34 | S60: 0 | T60: 3 | U60: 0 | V60: 0 | W60: 0 | X60: 0 | Y60: 0 | Z60: 0 | AA60: 0 | AB60: 17 | AC60: 0 | AD60: 12 | AE60: 0 | AF60: 5 | AG60: 0 | AH60: 0 | AI60: 0 | AJ60: 0 | AK60: 0 | AL60: 0 | AM60: 0
C61: 체육행사 등의 사고 | D61: 1 | E61: 0 | F61: 0 | G61: 0 | H61: 0 | I61: 0 | J61: 1 | K61: 0 | L61: 0 | M61: 0 | N61: 0 | O61: 0 | P61: 0 | Q61: 0 | R61: 0 | S61: 0 | T61: 0 | U61: 0 | V61: 0 | W61: 0 | X61: 0 | Y61: 0 | Z61: 0 | AA61: 0 | AB61: 1 | AC61: 0 | AD61: 0 | AE61: 0 | AF61: 0 | AG61: 0 | AH61: 1 | AI61: 0 | AJ61: 0 | AK61: 0 | AL61: 0 | AM61: 0
C62: 폭력행위 | D62: 1 | E62: 0 | F62: 0 | G62: 0 | H62: 0 | I62: 0 | J62: 0 | K62: 0 | L62: 0 | M62: 0 | N62: 1 | O62: 0 | P62: 0 | Q62: 0 | R62: 0 | S62: 0 | T62: 0 | U62: 0 | V62: 0 | W62: 0 | X62: 0 | Y62: 0 | Z62: 0 | AA62: 0 | AB62: 0 | AC62: 0 | AD62: 0 | AE62: 0 | AF62: 0 | AG62: 0 | AH62: 0 | AI62: 0 | AJ62: 0 | AK62: 0 | AL62: 0 | AM62: 0
C63: 동물상해 | D63: 0 | E63: 0 | F63: 0 | G63: 0 | H63: 0 | I63: 0 | J63: 0 | K63: 0 | L63: 0 | M63: 0 | N63: 0 | O63: 0 | P63: 0 | Q63: 0 | R63: 0 | S63: 0 | T63: 0 | U63: 0 | V63: 0 | W63: 0 | X63: 0 | Y63: 0 | Z63: 0 | AA63: 0 | AB63: 1 | AC63: 0 | AD63: 1 | AE63: 0 | AF63: 0 | AG63: 0 | AH63: 0 | AI63: 0 | AJ63: 0 | AK63: 0 | AL63: 0 | AM63: 0
C64: 뇌심혈관질환 | D64: 0 | E64: 0 | F64: 0 | G64: 0 | H64: 0 | I64: 0 | J64: 0 | K64: 0 | L64: 0 | M64: 0 | N64: 0 | O64: 0 | P64: 0 | Q64: 0 | R64: 0 | S64: 0 | T64: 0 | U64: 0 | V64: 0 | W64: 0 | X64: 0 | Y64: 0 | Z64: 0 | AA64: 0 | AB64: 0 | AC64: 0 | AD64: 0 | AE64: 0 | AF64: 0 | AG64: 0 | AH64: 0 | AI64: 0 | AJ64: 0 | AK64: 0 | AL64: 0 | AM64: 0
C65: 근골격계질환 | D65: 0 | E65: 0 | F65: 0 | G65: 0 | H65: 0 | I65: 0 | J65: 0 | K65: 0 | L65: 0 | M65: 0 | N65: 0 | O65: 0 | P65: 0 | Q65: 0 | R65: 0 | S65: 0 | T65: 0 | U65: 0 | V65: 0 | W65: 0 | X65: 0 | Y65: 0 | Z65: 0 | AA65: 0 | AB65: 0 | AC65: 0 | AD65: 0 | AE65: 0 | AF65: 0 | AG65: 0 | AH65: 0 | AI65: 0 | AJ65: 0 | AK65: 0 | AL65: 0 | AM65: 0
C66: 작업관련성질환 기타 | D66: 0 | E66: 0 | F66: 0 | G66: 0 | H66: 0 | I66: 0 | J66: 0 | K66: 0 | L66: 0 | M66: 0 | N66: 0 | O66: 0 | P66: 0 | Q66: 0 | R66: 0 | S66: 0 | T66: 0 | U66: 0 | V66: 0 | W66: 0 | X66: 0 | Y66: 0 | Z66: 0 | AA66: 0 | AB66: 0 | AC66: 0 | AD66: 0 | AE66: 0 | AF66: 0 | AG66: 0 | AH66: 0 | AI66: 0 | AJ66: 0 | AK66: 0 | AL66: 0 | AM66: 0
B67: 성 남 | C67: 합계 | D67: 458 | E67: 0 | F67: 234 | G67: 0 | H67: 107 | I67: 0 | J67: 66 | K67: 0 | L67: 37 | M67: 0 | N67: 14 | O67: 0 | P67: 437 | Q67: 2 | R67: 232 | S67: 1 | T67: 90 | U67: 1 | V67: 72 | W67: 0 | X67: 25 | Y67: 0 | Z67: 18 | AA67: 0 | AB67: 285 | AC67: 2 | AD67: 138 | AE67: 1 | AF67: 72 | AG67: 1 | AH67: 49 | AI67: 0 | AJ67: 19 | AK67: 0 | AL67: 7 | AM67: 0
C68: 떨어짐(높이가 있는 곳에서 사람이 떨어짐) | D68: 9 | E68: 0 | F68: 3 | G68: 0 | H68: 4 | I68: 0 | J68: 2 | K68: 0 | L68: 0 | M68: 0 | N68: 0 | O68: 0 | P68: 12 | Q68: 0 | R68: 9 | S68: 0 | T68: 2 | U68: 0 | V68: 1 | W68: 0 | X68: 0 | Y68: 0 | Z68: 0 | AA68: 0 | AB68: 6 | AC68: 0 | AD68: 1 | AE68: 0 | AF68: 1 | AG68: 0 | AH68: 1 | AI68: 0 | AJ68: 3 | AK68: 0 | AL68: 0 | AM68: 0
C69: 넘어짐(사람이 미끄러지거나 넘어짐) | D69: 142 | E69: 0 | F69: 77 | G69: 0 | H69: 33 | I69: 0 | J69: 18 | K69: 0 | L69: 8 | M69: 0 | N69: 6 | O69: 0 | P69: 128 | Q69: 0 | R69: 67 | S69: 0 | T69: 23 | U69: 0 | V69: 21 | W69: 0 | X69: 7 | Y69: 0 | Z69: 10 | AA69: 0 | AB69: 89 | AC69: 1 | AD69: 49 | AE69: 1 | AF69: 14 | AG69: 0 | AH69: 18 | AI69: 0 | AJ69: 4 | AK69: 0 | AL69: 4 | AM69: 0
C70: 깔림·뒤집힘(물체의 쓰러짐이나 뒤집힘) | D70: =SUM(F70,H70,J70,L70,N70) -> 1 | E70: =SUM(G70,I70,K70,M70,O70) -> 0 | F70: 1 | G70: 0 | H70: 0 | I70: 0 | J70: 0 | K70: 0 | L70: 0 | M70: 0 | N70: 0 | O70: 0 | P70: =SUM(R70,T70,V70,X70,Z70) -> 3 | Q70: =SUM(S70,U70,W70,Y70,AA70) -> 0 | R70: 1 | S70: 0 | T70: 1 | U70: 0 | V70: 1 | W70: 0 | X70: 0 | Y70: 0 | Z70: 0 | AA70: 0 | AB70: =SUM(AD70,AF70,AH70,AJ70,AL70) -> 1 | AC70: =SUM(AE70,AG70,AI70,AK70,AM70) -> 0 | AD70: 0 | AE70: 0 | AF70: 0 | AG70: 0 | AH70: 0 | AI70: 0 | AJ70: 1 | AK70: 0 | AL70: 0 | AM70: 0
C71: 부딪힘(물체에 부딪힘) | D71: 10 | E71: 0 | F71: 7 | G71: 0 | H71: 1 | I71: 0 | J71: 0 | K71: 0 | L71: 1 | M71: 0 | N71: 1 | O71: 0 | P71: 10 | Q71: 0 | R71: 2 | S71: 0 | T71: 2 | U71: 0 | V71: 4 | W71: 0 | X71: 2 | Y71: 0 | Z71: 0 | AA71: 0 | AB71: 7 | AC71: 0 | AD71: 1 | AE71: 0 | AF71: 4 | AG71: 0 | AH71: 1 | AI71: 0 | AJ71: 1 | AK71: 0 | AL71: 0 | AM71: 0
C72: 물체에 맞음(날아오거나 떨어진 물체에 맞음) | D72: 13 | E72: 0 | F72: 6 | G72: 0 | H72: 4 | I72: 0 | J72: 1 | K72: 0 | L72: 2 | M72: 0 | N72: 0 | O72: 0 | P72: 14 | Q72: 0 | R72: 8 | S72: 0 | T72: 3 | U72: 0 | V72: 3 | W72: 0 | X72: 0 | Y72: 0 | Z72: 0 | AA72: 0 | AB72: 10 | AC72: 0 | AD72: 7 | AE72: 0 | AF72: 2 | AG72: 0 | AH72: 0 | AI72: 0 | AJ72: 0 | AK72: 0 | AL72: 1 | AM72: 0
C73: 무너짐(건축물이나 쌓여진 물체가 무너짐) | D73: 1 | E73: 0 | F73: 1 | G73: 0 | H73: 0 | I73: 0 | J73: 0 | K73: 0 | L73: 0 | M73: 0 | N73: 0 | O73: 0 | P73: 1 | Q73: 0 | R73: 1 | S73: 0 | T73: 0 | U73: 0 | V73: 0 | W73: 0 | X73: 0 | Y73: 0 | Z73: 0 | AA73: 0 | AB73: 0 | AC73: 0 | AD73: 0 | AE73: 0 | AF73: 0 | AG73: 0 | AH73: 0 | AI73: 0 | AJ73: 0 | AK73: 0 | AL73: 0 | AM73: 0
C74: 끼임(기계설비에 끼이거나 감김) | D74: 33 | E74: 0 | F74: 17 | G74: 0 | H74: 6 | I74: 0 | J74: 6 | K74: 0 | L74: 2 | M74: 0 | N74: 2 | O74: 0 | P74: 29 | Q74: 0 | R74: 13 | S74: 0 | T74: 6 | U74: 0 | V74: 5 | W74: 0 | X74: 4 | Y74: 0 | Z74: 1 | AA74: 0 | AB74: 20 | AC74: 1 | AD74: 10 | AE74: 0 | AF74: 4 | AG74: 1 | AH74: 4 | AI74: 0 | AJ74: 1 | AK74: 0 | AL74: 1 | AM74: 0
C75: 절단·베임·찔림 | D75: 106 | E75: 0 | F75: 49 | G75: 0 | H75: 23 | I75: 0 | J75: 20 | K75: 0 | L75: 11 | M75: 0 | N75: 3 | O75: 0 | P75: 81 | Q75: 0 | R75: 45 | S75: 0 | T75: 16 | U75: 0 | V75: 12 | W75: 0 | X75: 6 | Y75: 0 | Z75: 2 | AA75: 0 | AB75: 56 | AC75: 0 | AD75: 23 | AE75: 0 | AF75: 19 | AG75: 0 | AH75: 9 | AI75: 0 | AJ75: 5 | AK75: 0 | AL75: 0 | AM75: 0
C76: 감전 | D76: 0 | E76: 0 | F76: 0 | G76: 0 | H76: 0 | I76: 0 | J76: 0 | K76: 0 | L76: 0 | M76: 0 | N76: 0 | O76: 0 | P76: 0 | Q76: 0 | R76: 0 | S76: 0 | T76: 0 | U76: 0 | V76: 0 | W76: 0 | X76: 0 | Y76: 0 | Z76: 0 | AA76: 0 | AB76: 1 | AC76: 0 | AD76: 1 | AE76: 0 | AF76: 0 | AG76: 0 | AH76: 0 | AI76: 0 | AJ76: 0 | AK76: 0 | AL76: 0 | AM76: 0
C77: 폭발·파열 | D77: 1 | E77: 0 | F77: 1 | G77: 0 | H77: 0 | I77: 0 | J77: 0 | K77: 0 | L77: 0 | M77: 0 | N77: 0 | O77: 0 | P77: 0 | Q77: 0 | R77: 0 | S77: 0 | T77: 0 | U77: 0 | V77: 0 | W77: 0 | X77: 0 | Y77: 0 | Z77: 0 | AA77: 0 | AB77: 1 | AC77: 0 | AD77: 1 | AE77: 0 | AF77: 0 | AG77: 0 | AH77: 0 | AI77: 0 | AJ77: 0 | AK77: 0 | AL77: 0 | AM77: 0
C78: 화재 | D78: 0 | E78: 0 | F78: 0 | G78: 0 | H78: 0 | I78: 0 | J78: 0 | K78: 0 | L78: 0 | M78: 0 | N78: 0 | O78: 0 | P78: 1 | Q78: 0 | R78: 0 | S78: 0 | T78: 0 | U78: 0 | V78: 0 | W78: 0 | X78: 1 | Y78: 0 | Z78: 0 | AA78: 0 | AB78: 0 | AC78: 0 | AD78: 0 | AE78: 0 | AF78: 0 | AG78: 0 | AH78: 0 | AI78: 0 | AJ78: 0 | AK78: 0 | AL78: 0 | AM78: 0
C79: 불균형 및 무리한 동작 | D79: 11 | E79: 0 | F79: 6 | G79: 0 | H79: 3 | I79: 0 | J79: 1 | K79: 0 | L79: 1 | M79: 0 | N79: 0 | O79: 0 | P79: 19 | Q79: 0 | R79: 10 | S79: 0 | T79: 3 | U79: 0 | V79: 5 | W79: 0 | X79: 1 | Y79: 0 | Z79: 0 | AA79: 0 | AB79: 14 | AC79: 0 | AD79: 5 | AE79: 0 | AF79: 3 | AG79: 0 | AH79: 3 | AI79: 0 | AJ79: 2 | AK79: 0 | AL79: 1 | AM79: 0
C80: 이상온도 접촉 | D80: 96 | E80: 0 | F80: 45 | G80: 0 | H80: 25 | I80: 0 | J80: 15 | K80: 0 | L80: 10 | M80: 0 | N80: 1 | O80: 0 | P80: 80 | Q80: 0 | R80: 40 | S80: 0 | T80: 24 | U80: 0 | V80: 10 | W80: 0 | X80: 3 | Y80: 0 | Z80: 3 | AA80: 0 | AB80: 50 | AC80: 0 | AD80: 22 | AE80: 0 | AF80: 16 | AG80: 0 | AH80: 11 | AI80: 0 | AJ80: 1 | AK80: 0 | AL80: 0 | AM80: 0
C81: 화학물질누출·접촉 | D81: 1 | E81: 0 | F81: 0 | G81: 0 | H81: 0 | I81: 0 | J81: 1 | K81: 0 | L81: 0 | M81: 0 | N81: 0 | O81: 0 | P81: 0 | Q81: 0 | R81: 0 | S81: 0 | T81: 0 | U81: 0 | V81: 0 | W81: 0 | X81: 0 | Y81: 0 | Z81: 0 | AA81: 0 | AB81: 0 | AC81: 0 | AD81: 0 | AE81: 0 | AF81: 0 | AG81: 0 | AH81: 0 | AI81: 0 | AJ81: 0 | AK81: 0 | AL81: 0 | AM81: 0
C82: 사업장외 교통사고 | D82: 32 | E82: 0 | F82: 21 | G82: 0 | H82: 7 | I82: 0 | J82: 2 | K82: 0 | L82: 1 | M82: 0 | N82: 1 | O82: 0 | P82: 57 | Q82: 2 | R82: 36 | S82: 1 | T82: 9 | U82: 1 | V82: 10 | W82: 0 | X82: 0 | Y82: 0 | Z82: 2 | AA82: 0 | AB82: 29 | AC82: 0 | AD82: 18 | AE82: 0 | AF82: 8 | AG82: 0 | AH82: 2 | AI82: 0 | AJ82: 1 | AK82: 0 | AL82: 0 | AM82: 0
C83: 체육행사 등의 사고 | D83: 1 | E83: 0 | F83: 0 | G83: 0 | H83: 0 | I83: 0 | J83: 0 | K83: 0 | L83: 1 | M83: 0 | N83: 0 | O83: 0 | P83: 0 | Q83: 0 | R83: 0 | S83: 0 | T83: 0 | U83: 0 | V83: 0 | W83: 0 | X83: 0 | Y83: 0 | Z83: 0 | AA83: 0 | AB83: 1 | AC83: 0 | AD83: 0 | AE83: 0 | AF83: 1 | AG83: 0 | AH83: 0 | AI83: 0 | AJ83: 0 | AK83: 0 | AL83: 0 | AM83: 0
C84: 폭력행위 | D84: 1 | E84: 0 | F84: 0 | G84: 0 | H84: 1 | I84: 0 | J84: 0 | K84: 0 | L84: 0 | M84: 0 | N84: 0 | O84: 0 | P84: 1 | Q84: 0 | R84: 0 | S84: 0 | T84: 1 | U84: 0 | V84: 0 | W84: 0 | X84: 0 | Y84: 0 | Z84: 0 | AA84: 0 | AB84: 0 | AC84: 0 | AD84: 0 | AE84: 0 | AF84: 0 | AG84: 0 | AH84: 0 | AI84: 0 | AJ84: 0 | AK84: 0 | AL84: 0 | AM84: 0
C85: 기타 | D85: 0 | E85: 0 | F85: 0 | G85: 0 | H85: 0 | I85: 0 | J85: 0 | K85: 0 | L85: 0 | M85: 0 | N85: 0 | O85: 0 | P85: 1 | Q85: 0 | R85: 0 | S85: 0 | T85: 0 | U85: 0 | V85: 0 | W85: 0 | X85: 1 | Y85: 0 | Z85: 0 | AA85: 0 | AB85: 0 | AC85: 0 | AD85: 0 | AE85: 0 | AF85: 0 | AG85: 0 | AH85: 0 | AI85: 0 | AJ85: 0 | AK85: 0 | AL85: 0 | AM85: 0
C86: 생물학적인자 | D86: 0 | E86: 0 | F86: 0 | G86: 0 | H86: 0 | I86: 0 | J86: 0 | K86: 0 | L86: 0 | M86: 0 | N86: 0 | O86: 0 | P86: 0 | Q86: 0 | R86: 0 | S86: 0 | T86: 0 | U86: 0 | V86: 0 | W86: 0 | X86: 0 | Y86: 0 | Z86: 0 | AA86: 0 | AB86: 0 | AC86: 0 | AD86: 0 | AE86: 0 | AF86: 0 | AG86: 0 | AH86: 0 | AI86: 0 | AJ86: 0 | AK86: 0 | AL86: 0 | AM86: 0
C87: 뇌심혈관질환 | D87: 0 | E87: 0 | F87: 0 | G87: 0 | H87: 0 | I87: 0 | J87: 0 | K87: 0 | L87: 0 | M87: 0 | N87: 0 | O87: 0 | P87: 0 | Q87: 0 | R87: 0 | S87: 0 | T87: 0 | U87: 0 | V87: 0 | W87: 0 | X87: 0 | Y87: 0 | Z87: 0 | AA87: 0 | AB87: 0 | AC87: 0 | AD87: 0 | AE87: 0 | AF87: 0 | AG87: 0 | AH87: 0 | AI87: 0 | AJ87: 0 | AK87: 0 | AL87: 0 | AM87: 0
C88: 근골격계질환 | D88: 0 | E88: 0 | F88: 0 | G88: 0 | H88: 0 | I88: 0 | J88: 0 | K88: 0 | L88: 0 | M88: 0 | N88: 0 | O88: 0 | P88: 0 | Q88: 0 | R88: 0 | S88: 0 | T88: 0 | U88: 0 | V88: 0 | W88: 0 | X88: 0 | Y88: 0 | Z88: 0 | AA88: 0 | AB88: 0 | AC88: 0 | AD88: 0 | AE88: 0 | AF88: 0 | AG88: 0 | AH88: 0 | AI88: 0 | AJ88: 0 | AK88: 0 | AL88: 0 | AM88: 0
C89: 작업관련성질환 기타 | D89: 0 | E89: 0 | F89: 0 | G89: 0 | H89: 0 | I89: 0 | J89: 0 | K89: 0 | L89: 0 | M89: 0 | N89: 0 | O89: 0 | P89: 0 | Q89: 0 | R89: 0 | S89: 0 | T89: 0 | U89: 0 | V89: 0 | W89: 0 | X89: 0 | Y89: 0 | Z89: 0 | AA89: 0 | AB89: 0 | AC89: 0 | AD89: 0 | AE89: 0 | AF89: 0 | AG89: 0 | AH89: 0 | AI89: 0 | AJ89: 0 | AK89: 0 | AL89: 0 | AM89: 0
B90: 평 택 | C90: 합계 | D90: 166 | E90: 3 | F90: 90 | G90: 1 | H90: 41 | I90: 1 | J90: 23 | K90: 1 | L90: 3 | M90: 0 | N90: 9 | O90: 0 | P90: 184 | Q90: 0 | R90: 105 | S90: 0 | T90: 38 | U90: 0 | V90: 23 | W90: 0 | X90: 9 | Y90: 0 | Z90: 9 | AA90: 0 | AB90: 128 | AC90: 2 | AD90: 70 | AE90: 1 | AF90: 27 | AG90: 0 | AH90: 20 | AI90: 1 | AJ90: 4 | AK90: 0 | AL90: 7 | AM90: 0
C91: 떨어짐(높이가 있는 곳에서 사람이 떨어짐) | D91: 4 | E91: 1 | F91: 2 | G91: 0 | H91: 1 | I91: 1 | J91: 0 | K91: 0 | L91: 1 | M91: 0 | N91: 0 | O91: 0 | P91: 4 | Q91: 0 | R91: 2 | S91: 0 | T91: 2 | U91: 0 | V91: 0 | W91: 0 | X91: 0 | Y91: 0 | Z91: 0 | AA91: 0 | AB91: 2 | AC91: 0 | AD91: 1 | AE91: 0 | AF91: 0 | AG91: 0 | AH91: 0 | AI91: 0 | AJ91: 0 | AK91: 0 | AL91: 1 | AM91: 0
C92: 넘어짐(사람이 미끄러지거나 넘어짐) | D92: 44 | E92: 0 | F92: 23 | G92: 0 | H92: 12 | I92: 0 | J92: 5 | K92: 0 | L92: 0 | M92: 0 | N92: 4 | O92: 0 | P92: 51 | Q92: 0 | R92: 27 | S92: 0 | T92: 12 | U92: 0 | V92: 6 | W92: 0 | X92: 3 | Y92: 0 | Z92: 3 | AA92: 0 | AB92: 50 | AC92: 1 | AD92: 25 | AE92: 0 | AF92: 13 | AG92: 0 | AH92: 8 | AI92: 1 | AJ92: 3 | AK92: 0 | AL92: 1 | AM92: 0
C93: 깔림·뒤집힘(물체의 쓰러짐이나 뒤집힘) | D93: 0 | E93: 0 | F93: 0 | G93: 0 | H93: 0 | I93: 0 | J93: 0 | K93: 0 | L93: 0 | M93: 0 | N93: 0 | O93: 0 | P93: 0 | Q93: 0 | R93: 0 | S93: 0 | T93: 0 | U93: 0 | V93: 0 | W93: 0 | X93: 0 | Y93: 0 | Z93: 0 | AA93: 0 | AB93: 1 | AC93: 0 | AD93: 1 | AE93: 0 | AF93: 0 | AG93: 0 | AH93: 0 | AI93: 0 | AJ93: 0 | AK93: 0 | AL93: 0 | AM93: 0
C94: 부딪힘(물체에 부딪힘) | D94: 6 | E94: 0 | F94: 2 | G94: 0 | H94: 2 | I94: 0 | J94: 1 | K94: 0 | L94: 0 | M94: 0 | N94: 1 | O94: 0 | P94: 8 | Q94: 0 | R94: 4 | S94: 0 | T94: 1 | U94: 0 | V94: 0 | W94: 0 | X94: 1 | Y94: 0 | Z94: 2 | AA94: 0 | AB94: 6 | AC94: 0 | AD94: 2 | AE94: 0 | AF94: 0 | AG94: 0 | AH94: 2 | AI94: 0 | AJ94: 0 | AK94: 0 | AL94: 2 | AM94: 0
C95: 물체에 맞음(날아오거나 떨어진 물체에 맞음) | D95: 3 | E95: 0 | F95: 3 | G95: 0 | H95: 0 | I95: 0 | J95: 0 | K95: 0 | L95: 0 | M95: 0 | N95: 0 | O95: 0 | P95: 7 | Q95: 0 | R95: 2 | S95: 0 | T95: 1 | U95: 0 | V95: 2 | W95: 0 | X95: 0 | Y95: 0 | Z95: 2 | AA95: 0 | AB95: 1 | AC95: 0 | AD95: 0 | AE95: 0 | AF95: 0 | AG95: 0 | AH95: 0 | AI95: 0 | AJ95: 0 | AK95: 0 | AL95: 1 | AM95: 0
C96: 끼임(기계설비에 끼이거나 감김) | D96: 14 | E96: 0 | F96: 10 | G96: 0 | H96: 1 | I96: 0 | J96: 3 | K96: 0 | L96: 0 | M96: 0 | N96: 0 | O96: 0 | P96: 14 | Q96: 0 | R96: 5 | S96: 0 | T96: 4 | U96: 0 | V96: 3 | W96: 0 | X96: 1 | Y96: 0 | Z96: 1 | AA96: 0 | AB96: 7 | AC96: 0 | AD96: 5 | AE96: 0 | AF96: 1 | AG96: 0 | AH96: 1 | AI96: 0 | AJ96: 0 | AK96: 0 | AL96: 0 | AM96: 0
C97: 절단·베임·찔림 | D97: 28 | E97: 0 | F97: 11 | G97: 0 | H97: 12 | I97: 0 | J97: 4 | K97: 0 | L97: 1 | M97: 0 | N97: 0 | O97: 0 | P97: 34 | Q97: 0 | R97: 22 | S97: 0 | T97: 4 | U97: 0 | V97: 5 | W97: 0 | X97: 3 | Y97: 0 | Z97: 0 | AA97: 0 | AB97: 17 | AC97: 1 | AD97: 11 | AE97: 1 | AF97: 4 | AG97: 0 | AH97: 2 | AI97: 0 | AJ97: 0 | AK97: 0 | AL97: 0 | AM97: 0
C98: 폭발·파열 | D98: 1 | E98: 0 | F98: 1 | G98: 0 | H98: 0 | I98: 0 | J98: 0 | K98: 0 | L98: 0 | M98: 0 | N98: 0 | O98: 0 | P98: 0 | Q98: 0 | R98: 0 | S98: 0 | T98: 0 | U98: 0 | V98: 0 | W98: 0 | X98: 0 | Y98: 0 | Z98: 0 | AA98: 0 | AB98: 0 | AC98: 0 | AD98: 0 | AE98: 0 | AF98: 0 | AG98: 0 | AH98: 0 | AI98: 0 | AJ98: 0 | AK98: 0 | AL98: 0 | AM98: 0
C99: 화재 | D99: 0 | E99: 0 | F99: 0 | G99: 0 | H99: 0 | I99: 0 | J99: 0 | K99: 0 | L99: 0 | M99: 0 | N99: 0 | O99: 0 | P99: 0 | Q99: 0 | R99: 0 | S99: 0 | T99: 0 | U99: 0 | V99: 0 | W99: 0 | X99: 0 | Y99: 0 | Z99: 0 | AA99: 0 | AB99: 1 | AC99: 0 | AD99: 1 | AE99: 0 | AF99: 0 | AG99: 0 | AH99: 0 | AI99: 0 | AJ99: 0 | AK99: 0 | AL99: 0 | AM99: 0
C100: 불균형 및 무리한 동작 | D100: 9 | E100: 0 | F100: 4 | G100: 0 | H100: 2 | I100: 0 | J100: 0 | K100: 0 | L100: 0 | M100: 0 | N100: 3 | O100: 0 | P100: 9 | Q100: 0 | R100: 5 | S100: 0 | T100: 3 | U100: 0 | V100: 1 | W100: 0 | X100: 0 | Y100: 0 | Z100: 0 | AA100: 0 | AB100: 5 | AC100: 0 | AD100: 3 | AE100: 0 | AF100: 0 | AG100: 0 | AH100: 1 | AI100: 0 | AJ100: 0 | AK100: 0 | AL100: 1 | AM100: 0
C101: 이상온도 접촉 | D101: 29 | E101: 0 | F101: 13 | G101: 0 | H101: 8 | I101: 0 | J101: 7 | K101: 0 | L101: 0 | M101: 0 | N101: 1 | O101: 0 | P101: 28 | Q101: 0 | R101: 16 | S101: 0 | T101: 7 | U101: 0 | V101: 4 | W101: 0 | X101: 0 | Y101: 0 | Z101: 1 | AA101: 0 | AB101: 21 | AC101: 0 | AD101: 9 | AE101: 0 | AF101: 5 | AG101: 0 | AH101: 5 | AI101: 0 | AJ101: 1 | AK101: 0 | AL101: 1 | AM101: 0
C102: 사업장외 교통사고 | D102: 28 | E102: 2 | F102: 21 | G102: 1 | H102: 3 | I102: 0 | J102: 3 | K102: 1 | L102: 1 | M102: 0 | N102: 0 | O102: 0 | P102: 28 | Q102: 0 | R102: 21 | S102: 0 | T102: 4 | U102: 0 | V102: 2 | W102: 0 | X102: 1 | Y102: 0 | Z102: 0 | AA102: 0 | AB102: 16 | AC102: 0 | AD102: 11 | AE102: 0 | AF102: 4 | AG102: 0 | AH102: 1 | AI102: 0 | AJ102: 0 | AK102: 0 | AL102: 0 | AM102: 0
C103: 체육행사 등의 사고 | D103: 0 | E103: 0 | F103: 0 | G103: 0 | H103: 0 | I103: 0 | J103: 0 | K103: 0 | L103: 0 | M103: 0 | N103: 0 | O103: 0 | P103: 1 | Q103: 0 | R103: 1 | S103: 0 | T103: 0 | U103: 0 | V103: 0 | W103: 0 | X103: 0 | Y103: 0 | Z103: 0 | AA103: 0 | AB103: 0 | AC103: 0 | AD103: 0 | AE103: 0 | AF103: 0 | AG103: 0 | AH103: 0 | AI103: 0 | AJ103: 0 | AK103: 0 | AL103: 0 | AM103: 0
C104: 폭력행위 | D104: 0 | E104: 0 | F104: 0 | G104: 0 | H104: 0 | I104: 0 | J104: 0 | K104: 0 | L104: 0 | M104: 0 | N104: 0 | O104: 0 | P104: 0 | Q104: 0 | R104: 0 | S104: 0 | T104: 0 | U104: 0 | V104: 0 | W104: 0 | X104: 0 | Y104: 0 | Z104: 0 | AA104: 0 | AB104: 1 | AC104: 0 | AD104: 1 | AE104: 0 | AF104: 0 | AG104: 0 | AH104: 0 | AI104: 0 | AJ104: 0 | AK104: 0 | AL104: 0 | AM104: 0
C105: 뇌심혈관질환 | D105: 0 | E105: 0 | F105: 0 | G105: 0 | H105: 0 | I105: 0 | J105: 0 | K105: 0 | L105: 0 | M105: 0 | N105: 0 | O105: 0 | P105: 0 | Q105: 0 | R105: 0 | S105: 0 | T105: 0 | U105: 0 | V105: 0 | W105: 0 | X105: 0 | Y105: 0 | Z105: 0 | AA105: 0 | AB105: 0 | AC105: 0 | AD105: 0 | AE105: 0 | AF105: 0 | AG105: 0 | AH105: 0 | AI105: 0 | AJ105: 0 | AK105: 0 | AL105: 0 | AM105: 0
C106: 근골격계질환 | D106: 0 | E106: 0 | F106: 0 | G106: 0 | H106: 0 | I106: 0 | J106: 0 | K106: 0 | L106: 0 | M106: 0 | N106: 0 | O106: 0 | P106: 0 | Q106: 0 | R106: 0 | S106: 0 | T106: 0 | U106: 0 | V106: 0 | W106: 0 | X106: 0 | Y106: 0 | Z106: 0 | AA106: 0 | AB106: 0 | AC106: 0 | AD106: 0 | AE106: 0 | AF106: 0 | AG106: 0 | AH106: 0 | AI106: 0 | AJ106: 0 | AK106: 0 | AL106: 0 | AM106: 0

Sheet 광주
A1: 업종(소) | B1: 고용지청 | C1: 기준년월 | D1: 2019년 12월 | P1: 2020년 12월 | AB1: 2021년 9월
C2: 규모(소) | D2: 규모별 합계 | F2: 5인 미만 | H2: 5인 ~ 9인 | J2: 10인 ~ 19인 | L2: 20인 ~ 29인 | N2: 30인 ~ 49인 | P2: 규모별 합계 | R2: 5인 미만 | T2: 5인 ~ 9인 | V2: 10인 ~ 19인 | X2: 20인 ~ 29인 | Z2: 30인 ~ 49인 | AB2: 규모별 합계 | AD2: 5인 미만 | AF2: 5인 ~ 9인 | AH2: 10인 ~ 19인 | AJ2: 20인 ~ 29인 | AL2: 30인 ~ 49인
C3: 발생형태(중) | D3: 사고재해자수 합계 | E3: 사고사망자수 합계 | F3: 사고재해자수 | G3: 사고사망자수 | H3: 사고재해자수 | I3: 사고사망자수 | J3: 사고재해자수 | K3: 사고사망자수 | L3: 사고재해자수 | M3: 사고사망자수 | N3: 사고재해자수 | O3: 사고사망자수 | P3: 사고재해자수 합계 | Q3: 사고사망자수 합계 | R3: 사고재해자수 | S3: 사고사망자수 | T3: 사고재해자수 | U3: 사고사망자수 | V3: 사고재해자수 | W3: 사고사망자수 | X3: 사고재해자수 | Y3: 사고사망자수 | Z3: 사고재해자수 | AA3: 사고사망자수 | AB3: 사고재해자수 합계 | AC3: 사고사망자수 합계 | AD3: 사고재해자수 | AE3: 사고사망자수 | AF3: 사고재해자수 | AG3: 사고사망자수 | AH3: 사고재해자수 | AI3: 사고사망자수 | AJ3: 사고재해자수 | AK3: 사고사망자수 | AL3: 사고재해자수 | AM3: 사고사망자수
A4: 음식및숙박업 | B4: 합계 | D4: =SUM(D5,D22,D40,D54,D66,D81,D98) -> 870 | E4: =SUM(E5,E22,E40,E54,E66,E81,E98) -> 2 | F4: 491 | G4: 2 | H4: 171 | I4: 0 | J4: 130 | K4: 0 | L4: 39 | M4: 0 | N4: 39 | O4: 0 | P4: 784 | Q4: 1 | R4: 442 | S4: 1 | T4: 149 | U4: 0 | V4: 124 | W4: 0 | X4: 32 | Y4: 0 | Z4: 37 | AA4: 0 | AB4: 597 | AC4: 4 | AD4: 318 | AE4: 3 | AF4: 140 | AG4: 1 | AH4: 88 | AI4: 0 | AJ4: 18 | AK4: 0 | AL4: 33 | AM4: 0
B5: 광 주 청 | C5: 합계 | D5: =SUM(F5,H5,J5,L5,N5) -> 322 | E5: =SUM(G5,I5,K5,M5,O5) -> 0 | F5: 171 | G5: 0 | H5: 62 | I5: 0 | J5: 60 | K5: 0 | L5: 15 | M5: 0 | N5: 14 | O5: 0 | P5: =SUM(R5,T5,V5,X5,Z5) -> 312 | Q5: =SUM(S5,U5,W5,Y5,AA5) -> 0 | R5: 168 | S5: 0 | T5: 64 | U5: 0 | V5: 50 | W5: 0 | X5: 18 | Y5: 0 | Z5: 12 | AA5: 0 | AB5: =SUM(AD5,AF5,AH5,AJ5,AL5) -> 223 | AC5: =SUM(AE5,AG5,AI5,AK5,AM5) -> 0 | AD5: 105 | AE5: 0 | AF5: 60 | AG5: 0 | AH5: 37 | AI5: 0 | AJ5: 2 | AK5: 0 | AL5: 19 | AM5: 0
C6: 떨어짐(높이가 있는 곳에서 사람이 떨어짐) | D6: =SUM(F6,H6,J6,L6,N6) -> 8 | E6: =SUM(G6,I6,K6,M6,O6) -> 0 | F6: 5 | G6: 0 | H6: 2 | I6: 0 | J6: 1 | K6: 0 | L6: 0 | M6: 0 | N6: 0 | O6: 0 | P6: =SUM(R6,T6,V6,X6,Z6) -> 8 | Q6: =SUM(S6,U6,W6,Y6,AA6) -> 0 | R6: 5 | S6: 0 | T6: 1 | U6: 0 | V6: 0 | W6: 0 | X6: 1 | Y6: 0 | Z6: 1 | AA6: 0 | AB6: =SUM(AD6,AF6,AH6,AJ6,AL6) -> 6 | AC6: =SUM(AE6,AG6,AI6,AK6,AM6) -> 0 | AD6: 4 | AE6: 0 | AF6: 1 | AG6: 0 | AH6: 0 | AI6: 0 | AJ6: 0 | AK6: 0 | AL6: 1 | AM6: 0
C7: 넘어짐(사람이 미끄러지거나 넘어짐) | D7: 76 | E7: 0 | F7: 40 | G7: 0 | H7: 15 | I7: 0 | J7: 15 | K7: 0 | L7: 2 | M7: 0 | N7: 4 | O7: 0 | P7: 89 | Q7: 0 | R7: 43 | S7: 0 | T7: 21 | U7: 0 | V7: 16 | W7: 0 | X7: 5 | Y7: 0 | Z7: 4 | AA7: 0 | AB7: 55 | AC7: 0 | AD7: 23 | AE7: 0 | AF7: 12 | AG7: 0 | AH7: 16 | AI7: 0 | AJ7: 0 | AK7: 0 | AL7: 4 | AM7: 0
C8: 깔림·뒤집힘(물체의 쓰러짐이나 뒤집힘) | D8: 2 | E8: 0 | F8: 1 | G8: 0 | H8: 0 | I8: 0 | J8: 1 | K8: 0 | L8: 0 | M8: 0 | N8: 0 | O8: 0 | P8: 0 | Q8: 0 | R8: 0 | S8: 0 | T8: 0 | U8: 0 | V8: 0 | W8: 0 | X8: 0 | Y8: 0 | Z8: 0 | AA8: 0 | AB8: 2 | AC8: 0 | AD8: 1 | AE8: 0 | AF8: 0 | AG8: 0 | AH8: 1 | AI8: 0 | AJ8: 0 | AK8: 0 | AL8: 0 | AM8: 0
C9: 부딪힘(물체에 부딪힘) | D9: 10 | E9: 0 | F9: 3 | G9: 0 | H9: 2 | I9: 0 | J9: 4 | K9: 0 | L9: 1 | M9: 0 | N9: 0 | O9: 0 | P9: 11 | Q9: 0 | R9: 5 | S9: 0 | T9: 4 | U9: 0 | V9: 1 | W9: 0 | X9: 1 | Y9: 0 | Z9: 0 | AA9: 0 | AB9: 5 | AC9: 0 | AD9: 3 | AE9: 0 | AF9: 2 | AG9: 0 | AH9: 0 | AI9: 0 | AJ9: 0 | AK9: 0 | AL9: 0 | AM9: 0
C10: 물체에 맞음(날아오거나 떨어진 물체에 맞음) | D10: 9 | E10: 0 | F10: 4 | G10: 0 | H10: 1 | I10: 0 | J10: 2 | K10: 0 | L10: 2 | M10: 0 | N10: 0 | O10: 0 | P10: 7 | Q10: 0 | R10: 4 | S10: 0 | T10: 1 | U10: 0 | V10: 1 | W10: 0 | X10: 1 | Y10: 0 | Z10: 0 | AA10: 0 | AB10: 6 | AC10: 0 | AD10: 1 | AE10: 0 | AF10: 2 | AG10: 0 | AH10: 0 | AI10: 0 | AJ10: 0 | AK10: 0 | AL10: 3 | AM10: 0
C11: 끼임(기계설비에 끼이거나 감김) | D11: 17 | E11: 0 | F11: 13 | G11: 0 | H11: 1 | I11: 0 | J11: 3 | K11: 0 | L11: 0 | M11: 0 | N11: 0 | O11: 0 | P11: 19 | Q11: 0 | R11: 15 | S11: 0 | T11: 0 | U11: 0 | V11: 3 | W11: 0 | X11: 1 | Y11: 0 | Z11: 0 | AA11: 0 | AB11: 15 | AC11: 0 | AD11: 7 | AE11: 0 | AF11: 5 | AG11: 0 | AH11: 2 | AI11: 0 | AJ11: 0 | AK11: 0 | AL11: 1 | AM11: 0
C12: 절단·베임·찔림 | D12: 57 | E12: 0 | F12: 20 | G12: 0 | H12: 17 | I12: 0 | J12: 13 | K12: 0 | L12: 3 | M12: 0 | N12: 4 | O12: 0 | P12: 46 | Q12: 0 | R12: 24 | S12: 0 | T12: 9 | U12: 0 | V12: 6 | W12: 0 | X12: 4 | Y12: 0 | Z12: 3 | AA12: 0 | AB12: 33 | AC12: 0 | AD12: 18 | AE12: 0 | AF12: 9 | AG12: 0 | AH12: 4 | AI12: 0 | AJ12: 1 | AK12: 0 | AL12: 1 | AM12: 0
C13: 폭발·파열 | D13: 0 | E13: 0 | F13: 0 | G13: 0 | H13: 0 | I13: 0 | J13: 0 | K13: 0 | L13: 0 | M13: 0 | N13: 0 | O13: 0 | P13: 0 | Q13: 0 | R13: 0 | S13: 0 | T13: 0 | U13: 0 | V13: 0 | W13: 0 | X13: 0 | Y13: 0 | Z13: 0 | AA13: 0 | AB13: 1 | AC13: 0 | AD13: 0 | AE13: 0 | AF13: 0 | AG13: 0 | AH13: 0 | AI13: 0 | AJ13: 0 | AK13: 0 | AL13: 1 | AM13: 0
C14: 불균형 및 무리한 동작 | D14: 13 | E14: 0 | F14: 7 | G14: 0 | H14: 2 | I14: 0 | J14: 2 | K14: 0 | L14: 1 | M14: 0 | N14: 1 | O14: 0 | P14: 8 | Q14: 0 | R14: 3 | S14: 0 | T14: 1 | U14: 0 | V14: 3 | W14: 0 | X14: 0 | Y14: 0 | Z14: 1 | AA14: 0 | AB14: 12 | AC14: 0 | AD14: 2 | AE14: 0 | AF14: 3 | AG14: 0 | AH14: 5 | AI14: 0 | AJ14: 0 | AK14: 0 | AL14: 2 | AM14: 0
C15: 이상온도 접촉 | D15: 69 | E15: 0 | F15: 35 | G15: 0 | H15: 16 | I15: 0 | J15: 12 | K15: 0 | L15: 3 | M15: 0 | N15: 3 | O15: 0 | P15: 68 | Q15: 0 | R15: 27 | S15: 0 | T15: 22 | U15: 0 | V15: 14 | W15: 0 | X15: 4 | Y15: 0 | Z15: 1 | AA15: 0 | AB15: 54 | AC15: 0 | AD15: 31 | AE15: 0 | AF15: 14 | AG15: 0 | AH15: 4 | AI15: 0 | AJ15: 0 | AK15: 0 | AL15: 5 | AM15: 0
C16: 사업장외 교통사고 | D16: 59 | E16: 0 | F16: 43 | G16: 0 | H16: 6 | I16: 0 | J16: 6 | K16: 0 | L16: 2 | M16: 0 | N16: 2 | O16: 0 | P16: 53 | Q16: 0 | R16: 40 | S16: 0 | T16: 5 | U16: 0 | V16: 6 | W16: 0 | X16: 1 | Y16: 0 | Z16: 1 | AA16: 0 | AB16: 34 | AC16: 0 | AD16: 15 | AE16: 0 | AF16: 12 | AG16: 0 | AH16: 5 | AI16: 0 | AJ16: 1 | AK16: 0 | AL16: 1 | AM16: 0
C17: 체육행사 등의 사고 | D17: 1 | E17: 0 | F17: 0 | G17: 0 | H17: 0 | I17: 0 | J17: 0 | K17: 0 | L17: 1 | M17: 0 | N17: 0 | O17: 0 | P17: 1 | Q17: 0 | R17: 0 | S17: 0 | T17: 0 | U17: 0 | V17: 0 | W17: 0 | X17: 0 | Y17: 0 | Z17: 1 | AA17: 0 | AB17: 0 | AC17: 0 | AD17: 0 | AE17: 0 | AF17: 0 | AG17: 0 | AH17: 0 | AI17: 0 | AJ17: 0 | AK17: 0 | AL17: 0 | AM17: 0
C18: 폭력행위 | D18: 1 | E18: 0 | F18: 0 | G18: 0 | H18: 0 | I18: 0 | J18: 1 | K18: 0 | L18: 0 | M18: 0 | N18: 0 | O18: 0 | P18: 1 | Q18: 0 | R18: 1 | S18: 0 | T18: 0 | U18: 0 | V18: 0 | W18: 0 | X18: 0 | Y18: 0 | Z18: 0 | AA18: 0 | AB18: 0 | AC18: 0 | AD18: 0 | AE18: 0 | AF18: 0 | AG18: 0 | AH18: 0 | AI18: 0 | AJ18: 0 | AK18: 0 | AL18: 0 | AM18: 0
C19: 동물상해 | D19: 0 | E19: 0 | F19: 0 | G19: 0 | H19: 0 | I19: 0 | J19: 0 | K19: 0 | L19: 0 | M19: 0 | N19: 0 | O19: 0 | P19: 1 | Q19: 0 | R19: 1 | S19: 0 | T19: 0 | U19: 0 | V19: 0 | W19: 0 | X19: 0 | Y19: 0 | Z19: 0 | AA19: 0 | AB19: 0 | AC19: 0 | AD19: 0 | AE19: 0 | AF19: 0 | AG19: 0 | AH19: 0 | AI19: 0 | AJ19: 0 | AK19: 0 | AL19: 0 | AM19: 0
C20: 뇌심혈관질환 | D20: 0 | E20: 0 | F20: 0 | G20: 0 | H20: 0 | I20: 0 | J20: 0 | K20: 0 | L20: 0 | M20: 0 | N20: 0 | O20: 0 | P20: 0 | Q20: 0 | R20: 0 | S20: 0 | T20: 0 | U20: 0 | V20: 0 | W20: 0 | X20: 0 | Y20: 0 | Z20: 0 | AA20: 0 | AB20: 0 | AC20: 0 | AD20: 0 | AE20: 0 | AF20: 0 | AG20: 0 | AH20: 0 | AI20: 0 | AJ20: 0 | AK20: 0 | AL20: 0 | AM20: 0
C21: 근골격계질환 | D21: 0 | E21: 0 | F21: 0 | G21: 0 | H21: 0 | I21: 0 | J21: 0 | K21: 0 | L21: 0 | M21: 0 | N21: 0 | O21: 0 | P21: 0 | Q21: 0 | R21: 0 | S21: 0 | T21: 0 | U21: 0 | V21: 0 | W21: 0 | X21: 0 | Y21: 0 | Z21: 0 | AA21: 0 | AB21: 0 | AC21: 0 | AD21: 0 | AE21: 0 | AF21: 0 | AG21: 0 | AH21: 0 | AI21: 0 | AJ21: 0 | AK21: 0 | AL21: 0 | AM21: 0
B22: 전 주 | C22: 합계 | D22: 171 | E22: 0 | F22: 105 | G22: 0 | H22: 27 | I22: 0 | J22: 26 | K22: 0 | L22: 5 | M22: 0 | N22: 8 | O22: 0 | P22: 167 | Q22: 0 | R22: 100 | S22: 0 | T22: 23 | U22: 0 | V22: 31 | W22: 0 | X22: 5 | Y22: 0 | Z22: 8 | AA22: 0 | AB22: 131 | AC22: 3 | AD22: 65 | AE22: 2 | AF22: 35 | AG22: 1 | AH22: 19 | AI22: 0 | AJ22: 8 | AK22: 0 | AL22: 4 | AM22: 0
C23: 떨어짐(높이가 있는 곳에서 사람이 떨어짐) | D23: 4 | E23: 0 | F23: 3 | G23: 0 | H23: 0 | I23: 0 | J23: 0 | K23: 0 | L23: 0 | M23: 0 | N23: 1 | O23: 0 | P23: 3 | Q23: 0 | R23: 2 | S23: 0 | T23: 0 | U23: 0 | V23: 0 | W23: 0 | X23: 1 | Y23: 0 | Z23: 0 | AA23: 0 | AB23: 4 | AC23: 0 | AD23: 1 | AE23: 0 | AF23: 1 | AG23: 0 | AH23: 0 | AI23: 0 | AJ23: 1 | AK23: 0 | AL23: 1 | AM23: 0
C24: 넘어짐(사람이 미끄러지거나 넘어짐) | D24: 48 | E24: 0 | F24: 29 | G24: 0 | H24: 9 | I24: 0 | J24: 7 | K24: 0 | L24: 1 | M24: 0 | N24: 2 | O24: 0 | P24: 39 | Q24: 0 | R24: 22 | S24: 0 | T24: 5 | U24: 0 | V24: 10 | W24: 0 | X24: 1 | Y24: 0 | Z24: 1 | AA24: 0 | AB24: 36 | AC24: 0 | AD24: 17 | AE24: 0 | AF24: 6 | AG24: 0 | AH24: 10 | AI24: 0 | AJ24: 2 | AK24: 0 | AL24: 1 | AM24: 0
C25: 깔림·뒤집힘(물체의 쓰러짐이나 뒤집힘) | D25: 0 | E25: 0 | F25: 0 | G25: 0 | H25: 0 | I25: 0 | J25: 0 | K25: 0 | L25: 0 | M25: 0 | N25: 0 | O25: 0 | P25: 1 | Q25: 0 | R25: 0 | S25: 0 | T25: 0 | U25: 0 | V25: 1 | W25: 0 | X25: 0 | Y25: 0 | Z25: 0 | AA25: 0 | AB25: 2 | AC25: 0 | AD25: 0 | AE25: 0 | AF25: 1 | AG25: 0 | AH25: 0 | AI25: 0 | AJ25: 0 | AK25: 0 | AL25: 1 | AM25: 0
C26: 부딪힘(물체에 부딪힘) | D26: 3 | E26: 0 | F26: 1 | G26: 0 | H26: 1 | I26: 0 | J26: 1 | K26: 0 | L26: 0 | M26: 0 | N26: 0 | O26: 0 | P26: 3 | Q26: 0 | R26: 3 | S26: 0 | T26: 0 | U26: 0 | V26: 0 | W26: 0 | X26: 0 | Y26: 0 | Z26: 0 | AA26: 0 | AB26: 4 | AC26: 0 | AD26: 3 | AE26: 0 | AF26: 0 | AG26: 0 | AH26: 0 | AI26: 0 | AJ26: 1 | AK26: 0 | AL26: 0 | AM26: 0
C27: 물체에 맞음(날아오거나 떨어진 물체에 맞음) | D27: 5 | E27: 0 | F27: 2 | G27: 0 | H27: 1 | I27: 0 | J27: 1 | K27: 0 | L27: 1 | M27: 0 | N27: 0 | O27: 0 | P27: 4 | Q27: 0 | R27: 3 | S27: 0 | T27: 1 | U27: 0 | V27: 0 | W27: 0 | X27: 0 | Y27: 0 | Z27: 0 | AA27: 0 | AB27: 4 | AC27: 0 | AD27: 1 | AE27: 0 | AF27: 2 | AG27: 0 | AH27: 0 | AI27: 0 | AJ27: 1 | AK27: 0 | AL27: 0 | AM27: 0
C28: 무너짐(건축물이나 쌓여진 물체가 무너짐) | D28: 0 | E28: 0 | F28: 0 | G28: 0 | H28: 0 | I28: 0 | J28: 0 | K28: 0 | L28: 0 | M28: 0 | N28: 0 | O28: 0 | P28: 1 | Q28: 0 | R28: 1 | S28: 0 | T28: 0 | U28: 0 | V28: 0 | W28: 0 | X28: 0 | Y28: 0 | Z28: 0 | AA28: 0 | AB28: 0 | AC28: 0 | AD28: 0 | AE28: 0 | AF28: 0 | AG28: 0 | AH28: 0 | AI28: 0 | AJ28: 0 | AK28: 0 | AL28: 0 | AM28: 0
C29: 끼임(기계설비에 끼이거나 감김) | D29: 12 | E29: 0 | F29: 9 | G29: 0 | H29: 0 | I29: 0 | J29: 3 | K29: 0 | L29: 0 | M29: 0 | N29: 0 | O29: 0 | P29: 9 | Q29: 0 | R29: 7 | S29: 0 | T29: 0 | U29: 0 | V29: 1 | W29: 0 | X29: 1 | Y29: 0 | Z29: 0 | AA29: 0 | AB29: 6 | AC29: 0 | AD29: 3 | AE29: 0 | AF29: 2 | AG29: 0 | AH29: 0 | AI29: 0 | AJ29: 1 | AK29: 0 | AL29: 0 | AM29: 0
C30: 절단·베임·찔림 | D30: 39 | E30: 0 | F30: 27 | G30: 0 | H30: 6 | I30: 0 | J30: 2 | K30: 0 | L30: 0 | M30: 0 | N30: 4 | O30: 0 | P30: 42 | Q30: 0 | R30: 28 | S30: 0 | T30: 5 | U30: 0 | V30: 6 | W30: 0 | X30: 0 | Y30: 0 | Z30: 3 | AA30: 0 | AB30: 22 | AC30: 0 | AD30: 13 | AE30: 0 | AF30: 7 | AG30: 0 | AH30: 1 | AI30: 0 | AJ30: 1 | AK30: 0 | AL30: 0 | AM30: 0
C31: 화재 | D31: 0 | E31: 0 | F31: 0 | G31: 0 | H31: 0 | I31: 0 | J31: 0 | K31: 0 | L31: 0 | M31: 0 | N31: 0 | O31: 0 | P31: 1 | Q31: 0 | R31: 1 | S31: 0 | T31: 0 | U31: 0 | V31: 0 | W31: 0 | X31: 0 | Y31: 0 | Z31: 0 | AA31: 0 | AB31: 0 | AC31: 0 | AD31: 0 | AE31: 0 | AF31: 0 | AG31: 0 | AH31: 0 | AI31: 0 | AJ31: 0 | AK31: 0 | AL31: 0 | AM31: 0
C32: 불균형 및 무리한 동작 | D32: 8 | E32: 0 | F32: 4 | G32: 0 | H32: 2 | I32: 0 | J32: 0 | K32: 0 | L32: 2 | M32: 0 | N32: 0 | O32: 0 | P32: 4 | Q32: 0 | R32: 3 | S32: 0 | T32: 0 | U32: 0 | V32: 0 | W32: 0 | X32: 1 | Y32: 0 | Z32: 0 | AA32: 0 | AB32: 4 | AC32: 0 | AD32: 3 | AE32: 0 | AF32: 1 | AG32: 0 | AH32: 0 | AI32: 0 | AJ32: 0 | AK32: 0 | AL32: 0 | AM32: 0
C33: 이상온도 접촉 | D33: 31 | E33: 0 | F33: 15 | G33: 0 | H33: 4 | I33: 0 | J33: 11 | K33: 0 | L33: 1 | M33: 0 | N33: 0 | O33: 0 | P33: 34 | Q33: 0 | R33: 19 | S33: 0 | T33: 8 | U33: 0 | V33: 4 | W33: 0 | X33: 1 | Y33: 0 | Z33: 2 | AA33: 0 | AB33: 32 | AC33: 0 | AD33: 16 | AE33: 0 | AF33: 9 | AG33: 0 | AH33: 6 | AI33: 0 | AJ33: 1 | AK33: 0 | AL33: 0 | AM33: 0
C34: 화학물질누출·접촉 | D34: 0 | E34: 0 | F34: 0 | G34: 0 | H34: 0 | I34: 0 | J34: 0 | K34: 0 | L34: 0 | M34: 0 | N34: 0 | O34: 0 | P34: 1 | Q34: 0 | R34: 0 | S34: 0 | T34: 0 | U34: 0 | V34: 0 | W34: 0 | X34: 0 | Y34: 0 | Z34: 1 | AA34: 0 | AB34: 0 | AC34: 0 | AD34: 0 | AE34: 0 | AF34: 0 | AG34: 0 | AH34: 0 | AI34: 0 | AJ34: 0 | AK34: 0 | AL34: 0 | AM34: 0
C35: 사업장외 교통사고 | D35: 21 | E35: 0 | F35: 15 | G35: 0 | H35: 4 | I35: 0 | J35: 1 | K35: 0 | L35: 0 | M35: 0 | N35: 1 | O35: 0 | P35: 21 | Q35: 0 | R35: 8 | S35: 0 | T35: 4 | U35: 0 | V35: 8 | W35: 0 | X35: 0 | Y35: 0 | Z35: 1 | AA35: 0 | AB35: 16 | AC35: 3 | AD35: 7 | AE35: 2 | AF35: 6 | AG35: 1 | AH35: 2 | AI35: 0 | AJ35: 0 | AK35: 0 | AL35: 1 | AM35: 0
C36: 폭력행위 | D36: 0 | E36: 0 | F36: 0 | G36: 0 | H36: 0 | I36: 0 | J36: 0 | K36: 0 | L36: 0 | M36: 0 | N36: 0 | O36: 0 | P36: 3 | Q36: 0 | R36: 2 | S36: 0 | T36: 0 | U36: 0 | V36: 1 | W36: 0 | X36: 0 | Y36: 0 | Z36: 0 | AA36: 0 | AB36: 0 | AC36: 0 | AD36: 0 | AE36: 0 | AF36: 0 | AG36: 0 | AH36: 0 | AI36: 0 | AJ36: 0 | AK36: 0 | AL36: 0 | AM36: 0
C37: 동물상해 | D37: 0 | E37: 0 | F37: 0 | G37: 0 | H37: 0 | I37: 0 | J37: 0 | K37: 0 | L37: 0 | M37: 0 | N37: 0 | O37: 0 | P37: 1 | Q37: 0 | R37: 1 | S37: 0 | T37: 0 | U37: 0 | V37: 0 | W37: 0 | X37: 0 | Y37: 0 | Z37: 0 | AA37: 0 | AB37: 1 | AC37: 0 | AD37: 1 | AE37: 0 | AF37: 0 | AG37: 0 | AH37: 0 | AI37: 0 | AJ37: 0 | AK37: 0 | AL37: 0 | AM37: 0
C38: 뇌심혈관질환 | D38: 0 | E38: 0 | F38: 0 | G38: 0 | H38: 0 | I38: 0 | J38: 0 | K38: 0 | L38: 0 | M38: 0 | N38: 0 | O38: 0 | P38: 0 | Q38: 0 | R38: 0 | S38: 0 | T38: 0 | U38: 0 | V38: 0 | W38: 0 | X38: 0 | Y38: 0 | Z38: 0 | AA38: 0 | AB38: 0 | AC38: 0 | AD38: 0 | AE38: 0 | AF38: 0 | AG38: 0 | AH38: 0 | AI38: 0 | AJ38: 0 | AK38: 0 | AL38: 0 | AM38: 0
C39: 근골격계질환 | D39: 0 | E39: 0 | F39: 0 | G39: 0 | H39: 0 | I39: 0 | J39: 0 | K39: 0 | L39: 0 | M39: 0 | N39: 0 | O39: 0 | P39: 0 | Q39: 0 | R39: 0 | S39: 0 | T39: 0 | U39: 0 | V39: 0 | W39: 0 | X39: 0 | Y39: 0 | Z39: 0 | AA39: 0 | AB39: 0 | AC39: 0 | AD39: 0 | AE39: 0 | AF39: 0 | AG39: 0 | AH39: 0 | AI39: 0 | AJ39: 0 | AK39: 0 | AL39: 0 | AM39: 0
B40: 익 산 | C40: 합계 | D40: 42 | E40: 0 | F40: 26 | G40: 0 | H40: 10 | I40: 0 | J40: 3 | K40: 0 | L40: 2 | M40: 0 | N40: 1 | O40: 0 | P40: 34 | Q40: 1 | R40: 26 | S40: 1 | T40: 6 | U40: 0 | V40: 1 | W40: 0 | X40: 0 | Y40: 0 | Z40: 1 | AA40: 0 | AB40: 23 | AC40: 0 | AD40: 18 | AE40: 0 | AF40: 3 | AG40: 0 | AH40: 0 | AI40: 0 | AJ40: 0 | AK40: 0 | AL40: 2 | AM40: 0
C41: 떨어짐(높이가 있는 곳에서 사람이 떨어짐) | D41: 0 | E41: 0 | F41: 0 | G41: 0 | H41: 0 | I41: 0 | J41: 0 | K41: 0 | L41: 0 | M41: 0 | N41: 0 | O41: 0 | P41: 1 | Q41: 0 | R41: 0 | S41: 0 | T41: 0 | U41: 0 | V41: 0 | W41: 0 | X41: 0 | Y41: 0 | Z41: 1 | AA41: 0 | AB41: 0 | AC41: 0 | AD41: 0 | AE41: 0 | AF41: 0 | AG41: 0 | AH41: 0 | AI41: 0 | AJ41: 0 | AK41: 0 | AL41: 0 | AM41: 0
C42: 넘어짐(사람이 미끄러지거나 넘어짐) | D42: 11 | E42: 0 | F42: 6 | G42: 0 | H42: 3 | I42: 0 | J42: 1 | K42: 0 | L42: 0 | M42: 0 | N42: 1 | O42: 0 | P42: 11 | Q42: 0 | R42: 8 | S42: 0 | T42: 3 | U42: 0 | V42: 0 | W42: 0 | X42: 0 | Y42: 0 | Z42: 0 | AA42: 0 | AB42: 9 | AC42: 0 | AD42: 8 | AE42: 0 | AF42: 0 | AG42: 0 | AH42: 0 | AI42: 0 | AJ42: 0 | AK42: 0 | AL42: 1 | AM42: 0
C43: 깔림·뒤집힘(물체의 쓰러짐이나 뒤집힘) | D43: 1 | E43: 0 | F43: 1 | G43: 0 | H43: 0 | I43: 0 | J43: 0 | K43: 0 | L43: 0 | M43: 0 | N43: 0 | O43: 0 | P43: 0 | Q43: 0 | R43: 0 | S43: 0 | T43: 0 | U43: 0 | V43: 0 | W43: 0 | X43: 0 | Y43: 0 | Z43: 0 | AA43: 0 | AB43: 0 | AC43: 0 | AD43: 0 | AE43: 0 | AF43: 0 | AG43: 0 | AH43: 0 | AI43: 0 | AJ43: 0 | AK43: 0 | AL43: 0 | AM43: 0
C44: 부딪힘(물체에 부딪힘) | D44: 0 | E44: 0 | F44: 0 | G44: 0 | H44: 0 | I44: 0 | J44: 0 | K44: 0 | L44: 0 | M44: 0 | N44: 0 | O44: 0 | P44: 2 | Q44: 0 | R44: 1 | S44: 0 | T44: 1 | U44: 0 | V44: 0 | W44: 0 | X44: 0 | Y44: 0 | Z44: 0 | AA44: 0 | AB44: 0 | AC44: 0 | AD44: 0 | AE44: 0 | AF44: 0 | AG44: 0 | AH44: 0 | AI44: 0 | AJ44: 0 | AK44: 0 | AL44: 0 | AM44: 0
C45: 물체에 맞음(날아오거나 떨어진 물체에 맞음) | D45: 2 | E45: 0 | F45: 1 | G45: 0 | H45: 0 | I45: 0 | J45: 1 | K45: 0 | L45: 0 | M45: 0 | N45: 0 | O45: 0 | P45: 1 | Q45: 0 | R45: 1 | S45: 0 | T45: 0 | U45: 0 | V45: 0 | W45: 0 | X45: 0 | Y45: 0 | Z45: 0 | AA45: 0 | AB45: 1 | AC45: 0 | AD45: 1 | AE45: 0 | AF45: 0 | AG45: 0 | AH45: 0 | AI45: 0 | AJ45: 0 | AK45: 0 | AL45: 0 | AM45: 0
C46: 끼임(기계설비에 끼이거나 감김) | D46: 5 | E46: 0 | F46: 5 | G46: 0 | H46: 0 | I46: 0 | J46: 0 | K46: 0 | L46: 0 | M46: 0 | N46: 0 | O46: 0 | P46: 3 | Q46: 0 | R46: 2 | S46: 0 | T46: 1 | U46: 0 | V46: 0 | W46: 0 | X46: 0 | Y46: 0 | Z46: 0 | AA46: 0 | AB46: 0 | AC46: 0 | AD46: 0 | AE46: 0 | AF46: 0 | AG46: 0 | AH46: 0 | AI46: 0 | AJ46: 0 | AK46: 0 | AL46: 0 | AM46: 0
C47: 절단·베임·찔림 | D47: 9 | E47: 0 | F47: 1 | G47: 0 | H47: 5 | I47: 0 | J47: 1 | K47: 0 | L47: 2 | M47: 0 | N47: 0 | O47: 0 | P47: 2 | Q47: 0 | R47: 2 | S47: 0 | T47: 0 | U47: 0 | V47: 0 | W47: 0 | X47: 0 | Y47: 0 | Z47: 0 | AA47: 0 | AB47: 5 | AC47: 0 | AD47: 4 | AE47: 0 | AF47: 1 | AG47: 0 | AH47: 0 | AI47: 0 | AJ47: 0 | AK47: 0 | AL47: 0 | AM47: 0
C48: 불균형 및 무리한 동작 | D48: 2 | E48: 0 | F48: 1 | G48: 0 | H48: 1 | I48: 0 | J48: 0 | K48: 0 | L48: 0 | M48: 0 | N48: 0 | O48: 0 | P48: 0 | Q48: 0 | R48: 0 | S48: 0 | T48: 0 | U48: 0 | V48: 0 | W48: 0 | X48: 0 | Y48: 0 | Z48: 0 | AA48: 0 | AB48: 0 | AC48: 0 | AD48: 0 | AE48: 0 | AF48: 0 | AG48: 0 | AH48: 0 | AI48: 0 | AJ48: 0 | AK48: 0 | AL48: 0 | AM48: 0
C49: 이상온도 접촉 | D49: 10 | E49: 0 | F49: 9 | G49: 0 | H49: 1 | I49: 0 | J49: 0 | K49: 0 | L49: 0 | M49: 0 | N49: 0 | O49: 0 | P49: 3 | Q49: 0 | R49: 3 | S49: 0 | T49: 0 | U49: 0 | V49: 0 | W49: 0 | X49: 0 | Y49: 0 | Z49: 0 | AA49: 0 | AB49: 5 | AC49: 0 | AD49: 3 | AE49: 0 | AF49: 2 | AG49: 0 | AH49: 0 | AI49: 0 | AJ49: 0 | AK49: 0 | AL49: 0 | AM49: 0
C50: 사업장외 교통사고 | D50: 2 | E50: 0 | F50: 2 | G50: 0 | H50: 0 | I50: 0 | J50: 0 | K50: 0 | L50: 0 | M50: 0 | N50: 0 | O50: 0 | P50: 10 | Q50: 1 | R50: 9 | S50: 1 | T50: 1 | U50: 0 | V50: 0 | W50: 0 | X50: 0 | Y50: 0 | Z50: 0 | AA50: 0 | AB50: 2 | AC50: 0 | AD50: 2 | AE50: 0 | AF50: 0 | AG50: 0 | AH50: 0 | AI50: 0 | AJ50: 0 | AK50: 0 | AL50: 0 | AM50: 0
C51: 체육행사 등의 사고 | D51: 0 | E51: 0 | F51: 0 | G51: 0 | H51: 0 | I51: 0 | J51: 0 | K51: 0 | L51: 0 | M51: 0 | N51: 0 | O51: 0 | P51: 1 | Q51: 0 | R51: 0 | S51: 0 | T51: 0 | U51: 0 | V51: 1 | W51: 0 | X51: 0 | Y51: 0 | Z51: 0 | AA51: 0 | AB51: 0 | AC51: 0 | AD51: 0 | AE51: 0 | AF51: 0 | AG51: 0 | AH51: 0 | AI51: 0 | AJ51: 0 | AK51: 0 | AL51: 0 | AM51: 0
C52: 동물상해 | D52: 0 | E52: 0 | F52: 0 | G52: 0 | H52: 0 | I52: 0 | J52: 0 | K52: 0 | L52: 0 | M52: 0 | N52: 0 | O52: 0 | P52: 0 | Q52: 0 | R52: 0 | S52: 0 | T52: 0 | U52: 0 | V52: 0 | W52: 0 | X52: 0 | Y52: 0 | Z52: 0 | AA52: 0 | AB52: 1 | AC52: 0 | AD52: 0 | AE52: 0 | AF52: 0 | AG52: 0 | AH52: 0 | AI52: 0 | AJ52: 0 | AK52: 0 | AL52: 1 | AM52: 0
C53: 근골격계질환 | D53: 0 | E53: 0 | F53: 0 | G53: 0 | H53: 0 | I53: 0 | J53: 0 | K53: 0 | L53: 0 | M53: 0 | N53: 0 | O53: 0 | P53: 0 | Q53: 0 | R53: 0 | S53: 0 | T53: 0 | U53: 0 | V53: 0 | W53: 0 | X53: 0 | Y53: 0 | Z53: 0 | AA53: 0 | AB53: 0 | AC53: 0 | AD53: 0 | AE53: 0 | AF53: 0 | AG53: 0 | AH53: 0 | AI53: 0 | AJ53: 0 | AK53: 0 | AL53: 0 | AM53: 0
B54: 군 산 | C54: 합계 | D54: 50 | E54: 0 | F54: 37 | G54: 0 | H54: 7 | I54: 0 | J54: 2 | K54: 0 | L54: 2 | M54: 0 | N54: 2 | O54: 0 | P54: 48 | Q54: 0 | R54: 30 | S54: 0 | T54: 9 | U54: 0 | V54: 6 | W54: 0 | X54: 2 | Y54: 0 | Z54: 1 | AA54: 0 | AB54: 42 | AC54: 0 | AD54: 24 | AE54: 0 | AF54: 10 | AG54: 0 | AH54: 5 | AI54: 0 | AJ54: 1 | AK54: 0 | AL54: 2 | AM54: 0
C55: 떨어짐(높이가 있는 곳에서 사람이 떨어짐) | D55: 1 | E55: 0 | F55: 0 | G55: 0 | H55: 0 | I55: 0 | J55: 0 | K55: 0 | L55: 0 | M55: 0 | N55: 1 | O55: 0 | P55: 2 | Q55: 0 | R55: 1 | S55: 0 | T55: 0 | U55: 0 | V55: 0 | W55: 0 | X55: 0 | Y55: 0 | Z55: 1 | AA55: 0 | AB55: 0 | AC55: 0 | AD55: 0 | AE55: 0 | AF55: 0 | AG55: 0 | AH55: 0 | AI55: 0 | AJ55: 0 | AK55: 0 | AL55: 0 | AM55: 0
C56: 넘어짐(사람이 미끄러지거나 넘어짐) | D56: 16 | E56: 0 | F56: 11 | G56: 0 | H56: 3 | I56: 0 | J56: 0 | K56: 0 | L56: 1 | M56: 0 | N56: 1 | O56: 0 | P56: 14 | Q56: 0 | R56: 10 | S56: 0 | T56: 2 | U56: 0 | V56: 2 | W56: 0 | X56: 0 | Y56: 0 | Z56: 0 | AA56: 0 | AB56: 15 | AC56: 0 | AD56: 7 | AE56: 0 | AF56: 4 | AG56: 0 | AH56: 3 | AI56: 0 | AJ56: 0 | AK56: 0 | AL56: 1 | AM56: 0
C57: 부딪힘(물체에 부딪힘) | D57: 4 | E57: 0 | F57: 3 | G57: 0 | H57: 1 | I57: 0 | J57: 0 | K57: 0 | L57: 0 | M57: 0 | N57: 0 | O57: 0 | P57: 1 | Q57: 0 | R57: 1 | S57: 0 | T57: 0 | U57: 0 | V57: 0 | W57: 0 | X57: 0 | Y57: 0 | Z57: 0 | AA57: 0 | AB57: 4 | AC57: 0 | AD57: 1 | AE57: 0 | AF57: 1 | AG57: 0 | AH57: 1 | AI57: 0 | AJ57: 0 | AK57: 0 | AL57: 1 | AM57: 0
C58: 물체에 맞음(날아오거나 떨어진 물체에 맞음) | D58: 0 | E58: 0 | F58: 0 | G58: 0 | H58: 0 | I58: 0 | J58: 0 | K58: 0 | L58: 0 | M58: 0 | N58: 0 | O58: 0 | P58: 1 | Q58: 0 | R58: 1 | S58: 0 | T58: 0 | U58: 0 | V58: 0 | W58: 0 | X58: 0 | Y58: 0 | Z58: 0 | AA58: 0 | AB58: 1 | AC58: 0 | AD58: 1 | AE58: 0 | AF58: 0 | AG58: 0 | AH58: 0 | AI58: 0 | AJ58: 0 | AK58: 0 | AL58: 0 | AM58: 0
C59: 끼임(기계설비에 끼이거나 감김) | D59: 4 | E59: 0 | F59: 3 | G59: 0 | H59: 1 | I59: 0 | J59: 0 | K59: 0 | L59: 0 | M59: 0 | N59: 0 | O59: 0 | P59: 4 | Q59: 0 | R59: 3 | S59: 0 | T59: 0 | U59: 0 | V59: 1 | W59: 0 | X59: 0 | Y59: 0 | Z59: 0 | AA59: 0 | AB59: 1 | AC59: 0 | AD59: 0 | AE59: 0 | AF59: 1 | AG59: 0 | AH59: 0 | AI59: 0 | AJ59: 0 | AK59: 0 | AL59: 0 | AM59: 0
C60: 절단·베임·찔림 | D60: 9 | E60: 0 | F60: 6 | G60: 0 | H60: 1 | I60: 0 | J60: 1 | K60: 0 | L60: 1 | M60: 0 | N60: 0 | O60: 0 | P60: 7 | Q60: 0 | R60: 5 | S60: 0 | T60: 2 | U60: 0 | V60: 0 | W60: 0 | X60: 0 | Y60: 0 | Z60: 0 | AA60: 0 | AB60: 12 | AC60: 0 | AD60: 7 | AE60: 0 | AF60: 3 | AG60: 0 | AH60: 1 | AI60: 0 | AJ60: 1 | AK60: 0 | AL60: 0 | AM60: 0
C61: 불균형 및 무리한 동작 | D61: 3 | E61: 0 | F61: 3 | G61: 0 | H61: 0 | I61: 0 | J61: 0 | K61: 0 | L61: 0 | M61: 0 | N61: 0 | O61: 0 | P61: 2 | Q61: 0 | R61: 1 | S61: 0 | T61: 0 | U61: 0 | V61: 0 | W61: 0 | X61: 1 | Y61: 0 | Z61: 0 | AA61: 0 | AB61: 0 | AC61: 0 | AD61: 0 | AE61: 0 | AF61: 0 | AG61: 0 | AH61: 0 | AI61: 0 | AJ61: 0 | AK61: 0 | AL61: 0 | AM61: 0
C62: 이상온도 접촉 | D62: 6 | E62: 0 | F62: 5 | G62: 0 | H62: 1 | I62: 0 | J62: 0 | K62: 0 | L62: 0 | M62: 0 | N62: 0 | O62: 0 | P62: 7 | Q62: 0 | R62: 4 | S62: 0 | T62: 1 | U62: 0 | V62: 1 | W62: 0 | X62: 1 | Y62: 0 | Z62: 0 | AA62: 0 | AB62: 7 | AC62: 0 | AD62: 6 | AE62: 0 | AF62: 1 | AG62: 0 | AH62: 0 | AI62: 0 | AJ62: 0 | AK62: 0 | AL62: 0 | AM62: 0
C63: 사업장외 교통사고 | D63: 7 | E63: 0 | F63: 6 | G63: 0 | H63: 0 | I63: 0 | J63: 1 | K63: 0 | L63: 0 | M63: 0 | N63: 0 | O63: 0 | P63: 10 | Q63: 0 | R63: 4 | S63: 0 | T63: 4 | U63: 0 | V63: 2 | W63: 0 | X63: 0 | Y63: 0 | Z63: 0 | AA63: 0 | AB63: 2 | AC63: 0 | AD63: 2 | AE63: 0 | AF63: 0 | AG63: 0 | AH63: 0 | AI63: 0 | AJ63: 0 | AK63: 0 | AL63: 0 | AM63: 0
C64: 뇌심혈관질환 | D64: 0 | E64: 0 | F64: 0 | G64: 0 | H64: 0 | I64: 0 | J64: 0 | K64: 0 | L64: 0 | M64: 0 | N64: 0 | O64: 0 | P64: 0 | Q64: 0 | R64: 0 | S64: 0 | T64: 0 | U64: 0 | V64: 0 | W64: 0 | X64: 0 | Y64: 0 | Z64: 0 | AA64: 0 | AB64: 0 | AC64: 0 | AD64: 0 | AE64: 0 | AF64: 0 | AG64: 0 | AH64: 0 | AI64: 0 | AJ64: 0 | AK64: 0 | AL64: 0 | AM64: 0
C65: 근골격계질환 | D65: 0 | E65: 0 | F65: 0 | G65: 0 | H65: 0 | I65: 0 | J65: 0 | K65: 0 | L65: 0 | M65: 0 | N65: 0 | O65: 0 | P65: 0 | Q65: 0 | R65: 0 | S65: 0 | T65: 0 | U65: 0 | V65: 0 | W65: 0 | X65: 0 | Y65: 0 | Z65: 0 | AA65: 0 | AB65: 0 | AC65: 0 | AD65: 0 | AE65: 0 | AF65: 0 | AG65: 0 | AH65: 0 | AI65: 0 | AJ65: 0 | AK65: 0 | AL65: 0 | AM65: 0
B66: 목 포 | C66: 합계 | D66: 46 | E66: 0 | F66: 33 | G66: 0 | H66: 5 | I66: 0 | J66: 6 | K66: 0 | L66: 0 | M66: 0 | N66: 2 | O66: 0 | P66: 41 | Q66: 0 | R66: 27 | S66: 0 | T66: 7 | U66: 0 | V66: 7 | W66: 0 | X66: 0 | Y66: 0 | Z66: 0 | AA66: 0 | AB66: 33 | AC66: 0 | AD66: 25 | AE66: 0 | AF66: 4 | AG66: 0 | AH66: 4 | AI66: 0 | AJ66: 0 | AK66: 0 | AL66: 0 | AM66: 0
C67: 떨어짐(높이가 있는 곳에서 사람이 떨어짐) | D67: 1 | E67: 0 | F67: 1 | G67: 0 | H67: 0 | I67: 0 | J67: 0 | K67: 0 | L67: 0 | M67: 0 | N67: 0 | O67: 0 | P67: 2 | Q67: 0 | R67: 0 | S67: 0 | T67: 2 | U67: 0 | V67: 0 | W67: 0 | X67: 0 | Y67: 0 | Z67: 0 | AA67: 0 | AB67: 1 | AC67: 0 | AD67: 0 | AE67: 0 | AF67: 1 | AG67: 0 | AH67: 0 | AI67: 0 | AJ67: 0 | AK67: 0 | AL67: 0 | AM67: 0
C68: 넘어짐(사람이 미끄러지거나 넘어짐) | D68: 17 | E68: 0 | F68: 12 | G68: 0 | H68: 3 | I68: 0 | J68: 1 | K68: 0 | L68: 0 | M68: 0 | N68: 1 | O68: 0 | P68: 11 | Q68: 0 | R68: 7 | S68: 0 | T68: 3 | U68: 0 | V68: 1 | W68: 0 | X68: 0 | Y68: 0 | Z68: 0 | AA68: 0 | AB68: 13 | AC68: 0 | AD68: 10 | AE68: 0 | AF68: 1 | AG68: 0 | AH68: 2 | AI68: 0 | AJ68: 0 | AK68: 0 | AL68: 0 | AM68: 0
C69: 부딪힘(물체에 부딪힘) | D69: 1 | E69: 0 | F69: 1 | G69: 0 | H69: 0 | I69: 0 | J69: 0 | K69: 0 | L69: 0 | M69: 0 | N69: 0 | O69: 0 | P69: 1 | Q69: 0 | R69: 1 | S69: 0 | T69: 0 | U69: 0 | V69: 0 | W69: 0 | X69: 0 | Y69: 0 | Z69: 0 | AA69: 0 | AB69: 1 | AC69: 0 | AD69: 1 | AE69: 0 | AF69: 0 | AG69: 0 | AH69: 0 | AI69: 0 | AJ69: 0 | AK69: 0 | AL69: 0 | AM69: 0
C70: 물체에 맞음(날아오거나 떨어진 물체에 맞음) | D70: =SUM(F70,H70,J70,L70,N70) -> 1 | E70: =SUM(G70,I70,K70,M70,O70) -> 0 | F70: 1 | G70: 0 | H70: 0 | I70: 0 | J70: 0 | K70: 0 | L70: 0 | M70: 0 | N70: 0 | O70: 0 | P70: =SUM(R70,T70,V70,X70,Z70) -> 1 | Q70: =SUM(S70,U70,W70,Y70,AA70) -> 0 | R70: 1 | S70: 0 | T70: 0 | U70: 0 | V70: 0 | W70: 0 | X70: 0 | Y70: 0 | Z70: 0 | AA70: 0 | AB70: =SUM(AD70,AF70,AH70,AJ70,AL70) -> 2 | AC70: =SUM(AE70,AG70,AI70,AK70,AM70) -> 0 | AD70: 1 | AE70: 0 | AF70: 1 | AG70: 0 | AH70: 0 | AI70: 0 | AJ70: 0 | AK70: 0 | AL70: 0 | AM70: 0
C71: 끼임(기계설비에 끼이거나 감김) | D71: 1 | E71: 0 | F71: 0 | G71: 0 | H71: 1 | I71: 0 | J71: 0 | K71: 0 | L71: 0 | M71: 0 | N71: 0 | O71: 0 | P71: 4 | Q71: 0 | R71: 4 | S71: 0 | T71: 0 | U71: 0 | V71: 0 | W71: 0 | X71: 0 | Y71: 0 | Z71: 0 | AA71: 0 | AB71: 2 | AC71: 0 | AD71: 1 | AE71: 0 | AF71: 1 | AG71: 0 | AH71: 0 | AI71: 0 | AJ71: 0 | AK71: 0 | AL71: 0 | AM71: 0
C72: 절단·베임·찔림 | D72: 8 | E72: 0 | F72: 3 | G72: 0 | H72: 0 | I72: 0 | J72: 5 | K72: 0 | L72: 0 | M72: 0 | N72: 0 | O72: 0 | P72: 10 | Q72: 0 | R72: 7 | S72: 0 | T72: 1 | U72: 0 | V72: 2 | W72: 0 | X72: 0 | Y72: 0 | Z72: 0 | AA72: 0 | AB72: 3 | AC72: 0 | AD72: 2 | AE72: 0 | AF72: 0 | AG72: 0 | AH72: 1 | AI72: 0 | AJ72: 0 | AK72: 0 | AL72: 0 | AM72: 0
C73: 불균형 및 무리한 동작 | D73: 4 | E73: 0 | F73: 3 | G73: 0 | H73: 0 | I73: 0 | J73: 0 | K73: 0 | L73: 0 | M73: 0 | N73: 1 | O73: 0 | P73: 0 | Q73: 0 | R73: 0 | S73: 0 | T73: 0 | U73: 0 | V73: 0 | W73: 0 | X73: 0 | Y73: 0 | Z73: 0 | AA73: 0 | AB73: 3 | AC73: 0 | AD73: 2 | AE73: 0 | AF73: 0 | AG73: 0 | AH73: 1 | AI73: 0 | AJ73: 0 | AK73: 0 | AL73: 0 | AM73: 0
C74: 이상온도 접촉 | D74: 6 | E74: 0 | F74: 5 | G74: 0 | H74: 1 | I74: 0 | J74: 0 | K74: 0 | L74: 0 | M74: 0 | N74: 0 | O74: 0 | P74: 5 | Q74: 0 | R74: 3 | S74: 0 | T74: 1 | U74: 0 | V74: 1 | W74: 0 | X74: 0 | Y74: 0 | Z74: 0 | AA74: 0 | AB74: 3 | AC74: 0 | AD74: 3 | AE74: 0 | AF74: 0 | AG74: 0 | AH74: 0 | AI74: 0 | AJ74: 0 | AK74: 0 | AL74: 0 | AM74: 0
C75: 화학물질누출·접촉 | D75: 0 | E75: 0 | F75: 0 | G75: 0 | H75: 0 | I75: 0 | J75: 0 | K75: 0 | L75: 0 | M75: 0 | N75: 0 | O75: 0 | P75: 0 | Q75: 0 | R75: 0 | S75: 0 | T75: 0 | U75: 0 | V75: 0 | W75: 0 | X75: 0 | Y75: 0 | Z75: 0 | AA75: 0 | AB75: 1 | AC75: 0 | AD75: 1 | AE75: 0 | AF75: 0 | AG75: 0 | AH75: 0 | AI75: 0 | AJ75: 0 | AK75: 0 | AL75: 0 | AM75: 0
C76: 사업장외 교통사고 | D76: 6 | E76: 0 | F76: 6 | G76: 0 | H76: 0 | I76: 0 | J76: 0 | K76: 0 | L76: 0 | M76: 0 | N76: 0 | O76: 0 | P76: 7 | Q76: 0 | R76: 4 | S76: 0 | T76: 0 | U76: 0 | V76: 3 | W76: 0 | X76: 0 | Y76: 0 | Z76: 0 | AA76: 0 | AB76: 3 | AC76: 0 | AD76: 3 | AE76: 0 | AF76: 0 | AG76: 0 | AH76: 0 | AI76: 0 | AJ76: 0 | AK76: 0 | AL76: 0 | AM76: 0
C77: 체육행사 등의 사고 | D77: 1 | E77: 0 | F77: 1 | G77: 0 | H77: 0 | I77: 0 | J77: 0 | K77: 0 | L77: 0 | M77: 0 | N77: 0 | O77: 0 | P77: 0 | Q77: 0 | R77: 0 | S77: 0 | T77: 0 | U77: 0 | V77: 0 | W77: 0 | X77: 0 | Y77: 0 | Z77: 0 | AA77: 0 | AB77: 0 | AC77: 0 | AD77: 0 | AE77: 0 | AF77: 0 | AG77: 0 | AH77: 0 | AI77: 0 | AJ77: 0 | AK77: 0 | AL77: 0 | AM77: 0
C78: 동물상해 | D78: 0 | E78: 0 | F78: 0 | G78: 0 | H78: 0 | I78: 0 | J78: 0 | K78: 0 | L78: 0 | M78: 0 | N78: 0 | O78: 0 | P78: 0 | Q78: 0 | R78: 0 | S78: 0 | T78: 0 | U78: 0 | V78: 0 | W78: 0 | X78: 0 | Y78: 0 | Z78: 0 | AA78: 0 | AB78: 1 | AC78: 0 | AD78: 1 | AE78: 0 | AF78: 0 | AG78: 0 | AH78: 0 | AI78: 0 | AJ78: 0 | AK78: 0 | AL78: 0 | AM78: 0
C79: 뇌심혈관질환 | D79: 0 | E79: 0 | F79: 0 | G79: 0 | H79: 0 | I79: 0 | J79: 0 | K79: 0 | L79: 0 | M79: 0 | N79: 0 | O79: 0 | P79: 0 | Q79: 0 | R79: 0 | S79: 0 | T79: 0 | U79: 0 | V79: 0 | W79: 0 | X79: 0 | Y79: 0 | Z79: 0 | AA79: 0 | AB79: 0 | AC79: 0 | AD79: 0 | AE79: 0 | AF79: 0 | AG79: 0 | AH79: 0 | AI79: 0 | AJ79: 0 | AK79: 0 | AL79: 0 | AM79: 0
C80: 근골격계질환 | D80: 0 | E80: 0 | F80: 0 | G80: 0 | H80: 0 | I80: 0 | J80: 0 | K80: 0 | L80: 0 | M80: 0 | N80: 0 | O80: 0 | P80: 0 | Q80: 0 | R80: 0 | S80: 0 | T80: 0 | U80: 0 | V80: 0 | W80: 0 | X80: 0 | Y80: 0 | Z80: 0 | AA80: 0 | AB80: 0 | AC80: 0 | AD80: 0 | AE80: 0 | AF80: 0 | AG80: 0 | AH80: 0 | AI80: 0 | AJ80: 0 | AK80: 0 | AL80: 0 | AM80: 0
B81: 여 수 | C81: 합계 | D81: 98 | E81: 0 | F81: 58 | G81: 0 | H81: 20 | I81: 0 | J81: 13 | K81: 0 | L81: 4 | M81: 0 | N81: 3 | O81: 0 | P81: 83 | Q81: 0 | R81: 50 | S81: 0 | T81: 15 | U81: 0 | V81: 13 | W81: 0 | X81: 1 | Y81: 0 | Z81: 4 | AA81: 0 | AB81: 61 | AC81: 1 | AD81: 39 | AE81: 1 | AF81: 11 | AG81: 0 | AH81: 10 | AI81: 0 | AJ81: 0 | AK81: 0 | AL81: 1 | AM81: 0
C82: 떨어짐(높이가 있는 곳에서 사람이 떨어짐) | D82: 2 | E82: 0 | F82: 2 | G82: 0 | H82: 0 | I82: 0 | J82: 0 | K82: 0 | L82: 0 | M82: 0 | N82: 0 | O82: 0 | P82: 3 | Q82: 0 | R82: 1 | S82: 0 | T82: 0 | U82: 0 | V82: 1 | W82: 0 | X82: 0 | Y82: 0 | Z82: 1 | AA82: 0 | AB82: 1 | AC82: 0 | AD82: 0 | AE82: 0 | AF82: 1 | AG82: 0 | AH82: 0 | AI82: 0 | AJ82: 0 | AK82: 0 | AL82: 0 | AM82: 0
C83: 넘어짐(사람이 미끄러지거나 넘어짐) | D83: 32 | E83: 0 | F83: 21 | G83: 0 | H83: 4 | I83: 0 | J83: 3 | K83: 0 | L83: 3 | M83: 0 | N83: 1 | O83: 0 | P83: 38 | Q83: 0 | R83: 23 | S83: 0 | T83: 7 | U83: 0 | V83: 7 | W83: 0 | X83: 1 | Y83: 0 | Z83: 0 | AA83: 0 | AB83: 20 | AC83: 0 | AD83: 13 | AE83: 0 | AF83: 3 | AG83: 0 | AH83: 4 | AI83: 0 | AJ83: 0 | AK83: 0 | AL83: 0 | AM83: 0
C84: 부딪힘(물체에 부딪힘) | D84: 7 | E84: 0 | F84: 4 | G84: 0 | H84: 1 | I84: 0 | J84: 2 | K84: 0 | L84: 0 | M84: 0 | N84: 0 | O84: 0 | P84: 1 | Q84: 0 | R84: 0 | S84: 0 | T84: 1 | U84: 0 | V84: 0 | W84: 0 | X84: 0 | Y84: 0 | Z84: 0 | AA84: 0 | AB84: 0 | AC84: 0 | AD84: 0 | AE84: 0 | AF84: 0 | AG84: 0 | AH84: 0 | AI84: 0 | AJ84: 0 | AK84: 0 | AL84: 0 | AM84: 0
C85: 물체에 맞음(날아오거나 떨어진 물체에 맞음) | D85: 3 | E85: 0 | F85: 1 | G85: 0 | H85: 1 | I85: 0 | J85: 0 | K85: 0 | L85: 0 | M85: 0 | N85: 1 | O85: 0 | P85: 1 | Q85: 0 | R85: 0 | S85: 0 | T85: 1 | U85: 0 | V85: 0 | W85: 0 | X85: 0 | Y85: 0 | Z85: 0 | AA85: 0 | AB85: 1 | AC85: 0 | AD85: 1 | AE85: 0 | AF85: 0 | AG85: 0 | AH85: 0 | AI85: 0 | AJ85: 0 | AK85: 0 | AL85: 0 | AM85: 0
C86: 무너짐(건축물이나 쌓여진 물체가 무너짐) | D86: 0 | E86: 0 | F86: 0 | G86: 0 | H86: 0 | I86: 0 | J86: 0 | K86: 0 | L86: 0 | M86: 0 | N86: 0 | O86: 0 | P86: 0 | Q86: 0 | R86: 0 | S86: 0 | T86: 0 | U86: 0 | V86: 0 | W86: 0 | X86: 0 | Y86: 0 | Z86: 0 | AA86: 0 | AB86: 1 | AC86: 0 | AD86: 1 | AE86: 0 | AF86: 0 | AG86: 0 | AH86: 0 | AI86: 0 | AJ86: 0 | AK86: 0 | AL86: 0 | AM86: 0
C87: 끼임(기계설비에 끼이거나 감김) | D87: 9 | E87: 0 | F87: 7 | G87: 0 | H87: 0 | I87: 0 | J87: 2 | K87: 0 | L87: 0 | M87: 0 | N87: 0 | O87: 0 | P87: 5 | Q87: 0 | R87: 2 | S87: 0 | T87: 1 | U87: 0 | V87: 1 | W87: 0 | X87: 0 | Y87: 0 | Z87: 1 | AA87: 0 | AB87: 3 | AC87: 0 | AD87: 2 | AE87: 0 | AF87: 1 | AG87: 0 | AH87: 0 | AI87: 0 | AJ87: 0 | AK87: 0 | AL87: 0 | AM87: 0
C88: 절단·베임·찔림 | D88: 9 | E88: 0 | F88: 6 | G88: 0 | H88: 2 | I88: 0 | J88: 0 | K88: 0 | L88: 0 | M88: 0 | N88: 1 | O88: 0 | P88: 7 | Q88: 0 | R88: 2 | S88: 0 | T88: 1 | U88: 0 | V88: 3 | W88: 0 | X88: 0 | Y88: 0 | Z88: 1 | AA88: 0 | AB88: 4 | AC88: 0 | AD88: 4 | AE88: 0 | AF88: 0 | AG88: 0 | AH88: 0 | AI88: 0 | AJ88: 0 | AK88: 0 | AL88: 0 | AM88: 0
C89: 감전 | D89: 0 | E89: 0 | F89: 0 | G89: 0 | H89: 0 | I89: 0 | J89: 0 | K89: 0 | L89: 0 | M89: 0 | N89: 0 | O89: 0 | P89: 0 | Q89: 0 | R89: 0 | S89: 0 | T89: 0 | U89: 0 | V89: 0 | W89: 0 | X89: 0 | Y89: 0 | Z89: 0 | AA89: 0 | AB89: 1 | AC89: 0 | AD89: 0 | AE89: 0 | AF89: 1 | AG89: 0 | AH89: 0 | AI89: 0 | AJ89: 0 | AK89: 0 | AL89: 0 | AM89: 0
C90: 폭발·파열 | D90: 0 | E90: 0 | F90: 0 | G90: 0 | H90: 0 | I90: 0 | J90: 0 | K90: 0 | L90: 0 | M90: 0 | N90: 0 | O90: 0 | P90: 0 | Q90: 0 | R90: 0 | S90: 0 | T90: 0 | U90: 0 | V90: 0 | W90: 0 | X90: 0 | Y90: 0 | Z90: 0 | AA90: 0 | AB90: 1 | AC90: 0 | AD90: 1 | AE90: 0 | AF90: 0 | AG90: 0 | AH90: 0 | AI90: 0 | AJ90: 0 | AK90: 0 | AL90: 0 | AM90: 0
C91: 불균형 및 무리한 동작 | D91: 4 | E91: 0 | F91: 2 | G91: 0 | H91: 1 | I91: 0 | J91: 1 | K91: 0 | L91: 0 | M91: 0 | N91: 0 | O91: 0 | P91: 3 | Q91: 0 | R91: 2 | S91: 0 | T91: 0 | U91: 0 | V91: 1 | W91: 0 | X91: 0 | Y91: 0 | Z91: 0 | AA91: 0 | AB91: 4 | AC91: 0 | AD91: 3 | AE91: 0 | AF91: 0 | AG91: 0 | AH91: 1 | AI91: 0 | AJ91: 0 | AK91: 0 | AL91: 0 | AM91: 0
C92: 이상온도 접촉 | D92: 19 | E92: 0 | F92: 9 | G92: 0 | H92: 5 | I92: 0 | J92: 4 | K92: 0 | L92: 1 | M92: 0 | N92: 0 | O92: 0 | P92: 9 | Q92: 0 | R92: 6 | S92: 0 | T92: 3 | U92: 0 | V92: 0 | W92: 0 | X92: 0 | Y92: 0 | Z92: 0 | AA92: 0 | AB92: 11 | AC92: 0 | AD92: 4 | AE92: 0 | AF92: 3 | AG92: 0 | AH92: 4 | AI92: 0 | AJ92: 0 | AK92: 0 | AL92: 0 | AM92: 0
C93: 사업장외 교통사고 | D93: 12 | E93: 0 | F93: 6 | G93: 0 | H93: 5 | I93: 0 | J93: 1 | K93: 0 | L93: 0 | M93: 0 | N93: 0 | O93: 0 | P93: 16 | Q93: 0 | R93: 14 | S93: 0 | T93: 1 | U93: 0 | V93: 0 | W93: 0 | X93: 0 | Y93: 0 | Z93: 1 | AA93: 0 | AB93: 13 | AC93: 1 | AD93: 10 | AE93: 1 | AF93: 2 | AG93: 0 | AH93: 1 | AI93: 0 | AJ93: 0 | AK93: 0 | AL93: 0 | AM93: 0
C94: 체육행사 등의 사고 | D94: 1 | E94: 0 | F94: 0 | G94: 0 | H94: 1 | I94: 0 | J94: 0 | K94: 0 | L94: 0 | M94: 0 | N94: 0 | O94: 0 | P94: 0 | Q94: 0 | R94: 0 | S94: 0 | T94: 0 | U94: 0 | V94: 0 | W94: 0 | X94: 0 | Y94: 0 | Z94: 0 | AA94: 0 | AB94: 1 | AC94: 0 | AD94: 0 | AE94: 0 | AF94: 0 | AG94: 0 | AH94: 0 | AI94: 0 | AJ94: 0 | AK94: 0 | AL94: 1 | AM94: 0
C95: 뇌심혈관질환 | D95: 0 | E95: 0 | F95: 0 | G95: 0 | H95: 0 | I95: 0 | J95: 0 | K95: 0 | L95: 0 | M95: 0 | N95: 0 | O95: 0 | P95: 0 | Q95: 0 | R95: 0 | S95: 0 | T95: 0 | U95: 0 | V95: 0 | W95: 0 | X95: 0 | Y95: 0 | Z95: 0 | AA95: 0 | AB95: 0 | AC95: 0 | AD95: 0 | AE95: 0 | AF95: 0 | AG95: 0 | AH95: 0 | AI95: 0 | AJ95: 0 | AK95: 0 | AL95: 0 | AM95: 0
C96: 근골격계질환 | D96: 0 | E96: 0 | F96: 0 | G96: 0 | H96: 0 | I96: 0 | J96: 0 | K96: 0 | L96: 0 | M96: 0 | N96: 0 | O96: 0 | P96: 0 | Q96: 0 | R96: 0 | S96: 0 | T96: 0 | U96: 0 | V96: 0 | W96: 0 | X96: 0 | Y96: 0 | Z96: 0 | AA96: 0 | AB96: 0 | AC96: 0 | AD96: 0 | AE96: 0 | AF96: 0 | AG96: 0 | AH96: 0 | AI96: 0 | AJ96: 0 | AK96: 0 | AL96: 0 | AM96: 0
C97: 작업관련성질환 기타 | D97: 0 | E97: 0 | F97: 0 | G97: 0 | H97: 0 | I97: 0 | J97: 0 | K97: 0 | L97: 0 | M97: 0 | N97: 0 | O97: 0 | P97: 0 | Q97: 0 | R97: 0 | S97: 0 | T97: 0 | U97: 0 | V97: 0 | W97: 0 | X97: 0 | Y97: 0 | Z97: 0 | AA97: 0 | AB97: 0 | AC97: 0 | AD97: 0 | AE97: 0 | AF97: 0 | AG97: 0 | AH97: 0 | AI97: 0 | AJ97: 0 | AK97: 0 | AL97: 0 | AM97: 0
B98: 제 주 | C98: 합계 | D98: 141 | E98: 2 | F98: 61 | G98: 2 | H98: 40 | I98: 0 | J98: 20 | K98: 0 | L98: 11 | M98: 0 | N98: 9 | O98: 0 | P98: 99 | Q98: 0 | R98: 41 | S98: 0 | T98: 25 | U98: 0 | V98: 16 | W98: 0 | X98: 6 | Y98: 0 | Z98: 11 | AA98: 0 | AB98: 84 | AC98: 0 | AD98: 42 | AE98: 0 | AF98: 17 | AG98: 0 | AH98: 13 | AI98: 0 | AJ98: 7 | AK98: 0 | AL98: 5 | AM98: 0
C99: 떨어짐(높이가 있는 곳에서 사람이 떨어짐) | D99: 4 | E99: 0 | F99: 2 | G99: 0 | H99: 1 | I99: 0 | J99: 0 | K99: 0 | L99: 1 | M99: 0 | N99: 0 | O99: 0 | P99: 5 | Q99: 0 | R99: 3 | S99: 0 | T99: 2 | U99: 0 | V99: 0 | W99: 0 | X99: 0 | Y99: 0 | Z99: 0 | AA99: 0 | AB99: 1 | AC99: 0 | AD99: 0 | AE99: 0 | AF99: 0 | AG99: 0 | AH99: 1 | AI99: 0 | AJ99: 0 | AK99: 0 | AL99: 0 | AM99: 0
C100: 넘어짐(사람이 미끄러지거나 넘어짐) | D100: 50 | E100: 0 | F100: 19 | G100: 0 | H100: 16 | I100: 0 | J100: 9 | K100: 0 | L100: 2 | M100: 0 | N100: 4 | O100: 0 | P100: 27 | Q100: 0 | R100: 7 | S100: 0 | T100: 6 | U100: 0 | V100: 8 | W100: 0 | X100: 2 | Y100: 0 | Z100: 4 | AA100: 0 | AB100: 18 | AC100: 0 | AD100: 11 | AE100: 0 | AF100: 3 | AG100: 0 | AH100: 1 | AI100: 0 | AJ100: 2 | AK100: 0 | AL100: 1 | AM100: 0
C101: 부딪힘(물체에 부딪힘) | D101: 3 | E101: 0 | F101: 1 | G101: 0 | H101: 1 | I101: 0 | J101: 0 | K101: 0 | L101: 1 | M101: 0 | N101: 0 | O101: 0 | P101: 5 | Q101: 0 | R101: 2 | S101: 0 | T101: 1 | U101: 0 | V101: 2 | W101: 0 | X101: 0 | Y101: 0 | Z101: 0 | AA101: 0 | AB101: 3 | AC101: 0 | AD101: 3 | AE101: 0 | AF101: 0 | AG101: 0 | AH101: 0 | AI101: 0 | AJ101: 0 | AK101: 0 | AL101: 0 | AM101: 0
C102: 물체에 맞음(날아오거나 떨어진 물체에 맞음) | D102: 4 | E102: 0 | F102: 3 | G102: 0 | H102: 0 | I102: 0 | J102: 0 | K102: 0 | L102: 1 | M102: 0 | N102: 0 | O102: 0 | P102: 4 | Q102: 0 | R102: 2 | S102: 0 | T102: 1 | U102: 0 | V102: 1 | W102: 0 | X102: 0 | Y102: 0 | Z102: 0 | AA102: 0 | AB102: 3 | AC102: 0 | AD102: 2 | AE102: 0 | AF102: 0 | AG102: 0 | AH102: 0 | AI102: 0 | AJ102: 1 | AK102: 0 | AL102: 0 | AM102: 0
C103: 끼임(기계설비에 끼이거나 감김) | D103: 12 | E103: 0 | F103: 8 | G103: 0 | H103: 2 | I103: 0 | J103: 1 | K103: 0 | L103: 1 | M103: 0 | N103: 0 | O103: 0 | P103: 8 | Q103: 0 | R103: 4 | S103: 0 | T103: 3 | U103: 0 | V103: 1 | W103: 0 | X103: 0 | Y103: 0 | Z103: 0 | AA103: 0 | AB103: 4 | AC103: 0 | AD103: 1 | AE103: 0 | AF103: 0 | AG103: 0 | AH103: 1 | AI103: 0 | AJ103: 1 | AK103: 0 | AL103: 1 | AM103: 0
C104: 절단·베임·찔림 | D104: 24 | E104: 0 | F104: 11 | G104: 0 | H104: 4 | I104: 0 | J104: 5 | K104: 0 | L104: 2 | M104: 0 | N104: 2 | O104: 0 | P104: 19 | Q104: 0 | R104: 7 | S104: 0 | T104: 5 | U104: 0 | V104: 2 | W104: 0 | X104: 3 | Y104: 0 | Z104: 2 | AA104: 0 | AB104: 28 | AC104: 0 | AD104: 11 | AE104: 0 | AF104: 6 | AG104: 0 | AH104: 6 | AI104: 0 | AJ104: 2 | AK104: 0 | AL104: 3 | AM104: 0
C105: 불균형 및 무리한 동작 | D105: 7 | E105: 0 | F105: 3 | G105: 0 | H105: 3 | I105: 0 | J105: 0 | K105: 0 | L105: 1 | M105: 0 | N105: 0 | O105: 0 | P105: 3 | Q105: 0 | R105: 2 | S105: 0 | T105: 1 | U105: 0 | V105: 0 | W105: 0 | X105: 0 | Y105: 0 | Z105: 0 | AA105: 0 | AB105: 3 | AC105: 0 | AD105: 2 | AE105: 0 | AF105: 1 | AG105: 0 | AH105: 0 | AI105: 0 | AJ105: 0 | AK105: 0 | AL105: 0 | AM105: 0
C106: 이상온도 접촉 | D106: 14 | E106: 0 | F106: 4 | G106: 0 | H106: 6 | I106: 0 | J106: 3 | K106: 0 | L106: 1 | M106: 0 | N106: 0 | O106: 0 | P106: 16 | Q106: 0 | R106: 9 | S106: 0 | T106: 2 | U106: 0 | V106: 2 | W106: 0 | X106: 1 | Y106: 0 | Z106: 2 | AA106: 0 | AB106: 15 | AC106: 0 | AD106: 9 | AE106: 0 | AF106: 4 | AG106: 0 | AH106: 1 | AI106: 0 | AJ106: 1 | AK106: 0 | AL106: 0 | AM106: 0
C107: 화학물질누출·접촉 | D107: 1 | E107: 0 | F107: 0 | G107: 0 | H107: 0 | I107: 0 | J107: 1 | K107: 0 | L107: 0 | M107: 0 | N107: 0 | O107: 0 | P107: 1 | Q107: 0 | R107: 0 | S107: 0 | T107: 0 | U107: 0 | V107: 0 | W107: 0 | X107: 0 | Y107: 0 | Z107: 1 | AA107: 0 | AB107: 0 | AC107: 0 | AD107: 0 | AE107: 0 | AF107: 0 | AG107: 0 | AH107: 0 | AI107: 0 | AJ107: 0 | AK107: 0 | AL107: 0 | AM107: 0
C108: 사업장외 교통사고 | D108: 16 | E108: 2 | F108: 8 | G108: 2 | H108: 6 | I108: 0 | J108: 0 | K108: 0 | L108: 0 | M108: 0 | N108: 2 | O108: 0 | P108: 7 | Q108: 0 | R108: 4 | S108: 0 | T108: 1 | U108: 0 | V108: 0 | W108: 0 | X108: 0 | Y108: 0 | Z108: 2 | AA108: 0 | AB108: 8 | AC108: 0 | AD108: 3 | AE108: 0 | AF108: 2 | AG108: 0 | AH108: 3 | AI108: 0 | AJ108: 0 | AK108: 0 | AL108: 0 | AM108: 0
C109: 체육행사 등의 사고 | D109: 3 | E109: 0 | F109: 1 | G109: 0 | H109: 0 | I109: 0 | J109: 1 | K109: 0 | L109: 1 | M109: 0 | N109: 0 | O109: 0 | P109: 1 | Q109: 0 | R109: 1 | S109: 0 | T109: 0 | U109: 0 | V109: 0 | W109: 0 | X109: 0 | Y109: 0 | Z109: 0 | AA109: 0 | AB109: 0 | AC109: 0 | AD109: 0 | AE109: 0 | AF109: 0 | AG109: 0 | AH109: 0 | AI109: 0 | AJ109: 0 | AK109: 0 | AL109: 0 | AM109: 0
C110: 폭력행위 | D110: 1 | E110: 0 | F110: 0 | G110: 0 | H110: 1 | I110: 0 | J110: 0 | K110: 0 | L110: 0 | M110: 0 | N110: 0 | O110: 0 | P110: 3 | Q110: 0 | R110: 0 | S110: 0 | T110: 3 | U110: 0 | V110: 0 | W110: 0 | X110: 0 | Y110: 0 | Z110: 0 | AA110: 0 | AB110: 0 | AC110: 0 | AD110: 0 | AE110: 0 | AF110: 0 | AG110: 0 | AH110: 0 | AI110: 0 | AJ110: 0 | AK110: 0 | AL110: 0 | AM110: 0
C111: 동물상해 | D111: 1 | E111: 0 | F111: 0 | G111: 0 | H111: 0 | I111: 0 | J111: 0 | K111: 0 | L111: 0 | M111: 0 | N111: 1 | O111: 0 | P111: 0 | Q111: 0 | R111: 0 | S111: 0 | T111: 0 | U111: 0 | V111: 0 | W111: 0 | X111: 0 | Y111: 0 | Z111: 0 | AA111: 0 | AB111: 0 | AC111: 0 | AD111: 0 | AE111: 0 | AF111: 0 | AG111: 0 | AH111: 0 | AI111: 0 | AJ111: 0 | AK111: 0 | AL111: 0 | AM111: 0
C112: 기타 | D112: 1 | E112: 0 | F112: 1 | G112: 0 | H112: 0 | I112: 0 | J112: 0 | K112: 0 | L112: 0 | M112: 0 | N112: 0 | O112: 0 | P112: 0 | Q112: 0 | R112: 0 | S112: 0 | T112: 0 | U112: 0 | V112: 0 | W112: 0 | X112: 0 | Y112: 0 | Z112: 0 | AA112: 0 | AB112: 1 | AC112: 0 | AD112: 0 | AE112: 0 | AF112: 1 | AG112: 0 | AH112: 0 | AI112: 0 | AJ112: 0 | AK112: 0 | AL112: 0 | AM112: 0
C113: 화학적인자 | D113: 0 | E113: 0 | F113: 0 | G113: 0 | H113: 0 | I113: 0 | J113: 0 | K113: 0 | L113: 0 | M113: 0 | N113: 0 | O113: 0 | P113: 0 | Q113: 0 | R113: 0 | S113: 0 | T113: 0 | U113: 0 | V113: 0 | W113: 0 | X113: 0 | Y113: 0 | Z113: 0 | AA113: 0 | AB113: 0 | AC113: 0 | AD113: 0 | AE113: 0 | AF113: 0 | AG113: 0 | AH113: 0 | AI113: 0 | AJ113: 0 | AK113: 0 | AL113: 0 | AM113: 0
C114: 생물학적인자 | D114: 0 | E114: 0 | F114: 0 | G114: 0 | H114: 0 | I114: 0 | J114: 0 | K114: 0 | L114: 0 | M114: 0 | N114: 0 | O114: 0 | P114: 0 | Q114: 0 | R114: 0 | S114: 0 | T114: 0 | U114: 0 | V114: 0 | W114: 0 | X114: 0 | Y114: 0 | Z114: 0 | AA114: 0 | AB114: 0 | AC114: 0 | AD114: 0 | AE114: 0 | AF114: 0 | AG114: 0 | AH114: 0 | AI114: 0 | AJ114: 0 | AK114: 0 | AL114: 0 | AM114: 0
C115: 뇌심혈관질환 | D115: 0 | E115: 0 | F115: 0 | G115: 0 | H115: 0 | I115: 0 | J115: 0 | K115: 0 | L115: 0 | M115: 0 | N115: 0 | O115: 0 | P115: 0 | Q115: 0 | R115: 0 | S115: 0 | T115: 0 | U115: 0 | V115: 0 | W115: 0 | X115: 0 | Y115: 0 | Z115: 0 | AA115: 0 | AB115: 0 | AC115: 0 | AD115: 0 | AE115: 0 | AF115: 0 | AG115: 0 | AH115: 0 | AI115: 0 | AJ115: 0 | AK115: 0 | AL115: 0 | AM115: 0
C116: 근골격계질환 | D116: 0 | E116: 0 | F116: 0 | G116: 0 | H116: 0 | I116: 0 | J116: 0 | K116: 0 | L116: 0 | M116: 0 | N116: 0 | O116: 0 | P116: 0 | Q116: 0 | R116: 0 | S116: 0 | T116: 0 | U116: 0 | V116: 0 | W116: 0 | X116: 0 | Y116: 0 | Z116: 0 | AA116: 0 | AB116: 0 | AC116: 0 | AD116: 0 | AE116: 0 | AF116: 0 | AG116: 0 | AH116: 0 | AI116: 0 | AJ116: 0 | AK116: 0 | AL116: 0 | AM116: 0

Sheet 대전
A1: 업종(소) | B1: 고용지청 | C1: 기준년월 | D1: 2019년 12월 | P1: 2020년 12월 | AB1: 2021년 9월
C2: 규모(소) | D2: 규모별 합계 | F2: 5인 미만 | H2: 5인 ~ 9인 | J2: 10인 ~ 19인 | L2: 20인 ~ 29인 | N2: 30인 ~ 49인 | P2: 규모별 합계 | R2: 5인 미만 | T2: 5인 ~ 9인 | V2: 10인 ~ 19인 | X2: 20인 ~ 29인 | Z2: 30인 ~ 49인 | AB2: 규모별 합계 | AD2: 5인 미만 | AF2: 5인 ~ 9인 | AH2: 10인 ~ 19인 | AJ2: 20인 ~ 29인 | AL2: 30인 ~ 49인
C3: 발생형태(중) | D3: 사고재해자수 합계 | E3: 사고사망자수 합계 | F3: 사고재해자수 | G3: 사고사망자수 | H3: 사고재해자수 | I3: 사고사망자수 | J3: 사고재해자수 | K3: 사고사망자수 | L3: 사고재해자수 | M3: 사고사망자수 | N3: 사고재해자수 | O3: 사고사망자수 | P3: 사고재해자수 합계 | Q3: 사고사망자수 합계 | R3: 사고재해자수 | S3: 사고사망자수 | T3: 사고재해자수 | U3: 사고사망자수 | V3: 사고재해자수 | W3: 사고사망자수 | X3: 사고재해자수 | Y3: 사고사망자수 | Z3: 사고재해자수 | AA3: 사고사망자수 | AB3: 사고재해자수 합계 | AC3: 사고사망자수 합계 | AD3: 사고재해자수 | AE3: 사고사망자수 | AF3: 사고재해자수 | AG3: 사고사망자수 | AH3: 사고재해자수 | AI3: 사고사망자수 | AJ3: 사고재해자수 | AK3: 사고사망자수 | AL3: 사고재해자수 | AM3: 사고사망자수
A4: 음식및숙박업 | B4: 합계 | D4: =SUM(D5,D26,D44,D59,D78,D90) -> 1038 | E4: =SUM(E5,E26,E44,E59,E78,E90) -> 5 | F4: 572 | G4: 3 | H4: 211 | I4: 0 | J4: 152 | K4: 1 | L4: 46 | M4: 0 | N4: 57 | O4: 1 | P4: 922 | Q4: 0 | R4: 488 | S4: 0 | T4: 224 | U4: 0 | V4: 144 | W4: 0 | X4: 38 | Y4: 0 | Z4: 28 | AA4: 0 | AB4: 701 | AC4: 1 | AD4: 373 | AE4: 0 | AF4: 164 | AG4: 0 | AH4: 92 | AI4: 0 | AJ4: 41 | AK4: 1 | AL4: 31 | AM4: 0
B5: 대 전 청 | C5: 합계 | D5: =SUM(F5,H5,J5,L5,N5) -> 465 | E5: =SUM(G5,I5,K5,M5,O5) -> 2 | F5: 254 | G5: 2 | H5: 98 | I5: 0 | J5: 78 | K5: 0 | L5: 18 | M5: 0 | N5: 17 | O5: 0 | P5: =SUM(R5,T5,V5,X5,Z5) -> 454 | Q5: =SUM(S5,U5,W5,Y5,AA5) -> 0 | R5: 233 | S5: 0 | T5: 103 | U5: 0 | V5: 87 | W5: 0 | X5: 15 | Y5: 0 | Z5: 16 | AA5: 0 | AB5: =SUM(AD5,AF5,AH5,AJ5,AL5) -> 309 | AC5: =SUM(AE5,AG5,AI5,AK5,AM5) -> 1 | AD5: 166 | AE5: 0 | AF5: 81 | AG5: 0 | AH5: 38 | AI5: 0 | AJ5: 16 | AK5: 1 | AL5: 8 | AM5: 0
C6: 떨어짐(높이가 있는 곳에서 사람이 떨어짐) | D6: =SUM(F6,H6,J6,L6,N6) -> 4 | E6: =SUM(G6,I6,K6,M6,O6) -> 0 | F6: 0 | G6: 0 | H6: 1 | I6: 0 | J6: 2 | K6: 0 | L6: 1 | M6: 0 | N6: 0 | O6: 0 | P6: =SUM(R6,T6,V6,X6,Z6) -> 7 | Q6: =SUM(S6,U6,W6,Y6,AA6) -> 0 | R6: 5 | S6: 0 | T6: 0 | U6: 0 | V6: 2 | W6: 0 | X6: 0 | Y6: 0 | Z6: 0 | AA6: 0 | AB6: =SUM(AD6,AF6,AH6,AJ6,AL6) -> 3 | AC6: =SUM(AE6,AG6,AI6,AK6,AM6) -> 0 | AD6: 3 | AE6: 0 | AF6: 0 | AG6: 0 | AH6: 0 | AI6: 0 | AJ6: 0 | AK6: 0 | AL6: 0 | AM6: 0
C7: 넘어짐(사람이 미끄러지거나 넘어짐) | D7: 137 | E7: 0 | F7: 78 | G7: 0 | H7: 27 | I7: 0 | J7: 21 | K7: 0 | L7: 4 | M7: 0 | N7: 7 | O7: 0 | P7: 121 | Q7: 0 | R7: 58 | S7: 0 | T7: 30 | U7: 0 | V7: 23 | W7: 0 | X7: 3 | Y7: 0 | Z7: 7 | AA7: 0 | AB7: 83 | AC7: 0 | AD7: 45 | AE7: 0 | AF7: 21 | AG7: 0 | AH7: 11 | AI7: 0 | AJ7: 5 | AK7: 0 | AL7: 1 | AM7: 0
C8: 깔림·뒤집힘(물체의 쓰러짐이나 뒤집힘) | D8: 5 | E8: 0 | F8: 3 | G8: 0 | H8: 1 | I8: 0 | J8: 1 | K8: 0 | L8: 0 | M8: 0 | N8: 0 | O8: 0 | P8: 3 | Q8: 0 | R8: 0 | S8: 0 | T8: 3 | U8: 0 | V8: 0 | W8: 0 | X8: 0 | Y8: 0 | Z8: 0 | AA8: 0 | AB8: 0 | AC8: 0 | AD8: 0 | AE8: 0 | AF8: 0 | AG8: 0 | AH8: 0 | AI8: 0 | AJ8: 0 | AK8: 0 | AL8: 0 | AM8: 0
C9: 부딪힘(물체에 부딪힘) | D9: 20 | E9: 0 | F9: 13 | G9: 0 | H9: 3 | I9: 0 | J9: 3 | K9: 0 | L9: 0 | M9: 0 | N9: 1 | O9: 0 | P9: 17 | Q9: 0 | R9: 10 | S9: 0 | T9: 3 | U9: 0 | V9: 2 | W9: 0 | X9: 1 | Y9: 0 | Z9: 1 | AA9: 0 | AB9: 11 | AC9: 0 | AD9: 8 | AE9: 0 | AF9: 2 | AG9: 0 | AH9: 0 | AI9: 0 | AJ9: 0 | AK9: 0 | AL9: 1 | AM9: 0
C10: 물체에 맞음(날아오거나 떨어진 물체에 맞음) | D10: 15 | E10: 0 | F10: 6 | G10: 0 | H10: 4 | I10: 0 | J10: 3 | K10: 0 | L10: 1 | M10: 0 | N10: 1 | O10: 0 | P10: 8 | Q10: 0 | R10: 5 | S10: 0 | T10: 2 | U10: 0 | V10: 0 | W10: 0 | X10: 1 | Y10: 0 | Z10: 0 | AA10: 0 | AB10: 9 | AC10: 0 | AD10: 2 | AE10: 0 | AF10: 4 | AG10: 0 | AH10: 2 | AI10: 0 | AJ10: 1 | AK10: 0 | AL10: 0 | AM10: 0
C11: 끼임(기계설비에 끼이거나 감김) | D11: 32 | E11: 0 | F11: 17 | G11: 0 | H11: 8 | I11: 0 | J11: 5 | K11: 0 | L11: 2 | M11: 0 | N11: 0 | O11: 0 | P11: 33 | Q11: 0 | R11: 17 | S11: 0 | T11: 9 | U11: 0 | V11: 5 | W11: 0 | X11: 2 | Y11: 0 | Z11: 0 | AA11: 0 | AB11: 19 | AC11: 0 | AD11: 12 | AE11: 0 | AF11: 3 | AG11: 0 | AH11: 3 | AI11: 0 | AJ11: 1 | AK11: 0 | AL11: 0 | AM11: 0
C12: 절단·베임·찔림 | D12: 83 | E12: 0 | F12: 36 | G12: 0 | H12: 22 | I12: 0 | J12: 16 | K12: 0 | L12: 6 | M12: 0 | N12: 3 | O12: 0 | P12: 77 | Q12: 0 | R12: 34 | S12: 0 | T12: 13 | U12: 0 | V12: 24 | W12: 0 | X12: 4 | Y12: 0 | Z12: 2 | AA12: 0 | AB12: 41 | AC12: 0 | AD12: 21 | AE12: 0 | AF12: 15 | AG12: 0 | AH12: 5 | AI12: 0 | AJ12: 0 | AK12: 0 | AL12: 0 | AM12: 0
C13: 폭발·파열 | D13: 1 | E13: 0 | F13: 0 | G13: 0 | H13: 0 | I13: 0 | J13: 1 | K13: 0 | L13: 0 | M13: 0 | N13: 0 | O13: 0 | P13: 0 | Q13: 0 | R13: 0 | S13: 0 | T13: 0 | U13: 0 | V13: 0 | W13: 0 | X13: 0 | Y13: 0 | Z13: 0 | AA13: 0 | AB13: 1 | AC13: 0 | AD13: 1 | AE13: 0 | AF13: 0 | AG13: 0 | AH13: 0 | AI13: 0 | AJ13: 0 | AK13: 0 | AL13: 0 | AM13: 0
C14: 화재 | D14: 1 | E14: 0 | F14: 1 | G14: 0 | H14: 0 | I14: 0 | J14: 0 | K14: 0 | L14: 0 | M14: 0 | N14: 0 | O14: 0 | P14: 1 | Q14: 0 | R14: 1 | S14: 0 | T14: 0 | U14: 0 | V14: 0 | W14: 0 | X14: 0 | Y14: 0 | Z14: 0 | AA14: 0 | AB14: 1 | AC14: 0 | AD14: 1 | AE14: 0 | AF14: 0 | AG14: 0 | AH14: 0 | AI14: 0 | AJ14: 0 | AK14: 0 | AL14: 0 | AM14: 0
C15: 불균형 및 무리한 동작 | D15: 10 | E15: 0 | F15: 2 | G15: 0 | H15: 3 | I15: 0 | J15: 3 | K15: 0 | L15: 0 | M15: 0 | N15: 2 | O15: 0 | P15: 24 | Q15: 0 | R15: 12 | S15: 0 | T15: 8 | U15: 0 | V15: 3 | W15: 0 | X15: 1 | Y15: 0 | Z15: 0 | AA15: 0 | AB15: 6 | AC15: 0 | AD15: 2 | AE15: 0 | AF15: 3 | AG15: 0 | AH15: 0 | AI15: 0 | AJ15: 1 | AK15: 0 | AL15: 0 | AM15: 0
C16: 이상온도 접촉 | D16: 96 | E16: 0 | F16: 60 | G16: 0 | H16: 18 | I16: 0 | J16: 15 | K16: 0 | L16: 2 | M16: 0 | N16: 1 | O16: 0 | P16: 102 | Q16: 0 | R16: 53 | S16: 0 | T16: 24 | U16: 0 | V16: 18 | W16: 0 | X16: 3 | Y16: 0 | Z16: 4 | AA16: 0 | AB16: 94 | AC16: 0 | AD16: 48 | AE16: 0 | AF16: 24 | AG16: 0 | AH16: 12 | AI16: 0 | AJ16: 6 | AK16: 0 | AL16: 4 | AM16: 0
C17: 화학물질누출·접촉 | D17: 0 | E17: 0 | F17: 0 | G17: 0 | H17: 0 | I17: 0 | J17: 0 | K17: 0 | L17: 0 | M17: 0 | N17: 0 | O17: 0 | P17: 0 | Q17: 0 | R17: 0 | S17: 0 | T17: 0 | U17: 0 | V17: 0 | W17: 0 | X17: 0 | Y17: 0 | Z17: 0 | AA17: 0 | AB17: 1 | AC17: 0 | AD17: 0 | AE17: 0 | AF17: 1 | AG17: 0 | AH17: 0 | AI17: 0 | AJ17: 0 | AK17: 0 | AL17: 0 | AM17: 0
C18: 사업장외 교통사고 | D18: 60 | E18: 2 | F18: 37 | G18: 2 | H18: 11 | I18: 0 | J18: 8 | K18: 0 | L18: 2 | M18: 0 | N18: 2 | O18: 0 | P18: 58 | Q18: 0 | R18: 37 | S18: 0 | T18: 10 | U18: 0 | V18: 10 | W18: 0 | X18: 0 | Y18: 0 | Z18: 1 | AA18: 0 | AB18: 38 | AC18: 1 | AD18: 21 | AE18: 0 | AF18: 8 | AG18: 0 | AH18: 5 | AI18: 0 | AJ18: 2 | AK18: 1 | AL18: 2 | AM18: 0
C19: 체육행사 등의 사고 | D19: 1 | E19: 0 | F19: 1 | G19: 0 | H19: 0 | I19: 0 | J19: 0 | K19: 0 | L19: 0 | M19: 0 | N19: 0 | O19: 0 | P19: 1 | Q19: 0 | R19: 0 | S19: 0 | T19: 0 | U19: 0 | V19: 0 | W19: 0 | X19: 0 | Y19: 0 | Z19: 1 | AA19: 0 | AB19: 0 | AC19: 0 | AD19: 0 | AE19: 0 | AF19: 0 | AG19: 0 | AH19: 0 | AI19: 0 | AJ19: 0 | AK19: 0 | AL19: 0 | AM19: 0
C20: 폭력행위 | D20: 0 | E20: 0 | F20: 0 | G20: 0 | H20: 0 | I20: 0 | J20: 0 | K20: 0 | L20: 0 | M20: 0 | N20: 0 | O20: 0 | P20: 0 | Q20: 0 | R20: 0 | S20: 0 | T20: 0 | U20: 0 | V20: 0 | W20: 0 | X20: 0 | Y20: 0 | Z20: 0 | AA20: 0 | AB20: 2 | AC20: 0 | AD20: 2 | AE20: 0 | AF20: 0 | AG20: 0 | AH20: 0 | AI20: 0 | AJ20: 0 | AK20: 0 | AL20: 0 | AM20: 0
C21: 동물상해 | D21: 0 | E21: 0 | F21: 0 | G21: 0 | H21: 0 | I21: 0 | J21: 0 | K21: 0 | L21: 0 | M21: 0 | N21: 0 | O21: 0 | P21: 1 | Q21: 0 | R21: 0 | S21: 0 | T21: 1 | U21: 0 | V21: 0 | W21: 0 | X21: 0 | Y21: 0 | Z21: 0 | AA21: 0 | AB21: 0 | AC21: 0 | AD21: 0 | AE21: 0 | AF21: 0 | AG21: 0 | AH21: 0 | AI21: 0 | AJ21: 0 | AK21: 0 | AL21: 0 | AM21: 0
C22: 기타 | D22: 0 | E22: 0 | F22: 0 | G22: 0 | H22: 0 | I22: 0 | J22: 0 | K22: 0 | L22: 0 | M22: 0 | N22: 0 | O22: 0 | P22: 1 | Q22: 0 | R22: 1 | S22: 0 | T22: 0 | U22: 0 | V22: 0 | W22: 0 | X22: 0 | Y22: 0 | Z22: 0 | AA22: 0 | AB22: 0 | AC22: 0 | AD22: 0 | AE22: 0 | AF22: 0 | AG22: 0 | AH22: 0 | AI22: 0 | AJ22: 0 | AK22: 0 | AL22: 0 | AM22: 0
C23: 화학적인자 | D23: 0 | E23: 0 | F23: 0 | G23: 0 | H23: 0 | I23: 0 | J23: 0 | K23: 0 | L23: 0 | M23: 0 | N23: 0 | O23: 0 | P23: 0 | Q23: 0 | R23: 0 | S23: 0 | T23: 0 | U23: 0 | V23: 0 | W23: 0 | X23: 0 | Y23: 0 | Z23: 0 | AA23: 0 | AB23: 0 | AC23: 0 | AD23: 0 | AE23: 0 | AF23: 0 | AG23: 0 | AH23: 0 | AI23: 0 | AJ23: 0 | AK23: 0 | AL23: 0 | AM23: 0
C24: 뇌심혈관질환 | D24: 0 | E24: 0 | F24: 0 | G24: 0 | H24: 0 | I24: 0 | J24: 0 | K24: 0 | L24: 0 | M24: 0 | N24: 0 | O24: 0 | P24: 0 | Q24: 0 | R24: 0 | S24: 0 | T24: 0 | U24: 0 | V24: 0 | W24: 0 | X24: 0 | Y24: 0 | Z24: 0 | AA24: 0 | AB24: 0 | AC24: 0 | AD24: 0 | AE24: 0 | AF24: 0 | AG24: 0 | AH24: 0 | AI24: 0 | AJ24: 0 | AK24: 0 | AL24: 0 | AM24: 0
C25: 근골격계질환 | D25: 0 | E25: 0 | F25: 0 | G25: 0 | H25: 0 | I25: 0 | J25: 0 | K25: 0 | L25: 0 | M25: 0 | N25: 0 | O25: 0 | P25: 0 | Q25: 0 | R25: 0 | S25: 0 | T25: 0 | U25: 0 | V25: 0 | W25: 0 | X25: 0 | Y25: 0 | Z25: 0 | AA25: 0 | AB25: 0 | AC25: 0 | AD25: 0 | AE25: 0 | AF25: 0 | AG25: 0 | AH25: 0 | AI25: 0 | AJ25: 0 | AK25: 0 | AL25: 0 | AM25: 0
B26: 청 주 | C26: 합계 | D26: 205 | E26: 0 | F26: 120 | G26: 0 | H26: 36 | I26: 0 | J26: 34 | K26: 0 | L26: 4 | M26: 0 | N26: 11 | O26: 0 | P26: 170 | Q26: 0 | R26: 94 | S26: 0 | T26: 49 | U26: 0 | V26: 16 | W26: 0 | X26: 8 | Y26: 0 | Z26: 3 | AA26: 0 | AB26: 141 | AC26: 0 | AD26: 72 | AE26: 0 | AF26: 34 | AG26: 0 | AH26: 18 | AI26: 0 | AJ26: 11 | AK26: 0 | AL26: 6 | AM26: 0
C27: 떨어짐(높이가 있는 곳에서 사람이 떨어짐) | D27: 5 | E27: 0 | F27: 2 | G27: 0 | H27: 2 | I27: 0 | J27: 1 | K27: 0 | L27: 0 | M27: 0 | N27: 0 | O27: 0 | P27: 5 | Q27: 0 | R27: 2 | S27: 0 | T27: 0 | U27: 0 | V27: 3 | W27: 0 | X27: 0 | Y27: 0 | Z27: 0 | AA27: 0 | AB27: 2 | AC27: 0 | AD27: 0 | AE27: 0 | AF27: 2 | AG27: 0 | AH27: 0 | AI27: 0 | AJ27: 0 | AK27: 0 | AL27: 0 | AM27: 0
C28: 넘어짐(사람이 미끄러지거나 넘어짐) | D28: 66 | E28: 0 | F28: 39 | G28: 0 | H28: 12 | I28: 0 | J28: 12 | K28: 0 | L28: 2 | M28: 0 | N28: 1 | O28: 0 | P28: 51 | Q28: 0 | R28: 38 | S28: 0 | T28: 8 | U28: 0 | V28: 3 | W28: 0 | X28: 1 | Y28: 0 | Z28: 1 | AA28: 0 | AB28: 36 | AC28: 0 | AD28: 20 | AE28: 0 | AF28: 6 | AG28: 0 | AH28: 4 | AI28: 0 | AJ28: 4 | AK28: 0 | AL28: 2 | AM28: 0
C29: 깔림·뒤집힘(물체의 쓰러짐이나 뒤집힘) | D29: 1 | E29: 0 | F29: 0 | G29: 0 | H29: 1 | I29: 0 | J29: 0 | K29: 0 | L29: 0 | M29: 0 | N29: 0 | O29: 0 | P29: 0 | Q29: 0 | R29: 0 | S29: 0 | T29: 0 | U29: 0 | V29: 0 | W29: 0 | X29: 0 | Y29: 0 | Z29: 0 | AA29: 0 | AB29: 0 | AC29: 0 | AD29: 0 | AE29: 0 | AF29: 0 | AG29: 0 | AH29: 0 | AI29: 0 | AJ29: 0 | AK29: 0 | AL29: 0 | AM29: 0
C30: 부딪힘(물체에 부딪힘) | D30: 7 | E30: 0 | F30: 3 | G30: 0 | H30: 1 | I30: 0 | J30: 1 | K30: 0 | L30: 0 | M30: 0 | N30: 2 | O30: 0 | P30: 2 | Q30: 0 | R30: 1 | S30: 0 | T30: 1 | U30: 0 | V30: 0 | W30: 0 | X30: 0 | Y30: 0 | Z30: 0 | AA30: 0 | AB30: 5 | AC30: 0 | AD30: 3 | AE30: 0 | AF30: 1 | AG30: 0 | AH30: 0 | AI30: 0 | AJ30: 0 | AK30: 0 | AL30: 1 | AM30: 0
C31: 물체에 맞음(날아오거나 떨어진 물체에 맞음) | D31: 5 | E31: 0 | F31: 3 | G31: 0 | H31: 2 | I31: 0 | J31: 0 | K31: 0 | L31: 0 | M31: 0 | N31: 0 | O31: 0 | P31: 6 | Q31: 0 | R31: 1 | S31: 0 | T31: 3 | U31: 0 | V31: 0 | W31: 0 | X31: 1 | Y31: 0 | Z31: 1 | AA31: 0 | AB31: 3 | AC31: 0 | AD31: 2 | AE31: 0 | AF31: 0 | AG31: 0 | AH31: 1 | AI31: 0 | AJ31: 0 | AK31: 0 | AL31: 0 | AM31: 0
C32: 끼임(기계설비에 끼이거나 감김) | D32: 13 | E32: 0 | F32: 10 | G32: 0 | H32: 0 | I32: 0 | J32: 2 | K32: 0 | L32: 1 | M32: 0 | N32: 0 | O32: 0 | P32: 16 | Q32: 0 | R32: 10 | S32: 0 | T32: 4 | U32: 0 | V32: 1 | W32: 0 | X32: 1 | Y32: 0 | Z32: 0 | AA32: 0 | AB32: 10 | AC32: 0 | AD32: 5 | AE32: 0 | AF32: 1 | AG32: 0 | AH32: 3 | AI32: 0 | AJ32: 1 | AK32: 0 | AL32: 0 | AM32: 0
C33: 절단·베임·찔림 | D33: 41 | E33: 0 | F33: 24 | G33: 0 | H33: 7 | I33: 0 | J33: 7 | K33: 0 | L33: 1 | M33: 0 | N33: 2 | O33: 0 | P33: 38 | Q33: 0 | R33: 17 | S33: 0 | T33: 14 | U33: 0 | V33: 4 | W33: 0 | X33: 2 | Y33: 0 | Z33: 1 | AA33: 0 | AB33: 30 | AC33: 0 | AD33: 13 | AE33: 0 | AF33: 11 | AG33: 0 | AH33: 4 | AI33: 0 | AJ33: 1 | AK33: 0 | AL33: 1 | AM33: 0
C34: 불균형 및 무리한 동작 | D34: 11 | E34: 0 | F34: 4 | G34: 0 | H34: 1 | I34: 0 | J34: 5 | K34: 0 | L34: 0 | M34: 0 | N34: 1 | O34: 0 | P34: 6 | Q34: 0 | R34: 3 | S34: 0 | T34: 2 | U34: 0 | V34: 0 | W34: 0 | X34: 1 | Y34: 0 | Z34: 0 | AA34: 0 | AB34: 10 | AC34: 0 | AD34: 6 | AE34: 0 | AF34: 3 | AG34: 0 | AH34: 1 | AI34: 0 | AJ34: 0 | AK34: 0 | AL34: 0 | AM34: 0
C35: 이상온도 접촉 | D35: 24 | E35: 0 | F35: 10 | G35: 0 | H35: 7 | I35: 0 | J35: 4 | K35: 0 | L35: 0 | M35: 0 | N35: 3 | O35: 0 | P35: 28 | Q35: 0 | R35: 13 | S35: 0 | T35: 10 | U35: 0 | V35: 3 | W35: 0 | X35: 2 | Y35: 0 | Z35: 0 | AA35: 0 | AB35: 32 | AC35: 0 | AD35: 15 | AE35: 0 | AF35: 9 | AG35: 0 | AH35: 2 | AI35: 0 | AJ35: 5 | AK35: 0 | AL35: 1 | AM35: 0
C36: 화학물질누출·접촉 | D36: 1 | E36: 0 | F36: 0 | G36: 0 | H36: 0 | I36: 0 | J36: 1 | K36: 0 | L36: 0 | M36: 0 | N36: 0 | O36: 0 | P36: 0 | Q36: 0 | R36: 0 | S36: 0 | T36: 0 | U36: 0 | V36: 0 | W36: 0 | X36: 0 | Y36: 0 | Z36: 0 | AA36: 0 | AB36: 0 | AC36: 0 | AD36: 0 | AE36: 0 | AF36: 0 | AG36: 0 | AH36: 0 | AI36: 0 | AJ36: 0 | AK36: 0 | AL36: 0 | AM36: 0
C37: 사업장내 교통사고 | D37: 1 | E37: 0 | F37: 0 | G37: 0 | H37: 0 | I37: 0 | J37: 0 | K37: 0 | L37: 0 | M37: 0 | N37: 1 | O37: 0 | P37: 0 | Q37: 0 | R37: 0 | S37: 0 | T37: 0 | U37: 0 | V37: 0 | W37: 0 | X37: 0 | Y37: 0 | Z37: 0 | AA37: 0 | AB37: 0 | AC37: 0 | AD37: 0 | AE37: 0 | AF37: 0 | AG37: 0 | AH37: 0 | AI37: 0 | AJ37: 0 | AK37: 0 | AL37: 0 | AM37: 0
C38: 사업장외 교통사고 | D38: 27 | E38: 0 | F38: 22 | G38: 0 | H38: 3 | I38: 0 | J38: 1 | K38: 0 | L38: 0 | M38: 0 | N38: 1 | O38: 0 | P38: 15 | Q38: 0 | R38: 6 | S38: 0 | T38: 7 | U38: 0 | V38: 2 | W38: 0 | X38: 0 | Y38: 0 | Z38: 0 | AA38: 0 | AB38: 13 | AC38: 0 | AD38: 8 | AE38: 0 | AF38: 1 | AG38: 0 | AH38: 3 | AI38: 0 | AJ38: 0 | AK38: 0 | AL38: 1 | AM38: 0
C39: 체육행사 등의 사고 | D39: 2 | E39: 0 | F39: 2 | G39: 0 | H39: 0 | I39: 0 | J39: 0 | K39: 0 | L39: 0 | M39: 0 | N39: 0 | O39: 0 | P39: 1 | Q39: 0 | R39: 1 | S39: 0 | T39: 0 | U39: 0 | V39: 0 | W39: 0 | X39: 0 | Y39: 0 | Z39: 0 | AA39: 0 | AB39: 0 | AC39: 0 | AD39: 0 | AE39: 0 | AF39: 0 | AG39: 0 | AH39: 0 | AI39: 0 | AJ39: 0 | AK39: 0 | AL39: 0 | AM39: 0
C40: 폭력행위 | D40: 1 | E40: 0 | F40: 1 | G40: 0 | H40: 0 | I40: 0 | J40: 0 | K40: 0 | L40: 0 | M40: 0 | N40: 0 | O40: 0 | P40: 2 | Q40: 0 | R40: 2 | S40: 0 | T40: 0 | U40: 0 | V40: 0 | W40: 0 | X40: 0 | Y40: 0 | Z40: 0 | AA40: 0 | AB40: 0 | AC40: 0 | AD40: 0 | AE40: 0 | AF40: 0 | AG40: 0 | AH40: 0 | AI40: 0 | AJ40: 0 | AK40: 0 | AL40: 0 | AM40: 0
C41: 생물학적인자 | D41: 0 | E41: 0 | F41: 0 | G41: 0 | H41: 0 | I41: 0 | J41: 0 | K41: 0 | L41: 0 | M41: 0 | N41: 0 | O41: 0 | P41: 0 | Q41: 0 | R41: 0 | S41: 0 | T41: 0 | U41: 0 | V41: 0 | W41: 0 | X41: 0 | Y41: 0 | Z41: 0 | AA41: 0 | AB41: 0 | AC41: 0 | AD41: 0 | AE41: 0 | AF41: 0 | AG41: 0 | AH41: 0 | AI41: 0 | AJ41: 0 | AK41: 0 | AL41: 0 | AM41: 0
C42: 뇌심혈관질환 | D42: 0 | E42: 0 | F42: 0 | G42: 0 | H42: 0 | I42: 0 | J42: 0 | K42: 0 | L42: 0 | M42: 0 | N42: 0 | O42: 0 | P42: 0 | Q42: 0 | R42: 0 | S42: 0 | T42: 0 | U42: 0 | V42: 0 | W42: 0 | X42: 0 | Y42: 0 | Z42: 0 | AA42: 0 | AB42: 0 | AC42: 0 | AD42: 0 | AE42: 0 | AF42: 0 | AG42: 0 | AH42: 0 | AI42: 0 | AJ42: 0 | AK42: 0 | AL42: 0 | AM42: 0
C43: 근골격계질환 | D43: 0 | E43: 0 | F43: 0 | G43: 0 | H43: 0 | I43: 0 | J43: 0 | K43: 0 | L43: 0 | M43: 0 | N43: 0 | O43: 0 | P43: 0 | Q43: 0 | R43: 0 | S43: 0 | T43: 0 | U43: 0 | V43: 0 | W43: 0 | X43: 0 | Y43: 0 | Z43: 0 | AA43: 0 | AB43: 0 | AC43: 0 | AD43: 0 | AE43: 0 | AF43: 0 | AG43: 0 | AH43: 0 | AI43: 0 | AJ43: 0 | AK43: 0 | AL43: 0 | AM43: 0
B44: 충 주 | C44: 합계 | D44: 60 | E44: 0 | F44: 36 | G44: 0 | H44: 11 | I44: 0 | J44: 4 | K44: 0 | L44: 8 | M44: 0 | N44: 1 | O44: 0 | P44: 45 | Q44: 0 | R44: 24 | S44: 0 | T44: 11 | U44: 0 | V44: 4 | W44: 0 | X44: 2 | Y44: 0 | Z44: 4 | AA44: 0 | AB44: 40 | AC44: 0 | AD44: 23 | AE44: 0 | AF44: 7 | AG44: 0 | AH44: 8 | AI44: 0 | AJ44: 1 | AK44: 0 | AL44: 1 | AM44: 0
C45: 떨어짐(높이가 있는 곳에서 사람이 떨어짐) | D45: 4 | E45: 0 | F45: 2 | G45: 0 | H45: 0 | I45: 0 | J45: 1 | K45: 0 | L45: 1 | M45: 0 | N45: 0 | O45: 0 | P45: 1 | Q45: 0 | R45: 1 | S45: 0 | T45: 0 | U45: 0 | V45: 0 | W45: 0 | X45: 0 | Y45: 0 | Z45: 0 | AA45: 0 | AB45: 1 | AC45: 0 | AD45: 0 | AE45: 0 | AF45: 0 | AG45: 0 | AH45: 1 | AI45: 0 | AJ45: 0 | AK45: 0 | AL45: 0 | AM45: 0
